{"text_format":"1","workbook":"xlsx","n_sheets":79,"sheets":["Feuil1","ANDRE","APPRIOU","ARNAUD","ARZUR","BEAUVALLET","BINET_M","BISSI","BLEAS","BOULORD","BOURVA Claude","BRETON","BRUNEAU_Mireille","CANAULT","CAPITAINE","CASTELLI","Mme_CHANDORA","CHASSAIN","COLLET","MR_MME_COLLET","COZIC","DANGUY_DES_DESERTS","DELAGE","DOUSSAL","DENNIEL Marie Claire","DURU","FAUVERGUE_P","FAVE","FOURNIER André","FOUYET","GOAS","AL_GOURVENNEC","RESTIC_GOURVENNEC","HELOU","HERRY_S T1","HERRY S T3","HIMILY","HILY","GUEGUEN","JAFFREDOU","JEZEGOU","LANNON","MR_MME_LAOT","LAOT_J","LE_BRAS_L","LE_BRIS_A","LE_GOFF","LE_MAT","LE_ROUX","L'HERMITE","LE_SAOUT Mr Mme","MARHIC Robert","MARSALET","MEMIN","MIOSSEC","MOBIAN","MORGANT","MORVAN_AM","PENNOT","PERROT","PRIGENT Yvonne","PEUZIAT","PERAN","QUERE_ML","QUINTIN","ROLLAND Marie Thérèse","ROZEC_A","ROZEC_MF","SCIOU","SERBA","TANDEAU","THOMAS_J","TREBAOL","TREHAN","TREGUIER","VIGOUROUX","VAILLANT_T","Feuil2","Cumul"],"not_rendered":{"charts":0,"images":0,"macros":0,"external_links":0,"defined_names":1,"comments":0,"pivot_tables":0},"unopened":[],"bounds":{"document_bytes":16777216,"sheet_cells":100000,"rows_first":2000,"rows_last":500,"rows_between":2000,"halvings":0,"cell_chars":16384,"cell_head_chars":4096},"cells_cut":0,"cells_raw":0,"read":"whole","date_system":"1900"}

{"sheet":"Feuil1","index":0,"n_rows":33,"n_cols":15,"rows_kept":33,"cut":false,"hidden":false,"merged":[[1,13,1,14],[1,1,1,2],[1,3,1,4],[1,5,1,6],[1,7,1,8],[1,9,1,10],[1,11,1,12]]}
[]
[null,"Lun 09/10/2017",null,"Mar 10/10/2017",null,"Mer 11/10/2017",null,"Jeu 12/10/2017",null,"Ven 13/10/2017",null,"Sam 14/10/2017",null,"Dim 15/10/2017"]
["Entrées","Sardines à l'huile",null,"Coleslaw",null,"Champignons Grecs",null,"Betteraves",null,"Crêpe champignons",null,"Taboulé"]
[null,"Terrine de légumes",null,"Œuf mayonnaise",null,"Pizza pain",null,"Panier jambon fromage",null,"Crumble saumon",null,"Quiche lorraine",null,"Saumon fumé"]
[null,"Piémontaise",null,"Pdt au thon",null,"Salade surimi",null,"Rillettes poisson",null,"Cocktail de crevettes",null,"Salade paysanne"]
[null,"Charcuterie du jour",null,"Charcuterie du jour",null,"Charcuterie du jour",null,"Charcuterie du jour",null,"Charcuterie du jour",null,"Charcuterie du jour",null,"Salade tomates maïs"]
[null,"Potage du jour",null,"Potage du jour",null,"Potage du jour",null,"Potage du jour",null,"Potage du jour",null,"Potage du jour",null,"Potage du jour"]
["Plats",null,null,"Meunière de colin",null,"Poisson a la bordelaise",null,"Colin à la Parisienne",null,"Brandade de morue",null,"Filet flétan meunière"]
[null,"Suprême de poulet",null,"Brochette de bœuf",null,"Blanquette de veau",null,"Poulet Basquaise",null,"Brochette de volaille",null,"Rôti de porc",null,"Saumon beurre-blanc"]
[null,"Jambon grillé",null,"Jambon blanc",null,"Jambon grillé",null,"Jambon blanc",null,"Jambon grillé",null,"Jambon blanc"]
[null,"Steak à poêler (Cru)",null,"Steak à poêler (cru)",null,"Steak à poêler (Cru)",null,"Steak à poêler (Cru)",null,"Steak à poêler (Cru)",null,"Steak à poêler (Cru)",null,"Jambon persillé"]
[null,"Poisson du jour/citron",null,"Poisson du jour/citron",null,"Poisson du jour/citron",null,"Poisson du jour/citron",null,"Poisson du jour/citron",null,"Poisson du jour/citron"]
["Garnitures","Pâtes au beurre",null,"Riz au beurre",null,"Pâtes au beurre",null,"Riz au beurre",null,"Pâtes au beurre",null,"Riz au beurre"]
[null,"Purée patates douces",null,"Purée pdt",null,"Purée de carottes",null,"Purée de céleri",null,"Purée de brocolis",null,"Purée haricots verts",null,"Riz pilaf"]
[null,"Choux romanesco",null,"Lentilles",null,"Carottes Parisiennes",null,"Salsifis",null,"Ratatouille",null,"Poêlée courgettes"]
[null,"Haricots beurre",null,"Potée de choux",null,"Poêlée forestière",null,"Printanière légumes",null,"Petits pois-carottes",null,"Légumes Léonard",null,"Gratin Dauphinois"]
[null,"Pommes vapeur",null,"Pommes grenaille",null,"Pommes vapeur",null,"Pommes grenaille",null,"Pommes vapeur",null,"Pommes grenaille"]
["Fromages","Roquefort",null,"Camembert",null,"Roquefort",null,"Camembert",null,"Roquefort",null,"Camembert",null,"Roquefort"]
[null,"Emmental",null,"Petit moulé",null,"Emmental",null,"Petit moulé",null,"Emmental",null,"Petit moulé",null,"Emmental"]
[null,"Yaourt nature",null,"Yaourt aux fruits",null,"Yaourt nature",null,"Yaourt aux fruits",null,"Yaourt nature",null,"Yaourt aux fruits",null,"Yaourt nature"]
[null,"Faisselle",null,"Chocolat liégeois",null,"Faisselle",null,"Café liégeois",null,"Faisselle",null,"Chocolat liégeois",null,"Faisselle"]
[null,"Riz au lait",null,"Semoule au lait",null,"Riz au lait",null,"Semoule au lait",null,"Riz au lait",null,"Semoule au lait",null,"Riz au lait"]
["Desserts","Pomme",null,"Clémentine",null,"Pêche",null,"Poire",null,"Salade de fruits",null,"Banane"]
[null,"Tatin de pommes",null,"Flan caramel",null,"Mousse de fruits",null,"Panna Cota",null,"île flottante",null,"Far Breton",null,"Choux craquelés"]
[null,"Flan pâtissier",null,"Tropézienne",null,"Kouign Amann",null,"Tarte aux pommes",null,"Crème praliné",null,"Tarte caramel",null,"Paris-Brest"]
[null,"Entremet fruit du jour",null,"Entremet fruit du jour",null,"Entremet fruit du jour",null,"Entremet fruit du jour",null,"Entremet fruit du jour",null,"Entremet fruit du jour"]
[null,"Compote aux fruits",null,"Compote de fruits",null,"Compote aux fruits",null,"Compote aux fruits",null,"Compote de fruits",null,"Compote aux fruits"]
["Pain","Pain",null,"Pain",null,"Pain",null,"Pain",null,"Pain",null,"Pain",null,"Pain"]
["Beurre","Beurre",null,"Beurre",null,"Beurre",null,"Beurre",null,"Beurre",null,"Beurre",null,"Beurre"]
[]
[]
["Total","plats",{"$f":"SUM(C3:C27)","v":0},null,{"$f":"SUM(E3:E27)","v":0},null,{"$f":"SUM(G3:G27)","v":0},null,{"$f":"SUM(I3:I27)","v":0},null,{"$f":"SUM(K3:K27)","v":0},null,{"$f":"SUM(M3:M27)","v":0},null,{"$f":"SUM(O3:O27)","v":0}]
[null,"Beurre",{"$f":"C29","v":0},null,{"$f":"E29","v":0},null,{"$f":"G29","v":0},null,{"$f":"I29","v":0},null,{"$f":"K29","v":0},null,{"$f":"M29","v":0},null,{"$f":"O29","v":0}]

{"sheet":"ANDRE","index":1,"n_rows":33,"n_cols":15,"rows_kept":33,"cut":false,"hidden":false,"merged":[[1,13,1,14],[1,1,1,2],[1,3,1,4],[1,5,1,6],[1,7,1,8],[1,9,1,10],[1,11,1,12]]}
[]
[null,"Lun 09/10/2017",null,"Mar 10/10/2017",null,"Mer 11/10/2017",null,"Jeu 12/10/2017",null,"Ven 13/10/2017",null,"Sam 14/10/2017",null,"Dim 15/10/2017"]
["Entrées","Sardines à l'huile",null,"Coleslaw",null,"Champignons Grecs",null,"Betteraves",null,"Crêpe champignons",1,"Taboulé"]
[null,"Terrine de légumes",null,"Œuf mayonnaise",1,"Pizza pain",null,"Panier jambon fromage",1,"Crumble saumon",null,"Quiche lorraine",null,"Saumon fumé"]
[null,"Piémontaise",null,"Pdt au thon",null,"Salade surimi",null,"Rillettes poisson",null,"Cocktail de crevettes",null,"Salade paysanne"]
[null,"Charcuterie du jour",1,"Charcuterie du jour",null,"Charcuterie du jour",1,"Charcuterie du jour",null,"Charcuterie du jour",null,"Charcuterie du jour",1,"Salade tomates maïs"]
[null,"Potage du jour",1,"Potage du jour",1,"Potage du jour",null,"Potage du jour",1,"Potage du jour",null,"Potage du jour",1,"Potage du jour",1]
["Plats",null,null,"Meunière de colin",null,"Poisson a la bordelaise",null,"Colin à la Parisienne",null,"Brandade de morue",1,"Filet flétan meunière"]
[null,"Suprême de poulet",null,"Brochette de bœuf",null,"Blanquette de veau",1,"Poulet Basquaise",1,"Brochette de volaille",null,"Rôti de porc",null,"Saumon beurre-blanc"]
[null,"Jambon grillé",1,"Jambon blanc",1,"Jambon grillé",null,"Jambon blanc",null,"Jambon grillé",null,"Jambon blanc",1]
[null,"Steak à poêler (Cru)",null,"Steak à poêler (cru)",null,"Steak à poêler (Cru)",null,"Steak à poêler (Cru)",null,"Steak à poêler (Cru)",null,"Steak à poêler (Cru)",null,"Jambon persillé",1]
[null,"Poisson du jour/citron",null,"Poisson du jour/citron",null,"Poisson du jour/citron",null,"Poisson du jour/citron",null,"Poisson du jour/citron",null,"Poisson du jour/citron"]
["Garnitures","Pâtes au beurre",null,"Riz au beurre",null,"Pâtes au beurre",null,"Riz au beurre",null,"Pâtes au beurre",null,"Riz au beurre"]
[null,"Purée patates douces",null,"Purée pdt",1,"Purée de carottes",null,"Purée de céleri",null,"Purée de brocolis",1,"Purée haricots verts",1,"Riz pilaf"]
[null,"Choux romanesco",null,"Lentilles",null,"Carottes Parisiennes",null,"Salsifis",null,"Ratatouille",null,"Poêlée courgettes"]
[null,"Haricots beurre",1,"Potée de choux",null,"Poêlée forestière",1,"Printanière légumes",1,"Petits pois-carottes",null,"Légumes Léonard",null,"Gratin Dauphinois",1]
[null,"Pommes vapeur",null,"Pommes grenaille",null,"Pommes vapeur",null,"Pommes grenaille",null,"Pommes vapeur",null,"Pommes grenaille"]
["Fromages","Roquefort",null,"Camembert",null,"Roquefort",null,"Camembert",null,"Roquefort",null,"Camembert",1,"Roquefort"]
[null,"Emmental",null,"Petit moulé",null,"Emmental",null,"Petit moulé",null,"Emmental",null,"Petit moulé",null,"Emmental"]
[null,"Yaourt nature",null,"Yaourt aux fruits",null,"Yaourt nature",null,"Yaourt aux fruits",null,"Yaourt nature",null,"Yaourt aux fruits",null,"Yaourt nature"]
[null,"Faisselle",null,"Chocolat liégeois",null,"Faisselle",null,"Café liégeois",1,"Faisselle",null,"Chocolat liégeois",null,"Faisselle"]
[null,"Riz au lait",1,"Semoule au lait",1,"Riz au lait",1,"Semoule au lait",null,"Riz au lait",1,"Semoule au lait",null,"Riz au lait",1]
["Desserts","Pomme",null,"Clémentine",null,"Pêche",null,"Poire",null,"Salade de fruits",null,"Banane"]
[null,"Tatin de pommes",1,"Flan caramel",null,"Mousse de fruits",1,"Panna Cota",null,"île flottante",1,"Far Breton",1,"Choux craquelés"]
[null,"Flan pâtissier",null,"Tropézienne",1,"Kouign Amann",null,"Tarte aux pommes",1,"Crème praliné",null,"Tarte caramel",null,"Paris-Brest",1]
[null,"Entremet fruit du jour",null,"Entremet fruit du jour",null,"Entremet fruit du jour",null,"Entremet fruit du jour",null,"Entremet fruit du jour",null,"Entremet fruit du jour"]
[null,"Compote aux fruits",null,"Compote de fruits",null,"Compote aux fruits",null,"Compote aux fruits",null,"Compote de fruits",null,"Compote aux fruits"]
["Pain","Pain",null,"Pain",null,"Pain",null,"Pain",null,"Pain",null,"Pain",null,"Pain"]
["Beurre","Beurre",null,"Beurre",null,"Beurre",null,"Beurre",null,"Beurre",null,"Beurre",null,"Beurre"]
[]
[]
["Total","plats",{"$f":"SUM(C3:C27)","v":6},null,{"$f":"SUM(E3:E27)","v":6},null,{"$f":"SUM(G3:G27)","v":5},null,{"$f":"SUM(I3:I27)","v":6},null,{"$f":"SUM(K3:K27)","v":5},null,{"$f":"SUM(M3:M27)","v":6},null,{"$f":"SUM(O3:O27)","v":5}]
[null,"Beurre",{"$f":"C29","v":0},null,{"$f":"E29","v":0},null,{"$f":"G29","v":0},null,{"$f":"I29","v":0},null,{"$f":"K29","v":0},null,{"$f":"M29","v":0},null,{"$f":"O29","v":0}]

{"sheet":"APPRIOU","index":2,"n_rows":33,"n_cols":15,"rows_kept":33,"cut":false,"hidden":false,"merged":[[1,13,1,14],[1,1,1,2],[1,3,1,4],[1,5,1,6],[1,7,1,8],[1,9,1,10],[1,11,1,12]]}
[]
[null,"Lun 09/10/2017",null,"Mar 10/10/2017",null,"Mer 11/10/2017",null,"Jeu 12/10/2017",null,"Ven 13/10/2017",null,"Sam 14/10/2017",null,"Dim 15/10/2017"]
["Entrées","Sardines à l'huile",null,"Coleslaw",null,"Champignons Grecs",null,"Betteraves",null,"Crêpe champignons",null,"Taboulé"]
[null,"Terrine de légumes",null,"Œuf mayonnaise",null,"Pizza pain",null,"Panier jambon fromage",null,"Crumble saumon",null,"Quiche lorraine",null,"Saumon fumé"]
[null,"Piémontaise",null,"Pdt au thon",null,"Salade surimi",null,"Rillettes poisson",null,"Cocktail de crevettes",null,"Salade paysanne"]
[null,"Charcuterie du jour",null,"Charcuterie du jour",null,"Charcuterie du jour",null,"Charcuterie du jour",null,"Charcuterie du jour",null,"Charcuterie du jour",null,"Salade tomates maïs"]
[null,"Potage du jour",null,"Potage du jour",null,"Potage du jour",null,"Potage du jour",null,"Potage du jour",null,"Potage du jour",null,"Potage du jour"]
["Plats",null,null,"Meunière de colin",null,"Poisson a la bordelaise",null,"Colin à la Parisienne",null,"Brandade de morue",null,"Filet flétan meunière"]
[null,"Suprême de poulet",null,"Brochette de bœuf",null,"Blanquette de veau",null,"Poulet Basquaise",null,"Brochette de volaille",null,"Rôti de porc",null,"Saumon beurre-blanc"]
[null,"Jambon grillé",null,"Jambon blanc",null,"Jambon grillé",null,"Jambon blanc",null,"Jambon grillé",null,"Jambon blanc"]
[null,"Steak à poêler (Cru)",null,"Steak à poêler (cru)",null,"Steak à poêler (Cru)",null,"Steak à poêler (Cru)",null,"Steak à poêler (Cru)",null,"Steak à poêler (Cru)",null,"Jambon persillé"]
[null,"Poisson du jour/citron",null,"Poisson du jour/citron",null,"Poisson du jour/citron",null,"Poisson du jour/citron",null,"Poisson du jour/citron",null,"Poisson du jour/citron"]
["Garnitures","Pâtes au beurre",null,"Riz au beurre",null,"Pâtes au beurre",null,"Riz au beurre",null,"Pâtes au beurre",null,"Riz au beurre"]
[null,"Purée patates douces",null,"Purée pdt",null,"Purée de carottes",null,"Purée de céleri",null,"Purée de brocolis",null,"Purée haricots verts",null,"Riz pilaf"]
[null,"Choux romanesco",null,"Lentilles",null,"Carottes Parisiennes",null,"Salsifis",null,"Ratatouille",null,"Poêlée courgettes"]
[null,"Haricots beurre",null,"Potée de choux",null,"Poêlée forestière",null,"Printanière légumes",null,"Petits pois-carottes",null,"Légumes Léonard",null,"Gratin Dauphinois"]
[null,"Pommes vapeur",null,"Pommes grenaille",null,"Pommes vapeur",null,"Pommes grenaille",null,"Pommes vapeur",null,"Pommes grenaille"]
["Fromages","Roquefort",null,"Camembert",null,"Roquefort",null,"Camembert",null,"Roquefort",null,"Camembert",null,"Roquefort"]
[null,"Emmental",null,"Petit moulé",null,"Emmental",null,"Petit moulé",null,"Emmental",null,"Petit moulé",null,"Emmental"]
[null,"Yaourt nature",null,"Yaourt aux fruits",null,"Yaourt nature",null,"Yaourt aux fruits",null,"Yaourt nature",null,"Yaourt aux fruits",null,"Yaourt nature"]
[null,"Faisselle",null,"Chocolat liégeois",null,"Faisselle",null,"Café liégeois",null,"Faisselle",null,"Chocolat liégeois",null,"Faisselle"]
[null,"Riz au lait",null,"Semoule au lait",null,"Riz au lait",null,"Semoule au lait",null,"Riz au lait",null,"Semoule au lait",null,"Riz au lait"]
["Desserts","Pomme",null,"Clémentine",null,"Pêche",null,"Poire",null,"Salade de fruits",null,"Banane"]
[null,"Tatin de pommes",null,"Flan caramel",null,"Mousse de fruits",null,"Panna Cota",null,"île flottante",null,"Far Breton",null,"Choux craquelés"]
[null,"Flan pâtissier",null,"Tropézienne",null,"Kouign Amann",null,"Tarte aux pommes",null,"Crème praliné",null,"Tarte caramel",null,"Paris-Brest"]
[null,"Entremet fruit du jour",null,"Entremet fruit du jour",null,"Entremet fruit du jour",null,"Entremet fruit du jour",null,"Entremet fruit du jour",null,"Entremet fruit du jour"]
[null,"Compote aux fruits",null,"Compote de fruits",null,"Compote aux fruits",null,"Compote aux fruits",null,"Compote de fruits",null,"Compote aux fruits"]
["Pain","Pain",null,"Pain",null,"Pain",null,"Pain",null,"Pain",null,"Pain",null,"Pain"]
["Beurre","Beurre",null,"Beurre",null,"Beurre",null,"Beurre",null,"Beurre",null,"Beurre",null,"Beurre"]
[]
[]
["Total","plats",{"$f":"SUM(C3:C27)","v":0},null,{"$f":"SUM(E3:E27)","v":0},null,{"$f":"SUM(G3:G27)","v":0},null,{"$f":"SUM(I3:I27)","v":0},null,{"$f":"SUM(K3:K27)","v":0},null,{"$f":"SUM(M3:M27)","v":0},null,{"$f":"SUM(O3:O27)","v":0}]
[null,"Beurre",{"$f":"C29","v":0},null,{"$f":"E29","v":0},null,{"$f":"G29","v":0},null,{"$f":"I29","v":0},null,{"$f":"K29","v":0},null,{"$f":"M29","v":0},null,{"$f":"O29","v":0}]

{"sheet":"ARNAUD","index":3,"n_rows":33,"n_cols":15,"rows_kept":33,"cut":false,"hidden":false,"merged":[[1,13,1,14],[1,1,1,2],[1,3,1,4],[1,5,1,6],[1,7,1,8],[1,9,1,10],[1,11,1,12]]}
[]
[null,"Lun 09/10/2017",null,"Mar 10/10/2017",null,"Mer 11/10/2017",null,"Jeu 12/10/2017",null,"Ven 13/10/2017",null,"Sam 14/10/2017",null,"Dim 15/10/2017"]
["Entrées","Sardines à l'huile",null,"Coleslaw",null,"Champignons Grecs",null,"Betteraves",null,"Crêpe champignons",null,"Taboulé"]
[null,"Terrine de légumes",null,"Œuf mayonnaise",null,"Pizza pain",null,"Panier jambon fromage",null,"Crumble saumon",null,"Quiche lorraine",null,"Saumon fumé"]
[null,"Piémontaise",null,"Pdt au thon",null,"Salade surimi",null,"Rillettes poisson",null,"Cocktail de crevettes",null,"Salade paysanne"]
[null,"Charcuterie du jour",null,"Charcuterie du jour",null,"Charcuterie du jour",null,"Charcuterie du jour",null,"Charcuterie du jour",null,"Charcuterie du jour",null,"Salade tomates maïs"]
[null,"Potage du jour",null,"Potage du jour",null,"Potage du jour",null,"Potage du jour",null,"Potage du jour",null,"Potage du jour",null,"Potage du jour"]
["Plats",null,null,"Meunière de colin",null,"Poisson a la bordelaise",null,"Colin à la Parisienne",null,"Brandade de morue",null,"Filet flétan meunière"]
[null,"Suprême de poulet",null,"Brochette de bœuf",null,"Blanquette de veau",null,"Poulet Basquaise",null,"Brochette de volaille",null,"Rôti de porc",null,"Saumon beurre-blanc"]
[null,"Jambon grillé",null,"Jambon blanc",null,"Jambon grillé",null,"Jambon blanc",null,"Jambon grillé",null,"Jambon blanc"]
[null,"Steak à poêler (Cru)",null,"Steak à poêler (cru)",null,"Steak à poêler (Cru)",null,"Steak à poêler (Cru)",null,"Steak à poêler (Cru)",null,"Steak à poêler (Cru)",null,"Jambon persillé"]
[null,"Poisson du jour/citron",null,"Poisson du jour/citron",null,"Poisson du jour/citron",null,"Poisson du jour/citron",null,"Poisson du jour/citron",null,"Poisson du jour/citron"]
["Garnitures","Pâtes au beurre",null,"Riz au beurre",null,"Pâtes au beurre",null,"Riz au beurre",null,"Pâtes au beurre",null,"Riz au beurre"]
[null,"Purée patates douces",null,"Purée pdt",null,"Purée de carottes",null,"Purée de céleri",null,"Purée de brocolis",null,"Purée haricots verts",null,"Riz pilaf"]
[null,"Choux romanesco",null,"Lentilles",null,"Carottes Parisiennes",null,"Salsifis",null,"Ratatouille",null,"Poêlée courgettes"]
[null,"Haricots beurre",null,"Potée de choux",null,"Poêlée forestière",null,"Printanière légumes",null,"Petits pois-carottes",null,"Légumes Léonard",null,"Gratin Dauphinois"]
[null,"Pommes vapeur",null,"Pommes grenaille",null,"Pommes vapeur",null,"Pommes grenaille",null,"Pommes vapeur",null,"Pommes grenaille"]
["Fromages","Roquefort",null,"Camembert",null,"Roquefort",null,"Camembert",null,"Roquefort",null,"Camembert",null,"Roquefort"]
[null,"Emmental",null,"Petit moulé",null,"Emmental",null,"Petit moulé",null,"Emmental",null,"Petit moulé",null,"Emmental"]
[null,"Yaourt nature",null,"Yaourt aux fruits",null,"Yaourt nature",null,"Yaourt aux fruits",null,"Yaourt nature",null,"Yaourt aux fruits",null,"Yaourt nature"]
[null,"Faisselle",null,"Chocolat liégeois",null,"Faisselle",null,"Café liégeois",null,"Faisselle",null,"Chocolat liégeois",null,"Faisselle"]
[null,"Riz au lait",null,"Semoule au lait",null,"Riz au lait",null,"Semoule au lait",null,"Riz au lait",null,"Semoule au lait",null,"Riz au lait"]
["Desserts","Pomme",null,"Clémentine",null,"Pêche",null,"Poire",null,"Salade de fruits",null,"Banane"]
[null,"Tatin de pommes",null,"Flan caramel",null,"Mousse de fruits",null,"Panna Cota",null,"île flottante",null,"Far Breton",null,"Choux craquelés"]
[null,"Flan pâtissier",null,"Tropézienne",null,"Kouign Amann",null,"Tarte aux pommes",null,"Crème praliné",null,"Tarte caramel",null,"Paris-Brest"]
[null,"Entremet fruit du jour",null,"Entremet fruit du jour",null,"Entremet fruit du jour",null,"Entremet fruit du jour",null,"Entremet fruit du jour",null,"Entremet fruit du jour"]
[null,"Compote aux fruits",null,"Compote de fruits",null,"Compote aux fruits",null,"Compote aux fruits",null,"Compote de fruits",null,"Compote aux fruits"]
["Pain","Pain",null,"Pain",null,"Pain",null,"Pain",null,"Pain",null,"Pain",null,"Pain"]
["Beurre","Beurre",null,"Beurre",null,"Beurre",null,"Beurre",null,"Beurre",null,"Beurre",null,"Beurre"]
[]
[]
["Total","plats",{"$f":"SUM(C3:C27)","v":0},null,{"$f":"SUM(E3:E27)","v":0},null,{"$f":"SUM(G3:G27)","v":0},null,{"$f":"SUM(I3:I27)","v":0},null,{"$f":"SUM(K3:K27)","v":0},null,{"$f":"SUM(M3:M27)","v":0},null,{"$f":"SUM(O3:O27)","v":0}]
[null,"Beurre",{"$f":"C29","v":0},null,{"$f":"E29","v":0},null,{"$f":"G29","v":0},null,{"$f":"I29","v":0},null,{"$f":"K29","v":0},null,{"$f":"M29","v":0},null,{"$f":"O29","v":0}]

{"sheet":"ARZUR","index":4,"n_rows":33,"n_cols":15,"rows_kept":33,"cut":false,"hidden":false,"merged":[[1,13,1,14],[1,1,1,2],[1,3,1,4],[1,5,1,6],[1,7,1,8],[1,9,1,10],[1,11,1,12]]}
[]
[null,"Lun 09/10/2017",null,"Mar 10/10/2017",null,"Mer 11/10/2017",null,"Jeu 12/10/2017",null,"Ven 13/10/2017",null,"Sam 14/10/2017",null,"Dim 15/10/2017"]
["Entrées","Sardines à l'huile",null,"Coleslaw",null,"Champignons Grecs",null,"Betteraves",null,"Crêpe champignons",null,"Taboulé"]
[null,"Terrine de légumes",null,"Œuf mayonnaise",null,"Pizza pain",null,"Panier jambon fromage",null,"Crumble saumon",null,"Quiche lorraine",null,"Saumon fumé"]
[null,"Piémontaise",null,"Pdt au thon",null,"Salade surimi",null,"Rillettes poisson",null,"Cocktail de crevettes",null,"Salade paysanne"]
[null,"Charcuterie du jour",null,"Charcuterie du jour",null,"Charcuterie du jour",null,"Charcuterie du jour",null,"Charcuterie du jour",null,"Charcuterie du jour",null,"Salade tomates maïs"]
[null,"Potage du jour",null,"Potage du jour",null,"Potage du jour",null,"Potage du jour",null,"Potage du jour",null,"Potage du jour",null,"Potage du jour"]
["Plats",null,null,"Meunière de colin",null,"Poisson a la bordelaise",null,"Colin à la Parisienne",null,"Brandade de morue",null,"Filet flétan meunière"]
[null,"Suprême de poulet",null,"Brochette de bœuf",null,"Blanquette de veau",null,"Poulet Basquaise",null,"Brochette de volaille",null,"Rôti de porc",null,"Saumon beurre-blanc"]
[null,"Jambon grillé",null,"Jambon blanc",null,"Jambon grillé",null,"Jambon blanc",null,"Jambon grillé",null,"Jambon blanc"]
[null,"Steak à poêler (Cru)",null,"Steak à poêler (cru)",null,"Steak à poêler (Cru)",null,"Steak à poêler (Cru)",null,"Steak à poêler (Cru)",null,"Steak à poêler (Cru)",null,"Jambon persillé"]
[null,"Poisson du jour/citron",null,"Poisson du jour/citron",null,"Poisson du jour/citron",null,"Poisson du jour/citron",null,"Poisson du jour/citron",null,"Poisson du jour/citron"]
["Garnitures","Pâtes au beurre",null,"Riz au beurre",null,"Pâtes au beurre",null,"Riz au beurre",null,"Pâtes au beurre",null,"Riz au beurre"]
[null,"Purée patates douces",null,"Purée pdt",null,"Purée de carottes",null,"Purée de céleri",null,"Purée de brocolis",null,"Purée haricots verts",null,"Riz pilaf"]
[null,"Choux romanesco",null,"Lentilles",null,"Carottes Parisiennes",null,"Salsifis",null,"Ratatouille",null,"Poêlée courgettes"]
[null,"Haricots beurre",null,"Potée de choux",null,"Poêlée forestière",null,"Printanière légumes",null,"Petits pois-carottes",null,"Légumes Léonard",null,"Gratin Dauphinois"]
[null,"Pommes vapeur",null,"Pommes grenaille",null,"Pommes vapeur",null,"Pommes grenaille",null,"Pommes vapeur",null,"Pommes grenaille"]
["Fromages","Roquefort",null,"Camembert",null,"Roquefort",null,"Camembert",null,"Roquefort",null,"Camembert",null,"Roquefort"]
[null,"Emmental",null,"Petit moulé",null,"Emmental",null,"Petit moulé",null,"Emmental",null,"Petit moulé",null,"Emmental"]
[null,"Yaourt nature",null,"Yaourt aux fruits",null,"Yaourt nature",null,"Yaourt aux fruits",null,"Yaourt nature",null,"Yaourt aux fruits",null,"Yaourt nature"]
[null,"Faisselle",null,"Chocolat liégeois",null,"Faisselle",null,"Café liégeois",null,"Faisselle",null,"Chocolat liégeois",null,"Faisselle"]
[null,"Riz au lait",null,"Semoule au lait",null,"Riz au lait",null,"Semoule au lait",null,"Riz au lait",null,"Semoule au lait",null,"Riz au lait"]
["Desserts","Pomme",null,"Clémentine",null,"Pêche",null,"Poire",null,"Salade de fruits",null,"Banane"]
[null,"Tatin de pommes",null,"Flan caramel",null,"Mousse de fruits",null,"Panna Cota",null,"île flottante",null,"Far Breton",null,"Choux craquelés"]
[null,"Flan pâtissier",null,"Tropézienne",null,"Kouign Amann",null,"Tarte aux pommes",null,"Crème praliné",null,"Tarte caramel",null,"Paris-Brest"]
[null,"Entremet fruit du jour",null,"Entremet fruit du jour",null,"Entremet fruit du jour",null,"Entremet fruit du jour",null,"Entremet fruit du jour",null,"Entremet fruit du jour"]
[null,"Compote aux fruits",null,"Compote de fruits",null,"Compote aux fruits",null,"Compote aux fruits",null,"Compote de fruits",null,"Compote aux fruits"]
["Pain","Pain",null,"Pain",null,"Pain",null,"Pain",null,"Pain",null,"Pain",null,"Pain"]
["Beurre","Beurre",null,"Beurre",null,"Beurre",null,"Beurre",null,"Beurre",null,"Beurre",null,"Beurre"]
[]
[]
["Total","plats",{"$f":"SUM(C3:C27)","v":0},null,{"$f":"SUM(E3:E27)","v":0},null,{"$f":"SUM(G3:G27)","v":0},null,{"$f":"SUM(I3:I27)","v":0},null,{"$f":"SUM(K3:K27)","v":0},null,{"$f":"SUM(M3:M27)","v":0},null,{"$f":"SUM(O3:O27)","v":0}]
[null,"Beurre",{"$f":"C29","v":0},null,{"$f":"E29","v":0},null,{"$f":"G29","v":0},null,{"$f":"I29","v":0},null,{"$f":"K29","v":0},null,{"$f":"M29","v":0},null,{"$f":"O29","v":0}]

{"sheet":"BEAUVALLET","index":5,"n_rows":33,"n_cols":15,"rows_kept":33,"cut":false,"hidden":false,"merged":[[1,13,1,14],[1,1,1,2],[1,3,1,4],[1,5,1,6],[1,7,1,8],[1,9,1,10],[1,11,1,12]]}
[]
[null,"Lun 09/10/2017",null,"Mar 10/10/2017",null,"Mer 11/10/2017",null,"Jeu 12/10/2017",null,"Ven 13/10/2017",null,"Sam 14/10/2017",null,"Dim 15/10/2017"]
["Entrées","Sardines à l'huile",null,"Coleslaw",null,"Champignons Grecs",null,"Betteraves",null,"Crêpe champignons",null,"Taboulé"]
[null,"Terrine de légumes",null,"Œuf mayonnaise",null,"Pizza pain",null,"Panier jambon fromage",null,"Crumble saumon",null,"Quiche lorraine",null,"Saumon fumé",1]
[null,"Piémontaise",null,"Pdt au thon",null,"Salade surimi",1,"Rillettes poisson",null,"Cocktail de crevettes",null,"Salade paysanne"]
[null,"Charcuterie du jour",1,"Charcuterie du jour",null,"Charcuterie du jour",null,"Charcuterie du jour",null,"Charcuterie du jour",null,"Charcuterie du jour",null,"Salade tomates maïs"]
[null,"Potage du jour",1,"Potage du jour",null,"Potage du jour",1,"Potage du jour",null,"Potage du jour",null,"Potage du jour",null,"Potage du jour",1]
["Plats",null,null,"Meunière de colin",null,"Poisson a la bordelaise",null,"Colin à la Parisienne",null,"Brandade de morue",null,"Filet flétan meunière"]
[null,"Suprême de poulet",1,"Brochette de bœuf",null,"Blanquette de veau",1,"Poulet Basquaise",null,"Brochette de volaille",null,"Rôti de porc",null,"Saumon beurre-blanc",1]
[null,"Jambon grillé",null,"Jambon blanc",null,"Jambon grillé",null,"Jambon blanc",null,"Jambon grillé",null,"Jambon blanc"]
[null,"Steak à poêler (Cru)",null,"Steak à poêler (cru)",null,"Steak à poêler (Cru)",null,"Steak à poêler (Cru)",null,"Steak à poêler (Cru)",null,"Steak à poêler (Cru)",null,"Jambon persillé",1]
[null,"Poisson du jour/citron",null,"Poisson du jour/citron",null,"Poisson du jour/citron",null,"Poisson du jour/citron",null,"Poisson du jour/citron",null,"Poisson du jour/citron"]
["Garnitures","Pâtes au beurre",null,"Riz au beurre",null,"Pâtes au beurre",null,"Riz au beurre",null,"Pâtes au beurre",null,"Riz au beurre"]
[null,"Purée patates douces",null,"Purée pdt",null,"Purée de carottes",null,"Purée de céleri",null,"Purée de brocolis",null,"Purée haricots verts",null,"Riz pilaf"]
[null,"Choux romanesco",1,"Lentilles",null,"Carottes Parisiennes",null,"Salsifis",null,"Ratatouille",null,"Poêlée courgettes"]
[null,"Haricots beurre",null,"Potée de choux",null,"Poêlée forestière",1,"Printanière légumes",null,"Petits pois-carottes",null,"Légumes Léonard",null,"Gratin Dauphinois"]
[null,"Pommes vapeur",null,"Pommes grenaille",null,"Pommes vapeur",null,"Pommes grenaille",null,"Pommes vapeur",null,"Pommes grenaille"]
["Fromages","Roquefort",null,"Camembert",null,"Roquefort",null,"Camembert",null,"Roquefort",null,"Camembert",null,"Roquefort"]
[null,"Emmental",null,"Petit moulé",null,"Emmental",null,"Petit moulé",null,"Emmental",null,"Petit moulé",null,"Emmental"]
[null,"Yaourt nature",null,"Yaourt aux fruits",null,"Yaourt nature",null,"Yaourt aux fruits",null,"Yaourt nature",null,"Yaourt aux fruits",null,"Yaourt nature"]
[null,"Faisselle",null,"Chocolat liégeois",null,"Faisselle",null,"Café liégeois",null,"Faisselle",null,"Chocolat liégeois",null,"Faisselle"]
[null,"Riz au lait",null,"Semoule au lait",null,"Riz au lait",null,"Semoule au lait",null,"Riz au lait",null,"Semoule au lait",null,"Riz au lait"]
["Desserts","Pomme",null,"Clémentine",null,"Pêche",null,"Poire",null,"Salade de fruits",null,"Banane"]
[null,"Tatin de pommes",1,"Flan caramel",null,"Mousse de fruits",1,"Panna Cota",null,"île flottante",null,"Far Breton",null,"Choux craquelés",1]
[null,"Flan pâtissier",null,"Tropézienne",null,"Kouign Amann",null,"Tarte aux pommes",null,"Crème praliné",null,"Tarte caramel",null,"Paris-Brest"]
[null,"Entremet fruit du jour",null,"Entremet fruit du jour",null,"Entremet fruit du jour",null,"Entremet fruit du jour",null,"Entremet fruit du jour",null,"Entremet fruit du jour"]
[null,"Compote aux fruits",null,"Compote de fruits",null,"Compote aux fruits",null,"Compote aux fruits",null,"Compote de fruits",null,"Compote aux fruits"]
["Pain","Pain",null,"Pain",null,"Pain",null,"Pain",null,"Pain",null,"Pain",null,"Pain"]
["Beurre","Beurre",null,"Beurre",null,"Beurre",null,"Beurre",null,"Beurre",null,"Beurre",null,"Beurre"]
[]
[]
["Total","plats",{"$f":"SUM(C3:C27)","v":5},null,{"$f":"SUM(E3:E27)","v":0},null,{"$f":"SUM(G3:G27)","v":5},null,{"$f":"SUM(I3:I27)","v":0},null,{"$f":"SUM(K3:K27)","v":0},null,{"$f":"SUM(M3:M27)","v":0},null,{"$f":"SUM(O3:O27)","v":5}]
[null,"Beurre",{"$f":"C29","v":0},null,{"$f":"E29","v":0},null,{"$f":"G29","v":0},null,{"$f":"I29","v":0},null,{"$f":"K29","v":0},null,{"$f":"M29","v":0},null,{"$f":"O29","v":0}]

{"sheet":"BINET_M","index":6,"n_rows":33,"n_cols":15,"rows_kept":33,"cut":false,"hidden":false,"merged":[[1,13,1,14],[1,1,1,2],[1,3,1,4],[1,5,1,6],[1,7,1,8],[1,9,1,10],[1,11,1,12]]}
[]
[null,"Lun 09/10/2017",null,"Mar 10/10/2017",null,"Mer 11/10/2017",null,"Jeu 12/10/2017",null,"Ven 13/10/2017",null,"Sam 14/10/2017",null,"Dim 15/10/2017"]
["Entrées","Sardines à l'huile",1,"Coleslaw",null,"Champignons Grecs",null,"Betteraves",null,"Crêpe champignons",null,"Taboulé",1]
[null,"Terrine de légumes",null,"Œuf mayonnaise",1,"Pizza pain",null,"Panier jambon fromage",null,"Crumble saumon",null,"Quiche lorraine",null,"Saumon fumé"]
[null,"Piémontaise",null,"Pdt au thon",null,"Salade surimi",1,"Rillettes poisson",null,"Cocktail de crevettes",1,"Salade paysanne"]
[null,"Charcuterie du jour",null,"Charcuterie du jour",null,"Charcuterie du jour",null,"Charcuterie du jour",1,"Charcuterie du jour",null,"Charcuterie du jour",null,"Salade tomates maïs",1]
[null,"Potage du jour",null,"Potage du jour",null,"Potage du jour",null,"Potage du jour",null,"Potage du jour",null,"Potage du jour",null,"Potage du jour"]
["Plats",null,null,"Meunière de colin",null,"Poisson a la bordelaise",null,"Colin à la Parisienne",null,"Brandade de morue",null,"Filet flétan meunière"]
[null,"Suprême de poulet",null,"Brochette de bœuf",1,"Blanquette de veau",1,"Poulet Basquaise",1,"Brochette de volaille",null,"Rôti de porc",1,"Saumon beurre-blanc",1]
[null,"Jambon grillé",null,"Jambon blanc",null,"Jambon grillé",null,"Jambon blanc",null,"Jambon grillé",null,"Jambon blanc"]
[null,"Steak à poêler (Cru)",null,"Steak à poêler (cru)",null,"Steak à poêler (Cru)",null,"Steak à poêler (Cru)",null,"Steak à poêler (Cru)",null,"Steak à poêler (Cru)",null,"Jambon persillé"]
[null,"Poisson du jour/citron",1,"Poisson du jour/citron",null,"Poisson du jour/citron",null,"Poisson du jour/citron",null,"Poisson du jour/citron",1,"Poisson du jour/citron"]
["Garnitures","Pâtes au beurre",null,"Riz au beurre",null,"Pâtes au beurre",1,"Riz au beurre",1,"Pâtes au beurre",null,"Riz au beurre"]
[null,"Purée patates douces",null,"Purée pdt",null,"Purée de carottes",null,"Purée de céleri",null,"Purée de brocolis",null,"Purée haricots verts",1,"Riz pilaf",1]
[null,"Choux romanesco",null,"Lentilles",1,"Carottes Parisiennes",null,"Salsifis",null,"Ratatouille",null,"Poêlée courgettes"]
[null,"Haricots beurre",null,"Potée de choux",null,"Poêlée forestière",null,"Printanière légumes",null,"Petits pois-carottes",null,"Légumes Léonard",null,"Gratin Dauphinois"]
[null,"Pommes vapeur",1,"Pommes grenaille",null,"Pommes vapeur",null,"Pommes grenaille",null,"Pommes vapeur",1,"Pommes grenaille"]
["Fromages","Roquefort",null,"Camembert",null,"Roquefort",1,"Camembert",null,"Roquefort",null,"Camembert",1,"Roquefort"]
[null,"Emmental",null,"Petit moulé",null,"Emmental",null,"Petit moulé",1,"Emmental",null,"Petit moulé",null,"Emmental"]
[null,"Yaourt nature",null,"Yaourt aux fruits",1,"Yaourt nature",null,"Yaourt aux fruits",null,"Yaourt nature",null,"Yaourt aux fruits",null,"Yaourt nature"]
[null,"Faisselle",null,"Chocolat liégeois",null,"Faisselle",null,"Café liégeois",null,"Faisselle",null,"Chocolat liégeois",null,"Faisselle"]
[null,"Riz au lait",1,"Semoule au lait",null,"Riz au lait",null,"Semoule au lait",null,"Riz au lait",1,"Semoule au lait",null,"Riz au lait",1]
["Desserts","Pomme",null,"Clémentine",null,"Pêche",null,"Poire",null,"Salade de fruits",1,"Banane"]
[null,"Tatin de pommes",1,"Flan caramel",1,"Mousse de fruits",null,"Panna Cota",null,"île flottante",null,"Far Breton",1,"Choux craquelés"]
[null,"Flan pâtissier",null,"Tropézienne",null,"Kouign Amann",1,"Tarte aux pommes",null,"Crème praliné",null,"Tarte caramel",null,"Paris-Brest",1]
[null,"Entremet fruit du jour",null,"Entremet fruit du jour",null,"Entremet fruit du jour",null,"Entremet fruit du jour",null,"Entremet fruit du jour",null,"Entremet fruit du jour"]
[null,"Compote aux fruits",null,"Compote de fruits",null,"Compote aux fruits",null,"Compote aux fruits",1,"Compote de fruits",null,"Compote aux fruits"]
["Pain","Pain",null,"Pain",null,"Pain",null,"Pain",null,"Pain",null,"Pain",null,"Pain"]
["Beurre","Beurre",null,"Beurre",null,"Beurre",null,"Beurre",null,"Beurre",null,"Beurre",null,"Beurre"]
[]
[]
["Total","plats",{"$f":"SUM(C3:C27)","v":5},null,{"$f":"SUM(E3:E27)","v":5},null,{"$f":"SUM(G3:G27)","v":5},null,{"$f":"SUM(I3:I27)","v":5},null,{"$f":"SUM(K3:K27)","v":5},null,{"$f":"SUM(M3:M27)","v":5},null,{"$f":"SUM(O3:O27)","v":5}]
[null,"Beurre",{"$f":"C29","v":0},null,{"$f":"E29","v":0},null,{"$f":"G29","v":0},null,{"$f":"I29","v":0},null,{"$f":"K29","v":0},null,{"$f":"M29","v":0},null,{"$f":"O29","v":0}]

{"sheet":"BISSI","index":7,"n_rows":33,"n_cols":15,"rows_kept":33,"cut":false,"hidden":false,"merged":[[1,13,1,14],[1,1,1,2],[1,3,1,4],[1,5,1,6],[1,7,1,8],[1,9,1,10],[1,11,1,12]]}
[]
[null,"Lun 09/10/2017",null,"Mar 10/10/2017",null,"Mer 11/10/2017",null,"Jeu 12/10/2017",null,"Ven 13/10/2017",null,"Sam 14/10/2017",null,"Dim 15/10/2017"]
["Entrées","Sardines à l'huile",null,"Coleslaw",null,"Champignons Grecs",null,"Betteraves",null,"Crêpe champignons",1,"Taboulé"]
[null,"Terrine de légumes",null,"Œuf mayonnaise",1,"Pizza pain",null,"Panier jambon fromage",null,"Crumble saumon",null,"Quiche lorraine",null,"Saumon fumé"]
[null,"Piémontaise",1,"Pdt au thon",null,"Salade surimi",null,"Rillettes poisson",1,"Cocktail de crevettes",null,"Salade paysanne"]
[null,"Charcuterie du jour",null,"Charcuterie du jour",null,"Charcuterie du jour",null,"Charcuterie du jour",null,"Charcuterie du jour",null,"Charcuterie du jour",null,"Salade tomates maïs"]
[null,"Potage du jour",null,"Potage du jour",null,"Potage du jour",null,"Potage du jour",null,"Potage du jour",null,"Potage du jour",null,"Potage du jour"]
["Plats",null,null,"Meunière de colin",1,"Poisson a la bordelaise",null,"Colin à la Parisienne",null,"Brandade de morue",null,"Filet flétan meunière"]
[null,"Suprême de poulet",1,"Brochette de bœuf",null,"Blanquette de veau",null,"Poulet Basquaise",1,"Brochette de volaille",1,"Rôti de porc",null,"Saumon beurre-blanc"]
[null,"Jambon grillé",null,"Jambon blanc",null,"Jambon grillé",null,"Jambon blanc",null,"Jambon grillé",null,"Jambon blanc"]
[null,"Steak à poêler (Cru)",null,"Steak à poêler (cru)",null,"Steak à poêler (Cru)",null,"Steak à poêler (Cru)",null,"Steak à poêler (Cru)",null,"Steak à poêler (Cru)",null,"Jambon persillé"]
[null,"Poisson du jour/citron",null,"Poisson du jour/citron",null,"Poisson du jour/citron",null,"Poisson du jour/citron",null,"Poisson du jour/citron",null,"Poisson du jour/citron"]
["Garnitures","Pâtes au beurre",null,"Riz au beurre",null,"Pâtes au beurre",null,"Riz au beurre",null,"Pâtes au beurre",null,"Riz au beurre"]
[null,"Purée patates douces",null,"Purée pdt",1,"Purée de carottes",null,"Purée de céleri",1,"Purée de brocolis",null,"Purée haricots verts",null,"Riz pilaf"]
[null,"Choux romanesco",1,"Lentilles",null,"Carottes Parisiennes",null,"Salsifis",null,"Ratatouille",1,"Poêlée courgettes"]
[null,"Haricots beurre",null,"Potée de choux",null,"Poêlée forestière",null,"Printanière légumes",null,"Petits pois-carottes",null,"Légumes Léonard",null,"Gratin Dauphinois"]
[null,"Pommes vapeur",null,"Pommes grenaille",null,"Pommes vapeur",null,"Pommes grenaille",null,"Pommes vapeur",null,"Pommes grenaille"]
["Fromages","Roquefort",null,"Camembert",null,"Roquefort",null,"Camembert",null,"Roquefort",null,"Camembert",null,"Roquefort"]
[null,"Emmental",null,"Petit moulé",null,"Emmental",null,"Petit moulé",null,"Emmental",null,"Petit moulé",null,"Emmental"]
[null,"Yaourt nature",null,"Yaourt aux fruits",null,"Yaourt nature",null,"Yaourt aux fruits",null,"Yaourt nature",null,"Yaourt aux fruits",null,"Yaourt nature"]
[null,"Faisselle",null,"Chocolat liégeois",1,"Faisselle",null,"Café liégeois",null,"Faisselle",null,"Chocolat liégeois",null,"Faisselle"]
[null,"Riz au lait",null,"Semoule au lait",null,"Riz au lait",null,"Semoule au lait",null,"Riz au lait",null,"Semoule au lait",null,"Riz au lait"]
["Desserts","Pomme",null,"Clémentine",1,"Pêche",null,"Poire",null,"Salade de fruits",1,"Banane"]
[null,"Tatin de pommes",1,"Flan caramel",null,"Mousse de fruits",null,"Panna Cota",null,"île flottante",1,"Far Breton",null,"Choux craquelés"]
[null,"Flan pâtissier",null,"Tropézienne",null,"Kouign Amann",null,"Tarte aux pommes",1,"Crème praliné",null,"Tarte caramel",null,"Paris-Brest"]
[null,"Entremet fruit du jour",null,"Entremet fruit du jour",null,"Entremet fruit du jour",null,"Entremet fruit du jour",null,"Entremet fruit du jour",null,"Entremet fruit du jour"]
[null,"Compote aux fruits",1,"Compote de fruits",null,"Compote aux fruits",null,"Compote aux fruits",1,"Compote de fruits",null,"Compote aux fruits"]
["Pain","Pain",null,"Pain",null,"Pain",null,"Pain",null,"Pain",null,"Pain",null,"Pain"]
["Beurre","Beurre",null,"Beurre",null,"Beurre",null,"Beurre",null,"Beurre",null,"Beurre",null,"Beurre"]
[]
[]
["Total","plats",{"$f":"SUM(C3:C27)","v":5},null,{"$f":"SUM(E3:E27)","v":5},null,{"$f":"SUM(G3:G27)","v":0},null,{"$f":"SUM(I3:I27)","v":5},null,{"$f":"SUM(K3:K27)","v":5},null,{"$f":"SUM(M3:M27)","v":0},null,{"$f":"SUM(O3:O27)","v":0}]
[null,"Beurre",{"$f":"C29","v":0},null,{"$f":"E29","v":0},null,{"$f":"G29","v":0},null,{"$f":"I29","v":0},null,{"$f":"K29","v":0},null,{"$f":"M29","v":0},null,{"$f":"O29","v":0}]

{"sheet":"BLEAS","index":8,"n_rows":33,"n_cols":15,"rows_kept":33,"cut":false,"hidden":false,"merged":[[1,13,1,14],[1,1,1,2],[1,3,1,4],[1,5,1,6],[1,7,1,8],[1,9,1,10],[1,11,1,12]]}
[]
[null,"Lun 09/10/2017",null,"Mar 10/10/2017",null,"Mer 11/10/2017",null,"Jeu 12/10/2017",null,"Ven 13/10/2017",null,"Sam 14/10/2017",null,"Dim 15/10/2017"]
["Entrées","Sardines à l'huile",null,"Coleslaw",null,"Champignons Grecs",null,"Betteraves",null,"Crêpe champignons",null,"Taboulé"]
[null,"Terrine de légumes",null,"Œuf mayonnaise",1,"Pizza pain",null,"Panier jambon fromage",null,"Crumble saumon",null,"Quiche lorraine",null,"Saumon fumé"]
[null,"Piémontaise",null,"Pdt au thon",null,"Salade surimi",null,"Rillettes poisson",null,"Cocktail de crevettes",1,"Salade paysanne",1]
[null,"Charcuterie du jour",null,"Charcuterie du jour",null,"Charcuterie du jour",null,"Charcuterie du jour",1,"Charcuterie du jour",null,"Charcuterie du jour",null,"Salade tomates maïs"]
[null,"Potage du jour",null,"Potage du jour",null,"Potage du jour",null,"Potage du jour",null,"Potage du jour",null,"Potage du jour",null,"Potage du jour"]
["Plats",null,null,"Meunière de colin",null,"Poisson a la bordelaise",null,"Colin à la Parisienne",1,"Brandade de morue",1,"Filet flétan meunière",1]
[null,"Suprême de poulet",null,"Brochette de bœuf",1,"Blanquette de veau",null,"Poulet Basquaise",1,"Brochette de volaille",1,"Rôti de porc",1,"Saumon beurre-blanc"]
[null,"Jambon grillé",null,"Jambon blanc",1,"Jambon grillé",null,"Jambon blanc",null,"Jambon grillé",null,"Jambon blanc"]
[null,"Steak à poêler (Cru)",null,"Steak à poêler (cru)",null,"Steak à poêler (Cru)",null,"Steak à poêler (Cru)",null,"Steak à poêler (Cru)",null,"Steak à poêler (Cru)",null,"Jambon persillé"]
[null,"Poisson du jour/citron",null,"Poisson du jour/citron",null,"Poisson du jour/citron",null,"Poisson du jour/citron",null,"Poisson du jour/citron",null,"Poisson du jour/citron"]
["Garnitures","Pâtes au beurre",null,"Riz au beurre",1,"Pâtes au beurre",null,"Riz au beurre",1,"Pâtes au beurre",1,"Riz au beurre"]
[null,"Purée patates douces",null,"Purée pdt",1,"Purée de carottes",null,"Purée de céleri",null,"Purée de brocolis",null,"Purée haricots verts",1,"Riz pilaf"]
[null,"Choux romanesco",null,"Lentilles",null,"Carottes Parisiennes",null,"Salsifis",1,"Ratatouille",1,"Poêlée courgettes",1]
[null,"Haricots beurre",null,"Potée de choux",null,"Poêlée forestière",null,"Printanière légumes",null,"Petits pois-carottes",null,"Légumes Léonard",null,"Gratin Dauphinois"]
[null,"Pommes vapeur",null,"Pommes grenaille",null,"Pommes vapeur",null,"Pommes grenaille",null,"Pommes vapeur",null,"Pommes grenaille"]
["Fromages","Roquefort",null,"Camembert",null,"Roquefort",null,"Camembert",null,"Roquefort",null,"Camembert",null,"Roquefort"]
[null,"Emmental",null,"Petit moulé",null,"Emmental",null,"Petit moulé",null,"Emmental",null,"Petit moulé",null,"Emmental"]
[null,"Yaourt nature",null,"Yaourt aux fruits",null,"Yaourt nature",null,"Yaourt aux fruits",null,"Yaourt nature",null,"Yaourt aux fruits",null,"Yaourt nature"]
[null,"Faisselle",null,"Chocolat liégeois",null,"Faisselle",null,"Café liégeois",null,"Faisselle",null,"Chocolat liégeois",null,"Faisselle"]
[null,"Riz au lait",null,"Semoule au lait",null,"Riz au lait",null,"Semoule au lait",null,"Riz au lait",null,"Semoule au lait",null,"Riz au lait"]
["Desserts","Pomme",null,"Clémentine",null,"Pêche",null,"Poire",null,"Salade de fruits",null,"Banane"]
[null,"Tatin de pommes",null,"Flan caramel",null,"Mousse de fruits",null,"Panna Cota",null,"île flottante",null,"Far Breton",null,"Choux craquelés"]
[null,"Flan pâtissier",null,"Tropézienne",null,"Kouign Amann",null,"Tarte aux pommes",null,"Crème praliné",null,"Tarte caramel",null,"Paris-Brest"]
[null,"Entremet fruit du jour",null,"Entremet fruit du jour",null,"Entremet fruit du jour",null,"Entremet fruit du jour",null,"Entremet fruit du jour",null,"Entremet fruit du jour"]
[null,"Compote aux fruits",null,"Compote de fruits",null,"Compote aux fruits",null,"Compote aux fruits",null,"Compote de fruits",null,"Compote aux fruits"]
["Pain","Pain",null,"Pain",null,"Pain",null,"Pain",null,"Pain",null,"Pain",null,"Pain"]
["Beurre","Beurre",null,"Beurre",null,"Beurre",null,"Beurre",null,"Beurre",null,"Beurre",null,"Beurre"]
[]
[]
["Total","plats",{"$f":"SUM(C3:C27)","v":0},null,{"$f":"SUM(E3:E27)","v":5},null,{"$f":"SUM(G3:G27)","v":0},null,{"$f":"SUM(I3:I27)","v":5},null,{"$f":"SUM(K3:K27)","v":5},null,{"$f":"SUM(M3:M27)","v":5},null,{"$f":"SUM(O3:O27)","v":0}]
[null,"Beurre",{"$f":"C29","v":0},null,{"$f":"E29","v":0},null,{"$f":"G29","v":0},null,{"$f":"I29","v":0},null,{"$f":"K29","v":0},null,{"$f":"M29","v":0},null,{"$f":"O29","v":0}]

{"sheet":"BOULORD","index":9,"n_rows":33,"n_cols":15,"rows_kept":33,"cut":false,"hidden":false,"merged":[[1,13,1,14],[1,1,1,2],[1,3,1,4],[1,5,1,6],[1,7,1,8],[1,9,1,10],[1,11,1,12]]}
[]
[null,"Lun 09/10/2017",null,"Mar 10/10/2017",null,"Mer 11/10/2017",null,"Jeu 12/10/2017",null,"Ven 13/10/2017",null,"Sam 14/10/2017",null,"Dim 15/10/2017"]
["Entrées","Sardines à l'huile",null,"Coleslaw",null,"Champignons Grecs",null,"Betteraves",1,"Crêpe champignons",null,"Taboulé"]
[null,"Terrine de légumes",null,"Œuf mayonnaise",1,"Pizza pain",null,"Panier jambon fromage",null,"Crumble saumon",null,"Quiche lorraine",null,"Saumon fumé"]
[null,"Piémontaise",null,"Pdt au thon",null,"Salade surimi",null,"Rillettes poisson",null,"Cocktail de crevettes",null,"Salade paysanne"]
[null,"Charcuterie du jour",1,"Charcuterie du jour",null,"Charcuterie du jour",1,"Charcuterie du jour",null,"Charcuterie du jour",1,"Charcuterie du jour",null,"Salade tomates maïs"]
[null,"Potage du jour",1,"Potage du jour",1,"Potage du jour",1,"Potage du jour",1,"Potage du jour",1,"Potage du jour",null,"Potage du jour"]
["Plats",null,null,"Meunière de colin",null,"Poisson a la bordelaise",null,"Colin à la Parisienne",null,"Brandade de morue",null,"Filet flétan meunière"]
[null,"Suprême de poulet",1,"Brochette de bœuf",1,"Blanquette de veau",1,"Poulet Basquaise",1,"Brochette de volaille",1,"Rôti de porc",null,"Saumon beurre-blanc"]
[null,"Jambon grillé",null,"Jambon blanc",null,"Jambon grillé",null,"Jambon blanc",null,"Jambon grillé",null,"Jambon blanc"]
[null,"Steak à poêler (Cru)",null,"Steak à poêler (cru)",null,"Steak à poêler (Cru)",null,"Steak à poêler (Cru)",null,"Steak à poêler (Cru)",null,"Steak à poêler (Cru)",null,"Jambon persillé"]
[null,"Poisson du jour/citron",null,"Poisson du jour/citron",null,"Poisson du jour/citron",null,"Poisson du jour/citron",null,"Poisson du jour/citron",null,"Poisson du jour/citron"]
["Garnitures","Pâtes au beurre",1,"Riz au beurre",null,"Pâtes au beurre",1,"Riz au beurre",null,"Pâtes au beurre",1,"Riz au beurre"]
[null,"Purée patates douces",null,"Purée pdt",1,"Purée de carottes",null,"Purée de céleri",null,"Purée de brocolis",null,"Purée haricots verts",null,"Riz pilaf"]
[null,"Choux romanesco",null,"Lentilles",null,"Carottes Parisiennes",null,"Salsifis",1,"Ratatouille",null,"Poêlée courgettes"]
[null,"Haricots beurre",null,"Potée de choux",null,"Poêlée forestière",null,"Printanière légumes",null,"Petits pois-carottes",null,"Légumes Léonard",null,"Gratin Dauphinois"]
[null,"Pommes vapeur",null,"Pommes grenaille",null,"Pommes vapeur",null,"Pommes grenaille",null,"Pommes vapeur",null,"Pommes grenaille"]
["Fromages","Roquefort",null,"Camembert",null,"Roquefort",null,"Camembert",null,"Roquefort",null,"Camembert",null,"Roquefort"]
[null,"Emmental",null,"Petit moulé",null,"Emmental",null,"Petit moulé",null,"Emmental",null,"Petit moulé",null,"Emmental"]
[null,"Yaourt nature",1,"Yaourt aux fruits",1,"Yaourt nature",1,"Yaourt aux fruits",1,"Yaourt nature",1,"Yaourt aux fruits",null,"Yaourt nature"]
[null,"Faisselle",null,"Chocolat liégeois",null,"Faisselle",null,"Café liégeois",null,"Faisselle",null,"Chocolat liégeois",null,"Faisselle"]
[null,"Riz au lait",null,"Semoule au lait",null,"Riz au lait",null,"Semoule au lait",null,"Riz au lait",null,"Semoule au lait",null,"Riz au lait"]
["Desserts","Pomme",null,"Clémentine",null,"Pêche",null,"Poire",null,"Salade de fruits",null,"Banane"]
[null,"Tatin de pommes",null,"Flan caramel",null,"Mousse de fruits",null,"Panna Cota",null,"île flottante",null,"Far Breton",null,"Choux craquelés"]
[null,"Flan pâtissier",null,"Tropézienne",null,"Kouign Amann",null,"Tarte aux pommes",null,"Crème praliné",null,"Tarte caramel",null,"Paris-Brest"]
[null,"Entremet fruit du jour",null,"Entremet fruit du jour",null,"Entremet fruit du jour",null,"Entremet fruit du jour",null,"Entremet fruit du jour",null,"Entremet fruit du jour"]
[null,"Compote aux fruits",null,"Compote de fruits",null,"Compote aux fruits",null,"Compote aux fruits",null,"Compote de fruits",null,"Compote aux fruits"]
["Pain","Pain",2,"Pain",2,"Pain",2,"Pain",2,"Pain",2,"Pain",null,"Pain"]
["Beurre","Beurre",null,"Beurre",null,"Beurre",null,"Beurre",null,"Beurre",null,"Beurre",null,"Beurre"]
[]
[]
["Total","plats",{"$f":"SUM(C3:C27)","v":5},null,{"$f":"SUM(E3:E27)","v":5},null,{"$f":"SUM(G3:G27)","v":5},null,{"$f":"SUM(I3:I27)","v":5},null,{"$f":"SUM(K3:K27)","v":5},null,{"$f":"SUM(M3:M27)","v":0},null,{"$f":"SUM(O3:O27)","v":0}]
[null,"Beurre",{"$f":"C29","v":0},null,{"$f":"E29","v":0},null,{"$f":"G29","v":0},null,{"$f":"I29","v":0},null,{"$f":"K29","v":0},null,{"$f":"M29","v":0},null,{"$f":"O29","v":0}]

{"sheet":"BOURVA Claude","index":10,"n_rows":33,"n_cols":15,"rows_kept":33,"cut":false,"hidden":false,"merged":[[1,13,1,14],[1,1,1,2],[1,3,1,4],[1,5,1,6],[1,7,1,8],[1,9,1,10],[1,11,1,12]]}
[]
[null,"Lun 09/10/2017",null,"Mar 10/10/2017",null,"Mer 11/10/2017",null,"Jeu 12/10/2017",null,"Ven 13/10/2017",null,"Sam 14/10/2017",null,"Dim 15/10/2017"]
["Entrées","Sardines à l'huile",null,"Coleslaw",null,"Champignons Grecs",1,"Betteraves",null,"Crêpe champignons",1,"Taboulé"]
[null,"Terrine de légumes",null,"Œuf mayonnaise",2,"Pizza pain",null,"Panier jambon fromage",null,"Crumble saumon",null,"Quiche lorraine",2,"Saumon fumé"]
[null,"Piémontaise",null,"Pdt au thon",null,"Salade surimi",null,"Rillettes poisson",null,"Cocktail de crevettes",null,"Salade paysanne"]
[null,"Charcuterie du jour",null,"Charcuterie du jour",null,"Charcuterie du jour",null,"Charcuterie du jour",null,"Charcuterie du jour",null,"Charcuterie du jour",null,"Salade tomates maïs"]
[null,"Potage du jour",null,"Potage du jour",null,"Potage du jour",null,"Potage du jour",null,"Potage du jour",null,"Potage du jour",null,"Potage du jour"]
["Plats",null,null,"Meunière de colin",null,"Poisson a la bordelaise",null,"Colin à la Parisienne",null,"Brandade de morue",null,"Filet flétan meunière"]
[null,"Suprême de poulet",null,"Brochette de bœuf",1,"Blanquette de veau",1,"Poulet Basquaise",2,"Brochette de volaille",null,"Rôti de porc",null,"Saumon beurre-blanc"]
[null,"Jambon grillé",null,"Jambon blanc",null,"Jambon grillé",null,"Jambon blanc",null,"Jambon grillé",2,"Jambon blanc",1]
[null,"Steak à poêler (Cru)",null,"Steak à poêler (cru)",null,"Steak à poêler (Cru)",1,"Steak à poêler (Cru)",null,"Steak à poêler (Cru)",null,"Steak à poêler (Cru)",null,"Jambon persillé",1]
[null,"Poisson du jour/citron",null,"Poisson du jour/citron",1,"Poisson du jour/citron",null,"Poisson du jour/citron",null,"Poisson du jour/citron",null,"Poisson du jour/citron"]
["Garnitures","Pâtes au beurre",null,"Riz au beurre",null,"Pâtes au beurre",null,"Riz au beurre",null,"Pâtes au beurre",null,"Riz au beurre"]
[null,"Purée patates douces",null,"Purée pdt",null,"Purée de carottes",null,"Purée de céleri",null,"Purée de brocolis",null,"Purée haricots verts",null,"Riz pilaf"]
[null,"Choux romanesco",null,"Lentilles",null,"Carottes Parisiennes",null,"Salsifis",null,"Ratatouille",null,"Poêlée courgettes"]
[null,"Haricots beurre",null,"Potée de choux",null,"Poêlée forestière",null,"Printanière légumes",null,"Petits pois-carottes",null,"Légumes Léonard",null,"Gratin Dauphinois",1]
[null,"Pommes vapeur",null,"Pommes grenaille",null,"Pommes vapeur",null,"Pommes grenaille",null,"Pommes vapeur",null,"Pommes grenaille"]
["Fromages","Roquefort",null,"Camembert",null,"Roquefort",null,"Camembert",null,"Roquefort",null,"Camembert",null,"Roquefort"]
[null,"Emmental",null,"Petit moulé",null,"Emmental",null,"Petit moulé",null,"Emmental",null,"Petit moulé",null,"Emmental"]
[null,"Yaourt nature",null,"Yaourt aux fruits",null,"Yaourt nature",null,"Yaourt aux fruits",null,"Yaourt nature",null,"Yaourt aux fruits",null,"Yaourt nature"]
[null,"Faisselle",null,"Chocolat liégeois",null,"Faisselle",null,"Café liégeois",null,"Faisselle",null,"Chocolat liégeois",null,"Faisselle"]
[null,"Riz au lait",null,"Semoule au lait",null,"Riz au lait",null,"Semoule au lait",null,"Riz au lait",null,"Semoule au lait",null,"Riz au lait"]
["Desserts","Pomme",null,"Clémentine",null,"Pêche",null,"Poire",null,"Salade de fruits",null,"Banane"]
[null,"Tatin de pommes",null,"Flan caramel",1,"Mousse de fruits",null,"Panna Cota",null,"île flottante",null,"Far Breton",null,"Choux craquelés"]
[null,"Flan pâtissier",null,"Tropézienne",null,"Kouign Amann",2,"Tarte aux pommes",2,"Crème praliné",2,"Tarte caramel",null,"Paris-Brest",2]
[null,"Entremet fruit du jour",null,"Entremet fruit du jour",null,"Entremet fruit du jour",null,"Entremet fruit du jour",null,"Entremet fruit du jour",null,"Entremet fruit du jour"]
[null,"Compote aux fruits",null,"Compote de fruits",null,"Compote aux fruits",null,"Compote aux fruits",null,"Compote de fruits",null,"Compote aux fruits"]
["Pain","Pain",null,"Pain",null,"Pain",null,"Pain",null,"Pain",null,"Pain",null,"Pain"]
["Beurre","Beurre",null,"Beurre",null,"Beurre",null,"Beurre",null,"Beurre",null,"Beurre",null,"Beurre"]
[]
[]
["Total","plats",{"$f":"SUM(C3:C27)","v":0},null,{"$f":"SUM(E3:E27)","v":5},null,{"$f":"SUM(G3:G27)","v":5},null,{"$f":"SUM(I3:I27)","v":4},null,{"$f":"SUM(K3:K27)","v":5},null,{"$f":"SUM(M3:M27)","v":3},null,{"$f":"SUM(O3:O27)","v":4}]
[null,"Beurre",{"$f":"C29","v":0},null,{"$f":"E29","v":0},null,{"$f":"G29","v":0},null,{"$f":"I29","v":0},null,{"$f":"K29","v":0},null,{"$f":"M29","v":0},null,{"$f":"O29","v":0}]

{"sheet":"BRETON","index":11,"n_rows":33,"n_cols":15,"rows_kept":33,"cut":false,"hidden":false,"merged":[[1,13,1,14],[1,1,1,2],[1,3,1,4],[1,5,1,6],[1,7,1,8],[1,9,1,10],[1,11,1,12]]}
[]
[null,"Lun 09/10/2017",null,"Mar 10/10/2017",null,"Mer 11/10/2017",null,"Jeu 12/10/2017",null,"Ven 13/10/2017",null,"Sam 14/10/2017",null,"Dim 15/10/2017"]
["Entrées","Sardines à l'huile",null,"Coleslaw",null,"Champignons Grecs",null,"Betteraves",null,"Crêpe champignons",null,"Taboulé"]
[null,"Terrine de légumes",null,"Œuf mayonnaise",null,"Pizza pain",null,"Panier jambon fromage",null,"Crumble saumon",null,"Quiche lorraine",null,"Saumon fumé"]
[null,"Piémontaise",null,"Pdt au thon",null,"Salade surimi",null,"Rillettes poisson",null,"Cocktail de crevettes",null,"Salade paysanne"]
[null,"Charcuterie du jour",null,"Charcuterie du jour",null,"Charcuterie du jour",null,"Charcuterie du jour",null,"Charcuterie du jour",null,"Charcuterie du jour",null,"Salade tomates maïs"]
[null,"Potage du jour",null,"Potage du jour",null,"Potage du jour",null,"Potage du jour",null,"Potage du jour",null,"Potage du jour",null,"Potage du jour"]
["Plats",null,null,"Meunière de colin",null,"Poisson a la bordelaise",null,"Colin à la Parisienne",null,"Brandade de morue",null,"Filet flétan meunière"]
[null,"Suprême de poulet",null,"Brochette de bœuf",null,"Blanquette de veau",null,"Poulet Basquaise",null,"Brochette de volaille",null,"Rôti de porc",null,"Saumon beurre-blanc"]
[null,"Jambon grillé",null,"Jambon blanc",null,"Jambon grillé",null,"Jambon blanc",null,"Jambon grillé",null,"Jambon blanc"]
[null,"Steak à poêler (Cru)",null,"Steak à poêler (cru)",null,"Steak à poêler (Cru)",null,"Steak à poêler (Cru)",null,"Steak à poêler (Cru)",null,"Steak à poêler (Cru)",null,"Jambon persillé"]
[null,"Poisson du jour/citron",null,"Poisson du jour/citron",null,"Poisson du jour/citron",null,"Poisson du jour/citron",null,"Poisson du jour/citron",null,"Poisson du jour/citron"]
["Garnitures","Pâtes au beurre",null,"Riz au beurre",null,"Pâtes au beurre",null,"Riz au beurre",null,"Pâtes au beurre",null,"Riz au beurre"]
[null,"Purée patates douces",null,"Purée pdt",null,"Purée de carottes",null,"Purée de céleri",null,"Purée de brocolis",null,"Purée haricots verts",null,"Riz pilaf"]
[null,"Choux romanesco",null,"Lentilles",null,"Carottes Parisiennes",null,"Salsifis",null,"Ratatouille",null,"Poêlée courgettes"]
[null,"Haricots beurre",null,"Potée de choux",null,"Poêlée forestière",null,"Printanière légumes",null,"Petits pois-carottes",null,"Légumes Léonard",null,"Gratin Dauphinois"]
[null,"Pommes vapeur",null,"Pommes grenaille",null,"Pommes vapeur",null,"Pommes grenaille",null,"Pommes vapeur",null,"Pommes grenaille"]
["Fromages","Roquefort",null,"Camembert",null,"Roquefort",null,"Camembert",null,"Roquefort",null,"Camembert",null,"Roquefort"]
[null,"Emmental",null,"Petit moulé",null,"Emmental",null,"Petit moulé",null,"Emmental",null,"Petit moulé",null,"Emmental"]
[null,"Yaourt nature",null,"Yaourt aux fruits",null,"Yaourt nature",null,"Yaourt aux fruits",null,"Yaourt nature",null,"Yaourt aux fruits",null,"Yaourt nature"]
[null,"Faisselle",null,"Chocolat liégeois",null,"Faisselle",null,"Café liégeois",null,"Faisselle",null,"Chocolat liégeois",null,"Faisselle"]
[null,"Riz au lait",null,"Semoule au lait",null,"Riz au lait",null,"Semoule au lait",null,"Riz au lait",null,"Semoule au lait",null,"Riz au lait"]
["Desserts","Pomme",null,"Clémentine",null,"Pêche",null,"Poire",null,"Salade de fruits",null,"Banane"]
[null,"Tatin de pommes",null,"Flan caramel",null,"Mousse de fruits",null,"Panna Cota",null,"île flottante",null,"Far Breton",null,"Choux craquelés"]
[null,"Flan pâtissier",null,"Tropézienne",null,"Kouign Amann",null,"Tarte aux pommes",null,"Crème praliné",null,"Tarte caramel",null,"Paris-Brest"]
[null,"Entremet fruit du jour",null,"Entremet fruit du jour",null,"Entremet fruit du jour",null,"Entremet fruit du jour",null,"Entremet fruit du jour",null,"Entremet fruit du jour"]
[null,"Compote aux fruits",null,"Compote de fruits",null,"Compote aux fruits",null,"Compote aux fruits",null,"Compote de fruits",null,"Compote aux fruits"]
["Pain","Pain",null,"Pain",null,"Pain",null,"Pain",null,"Pain",null,"Pain",null,"Pain"]
["Beurre","Beurre",null,"Beurre",null,"Beurre",null,"Beurre",null,"Beurre",null,"Beurre",null,"Beurre"]
[]
[]
["Total","plats",{"$f":"SUM(C3:C27)","v":0},null,{"$f":"SUM(E3:E27)","v":0},null,{"$f":"SUM(G3:G27)","v":0},null,{"$f":"SUM(I3:I27)","v":0},null,{"$f":"SUM(K3:K27)","v":0},null,{"$f":"SUM(M3:M27)","v":0},null,{"$f":"SUM(O3:O27)","v":0}]
[null,"Beurre",{"$f":"C29","v":0},null,{"$f":"E29","v":0},null,{"$f":"G29","v":0},null,{"$f":"I29","v":0},null,{"$f":"K29","v":0},null,{"$f":"M29","v":0},null,{"$f":"O29","v":0}]

{"sheet":"BRUNEAU_Mireille","index":12,"n_rows":33,"n_cols":15,"rows_kept":33,"cut":false,"hidden":false,"merged":[[1,13,1,14],[1,1,1,2],[1,3,1,4],[1,5,1,6],[1,7,1,8],[1,9,1,10],[1,11,1,12]]}
[]
[null,"Lun 09/10/2017",null,"Mar 10/10/2017",null,"Mer 11/10/2017",null,"Jeu 12/10/2017",null,"Ven 13/10/2017",null,"Sam 14/10/2017",null,"Dim 15/10/2017"]
["Entrées","Sardines à l'huile",null,"Coleslaw",null,"Champignons Grecs",null,"Betteraves",null,"Crêpe champignons",null,"Taboulé"]
[null,"Terrine de légumes",null,"Œuf mayonnaise",null,"Pizza pain",null,"Panier jambon fromage",null,"Crumble saumon",null,"Quiche lorraine",null,"Saumon fumé"]
[null,"Piémontaise",null,"Pdt au thon",null,"Salade surimi",null,"Rillettes poisson",null,"Cocktail de crevettes",null,"Salade paysanne"]
[null,"Charcuterie du jour",null,"Charcuterie du jour",null,"Charcuterie du jour",null,"Charcuterie du jour",null,"Charcuterie du jour",null,"Charcuterie du jour",null,"Salade tomates maïs"]
[null,"Potage du jour",null,"Potage du jour",null,"Potage du jour",null,"Potage du jour",null,"Potage du jour",null,"Potage du jour",null,"Potage du jour"]
["Plats",null,null,"Meunière de colin",null,"Poisson a la bordelaise",null,"Colin à la Parisienne",null,"Brandade de morue",null,"Filet flétan meunière"]
[null,"Suprême de poulet",null,"Brochette de bœuf",null,"Blanquette de veau",null,"Poulet Basquaise",null,"Brochette de volaille",null,"Rôti de porc",null,"Saumon beurre-blanc"]
[null,"Jambon grillé",null,"Jambon blanc",null,"Jambon grillé",null,"Jambon blanc",null,"Jambon grillé",null,"Jambon blanc"]
[null,"Steak à poêler (Cru)",null,"Steak à poêler (cru)",null,"Steak à poêler (Cru)",null,"Steak à poêler (Cru)",null,"Steak à poêler (Cru)",null,"Steak à poêler (Cru)",null,"Jambon persillé"]
[null,"Poisson du jour/citron",null,"Poisson du jour/citron",null,"Poisson du jour/citron",null,"Poisson du jour/citron",null,"Poisson du jour/citron",null,"Poisson du jour/citron"]
["Garnitures","Pâtes au beurre",null,"Riz au beurre",null,"Pâtes au beurre",null,"Riz au beurre",null,"Pâtes au beurre",null,"Riz au beurre"]
[null,"Purée patates douces",null,"Purée pdt",null,"Purée de carottes",null,"Purée de céleri",null,"Purée de brocolis",null,"Purée haricots verts",null,"Riz pilaf"]
[null,"Choux romanesco",null,"Lentilles",null,"Carottes Parisiennes",null,"Salsifis",null,"Ratatouille",null,"Poêlée courgettes"]
[null,"Haricots beurre",null,"Potée de choux",null,"Poêlée forestière",null,"Printanière légumes",null,"Petits pois-carottes",null,"Légumes Léonard",null,"Gratin Dauphinois"]
[null,"Pommes vapeur",null,"Pommes grenaille",null,"Pommes vapeur",null,"Pommes grenaille",null,"Pommes vapeur",null,"Pommes grenaille"]
["Fromages","Roquefort",null,"Camembert",null,"Roquefort",null,"Camembert",null,"Roquefort",null,"Camembert",null,"Roquefort"]
[null,"Emmental",null,"Petit moulé",null,"Emmental",null,"Petit moulé",null,"Emmental",null,"Petit moulé",null,"Emmental"]
[null,"Yaourt nature",null,"Yaourt aux fruits",null,"Yaourt nature",null,"Yaourt aux fruits",null,"Yaourt nature",null,"Yaourt aux fruits",null,"Yaourt nature"]
[null,"Faisselle",null,"Chocolat liégeois",null,"Faisselle",null,"Café liégeois",null,"Faisselle",null,"Chocolat liégeois",null,"Faisselle"]
[null,"Riz au lait",null,"Semoule au lait",null,"Riz au lait",null,"Semoule au lait",null,"Riz au lait",null,"Semoule au lait",null,"Riz au lait"]
["Desserts","Pomme",null,"Clémentine",null,"Pêche",null,"Poire",null,"Salade de fruits",null,"Banane"]
[null,"Tatin de pommes",null,"Flan caramel",null,"Mousse de fruits",null,"Panna Cota",null,"île flottante",null,"Far Breton",null,"Choux craquelés"]
[null,"Flan pâtissier",null,"Tropézienne",null,"Kouign Amann",null,"Tarte aux pommes",null,"Crème praliné",null,"Tarte caramel",null,"Paris-Brest"]
[null,"Entremet fruit du jour",null,"Entremet fruit du jour",null,"Entremet fruit du jour",null,"Entremet fruit du jour",null,"Entremet fruit du jour",null,"Entremet fruit du jour"]
[null,"Compote aux fruits",null,"Compote de fruits",null,"Compote aux fruits",null,"Compote aux fruits",null,"Compote de fruits",null,"Compote aux fruits"]
["Pain","Pain",null,"Pain",null,"Pain",null,"Pain",null,"Pain",null,"Pain",null,"Pain"]
["Beurre","Beurre",null,"Beurre",null,"Beurre",null,"Beurre",null,"Beurre",null,"Beurre",null,"Beurre"]
[]
[]
["Total","plats",{"$f":"SUM(C3:C27)","v":0},null,{"$f":"SUM(E3:E27)","v":0},null,{"$f":"SUM(G3:G27)","v":0},null,{"$f":"SUM(I3:I27)","v":0},null,{"$f":"SUM(K3:K27)","v":0},null,{"$f":"SUM(M3:M27)","v":0},null,{"$f":"SUM(O3:O27)","v":0}]
[null,"Beurre",{"$f":"C29","v":0},null,{"$f":"E29","v":0},null,{"$f":"G29","v":0},null,{"$f":"I29","v":0},null,{"$f":"K29","v":0},null,{"$f":"M29","v":0},null,{"$f":"O29","v":0}]

{"sheet":"CANAULT","index":13,"n_rows":33,"n_cols":15,"rows_kept":33,"cut":false,"hidden":false,"merged":[[1,13,1,14],[1,1,1,2],[1,3,1,4],[1,5,1,6],[1,7,1,8],[1,9,1,10],[1,11,1,12]]}
[]
[null,"Lun 09/10/2017",null,"Mar 10/10/2017",null,"Mer 11/10/2017",null,"Jeu 12/10/2017",null,"Ven 13/10/2017",null,"Sam 14/10/2017",null,"Dim 15/10/2017"]
["Entrées","Sardines à l'huile",null,"Coleslaw",null,"Champignons Grecs",null,"Betteraves",2,"Crêpe champignons",null,"Taboulé"]
[null,"Terrine de légumes",null,"Œuf mayonnaise",2,"Pizza pain",null,"Panier jambon fromage",null,"Crumble saumon",null,"Quiche lorraine",null,"Saumon fumé",1]
[null,"Piémontaise",2,"Pdt au thon",null,"Salade surimi",2,"Rillettes poisson",null,"Cocktail de crevettes",2,"Salade paysanne",2]
[null,"Charcuterie du jour",null,"Charcuterie du jour",null,"Charcuterie du jour",null,"Charcuterie du jour",null,"Charcuterie du jour",null,"Charcuterie du jour",null,"Salade tomates maïs",1]
[null,"Potage du jour",null,"Potage du jour",null,"Potage du jour",null,"Potage du jour",null,"Potage du jour",null,"Potage du jour",null,"Potage du jour"]
["Plats",null,null,"Meunière de colin",null,"Poisson a la bordelaise",null,"Colin à la Parisienne",null,"Brandade de morue",null,"Filet flétan meunière"]
[null,"Suprême de poulet",1,"Brochette de bœuf",1,"Blanquette de veau",2,"Poulet Basquaise",2,"Brochette de volaille",1,"Rôti de porc",2,"Saumon beurre-blanc"]
[null,"Jambon grillé",null,"Jambon blanc",null,"Jambon grillé",null,"Jambon blanc",null,"Jambon grillé",null,"Jambon blanc"]
[null,"Steak à poêler (Cru)",null,"Steak à poêler (cru)",null,"Steak à poêler (Cru)",null,"Steak à poêler (Cru)",null,"Steak à poêler (Cru)",null,"Steak à poêler (Cru)",null,"Jambon persillé",2]
[null,"Poisson du jour/citron",1,"Poisson du jour/citron",1,"Poisson du jour/citron",null,"Poisson du jour/citron",null,"Poisson du jour/citron",1,"Poisson du jour/citron"]
["Garnitures","Pâtes au beurre",null,"Riz au beurre",null,"Pâtes au beurre",null,"Riz au beurre",null,"Pâtes au beurre",null,"Riz au beurre"]
[null,"Purée patates douces",null,"Purée pdt",2,"Purée de carottes",null,"Purée de céleri",null,"Purée de brocolis",null,"Purée haricots verts",null,"Riz pilaf"]
[null,"Choux romanesco",null,"Lentilles",null,"Carottes Parisiennes",2,"Salsifis",null,"Ratatouille",2,"Poêlée courgettes",2]
[null,"Haricots beurre",2,"Potée de choux",null,"Poêlée forestière",null,"Printanière légumes",null,"Petits pois-carottes",null,"Légumes Léonard",null,"Gratin Dauphinois",2]
[null,"Pommes vapeur",null,"Pommes grenaille",null,"Pommes vapeur",null,"Pommes grenaille",2,"Pommes vapeur",null,"Pommes grenaille"]
["Fromages","Roquefort",null,"Camembert",null,"Roquefort",null,"Camembert",null,"Roquefort",null,"Camembert",null,"Roquefort"]
[null,"Emmental",null,"Petit moulé",null,"Emmental",null,"Petit moulé",null,"Emmental",null,"Petit moulé",null,"Emmental"]
[null,"Yaourt nature",null,"Yaourt aux fruits",null,"Yaourt nature",null,"Yaourt aux fruits",null,"Yaourt nature",null,"Yaourt aux fruits",null,"Yaourt nature"]
[null,"Faisselle",null,"Chocolat liégeois",null,"Faisselle",null,"Café liégeois",null,"Faisselle",null,"Chocolat liégeois",null,"Faisselle"]
[null,"Riz au lait",null,"Semoule au lait",null,"Riz au lait",null,"Semoule au lait",null,"Riz au lait",null,"Semoule au lait",null,"Riz au lait"]
["Desserts","Pomme",null,"Clémentine",null,"Pêche",null,"Poire",null,"Salade de fruits",null,"Banane"]
[null,"Tatin de pommes",null,"Flan caramel",null,"Mousse de fruits",null,"Panna Cota",null,"île flottante",null,"Far Breton",null,"Choux craquelés"]
[null,"Flan pâtissier",null,"Tropézienne",null,"Kouign Amann",null,"Tarte aux pommes",null,"Crème praliné",null,"Tarte caramel",null,"Paris-Brest"]
[null,"Entremet fruit du jour",null,"Entremet fruit du jour",null,"Entremet fruit du jour",null,"Entremet fruit du jour",null,"Entremet fruit du jour",null,"Entremet fruit du jour"]
[null,"Compote aux fruits",null,"Compote de fruits",null,"Compote aux fruits",null,"Compote aux fruits",null,"Compote de fruits",null,"Compote aux fruits"]
["Pain","Pain",null,"Pain",null,"Pain",null,"Pain",null,"Pain",null,"Pain",null,"Pain"]
["Beurre","Beurre",null,"Beurre",null,"Beurre",null,"Beurre",null,"Beurre",null,"Beurre",null,"Beurre"]
[]
[]
["Total","plats",{"$f":"SUM(C3:C27)","v":6},null,{"$f":"SUM(E3:E27)","v":6},null,{"$f":"SUM(G3:G27)","v":6},null,{"$f":"SUM(I3:I27)","v":6},null,{"$f":"SUM(K3:K27)","v":6},null,{"$f":"SUM(M3:M27)","v":6},null,{"$f":"SUM(O3:O27)","v":6}]
[null,"Beurre",{"$f":"C29","v":0},null,{"$f":"E29","v":0},null,{"$f":"G29","v":0},null,{"$f":"I29","v":0},null,{"$f":"K29","v":0},null,{"$f":"M29","v":0},null,{"$f":"O29","v":0}]

{"sheet":"CAPITAINE","index":14,"n_rows":33,"n_cols":15,"rows_kept":33,"cut":false,"hidden":false,"merged":[[1,13,1,14],[1,1,1,2],[1,3,1,4],[1,5,1,6],[1,7,1,8],[1,9,1,10],[1,11,1,12]]}
[]
[null,"Lun 09/10/2017",null,"Mar 10/10/2017",null,"Mer 11/10/2017",null,"Jeu 12/10/2017",null,"Ven 13/10/2017",null,"Sam 14/10/2017",null,"Dim 15/10/2017"]
["Entrées","Sardines à l'huile",null,"Coleslaw",null,"Champignons Grecs",null,"Betteraves",null,"Crêpe champignons",null,"Taboulé"]
[null,"Terrine de légumes",null,"Œuf mayonnaise",null,"Pizza pain",null,"Panier jambon fromage",null,"Crumble saumon",1,"Quiche lorraine",null,"Saumon fumé",1]
[null,"Piémontaise",null,"Pdt au thon",null,"Salade surimi",null,"Rillettes poisson",null,"Cocktail de crevettes",null,"Salade paysanne"]
[null,"Charcuterie du jour",null,"Charcuterie du jour",null,"Charcuterie du jour",1,"Charcuterie du jour",null,"Charcuterie du jour",null,"Charcuterie du jour",null,"Salade tomates maïs"]
[null,"Potage du jour",null,"Potage du jour",null,"Potage du jour",1,"Potage du jour",null,"Potage du jour",1,"Potage du jour",null,"Potage du jour",1]
["Plats",null,null,"Meunière de colin",null,"Poisson a la bordelaise",null,"Colin à la Parisienne",null,"Brandade de morue",null,"Filet flétan meunière"]
[null,"Suprême de poulet",null,"Brochette de bœuf",null,"Blanquette de veau",1,"Poulet Basquaise",null,"Brochette de volaille",null,"Rôti de porc",null,"Saumon beurre-blanc",1]
[null,"Jambon grillé",null,"Jambon blanc",null,"Jambon grillé",null,"Jambon blanc",null,"Jambon grillé",1,"Jambon blanc"]
[null,"Steak à poêler (Cru)",null,"Steak à poêler (cru)",null,"Steak à poêler (Cru)",null,"Steak à poêler (Cru)",null,"Steak à poêler (Cru)",null,"Steak à poêler (Cru)",null,"Jambon persillé"]
[null,"Poisson du jour/citron",null,"Poisson du jour/citron",null,"Poisson du jour/citron",null,"Poisson du jour/citron",null,"Poisson du jour/citron",null,"Poisson du jour/citron"]
["Garnitures","Pâtes au beurre",null,"Riz au beurre",null,"Pâtes au beurre",1,"Riz au beurre",null,"Pâtes au beurre",null,"Riz au beurre"]
[null,"Purée patates douces",null,"Purée pdt",null,"Purée de carottes",null,"Purée de céleri",null,"Purée de brocolis",null,"Purée haricots verts",null,"Riz pilaf"]
[null,"Choux romanesco",null,"Lentilles",null,"Carottes Parisiennes",null,"Salsifis",null,"Ratatouille",1,"Poêlée courgettes"]
[null,"Haricots beurre",null,"Potée de choux",null,"Poêlée forestière",null,"Printanière légumes",null,"Petits pois-carottes",null,"Légumes Léonard",null,"Gratin Dauphinois",1]
[null,"Pommes vapeur",null,"Pommes grenaille",null,"Pommes vapeur",null,"Pommes grenaille",null,"Pommes vapeur",null,"Pommes grenaille"]
["Fromages","Roquefort",null,"Camembert",null,"Roquefort",null,"Camembert",null,"Roquefort",null,"Camembert",null,"Roquefort"]
[null,"Emmental",null,"Petit moulé",null,"Emmental",null,"Petit moulé",null,"Emmental",null,"Petit moulé",null,"Emmental"]
[null,"Yaourt nature",null,"Yaourt aux fruits",null,"Yaourt nature",null,"Yaourt aux fruits",null,"Yaourt nature",null,"Yaourt aux fruits",null,"Yaourt nature"]
[null,"Faisselle",null,"Chocolat liégeois",null,"Faisselle",null,"Café liégeois",null,"Faisselle",null,"Chocolat liégeois",null,"Faisselle"]
[null,"Riz au lait",null,"Semoule au lait",null,"Riz au lait",null,"Semoule au lait",null,"Riz au lait",null,"Semoule au lait",null,"Riz au lait"]
["Desserts","Pomme",null,"Clémentine",null,"Pêche",null,"Poire",null,"Salade de fruits",1,"Banane"]
[null,"Tatin de pommes",null,"Flan caramel",null,"Mousse de fruits",null,"Panna Cota",null,"île flottante",null,"Far Breton",null,"Choux craquelés",1]
[null,"Flan pâtissier",null,"Tropézienne",null,"Kouign Amann",1,"Tarte aux pommes",null,"Crème praliné",null,"Tarte caramel",null,"Paris-Brest"]
[null,"Entremet fruit du jour",null,"Entremet fruit du jour",null,"Entremet fruit du jour",null,"Entremet fruit du jour",null,"Entremet fruit du jour",null,"Entremet fruit du jour"]
[null,"Compote aux fruits",null,"Compote de fruits",null,"Compote aux fruits",null,"Compote aux fruits",null,"Compote de fruits",null,"Compote aux fruits"]
["Pain","Pain",null,"Pain",null,"Pain",1,"Pain",null,"Pain",1,"Pain",null,"Pain",1]
["Beurre","Beurre",null,"Beurre",null,"Beurre",null,"Beurre",null,"Beurre",null,"Beurre",null,"Beurre"]
[]
[]
["Total","plats",{"$f":"SUM(C3:C27)","v":0},null,{"$f":"SUM(E3:E27)","v":0},null,{"$f":"SUM(G3:G27)","v":5},null,{"$f":"SUM(I3:I27)","v":0},null,{"$f":"SUM(K3:K27)","v":5},null,{"$f":"SUM(M3:M27)","v":0},null,{"$f":"SUM(O3:O27)","v":5}]
[null,"Beurre",{"$f":"C29","v":0},null,{"$f":"E29","v":0},null,{"$f":"G29","v":0},null,{"$f":"I29","v":0},null,{"$f":"K29","v":0},null,{"$f":"M29","v":0},null,{"$f":"O29","v":0}]

{"sheet":"CASTELLI","index":15,"n_rows":33,"n_cols":15,"rows_kept":33,"cut":false,"hidden":false,"merged":[[1,13,1,14],[1,1,1,2],[1,3,1,4],[1,5,1,6],[1,7,1,8],[1,9,1,10],[1,11,1,12]]}
[]
[null,"Lun 09/10/2017",null,"Mar 10/10/2017",null,"Mer 11/10/2017",null,"Jeu 12/10/2017",null,"Ven 13/10/2017",null,"Sam 14/10/2017",null,"Dim 15/10/2017"]
["Entrées","Sardines à l'huile",null,"Coleslaw",null,"Champignons Grecs",null,"Betteraves",null,"Crêpe champignons",null,"Taboulé"]
[null,"Terrine de légumes",null,"Œuf mayonnaise",null,"Pizza pain",null,"Panier jambon fromage",null,"Crumble saumon",null,"Quiche lorraine",null,"Saumon fumé"]
[null,"Piémontaise",null,"Pdt au thon",null,"Salade surimi",null,"Rillettes poisson",null,"Cocktail de crevettes",null,"Salade paysanne"]
[null,"Charcuterie du jour",null,"Charcuterie du jour",null,"Charcuterie du jour",null,"Charcuterie du jour",null,"Charcuterie du jour",null,"Charcuterie du jour",null,"Salade tomates maïs"]
[null,"Potage du jour",null,"Potage du jour",null,"Potage du jour",null,"Potage du jour",null,"Potage du jour",null,"Potage du jour",null,"Potage du jour"]
["Plats",null,null,"Meunière de colin",null,"Poisson a la bordelaise",null,"Colin à la Parisienne",null,"Brandade de morue",null,"Filet flétan meunière"]
[null,"Suprême de poulet",null,"Brochette de bœuf",null,"Blanquette de veau",null,"Poulet Basquaise",null,"Brochette de volaille",null,"Rôti de porc",null,"Saumon beurre-blanc"]
[null,"Jambon grillé",null,"Jambon blanc",null,"Jambon grillé",null,"Jambon blanc",null,"Jambon grillé",null,"Jambon blanc"]
[null,"Steak à poêler (Cru)",null,"Steak à poêler (cru)",null,"Steak à poêler (Cru)",null,"Steak à poêler (Cru)",null,"Steak à poêler (Cru)",null,"Steak à poêler (Cru)",null,"Jambon persillé"]
[null,"Poisson du jour/citron",null,"Poisson du jour/citron",null,"Poisson du jour/citron",null,"Poisson du jour/citron",null,"Poisson du jour/citron",null,"Poisson du jour/citron"]
["Garnitures","Pâtes au beurre",null,"Riz au beurre",null,"Pâtes au beurre",null,"Riz au beurre",null,"Pâtes au beurre",null,"Riz au beurre"]
[null,"Purée patates douces",null,"Purée pdt",null,"Purée de carottes",null,"Purée de céleri",null,"Purée de brocolis",null,"Purée haricots verts",null,"Riz pilaf"]
[null,"Choux romanesco",null,"Lentilles",null,"Carottes Parisiennes",null,"Salsifis",null,"Ratatouille",null,"Poêlée courgettes"]
[null,"Haricots beurre",null,"Potée de choux",null,"Poêlée forestière",null,"Printanière légumes",null,"Petits pois-carottes",null,"Légumes Léonard",null,"Gratin Dauphinois"]
[null,"Pommes vapeur",null,"Pommes grenaille",null,"Pommes vapeur",null,"Pommes grenaille",null,"Pommes vapeur",null,"Pommes grenaille"]
["Fromages","Roquefort",null,"Camembert",null,"Roquefort",null,"Camembert",null,"Roquefort",null,"Camembert",null,"Roquefort"]
[null,"Emmental",null,"Petit moulé",null,"Emmental",null,"Petit moulé",null,"Emmental",null,"Petit moulé",null,"Emmental"]
[null,"Yaourt nature",null,"Yaourt aux fruits",null,"Yaourt nature",null,"Yaourt aux fruits",null,"Yaourt nature",null,"Yaourt aux fruits",null,"Yaourt nature"]
[null,"Faisselle",null,"Chocolat liégeois",null,"Faisselle",null,"Café liégeois",null,"Faisselle",null,"Chocolat liégeois",null,"Faisselle"]
[null,"Riz au lait",null,"Semoule au lait",null,"Riz au lait",null,"Semoule au lait",null,"Riz au lait",null,"Semoule au lait",null,"Riz au lait"]
["Desserts","Pomme",null,"Clémentine",null,"Pêche",null,"Poire",null,"Salade de fruits",null,"Banane"]
[null,"Tatin de pommes",null,"Flan caramel",null,"Mousse de fruits",null,"Panna Cota",null,"île flottante",null,"Far Breton",null,"Choux craquelés"]
[null,"Flan pâtissier",null,"Tropézienne",null,"Kouign Amann",null,"Tarte aux pommes",null,"Crème praliné",null,"Tarte caramel",null,"Paris-Brest"]
[null,"Entremet fruit du jour",null,"Entremet fruit du jour",null,"Entremet fruit du jour",null,"Entremet fruit du jour",null,"Entremet fruit du jour",null,"Entremet fruit du jour"]
[null,"Compote aux fruits",null,"Compote de fruits",null,"Compote aux fruits",null,"Compote aux fruits",null,"Compote de fruits",null,"Compote aux fruits"]
["Pain","Pain",null,"Pain",null,"Pain",null,"Pain",null,"Pain",null,"Pain",null,"Pain"]
["Beurre","Beurre",null,"Beurre",null,"Beurre",null,"Beurre",null,"Beurre",null,"Beurre",null,"Beurre"]
[]
[]
["Total","plats",{"$f":"SUM(C3:C27)","v":0},null,{"$f":"SUM(E3:E27)","v":0},null,{"$f":"SUM(G3:G27)","v":0},null,{"$f":"SUM(I3:I27)","v":0},null,{"$f":"SUM(K3:K27)","v":0},null,{"$f":"SUM(M3:M27)","v":0},null,{"$f":"SUM(O3:O27)","v":0}]
[null,"Beurre",{"$f":"C29","v":0},null,{"$f":"E29","v":0},null,{"$f":"G29","v":0},null,{"$f":"I29","v":0},null,{"$f":"K29","v":0},null,{"$f":"M29","v":0},null,{"$f":"O29","v":0}]

{"sheet":"Mme_CHANDORA","index":16,"n_rows":33,"n_cols":15,"rows_kept":33,"cut":false,"hidden":false,"merged":[[1,13,1,14],[1,1,1,2],[1,3,1,4],[1,5,1,6],[1,7,1,8],[1,9,1,10],[1,11,1,12]]}
[]
[null,"Lun 09/10/2017",null,"Mar 10/10/2017",null,"Mer 11/10/2017",null,"Jeu 12/10/2017",null,"Ven 13/10/2017",null,"Sam 14/10/2017",null,"Dim 15/10/2017"]
["Entrées","Sardines à l'huile",null,"Coleslaw",null,"Champignons Grecs",null,"Betteraves",null,"Crêpe champignons",null,"Taboulé"]
[null,"Terrine de légumes",null,"Œuf mayonnaise",null,"Pizza pain",null,"Panier jambon fromage",null,"Crumble saumon",null,"Quiche lorraine",null,"Saumon fumé"]
[null,"Piémontaise",null,"Pdt au thon",null,"Salade surimi",null,"Rillettes poisson",null,"Cocktail de crevettes",null,"Salade paysanne"]
[null,"Charcuterie du jour",null,"Charcuterie du jour",null,"Charcuterie du jour",null,"Charcuterie du jour",null,"Charcuterie du jour",null,"Charcuterie du jour",null,"Salade tomates maïs"]
[null,"Potage du jour",1,"Potage du jour",1,"Potage du jour",1,"Potage du jour",1,"Potage du jour",1,"Potage du jour",1,"Potage du jour",1]
["Plats",null,null,"Meunière de colin",null,"Poisson a la bordelaise",null,"Colin à la Parisienne",null,"Brandade de morue",null,"Filet flétan meunière"]
[null,"Suprême de poulet",null,"Brochette de bœuf",null,"Blanquette de veau",1,"Poulet Basquaise",null,"Brochette de volaille",null,"Rôti de porc",1,"Saumon beurre-blanc"]
[null,"Jambon grillé",1,"Jambon blanc",1,"Jambon grillé",null,"Jambon blanc",null,"Jambon grillé",null,"Jambon blanc"]
[null,"Steak à poêler (Cru)",null,"Steak à poêler (cru)",null,"Steak à poêler (Cru)",null,"Steak à poêler (Cru)",null,"Steak à poêler (Cru)",1,"Steak à poêler (Cru)",null,"Jambon persillé",1]
[null,"Poisson du jour/citron",null,"Poisson du jour/citron",null,"Poisson du jour/citron",null,"Poisson du jour/citron",null,"Poisson du jour/citron",null,"Poisson du jour/citron"]
["Garnitures","Pâtes au beurre",null,"Riz au beurre",null,"Pâtes au beurre",1,"Riz au beurre",null,"Pâtes au beurre",null,"Riz au beurre",1]
[null,"Purée patates douces",null,"Purée pdt",1,"Purée de carottes",null,"Purée de céleri",null,"Purée de brocolis",null,"Purée haricots verts",null,"Riz pilaf"]
[null,"Choux romanesco",null,"Lentilles",null,"Carottes Parisiennes",null,"Salsifis",null,"Ratatouille",null,"Poêlée courgettes"]
[null,"Haricots beurre",1,"Potée de choux",null,"Poêlée forestière",null,"Printanière légumes",null,"Petits pois-carottes",null,"Légumes Léonard",null,"Gratin Dauphinois",1]
[null,"Pommes vapeur",null,"Pommes grenaille",null,"Pommes vapeur",null,"Pommes grenaille",null,"Pommes vapeur",1,"Pommes grenaille"]
["Fromages","Roquefort",null,"Camembert",null,"Roquefort",null,"Camembert",null,"Roquefort",null,"Camembert",null,"Roquefort"]
[null,"Emmental",null,"Petit moulé",null,"Emmental",null,"Petit moulé",null,"Emmental",null,"Petit moulé",null,"Emmental"]
[null,"Yaourt nature",null,"Yaourt aux fruits",null,"Yaourt nature",null,"Yaourt aux fruits",null,"Yaourt nature",null,"Yaourt aux fruits",null,"Yaourt nature"]
[null,"Faisselle",null,"Chocolat liégeois",null,"Faisselle",null,"Café liégeois",null,"Faisselle",null,"Chocolat liégeois",null,"Faisselle"]
[null,"Riz au lait",null,"Semoule au lait",null,"Riz au lait",null,"Semoule au lait",null,"Riz au lait",null,"Semoule au lait",null,"Riz au lait"]
["Desserts","Pomme",null,"Clémentine",null,"Pêche",null,"Poire",null,"Salade de fruits",null,"Banane"]
[null,"Tatin de pommes",null,"Flan caramel",null,"Mousse de fruits",null,"Panna Cota",null,"île flottante",1,"Far Breton",null,"Choux craquelés",1]
[null,"Flan pâtissier",null,"Tropézienne",null,"Kouign Amann",1,"Tarte aux pommes",null,"Crème praliné",null,"Tarte caramel",1,"Paris-Brest"]
[null,"Entremet fruit du jour",null,"Entremet fruit du jour",1,"Entremet fruit du jour",null,"Entremet fruit du jour",null,"Entremet fruit du jour",null,"Entremet fruit du jour"]
[null,"Compote aux fruits",null,"Compote de fruits",null,"Compote aux fruits",null,"Compote aux fruits",null,"Compote de fruits",null,"Compote aux fruits"]
["Pain","Pain",null,"Pain",null,"Pain",null,"Pain",null,"Pain",null,"Pain",null,"Pain"]
["Beurre","Beurre",null,"Beurre",null,"Beurre",null,"Beurre",null,"Beurre",null,"Beurre",null,"Beurre"]
[]
[]
["Total","plats",{"$f":"SUM(C3:C27)","v":3},null,{"$f":"SUM(E3:E27)","v":4},null,{"$f":"SUM(G3:G27)","v":4},null,{"$f":"SUM(I3:I27)","v":1},null,{"$f":"SUM(K3:K27)","v":4},null,{"$f":"SUM(M3:M27)","v":4},null,{"$f":"SUM(O3:O27)","v":4}]
[null,"Beurre",{"$f":"C29","v":0},null,{"$f":"E29","v":0},null,{"$f":"G29","v":0},null,{"$f":"I29","v":0},null,{"$f":"K29","v":0},null,{"$f":"M29","v":0},null,{"$f":"O29","v":0}]

{"sheet":"CHASSAIN","index":17,"n_rows":33,"n_cols":15,"rows_kept":33,"cut":false,"hidden":false,"merged":[[1,13,1,14],[1,1,1,2],[1,3,1,4],[1,5,1,6],[1,7,1,8],[1,9,1,10],[1,11,1,12]]}
[]
[null,"Lun 09/10/2017",null,"Mar 10/10/2017",null,"Mer 11/10/2017",null,"Jeu 12/10/2017",null,"Ven 13/10/2017",null,"Sam 14/10/2017",null,"Dim 15/10/2017"]
["Entrées","Sardines à l'huile",null,"Coleslaw",1,"Champignons Grecs",null,"Betteraves",1,"Crêpe champignons",1,"Taboulé"]
[null,"Terrine de légumes",1,"Œuf mayonnaise",null,"Pizza pain",null,"Panier jambon fromage",null,"Crumble saumon",null,"Quiche lorraine",1,"Saumon fumé",1]
[null,"Piémontaise",null,"Pdt au thon",null,"Salade surimi",1,"Rillettes poisson",null,"Cocktail de crevettes",null,"Salade paysanne"]
[null,"Charcuterie du jour",null,"Charcuterie du jour",null,"Charcuterie du jour",null,"Charcuterie du jour",null,"Charcuterie du jour",null,"Charcuterie du jour",null,"Salade tomates maïs"]
[null,"Potage du jour",null,"Potage du jour",null,"Potage du jour",null,"Potage du jour",null,"Potage du jour",null,"Potage du jour",null,"Potage du jour"]
["Plats",null,null,"Meunière de colin",1,"Poisson a la bordelaise",1,"Colin à la Parisienne",1,"Brandade de morue",1,"Filet flétan meunière",1]
[null,"Suprême de poulet",null,"Brochette de bœuf",null,"Blanquette de veau",null,"Poulet Basquaise",null,"Brochette de volaille",null,"Rôti de porc",null,"Saumon beurre-blanc",1]
[null,"Jambon grillé",null,"Jambon blanc",null,"Jambon grillé",null,"Jambon blanc",null,"Jambon grillé",null,"Jambon blanc"]
[null,"Steak à poêler (Cru)",null,"Steak à poêler (cru)",null,"Steak à poêler (Cru)",null,"Steak à poêler (Cru)",null,"Steak à poêler (Cru)",null,"Steak à poêler (Cru)",null,"Jambon persillé"]
[null,"Poisson du jour/citron",1,"Poisson du jour/citron",null,"Poisson du jour/citron",null,"Poisson du jour/citron",null,"Poisson du jour/citron",null,"Poisson du jour/citron"]
["Garnitures","Pâtes au beurre",null,"Riz au beurre",null,"Pâtes au beurre",null,"Riz au beurre",null,"Pâtes au beurre",null,"Riz au beurre"]
[null,"Purée patates douces",1,"Purée pdt",1,"Purée de carottes",1,"Purée de céleri",null,"Purée de brocolis",null,"Purée haricots verts",null,"Riz pilaf"]
[null,"Choux romanesco",null,"Lentilles",null,"Carottes Parisiennes",null,"Salsifis",1,"Ratatouille",null,"Poêlée courgettes",1]
[null,"Haricots beurre",null,"Potée de choux",null,"Poêlée forestière",null,"Printanière légumes",null,"Petits pois-carottes",null,"Légumes Léonard",null,"Gratin Dauphinois",1]
[null,"Pommes vapeur",null,"Pommes grenaille",null,"Pommes vapeur",null,"Pommes grenaille",null,"Pommes vapeur",null,"Pommes grenaille"]
["Fromages","Roquefort",null,"Camembert",null,"Roquefort",null,"Camembert",null,"Roquefort",null,"Camembert",null,"Roquefort"]
[null,"Emmental",null,"Petit moulé",null,"Emmental",null,"Petit moulé",null,"Emmental",null,"Petit moulé",null,"Emmental"]
[null,"Yaourt nature",null,"Yaourt aux fruits",null,"Yaourt nature",null,"Yaourt aux fruits",null,"Yaourt nature",null,"Yaourt aux fruits",null,"Yaourt nature"]
[null,"Faisselle",null,"Chocolat liégeois",1,"Faisselle",null,"Café liégeois",1,"Faisselle",null,"Chocolat liégeois",null,"Faisselle"]
[null,"Riz au lait",1,"Semoule au lait",null,"Riz au lait",null,"Semoule au lait",null,"Riz au lait",null,"Semoule au lait",null,"Riz au lait"]
["Desserts","Pomme",null,"Clémentine",null,"Pêche",null,"Poire",null,"Salade de fruits",1,"Banane"]
[null,"Tatin de pommes",1,"Flan caramel",1,"Mousse de fruits",1,"Panna Cota",null,"île flottante",null,"Far Breton",1,"Choux craquelés",1]
[null,"Flan pâtissier",null,"Tropézienne",null,"Kouign Amann",1,"Tarte aux pommes",1,"Crème praliné",1,"Tarte caramel",1,"Paris-Brest",1]
[null,"Entremet fruit du jour",null,"Entremet fruit du jour",null,"Entremet fruit du jour",null,"Entremet fruit du jour",null,"Entremet fruit du jour",null,"Entremet fruit du jour"]
[null,"Compote aux fruits",null,"Compote de fruits",null,"Compote aux fruits",null,"Compote aux fruits",null,"Compote de fruits",null,"Compote aux fruits"]
["Pain","Pain",null,"Pain",null,"Pain",null,"Pain",null,"Pain",null,"Pain",null,"Pain"]
["Beurre","Beurre",null,"Beurre",null,"Beurre",null,"Beurre",null,"Beurre",null,"Beurre",null,"Beurre"]
[]
[]
["Total","plats",{"$f":"SUM(C3:C27)","v":5},null,{"$f":"SUM(E3:E27)","v":5},null,{"$f":"SUM(G3:G27)","v":5},null,{"$f":"SUM(I3:I27)","v":5},null,{"$f":"SUM(K3:K27)","v":4},null,{"$f":"SUM(M3:M27)","v":5},null,{"$f":"SUM(O3:O27)","v":5}]
[null,"Beurre",{"$f":"C29","v":0},null,{"$f":"E29","v":0},null,{"$f":"G29","v":0},null,{"$f":"I29","v":0},null,{"$f":"K29","v":0},null,{"$f":"M29","v":0},null,{"$f":"O29","v":0}]

{"sheet":"COLLET","index":18,"n_rows":33,"n_cols":15,"rows_kept":33,"cut":false,"hidden":false,"merged":[[1,13,1,14],[1,1,1,2],[1,3,1,4],[1,5,1,6],[1,7,1,8],[1,9,1,10],[1,11,1,12]]}
[]
[null,"Lun 09/10/2017",null,"Mar 10/10/2017",null,"Mer 11/10/2017",null,"Jeu 12/10/2017",null,"Ven 13/10/2017",null,"Sam 14/10/2017",null,"Dim 15/10/2017"]
["Entrées","Sardines à l'huile",1,"Coleslaw",null,"Champignons Grecs",1,"Betteraves",null,"Crêpe champignons",null,"Taboulé"]
[null,"Terrine de légumes",null,"Œuf mayonnaise",null,"Pizza pain",null,"Panier jambon fromage",null,"Crumble saumon",null,"Quiche lorraine",null,"Saumon fumé",1]
[null,"Piémontaise",null,"Pdt au thon",null,"Salade surimi",null,"Rillettes poisson",1,"Cocktail de crevettes",1,"Salade paysanne"]
[null,"Charcuterie du jour",null,"Charcuterie du jour",1,"Charcuterie du jour",null,"Charcuterie du jour",null,"Charcuterie du jour",null,"Charcuterie du jour",1,"Salade tomates maïs"]
[null,"Potage du jour",1,"Potage du jour",1,"Potage du jour",1,"Potage du jour",1,"Potage du jour",1,"Potage du jour",null,"Potage du jour",1]
["Plats",null,null,"Meunière de colin",1,"Poisson a la bordelaise",1,"Colin à la Parisienne",null,"Brandade de morue",null,"Filet flétan meunière",1]
[null,"Suprême de poulet",null,"Brochette de bœuf",null,"Blanquette de veau",null,"Poulet Basquaise",1,"Brochette de volaille",null,"Rôti de porc",null,"Saumon beurre-blanc",1]
[null,"Jambon grillé",null,"Jambon blanc",null,"Jambon grillé",null,"Jambon blanc",null,"Jambon grillé",null,"Jambon blanc"]
[null,"Steak à poêler (Cru)",null,"Steak à poêler (cru)",null,"Steak à poêler (Cru)",null,"Steak à poêler (Cru)",null,"Steak à poêler (Cru)",null,"Steak à poêler (Cru)",null,"Jambon persillé"]
[null,"Poisson du jour/citron",1,"Poisson du jour/citron",null,"Poisson du jour/citron",null,"Poisson du jour/citron",null,"Poisson du jour/citron",1,"Poisson du jour/citron"]
["Garnitures","Pâtes au beurre",null,"Riz au beurre",null,"Pâtes au beurre",null,"Riz au beurre",null,"Pâtes au beurre",1,"Riz au beurre"]
[null,"Purée patates douces",1,"Purée pdt",null,"Purée de carottes",1,"Purée de céleri",null,"Purée de brocolis",null,"Purée haricots verts",null,"Riz pilaf",1]
[null,"Choux romanesco",null,"Lentilles",null,"Carottes Parisiennes",null,"Salsifis",1,"Ratatouille",null,"Poêlée courgettes"]
[null,"Haricots beurre",null,"Potée de choux",1,"Poêlée forestière",null,"Printanière légumes",null,"Petits pois-carottes",null,"Légumes Léonard",1,"Gratin Dauphinois"]
[null,"Pommes vapeur",null,"Pommes grenaille",null,"Pommes vapeur",null,"Pommes grenaille",null,"Pommes vapeur",null,"Pommes grenaille"]
["Fromages","Roquefort",null,"Camembert",null,"Roquefort",null,"Camembert",null,"Roquefort",null,"Camembert",null,"Roquefort"]
[null,"Emmental",null,"Petit moulé",null,"Emmental",null,"Petit moulé",null,"Emmental",null,"Petit moulé",null,"Emmental"]
[null,"Yaourt nature",null,"Yaourt aux fruits",null,"Yaourt nature",null,"Yaourt aux fruits",null,"Yaourt nature",null,"Yaourt aux fruits",null,"Yaourt nature"]
[null,"Faisselle",null,"Chocolat liégeois",null,"Faisselle",null,"Café liégeois",null,"Faisselle",null,"Chocolat liégeois",null,"Faisselle"]
[null,"Riz au lait",null,"Semoule au lait",null,"Riz au lait",null,"Semoule au lait",null,"Riz au lait",null,"Semoule au lait",null,"Riz au lait"]
["Desserts","Pomme",null,"Clémentine",null,"Pêche",null,"Poire",null,"Salade de fruits",null,"Banane"]
[null,"Tatin de pommes",1,"Flan caramel",1,"Mousse de fruits",1,"Panna Cota",null,"île flottante",1,"Far Breton",null,"Choux craquelés",1]
[null,"Flan pâtissier",null,"Tropézienne",null,"Kouign Amann",null,"Tarte aux pommes",1,"Crème praliné",null,"Tarte caramel",null,"Paris-Brest"]
[null,"Entremet fruit du jour",null,"Entremet fruit du jour",null,"Entremet fruit du jour",null,"Entremet fruit du jour",null,"Entremet fruit du jour",null,"Entremet fruit du jour",1]
[null,"Compote aux fruits",null,"Compote de fruits",null,"Compote aux fruits",null,"Compote aux fruits",null,"Compote de fruits",null,"Compote aux fruits"]
["Pain","Pain",1,"Pain",1,"Pain",1,"Pain",1,"Pain",1,"Pain",1,"Pain",1]
["Beurre","Beurre",1,"Beurre",1,"Beurre",1,"Beurre",1,"Beurre",1,"Beurre",1,"Beurre",1]
[]
[]
["Total","plats",{"$f":"SUM(C3:C27)","v":5},null,{"$f":"SUM(E3:E27)","v":5},null,{"$f":"SUM(G3:G27)","v":5},null,{"$f":"SUM(I3:I27)","v":5},null,{"$f":"SUM(K3:K27)","v":5},null,{"$f":"SUM(M3:M27)","v":4},null,{"$f":"SUM(O3:O27)","v":5}]
[null,"Beurre",{"$f":"C29","v":1},null,{"$f":"E29","v":1},null,{"$f":"G29","v":1},null,{"$f":"I29","v":1},null,{"$f":"K29","v":1},null,{"$f":"M29","v":1},null,{"$f":"O29","v":1}]

{"sheet":"MR_MME_COLLET","index":19,"n_rows":33,"n_cols":15,"rows_kept":33,"cut":false,"hidden":false,"merged":[[1,13,1,14],[1,1,1,2],[1,3,1,4],[1,5,1,6],[1,7,1,8],[1,9,1,10],[1,11,1,12]]}
[]
[null,"Lun 09/10/2017",null,"Mar 10/10/2017",null,"Mer 11/10/2017",null,"Jeu 12/10/2017",null,"Ven 13/10/2017",null,"Sam 14/10/2017",null,"Dim 15/10/2017"]
["Entrées","Sardines à l'huile",null,"Coleslaw",null,"Champignons Grecs",null,"Betteraves",null,"Crêpe champignons",null,"Taboulé"]
[null,"Terrine de légumes",null,"Œuf mayonnaise",null,"Pizza pain",null,"Panier jambon fromage",null,"Crumble saumon",null,"Quiche lorraine",null,"Saumon fumé"]
[null,"Piémontaise",null,"Pdt au thon",null,"Salade surimi",null,"Rillettes poisson",null,"Cocktail de crevettes",null,"Salade paysanne"]
[null,"Charcuterie du jour",null,"Charcuterie du jour",null,"Charcuterie du jour",null,"Charcuterie du jour",null,"Charcuterie du jour",null,"Charcuterie du jour",null,"Salade tomates maïs"]
[null,"Potage du jour",null,"Potage du jour",null,"Potage du jour",null,"Potage du jour",null,"Potage du jour",null,"Potage du jour",null,"Potage du jour"]
["Plats",null,null,"Meunière de colin",null,"Poisson a la bordelaise",null,"Colin à la Parisienne",null,"Brandade de morue",null,"Filet flétan meunière"]
[null,"Suprême de poulet",null,"Brochette de bœuf",null,"Blanquette de veau",null,"Poulet Basquaise",null,"Brochette de volaille",null,"Rôti de porc",null,"Saumon beurre-blanc"]
[null,"Jambon grillé",null,"Jambon blanc",null,"Jambon grillé",null,"Jambon blanc",null,"Jambon grillé",null,"Jambon blanc"]
[null,"Steak à poêler (Cru)",null,"Steak à poêler (cru)",null,"Steak à poêler (Cru)",null,"Steak à poêler (Cru)",null,"Steak à poêler (Cru)",null,"Steak à poêler (Cru)",null,"Jambon persillé"]
[null,"Poisson du jour/citron",null,"Poisson du jour/citron",null,"Poisson du jour/citron",null,"Poisson du jour/citron",null,"Poisson du jour/citron",null,"Poisson du jour/citron"]
["Garnitures","Pâtes au beurre",null,"Riz au beurre",null,"Pâtes au beurre",null,"Riz au beurre",null,"Pâtes au beurre",null,"Riz au beurre"]
[null,"Purée patates douces",null,"Purée pdt",null,"Purée de carottes",null,"Purée de céleri",null,"Purée de brocolis",null,"Purée haricots verts",null,"Riz pilaf"]
[null,"Choux romanesco",null,"Lentilles",null,"Carottes Parisiennes",null,"Salsifis",null,"Ratatouille",null,"Poêlée courgettes"]
[null,"Haricots beurre",null,"Potée de choux",null,"Poêlée forestière",null,"Printanière légumes",null,"Petits pois-carottes",null,"Légumes Léonard",null,"Gratin Dauphinois"]
[null,"Pommes vapeur",null,"Pommes grenaille",null,"Pommes vapeur",null,"Pommes grenaille",null,"Pommes vapeur",null,"Pommes grenaille"]
["Fromages","Roquefort",null,"Camembert",null,"Roquefort",null,"Camembert",null,"Roquefort",null,"Camembert",null,"Roquefort"]
[null,"Emmental",null,"Petit moulé",null,"Emmental",null,"Petit moulé",null,"Emmental",null,"Petit moulé",null,"Emmental"]
[null,"Yaourt nature",null,"Yaourt aux fruits",null,"Yaourt nature",null,"Yaourt aux fruits",null,"Yaourt nature",null,"Yaourt aux fruits",null,"Yaourt nature"]
[null,"Faisselle",null,"Chocolat liégeois",null,"Faisselle",null,"Café liégeois",null,"Faisselle",null,"Chocolat liégeois",null,"Faisselle"]
[null,"Riz au lait",null,"Semoule au lait",null,"Riz au lait",null,"Semoule au lait",null,"Riz au lait",null,"Semoule au lait",null,"Riz au lait"]
["Desserts","Pomme",null,"Clémentine",null,"Pêche",null,"Poire",null,"Salade de fruits",null,"Banane"]
[null,"Tatin de pommes",null,"Flan caramel",null,"Mousse de fruits",null,"Panna Cota",null,"île flottante",null,"Far Breton",null,"Choux craquelés"]
[null,"Flan pâtissier",null,"Tropézienne",null,"Kouign Amann",null,"Tarte aux pommes",null,"Crème praliné",null,"Tarte caramel",null,"Paris-Brest"]
[null,"Entremet fruit du jour",null,"Entremet fruit du jour",null,"Entremet fruit du jour",null,"Entremet fruit du jour",null,"Entremet fruit du jour",null,"Entremet fruit du jour"]
[null,"Compote aux fruits",null,"Compote de fruits",null,"Compote aux fruits",null,"Compote aux fruits",null,"Compote de fruits",null,"Compote aux fruits"]
["Pain","Pain",null,"Pain",null,"Pain",null,"Pain",null,"Pain",null,"Pain",null,"Pain"]
["Beurre","Beurre",null,"Beurre",null,"Beurre",null,"Beurre",null,"Beurre",null,"Beurre",null,"Beurre"]
[]
[]
["Total","plats",{"$f":"SUM(C3:C27)","v":0},null,{"$f":"SUM(E3:E27)","v":0},null,{"$f":"SUM(G3:G27)","v":0},null,{"$f":"SUM(I3:I27)","v":0},null,{"$f":"SUM(K3:K27)","v":0},null,{"$f":"SUM(M3:M27)","v":0},null,{"$f":"SUM(O3:O27)","v":0}]
[null,"Beurre",{"$f":"C29","v":0},null,{"$f":"E29","v":0},null,{"$f":"G29","v":0},null,{"$f":"I29","v":0},null,{"$f":"K29","v":0},null,{"$f":"M29","v":0},null,{"$f":"O29","v":0}]

{"sheet":"COZIC","index":20,"n_rows":33,"n_cols":15,"rows_kept":33,"cut":false,"hidden":false,"merged":[[1,13,1,14],[1,1,1,2],[1,3,1,4],[1,5,1,6],[1,7,1,8],[1,9,1,10],[1,11,1,12]]}
[]
[null,"Lun 09/10/2017",null,"Mar 10/10/2017",null,"Mer 11/10/2017",null,"Jeu 12/10/2017",null,"Ven 13/10/2017",null,"Sam 14/10/2017",null,"Dim 15/10/2017"]
["Entrées","Sardines à l'huile",null,"Coleslaw",null,"Champignons Grecs",null,"Betteraves",null,"Crêpe champignons",null,"Taboulé"]
[null,"Terrine de légumes",null,"Œuf mayonnaise",null,"Pizza pain",null,"Panier jambon fromage",null,"Crumble saumon",null,"Quiche lorraine",null,"Saumon fumé"]
[null,"Piémontaise",null,"Pdt au thon",null,"Salade surimi",null,"Rillettes poisson",null,"Cocktail de crevettes",null,"Salade paysanne"]
[null,"Charcuterie du jour",null,"Charcuterie du jour",null,"Charcuterie du jour",null,"Charcuterie du jour",null,"Charcuterie du jour",null,"Charcuterie du jour",null,"Salade tomates maïs"]
[null,"Potage du jour",null,"Potage du jour",null,"Potage du jour",null,"Potage du jour",null,"Potage du jour",null,"Potage du jour",null,"Potage du jour"]
["Plats",null,null,"Meunière de colin",null,"Poisson a la bordelaise",null,"Colin à la Parisienne",null,"Brandade de morue",null,"Filet flétan meunière"]
[null,"Suprême de poulet",null,"Brochette de bœuf",1,"Blanquette de veau",1,"Poulet Basquaise",1,"Brochette de volaille",1,"Rôti de porc",null,"Saumon beurre-blanc"]
[null,"Jambon grillé",null,"Jambon blanc",null,"Jambon grillé",null,"Jambon blanc",null,"Jambon grillé",null,"Jambon blanc"]
[null,"Steak à poêler (Cru)",null,"Steak à poêler (cru)",null,"Steak à poêler (Cru)",null,"Steak à poêler (Cru)",null,"Steak à poêler (Cru)",null,"Steak à poêler (Cru)",null,"Jambon persillé"]
[null,"Poisson du jour/citron",null,"Poisson du jour/citron",null,"Poisson du jour/citron",null,"Poisson du jour/citron",null,"Poisson du jour/citron",null,"Poisson du jour/citron"]
["Garnitures","Pâtes au beurre",null,"Riz au beurre",null,"Pâtes au beurre",1,"Riz au beurre",null,"Pâtes au beurre",1,"Riz au beurre"]
[null,"Purée patates douces",null,"Purée pdt",1,"Purée de carottes",null,"Purée de céleri",null,"Purée de brocolis",null,"Purée haricots verts",null,"Riz pilaf"]
[null,"Choux romanesco",null,"Lentilles",null,"Carottes Parisiennes",null,"Salsifis",null,"Ratatouille",null,"Poêlée courgettes"]
[null,"Haricots beurre",null,"Potée de choux",null,"Poêlée forestière",null,"Printanière légumes",null,"Petits pois-carottes",null,"Légumes Léonard",null,"Gratin Dauphinois"]
[null,"Pommes vapeur",null,"Pommes grenaille",null,"Pommes vapeur",null,"Pommes grenaille",1,"Pommes vapeur",null,"Pommes grenaille"]
["Fromages","Roquefort",null,"Camembert",null,"Roquefort",null,"Camembert",null,"Roquefort",null,"Camembert",null,"Roquefort"]
[null,"Emmental",null,"Petit moulé",null,"Emmental",null,"Petit moulé",null,"Emmental",null,"Petit moulé",null,"Emmental"]
[null,"Yaourt nature",null,"Yaourt aux fruits",null,"Yaourt nature",null,"Yaourt aux fruits",null,"Yaourt nature",null,"Yaourt aux fruits",null,"Yaourt nature"]
[null,"Faisselle",null,"Chocolat liégeois",null,"Faisselle",null,"Café liégeois",null,"Faisselle",null,"Chocolat liégeois",null,"Faisselle"]
[null,"Riz au lait",null,"Semoule au lait",null,"Riz au lait",null,"Semoule au lait",null,"Riz au lait",null,"Semoule au lait",null,"Riz au lait"]
["Desserts","Pomme",null,"Clémentine",null,"Pêche",null,"Poire",null,"Salade de fruits",null,"Banane"]
[null,"Tatin de pommes",null,"Flan caramel",null,"Mousse de fruits",null,"Panna Cota",null,"île flottante",1,"Far Breton",null,"Choux craquelés"]
[null,"Flan pâtissier",null,"Tropézienne",1,"Kouign Amann",1,"Tarte aux pommes",1,"Crème praliné",null,"Tarte caramel",null,"Paris-Brest"]
[null,"Entremet fruit du jour",null,"Entremet fruit du jour",null,"Entremet fruit du jour",null,"Entremet fruit du jour",null,"Entremet fruit du jour",null,"Entremet fruit du jour"]
[null,"Compote aux fruits",null,"Compote de fruits",null,"Compote aux fruits",null,"Compote aux fruits",null,"Compote de fruits",null,"Compote aux fruits"]
["Pain","Pain",null,"Pain",null,"Pain",null,"Pain",null,"Pain",null,"Pain",null,"Pain"]
["Beurre","Beurre",null,"Beurre",null,"Beurre",null,"Beurre",null,"Beurre",null,"Beurre",null,"Beurre"]
[]
[]
["Total","plats",{"$f":"SUM(C3:C27)","v":0},null,{"$f":"SUM(E3:E27)","v":3},null,{"$f":"SUM(G3:G27)","v":3},null,{"$f":"SUM(I3:I27)","v":3},null,{"$f":"SUM(K3:K27)","v":3},null,{"$f":"SUM(M3:M27)","v":0},null,{"$f":"SUM(O3:O27)","v":0}]
[null,"Beurre",{"$f":"C29","v":0},null,{"$f":"E29","v":0},null,{"$f":"G29","v":0},null,{"$f":"I29","v":0},null,{"$f":"K29","v":0},null,{"$f":"M29","v":0},null,{"$f":"O29","v":0}]

{"sheet":"DANGUY_DES_DESERTS","index":21,"n_rows":33,"n_cols":15,"rows_kept":33,"cut":false,"hidden":false,"merged":[[1,13,1,14],[1,1,1,2],[1,3,1,4],[1,5,1,6],[1,7,1,8],[1,9,1,10],[1,11,1,12]]}
[]
[null,"Lun 09/10/2017",null,"Mar 10/10/2017",null,"Mer 11/10/2017",null,"Jeu 12/10/2017",null,"Ven 13/10/2017",null,"Sam 14/10/2017",null,"Dim 15/10/2017"]
["Entrées","Sardines à l'huile",null,"Coleslaw",1,"Champignons Grecs",null,"Betteraves",1,"Crêpe champignons",1,"Taboulé"]
[null,"Terrine de légumes",null,"Œuf mayonnaise",1,"Pizza pain",1,"Panier jambon fromage",null,"Crumble saumon",1,"Quiche lorraine",1,"Saumon fumé",1]
[null,"Piémontaise",null,"Pdt au thon",null,"Salade surimi",1,"Rillettes poisson",null,"Cocktail de crevettes",null,"Salade paysanne"]
[null,"Charcuterie du jour",null,"Charcuterie du jour",null,"Charcuterie du jour",null,"Charcuterie du jour",null,"Charcuterie du jour",null,"Charcuterie du jour",1,"Salade tomates maïs"]
[null,"Potage du jour",null,"Potage du jour",null,"Potage du jour",null,"Potage du jour",null,"Potage du jour",null,"Potage du jour",null,"Potage du jour"]
["Plats",null,null,"Meunière de colin",null,"Poisson a la bordelaise",null,"Colin à la Parisienne",null,"Brandade de morue",null,"Filet flétan meunière"]
[null,"Suprême de poulet",null,"Brochette de bœuf",null,"Blanquette de veau",null,"Poulet Basquaise",1,"Brochette de volaille",null,"Rôti de porc",null,"Saumon beurre-blanc",1]
[null,"Jambon grillé",null,"Jambon blanc",1,"Jambon grillé",null,"Jambon blanc",null,"Jambon grillé",null,"Jambon blanc",1]
[null,"Steak à poêler (Cru)",null,"Steak à poêler (cru)",null,"Steak à poêler (Cru)",1,"Steak à poêler (Cru)",null,"Steak à poêler (Cru)",1,"Steak à poêler (Cru)",null,"Jambon persillé"]
[null,"Poisson du jour/citron",null,"Poisson du jour/citron",null,"Poisson du jour/citron",null,"Poisson du jour/citron",null,"Poisson du jour/citron",null,"Poisson du jour/citron"]
["Garnitures","Pâtes au beurre",null,"Riz au beurre",null,"Pâtes au beurre",null,"Riz au beurre",null,"Pâtes au beurre",null,"Riz au beurre"]
[null,"Purée patates douces",null,"Purée pdt",null,"Purée de carottes",null,"Purée de céleri",null,"Purée de brocolis",null,"Purée haricots verts",null,"Riz pilaf"]
[null,"Choux romanesco",null,"Lentilles",1,"Carottes Parisiennes",null,"Salsifis",null,"Ratatouille",1,"Poêlée courgettes",1]
[null,"Haricots beurre",null,"Potée de choux",null,"Poêlée forestière",1,"Printanière légumes",1,"Petits pois-carottes",null,"Légumes Léonard",null,"Gratin Dauphinois",1]
[null,"Pommes vapeur",null,"Pommes grenaille",null,"Pommes vapeur",null,"Pommes grenaille",null,"Pommes vapeur",null,"Pommes grenaille"]
["Fromages","Roquefort",null,"Camembert",null,"Roquefort",null,"Camembert",null,"Roquefort",null,"Camembert",null,"Roquefort"]
[null,"Emmental",null,"Petit moulé",null,"Emmental",null,"Petit moulé",null,"Emmental",null,"Petit moulé",null,"Emmental"]
[null,"Yaourt nature",null,"Yaourt aux fruits",null,"Yaourt nature",null,"Yaourt aux fruits",null,"Yaourt nature",null,"Yaourt aux fruits",null,"Yaourt nature"]
[null,"Faisselle",null,"Chocolat liégeois",null,"Faisselle",null,"Café liégeois",null,"Faisselle",null,"Chocolat liégeois",null,"Faisselle"]
[null,"Riz au lait",null,"Semoule au lait",null,"Riz au lait",null,"Semoule au lait",null,"Riz au lait",null,"Semoule au lait",null,"Riz au lait"]
["Desserts","Pomme",null,"Clémentine",null,"Pêche",null,"Poire",null,"Salade de fruits",null,"Banane"]
[null,"Tatin de pommes",null,"Flan caramel",1,"Mousse de fruits",1,"Panna Cota",1,"île flottante",null,"Far Breton",null,"Choux craquelés",1]
[null,"Flan pâtissier",null,"Tropézienne",null,"Kouign Amann",null,"Tarte aux pommes",null,"Crème praliné",1,"Tarte caramel",null,"Paris-Brest",1]
[null,"Entremet fruit du jour",null,"Entremet fruit du jour",null,"Entremet fruit du jour",null,"Entremet fruit du jour",1,"Entremet fruit du jour",null,"Entremet fruit du jour",1]
[null,"Compote aux fruits",null,"Compote de fruits",null,"Compote aux fruits",null,"Compote aux fruits",null,"Compote de fruits",null,"Compote aux fruits"]
["Pain","Pain",null,"Pain",1,"Pain",1,"Pain",1,"Pain",1,"Pain",1,"Pain",1]
["Beurre","Beurre",null,"Beurre",null,"Beurre",null,"Beurre",null,"Beurre",null,"Beurre",null,"Beurre"]
[]
[]
["Total","plats",{"$f":"SUM(C3:C27)","v":0},null,{"$f":"SUM(E3:E27)","v":5},null,{"$f":"SUM(G3:G27)","v":5},null,{"$f":"SUM(I3:I27)","v":5},null,{"$f":"SUM(K3:K27)","v":5},null,{"$f":"SUM(M3:M27)","v":5},null,{"$f":"SUM(O3:O27)","v":5}]
[null,"Beurre",{"$f":"C29","v":0},null,{"$f":"E29","v":0},null,{"$f":"G29","v":0},null,{"$f":"I29","v":0},null,{"$f":"K29","v":0},null,{"$f":"M29","v":0},null,{"$f":"O29","v":0}]

{"sheet":"DELAGE","index":22,"n_rows":33,"n_cols":15,"rows_kept":33,"cut":false,"hidden":false,"merged":[[1,13,1,14],[1,1,1,2],[1,3,1,4],[1,5,1,6],[1,7,1,8],[1,9,1,10],[1,11,1,12]]}
[]
[null,"Lun 09/10/2017",null,"Mar 10/10/2017",null,"Mer 11/10/2017",null,"Jeu 12/10/2017",null,"Ven 13/10/2017",null,"Sam 14/10/2017",null,"Dim 15/10/2017"]
["Entrées","Sardines à l'huile",null,"Coleslaw",null,"Champignons Grecs",null,"Betteraves",1,"Crêpe champignons",1,"Taboulé"]
[null,"Terrine de légumes",null,"Œuf mayonnaise",null,"Pizza pain",null,"Panier jambon fromage",null,"Crumble saumon",null,"Quiche lorraine",null,"Saumon fumé",1]
[null,"Piémontaise",1,"Pdt au thon",null,"Salade surimi",null,"Rillettes poisson",null,"Cocktail de crevettes",null,"Salade paysanne"]
[null,"Charcuterie du jour",null,"Charcuterie du jour",null,"Charcuterie du jour",null,"Charcuterie du jour",null,"Charcuterie du jour",null,"Charcuterie du jour",null,"Salade tomates maïs"]
[null,"Potage du jour",1,"Potage du jour",1,"Potage du jour",1,"Potage du jour",null,"Potage du jour",null,"Potage du jour",1,"Potage du jour"]
["Plats",null,null,"Meunière de colin",null,"Poisson a la bordelaise",null,"Colin à la Parisienne",1,"Brandade de morue",1,"Filet flétan meunière"]
[null,"Suprême de poulet",1,"Brochette de bœuf",1,"Blanquette de veau",1,"Poulet Basquaise",null,"Brochette de volaille",null,"Rôti de porc",1,"Saumon beurre-blanc",1]
[null,"Jambon grillé",null,"Jambon blanc",null,"Jambon grillé",null,"Jambon blanc",null,"Jambon grillé",null,"Jambon blanc"]
[null,"Steak à poêler (Cru)",null,"Steak à poêler (cru)",null,"Steak à poêler (Cru)",null,"Steak à poêler (Cru)",null,"Steak à poêler (Cru)",null,"Steak à poêler (Cru)",null,"Jambon persillé"]
[null,"Poisson du jour/citron",null,"Poisson du jour/citron",null,"Poisson du jour/citron",null,"Poisson du jour/citron",null,"Poisson du jour/citron",null,"Poisson du jour/citron"]
["Garnitures","Pâtes au beurre",null,"Riz au beurre",null,"Pâtes au beurre",null,"Riz au beurre",null,"Pâtes au beurre",null,"Riz au beurre"]
[null,"Purée patates douces",null,"Purée pdt",null,"Purée de carottes",null,"Purée de céleri",null,"Purée de brocolis",null,"Purée haricots verts",null,"Riz pilaf"]
[null,"Choux romanesco",null,"Lentilles",1,"Carottes Parisiennes",null,"Salsifis",null,"Ratatouille",null,"Poêlée courgettes"]
[null,"Haricots beurre",1,"Potée de choux",null,"Poêlée forestière",null,"Printanière légumes",null,"Petits pois-carottes",1,"Légumes Léonard",null,"Gratin Dauphinois",1]
[null,"Pommes vapeur",null,"Pommes grenaille",null,"Pommes vapeur",null,"Pommes grenaille",null,"Pommes vapeur",null,"Pommes grenaille"]
["Fromages","Roquefort",null,"Camembert",1,"Roquefort",null,"Camembert",1,"Roquefort",null,"Camembert",1,"Roquefort"]
[null,"Emmental",null,"Petit moulé",null,"Emmental",1,"Petit moulé",null,"Emmental",1,"Petit moulé",null,"Emmental",1]
[null,"Yaourt nature",null,"Yaourt aux fruits",null,"Yaourt nature",null,"Yaourt aux fruits",null,"Yaourt nature",null,"Yaourt aux fruits",null,"Yaourt nature"]
[null,"Faisselle",null,"Chocolat liégeois",null,"Faisselle",null,"Café liégeois",null,"Faisselle",null,"Chocolat liégeois",null,"Faisselle"]
[null,"Riz au lait",null,"Semoule au lait",null,"Riz au lait",null,"Semoule au lait",null,"Riz au lait",null,"Semoule au lait",null,"Riz au lait"]
["Desserts","Pomme",null,"Clémentine",1,"Pêche",1,"Poire",1,"Salade de fruits",1,"Banane",1]
[null,"Tatin de pommes",1,"Flan caramel",null,"Mousse de fruits",null,"Panna Cota",1,"île flottante",null,"Far Breton",1,"Choux craquelés",1]
[null,"Flan pâtissier",null,"Tropézienne",null,"Kouign Amann",null,"Tarte aux pommes",null,"Crème praliné",null,"Tarte caramel",null,"Paris-Brest"]
[null,"Entremet fruit du jour",null,"Entremet fruit du jour",null,"Entremet fruit du jour",null,"Entremet fruit du jour",null,"Entremet fruit du jour",null,"Entremet fruit du jour"]
[null,"Compote aux fruits",null,"Compote de fruits",null,"Compote aux fruits",1,"Compote aux fruits",null,"Compote de fruits",null,"Compote aux fruits"]
["Pain","Pain",null,"Pain",null,"Pain",null,"Pain",null,"Pain",null,"Pain",null,"Pain"]
["Beurre","Beurre",null,"Beurre",null,"Beurre",null,"Beurre",null,"Beurre",null,"Beurre",null,"Beurre"]
[]
[]
["Total","plats",{"$f":"SUM(C3:C27)","v":5},null,{"$f":"SUM(E3:E27)","v":5},null,{"$f":"SUM(G3:G27)","v":5},null,{"$f":"SUM(I3:I27)","v":5},null,{"$f":"SUM(K3:K27)","v":5},null,{"$f":"SUM(M3:M27)","v":5},null,{"$f":"SUM(O3:O27)","v":5}]
[null,"Beurre",{"$f":"C29","v":0},null,{"$f":"E29","v":0},null,{"$f":"G29","v":0},null,{"$f":"I29","v":0},null,{"$f":"K29","v":0},null,{"$f":"M29","v":0},null,{"$f":"O29","v":0}]

{"sheet":"DOUSSAL","index":23,"n_rows":33,"n_cols":15,"rows_kept":33,"cut":false,"hidden":false,"merged":[[1,13,1,14],[1,1,1,2],[1,3,1,4],[1,5,1,6],[1,7,1,8],[1,9,1,10],[1,11,1,12]]}
[]
[null,"Lun 09/10/2017",null,"Mar 10/10/2017",null,"Mer 11/10/2017",null,"Jeu 12/10/2017",null,"Ven 13/10/2017",null,"Sam 14/10/2017",null,"Dim 15/10/2017"]
["Entrées","Sardines à l'huile",null,"Coleslaw",null,"Champignons Grecs",null,"Betteraves",null,"Crêpe champignons",null,"Taboulé"]
[null,"Terrine de légumes",null,"Œuf mayonnaise",null,"Pizza pain",null,"Panier jambon fromage",null,"Crumble saumon",null,"Quiche lorraine",null,"Saumon fumé"]
[null,"Piémontaise",null,"Pdt au thon",null,"Salade surimi",null,"Rillettes poisson",null,"Cocktail de crevettes",null,"Salade paysanne"]
[null,"Charcuterie du jour",null,"Charcuterie du jour",null,"Charcuterie du jour",null,"Charcuterie du jour",null,"Charcuterie du jour",null,"Charcuterie du jour",null,"Salade tomates maïs"]
[null,"Potage du jour",null,"Potage du jour",null,"Potage du jour",null,"Potage du jour",null,"Potage du jour",null,"Potage du jour",null,"Potage du jour"]
["Plats",null,null,"Meunière de colin",null,"Poisson a la bordelaise",null,"Colin à la Parisienne",null,"Brandade de morue",null,"Filet flétan meunière"]
[null,"Suprême de poulet",null,"Brochette de bœuf",null,"Blanquette de veau",null,"Poulet Basquaise",null,"Brochette de volaille",null,"Rôti de porc",null,"Saumon beurre-blanc"]
[null,"Jambon grillé",null,"Jambon blanc",null,"Jambon grillé",null,"Jambon blanc",null,"Jambon grillé",null,"Jambon blanc"]
[null,"Steak à poêler (Cru)",null,"Steak à poêler (cru)",null,"Steak à poêler (Cru)",null,"Steak à poêler (Cru)",null,"Steak à poêler (Cru)",null,"Steak à poêler (Cru)",null,"Jambon persillé"]
[null,"Poisson du jour/citron",null,"Poisson du jour/citron",null,"Poisson du jour/citron",null,"Poisson du jour/citron",null,"Poisson du jour/citron",null,"Poisson du jour/citron"]
["Garnitures","Pâtes au beurre",null,"Riz au beurre",null,"Pâtes au beurre",null,"Riz au beurre",null,"Pâtes au beurre",null,"Riz au beurre"]
[null,"Purée patates douces",null,"Purée pdt",null,"Purée de carottes",null,"Purée de céleri",null,"Purée de brocolis",null,"Purée haricots verts",null,"Riz pilaf"]
[null,"Choux romanesco",null,"Lentilles",null,"Carottes Parisiennes",null,"Salsifis",null,"Ratatouille",null,"Poêlée courgettes"]
[null,"Haricots beurre",null,"Potée de choux",null,"Poêlée forestière",null,"Printanière légumes",null,"Petits pois-carottes",null,"Légumes Léonard",null,"Gratin Dauphinois"]
[null,"Pommes vapeur",null,"Pommes grenaille",null,"Pommes vapeur",null,"Pommes grenaille",null,"Pommes vapeur",null,"Pommes grenaille"]
["Fromages","Roquefort",null,"Camembert",null,"Roquefort",null,"Camembert",null,"Roquefort",null,"Camembert",null,"Roquefort"]
[null,"Emmental",null,"Petit moulé",null,"Emmental",null,"Petit moulé",null,"Emmental",null,"Petit moulé",null,"Emmental"]
[null,"Yaourt nature",null,"Yaourt aux fruits",null,"Yaourt nature",null,"Yaourt aux fruits",null,"Yaourt nature",null,"Yaourt aux fruits",null,"Yaourt nature"]
[null,"Faisselle",null,"Chocolat liégeois",null,"Faisselle",null,"Café liégeois",null,"Faisselle",null,"Chocolat liégeois",null,"Faisselle"]
[null,"Riz au lait",null,"Semoule au lait",null,"Riz au lait",null,"Semoule au lait",null,"Riz au lait",null,"Semoule au lait",null,"Riz au lait"]
["Desserts","Pomme",null,"Clémentine",null,"Pêche",null,"Poire",null,"Salade de fruits",null,"Banane"]
[null,"Tatin de pommes",null,"Flan caramel",null,"Mousse de fruits",null,"Panna Cota",null,"île flottante",null,"Far Breton",null,"Choux craquelés"]
[null,"Flan pâtissier",null,"Tropézienne",null,"Kouign Amann",null,"Tarte aux pommes",null,"Crème praliné",null,"Tarte caramel",null,"Paris-Brest"]
[null,"Entremet fruit du jour",null,"Entremet fruit du jour",null,"Entremet fruit du jour",null,"Entremet fruit du jour",null,"Entremet fruit du jour",null,"Entremet fruit du jour"]
[null,"Compote aux fruits",null,"Compote de fruits",null,"Compote aux fruits",null,"Compote aux fruits",null,"Compote de fruits",null,"Compote aux fruits"]
["Pain","Pain",null,"Pain",null,"Pain",null,"Pain",null,"Pain",null,"Pain",null,"Pain"]
["Beurre","Beurre",null,"Beurre",null,"Beurre",null,"Beurre",null,"Beurre",null,"Beurre",null,"Beurre"]
[]
[]
["Total","plats",{"$f":"SUM(C3:C27)","v":0},null,{"$f":"SUM(E3:E27)","v":0},null,{"$f":"SUM(G3:G27)","v":0},null,{"$f":"SUM(I3:I27)","v":0},null,{"$f":"SUM(K3:K27)","v":0},null,{"$f":"SUM(M3:M27)","v":0},null,{"$f":"SUM(O3:O27)","v":0}]
[null,"Beurre",{"$f":"C29","v":0},null,{"$f":"E29","v":0},null,{"$f":"G29","v":0},null,{"$f":"I29","v":0},null,{"$f":"K29","v":0},null,{"$f":"M29","v":0},null,{"$f":"O29","v":0}]

{"sheet":"DENNIEL Marie Claire","index":24,"n_rows":33,"n_cols":15,"rows_kept":33,"cut":false,"hidden":false,"merged":[[1,13,1,14],[1,1,1,2],[1,3,1,4],[1,5,1,6],[1,7,1,8],[1,9,1,10],[1,11,1,12]]}
[]
[null,"Lun 09/10/2017",null,"Mar 10/10/2017",null,"Mer 11/10/2017",null,"Jeu 12/10/2017",null,"Ven 13/10/2017",null,"Sam 14/10/2017",null,"Dim 15/10/2017"]
["Entrées","Sardines à l'huile",null,"Coleslaw",null,"Champignons Grecs",null,"Betteraves",1,"Crêpe champignons",null,"Taboulé"]
[null,"Terrine de légumes",null,"Œuf mayonnaise",1,"Pizza pain",null,"Panier jambon fromage",null,"Crumble saumon",null,"Quiche lorraine",null,"Saumon fumé"]
[null,"Piémontaise",null,"Pdt au thon",null,"Salade surimi",null,"Rillettes poisson",null,"Cocktail de crevettes",null,"Salade paysanne"]
[null,"Charcuterie du jour",null,"Charcuterie du jour",null,"Charcuterie du jour",null,"Charcuterie du jour",null,"Charcuterie du jour",null,"Charcuterie du jour",null,"Salade tomates maïs"]
[null,"Potage du jour",1,"Potage du jour",null,"Potage du jour",1,"Potage du jour",null,"Potage du jour",null,"Potage du jour",null,"Potage du jour"]
["Plats",null,null,"Meunière de colin",null,"Poisson a la bordelaise",null,"Colin à la Parisienne",null,"Brandade de morue",null,"Filet flétan meunière"]
[null,"Suprême de poulet",1,"Brochette de bœuf",null,"Blanquette de veau",1,"Poulet Basquaise",1,"Brochette de volaille",null,"Rôti de porc",null,"Saumon beurre-blanc"]
[null,"Jambon grillé",null,"Jambon blanc",1,"Jambon grillé",null,"Jambon blanc",null,"Jambon grillé",null,"Jambon blanc"]
[null,"Steak à poêler (Cru)",null,"Steak à poêler (cru)",null,"Steak à poêler (Cru)",null,"Steak à poêler (Cru)",null,"Steak à poêler (Cru)",null,"Steak à poêler (Cru)",null,"Jambon persillé"]
[null,"Poisson du jour/citron",null,"Poisson du jour/citron",null,"Poisson du jour/citron",null,"Poisson du jour/citron",null,"Poisson du jour/citron",null,"Poisson du jour/citron"]
["Garnitures","Pâtes au beurre",1,"Riz au beurre",1,"Pâtes au beurre",null,"Riz au beurre",null,"Pâtes au beurre",null,"Riz au beurre"]
[null,"Purée patates douces",null,"Purée pdt",null,"Purée de carottes",null,"Purée de céleri",null,"Purée de brocolis",null,"Purée haricots verts",null,"Riz pilaf"]
[null,"Choux romanesco",null,"Lentilles",null,"Carottes Parisiennes",null,"Salsifis",1,"Ratatouille",null,"Poêlée courgettes"]
[null,"Haricots beurre",null,"Potée de choux",null,"Poêlée forestière",null,"Printanière légumes",null,"Petits pois-carottes",null,"Légumes Léonard",null,"Gratin Dauphinois"]
[null,"Pommes vapeur",null,"Pommes grenaille",null,"Pommes vapeur",1,"Pommes grenaille",null,"Pommes vapeur",null,"Pommes grenaille"]
["Fromages","Roquefort",null,"Camembert",null,"Roquefort",null,"Camembert",null,"Roquefort",null,"Camembert",null,"Roquefort"]
[null,"Emmental",null,"Petit moulé",null,"Emmental",null,"Petit moulé",null,"Emmental",null,"Petit moulé",null,"Emmental"]
[null,"Yaourt nature",null,"Yaourt aux fruits",null,"Yaourt nature",null,"Yaourt aux fruits",null,"Yaourt nature",null,"Yaourt aux fruits",null,"Yaourt nature"]
[null,"Faisselle",null,"Chocolat liégeois",null,"Faisselle",null,"Café liégeois",null,"Faisselle",null,"Chocolat liégeois",null,"Faisselle"]
[null,"Riz au lait",null,"Semoule au lait",null,"Riz au lait",null,"Semoule au lait",null,"Riz au lait",null,"Semoule au lait",null,"Riz au lait"]
["Desserts","Pomme",null,"Clémentine",null,"Pêche",null,"Poire",null,"Salade de fruits",null,"Banane"]
[null,"Tatin de pommes",null,"Flan caramel",null,"Mousse de fruits",null,"Panna Cota",null,"île flottante",null,"Far Breton",null,"Choux craquelés"]
[null,"Flan pâtissier",null,"Tropézienne",null,"Kouign Amann",null,"Tarte aux pommes",null,"Crème praliné",null,"Tarte caramel",null,"Paris-Brest"]
[null,"Entremet fruit du jour",null,"Entremet fruit du jour",null,"Entremet fruit du jour",null,"Entremet fruit du jour",null,"Entremet fruit du jour",null,"Entremet fruit du jour"]
[null,"Compote aux fruits",null,"Compote de fruits",null,"Compote aux fruits",null,"Compote aux fruits",null,"Compote de fruits",null,"Compote aux fruits"]
["Pain","Pain",null,"Pain",null,"Pain",null,"Pain",null,"Pain",null,"Pain",null,"Pain"]
["Beurre","Beurre",null,"Beurre",null,"Beurre",null,"Beurre",null,"Beurre",null,"Beurre",null,"Beurre"]
[]
[]
["Total","plats",{"$f":"SUM(C3:C27)","v":3},null,{"$f":"SUM(E3:E27)","v":3},null,{"$f":"SUM(G3:G27)","v":3},null,{"$f":"SUM(I3:I27)","v":3},null,{"$f":"SUM(K3:K27)","v":0},null,{"$f":"SUM(M3:M27)","v":0},null,{"$f":"SUM(O3:O27)","v":0}]
[null,"Beurre",{"$f":"C29","v":0},null,{"$f":"E29","v":0},null,{"$f":"G29","v":0},null,{"$f":"I29","v":0},null,{"$f":"K29","v":0},null,{"$f":"M29","v":0},null,{"$f":"O29","v":0}]

{"sheet":"DURU","index":25,"n_rows":33,"n_cols":15,"rows_kept":33,"cut":false,"hidden":false,"merged":[[1,13,1,14],[1,1,1,2],[1,3,1,4],[1,5,1,6],[1,7,1,8],[1,9,1,10],[1,11,1,12]]}
[]
[null,"Lun 09/10/2017",null,"Mar 10/10/2017",null,"Mer 11/10/2017",null,"Jeu 12/10/2017",null,"Ven 13/10/2017",null,"Sam 14/10/2017",null,"Dim 15/10/2017"]
["Entrées","Sardines à l'huile",null,"Coleslaw",null,"Champignons Grecs",null,"Betteraves",null,"Crêpe champignons",null,"Taboulé"]
[null,"Terrine de légumes",null,"Œuf mayonnaise",1,"Pizza pain",null,"Panier jambon fromage",null,"Crumble saumon",null,"Quiche lorraine",null,"Saumon fumé"]
[null,"Piémontaise",1,"Pdt au thon",null,"Salade surimi",null,"Rillettes poisson",null,"Cocktail de crevettes",null,"Salade paysanne"]
[null,"Charcuterie du jour",null,"Charcuterie du jour",null,"Charcuterie du jour",null,"Charcuterie du jour",null,"Charcuterie du jour",null,"Charcuterie du jour",null,"Salade tomates maïs"]
[null,"Potage du jour",null,"Potage du jour",null,"Potage du jour",null,"Potage du jour",null,"Potage du jour",null,"Potage du jour",null,"Potage du jour"]
["Plats",null,null,"Meunière de colin",null,"Poisson a la bordelaise",null,"Colin à la Parisienne",null,"Brandade de morue",null,"Filet flétan meunière"]
[null,"Suprême de poulet",1,"Brochette de bœuf",1,"Blanquette de veau",1,"Poulet Basquaise",1,"Brochette de volaille",1,"Rôti de porc",1,"Saumon beurre-blanc"]
[null,"Jambon grillé",null,"Jambon blanc",null,"Jambon grillé",null,"Jambon blanc",null,"Jambon grillé",null,"Jambon blanc"]
[null,"Steak à poêler (Cru)",null,"Steak à poêler (cru)",null,"Steak à poêler (Cru)",null,"Steak à poêler (Cru)",null,"Steak à poêler (Cru)",null,"Steak à poêler (Cru)",null,"Jambon persillé",1]
[null,"Poisson du jour/citron",null,"Poisson du jour/citron",null,"Poisson du jour/citron",null,"Poisson du jour/citron",null,"Poisson du jour/citron",null,"Poisson du jour/citron"]
["Garnitures","Pâtes au beurre",1,"Riz au beurre",null,"Pâtes au beurre",1,"Riz au beurre",null,"Pâtes au beurre",null,"Riz au beurre"]
[null,"Purée patates douces",null,"Purée pdt",1,"Purée de carottes",null,"Purée de céleri",null,"Purée de brocolis",null,"Purée haricots verts",null,"Riz pilaf"]
[null,"Choux romanesco",null,"Lentilles",null,"Carottes Parisiennes",null,"Salsifis",null,"Ratatouille",1,"Poêlée courgettes"]
[null,"Haricots beurre",null,"Potée de choux",null,"Poêlée forestière",null,"Printanière légumes",null,"Petits pois-carottes",null,"Légumes Léonard",1,"Gratin Dauphinois",1]
[null,"Pommes vapeur",null,"Pommes grenaille",null,"Pommes vapeur",null,"Pommes grenaille",1,"Pommes vapeur",null,"Pommes grenaille"]
["Fromages","Roquefort",null,"Camembert",null,"Roquefort",null,"Camembert",1,"Roquefort",null,"Camembert",null,"Roquefort"]
[null,"Emmental",1,"Petit moulé",1,"Emmental",1,"Petit moulé",null,"Emmental",1,"Petit moulé",1,"Emmental",1]
[null,"Yaourt nature",null,"Yaourt aux fruits",null,"Yaourt nature",null,"Yaourt aux fruits",null,"Yaourt nature",null,"Yaourt aux fruits",null,"Yaourt nature"]
[null,"Faisselle",null,"Chocolat liégeois",null,"Faisselle",null,"Café liégeois",null,"Faisselle",null,"Chocolat liégeois",null,"Faisselle"]
[null,"Riz au lait",null,"Semoule au lait",null,"Riz au lait",null,"Semoule au lait",null,"Riz au lait",null,"Semoule au lait",null,"Riz au lait"]
["Desserts","Pomme",null,"Clémentine",null,"Pêche",null,"Poire",null,"Salade de fruits",null,"Banane"]
[null,"Tatin de pommes",1,"Flan caramel",1,"Mousse de fruits",null,"Panna Cota",1,"île flottante",1,"Far Breton",1,"Choux craquelés",1]
[null,"Flan pâtissier",null,"Tropézienne",null,"Kouign Amann",1,"Tarte aux pommes",null,"Crème praliné",null,"Tarte caramel",null,"Paris-Brest"]
[null,"Entremet fruit du jour",null,"Entremet fruit du jour",null,"Entremet fruit du jour",null,"Entremet fruit du jour",null,"Entremet fruit du jour",null,"Entremet fruit du jour"]
[null,"Compote aux fruits",null,"Compote de fruits",null,"Compote aux fruits",null,"Compote aux fruits",null,"Compote de fruits",null,"Compote aux fruits"]
["Pain","Pain",null,"Pain",null,"Pain",null,"Pain",null,"Pain",null,"Pain",null,"Pain"]
["Beurre","Beurre",null,"Beurre",null,"Beurre",null,"Beurre",null,"Beurre",null,"Beurre",null,"Beurre"]
[]
[]
["Total","plats",{"$f":"SUM(C3:C27)","v":5},null,{"$f":"SUM(E3:E27)","v":5},null,{"$f":"SUM(G3:G27)","v":4},null,{"$f":"SUM(I3:I27)","v":4},null,{"$f":"SUM(K3:K27)","v":4},null,{"$f":"SUM(M3:M27)","v":4},null,{"$f":"SUM(O3:O27)","v":4}]
[null,"Beurre",{"$f":"C29","v":0},null,{"$f":"E29","v":0},null,{"$f":"G29","v":0},null,{"$f":"I29","v":0},null,{"$f":"K29","v":0},null,{"$f":"M29","v":0},null,{"$f":"O29","v":0}]

{"sheet":"FAUVERGUE_P","index":26,"n_rows":33,"n_cols":15,"rows_kept":33,"cut":false,"hidden":false,"merged":[[1,13,1,14],[1,1,1,2],[1,3,1,4],[1,5,1,6],[1,7,1,8],[1,9,1,10],[1,11,1,12]]}
[]
[null,"Lun 09/10/2017",null,"Mar 10/10/2017",null,"Mer 11/10/2017",null,"Jeu 12/10/2017",null,"Ven 13/10/2017",null,"Sam 14/10/2017",null,"Dim 15/10/2017"]
["Entrées","Sardines à l'huile",null,"Coleslaw",null,"Champignons Grecs",null,"Betteraves",null,"Crêpe champignons",null,"Taboulé"]
[null,"Terrine de légumes",null,"Œuf mayonnaise",null,"Pizza pain",null,"Panier jambon fromage",null,"Crumble saumon",null,"Quiche lorraine",null,"Saumon fumé"]
[null,"Piémontaise",null,"Pdt au thon",null,"Salade surimi",null,"Rillettes poisson",null,"Cocktail de crevettes",null,"Salade paysanne"]
[null,"Charcuterie du jour",null,"Charcuterie du jour",null,"Charcuterie du jour",null,"Charcuterie du jour",null,"Charcuterie du jour",null,"Charcuterie du jour",null,"Salade tomates maïs"]
[null,"Potage du jour",null,"Potage du jour",null,"Potage du jour",null,"Potage du jour",null,"Potage du jour",null,"Potage du jour",null,"Potage du jour"]
["Plats",null,null,"Meunière de colin",null,"Poisson a la bordelaise",null,"Colin à la Parisienne",null,"Brandade de morue",null,"Filet flétan meunière"]
[null,"Suprême de poulet",null,"Brochette de bœuf",null,"Blanquette de veau",null,"Poulet Basquaise",null,"Brochette de volaille",null,"Rôti de porc",null,"Saumon beurre-blanc"]
[null,"Jambon grillé",null,"Jambon blanc",null,"Jambon grillé",null,"Jambon blanc",null,"Jambon grillé",null,"Jambon blanc"]
[null,"Steak à poêler (Cru)",null,"Steak à poêler (cru)",null,"Steak à poêler (Cru)",null,"Steak à poêler (Cru)",null,"Steak à poêler (Cru)",null,"Steak à poêler (Cru)",null,"Jambon persillé"]
[null,"Poisson du jour/citron",null,"Poisson du jour/citron",null,"Poisson du jour/citron",null,"Poisson du jour/citron",null,"Poisson du jour/citron",null,"Poisson du jour/citron"]
["Garnitures","Pâtes au beurre",null,"Riz au beurre",null,"Pâtes au beurre",null,"Riz au beurre",null,"Pâtes au beurre",null,"Riz au beurre"]
[null,"Purée patates douces",null,"Purée pdt",null,"Purée de carottes",null,"Purée de céleri",null,"Purée de brocolis",null,"Purée haricots verts",null,"Riz pilaf"]
[null,"Choux romanesco",null,"Lentilles",null,"Carottes Parisiennes",null,"Salsifis",null,"Ratatouille",null,"Poêlée courgettes"]
[null,"Haricots beurre",null,"Potée de choux",null,"Poêlée forestière",null,"Printanière légumes",null,"Petits pois-carottes",null,"Légumes Léonard",null,"Gratin Dauphinois"]
[null,"Pommes vapeur",null,"Pommes grenaille",null,"Pommes vapeur",null,"Pommes grenaille",null,"Pommes vapeur",null,"Pommes grenaille"]
["Fromages","Roquefort",null,"Camembert",null,"Roquefort",null,"Camembert",null,"Roquefort",null,"Camembert",null,"Roquefort"]
[null,"Emmental",null,"Petit moulé",null,"Emmental",null,"Petit moulé",null,"Emmental",null,"Petit moulé",null,"Emmental"]
[null,"Yaourt nature",null,"Yaourt aux fruits",null,"Yaourt nature",null,"Yaourt aux fruits",null,"Yaourt nature",null,"Yaourt aux fruits",null,"Yaourt nature"]
[null,"Faisselle",null,"Chocolat liégeois",null,"Faisselle",null,"Café liégeois",null,"Faisselle",null,"Chocolat liégeois",null,"Faisselle"]
[null,"Riz au lait",null,"Semoule au lait",null,"Riz au lait",null,"Semoule au lait",null,"Riz au lait",null,"Semoule au lait",null,"Riz au lait"]
["Desserts","Pomme",null,"Clémentine",null,"Pêche",null,"Poire",null,"Salade de fruits",null,"Banane"]
[null,"Tatin de pommes",null,"Flan caramel",null,"Mousse de fruits",null,"Panna Cota",null,"île flottante",null,"Far Breton",null,"Choux craquelés"]
[null,"Flan pâtissier",null,"Tropézienne",null,"Kouign Amann",null,"Tarte aux pommes",null,"Crème praliné",null,"Tarte caramel",null,"Paris-Brest"]
[null,"Entremet fruit du jour",null,"Entremet fruit du jour",null,"Entremet fruit du jour",null,"Entremet fruit du jour",null,"Entremet fruit du jour",null,"Entremet fruit du jour"]
[null,"Compote aux fruits",null,"Compote de fruits",null,"Compote aux fruits",null,"Compote aux fruits",null,"Compote de fruits",null,"Compote aux fruits"]
["Pain","Pain",null,"Pain",null,"Pain",null,"Pain",null,"Pain",null,"Pain",null,"Pain"]
["Beurre","Beurre",null,"Beurre",null,"Beurre",null,"Beurre",null,"Beurre",null,"Beurre",null,"Beurre"]
[]
[]
["Total","plats",{"$f":"SUM(C3:C27)","v":0},null,{"$f":"SUM(E3:E27)","v":0},null,{"$f":"SUM(G3:G27)","v":0},null,{"$f":"SUM(I3:I27)","v":0},null,{"$f":"SUM(K3:K27)","v":0},null,{"$f":"SUM(M3:M27)","v":0},null,{"$f":"SUM(O3:O27)","v":0}]
[null,"Beurre",{"$f":"C29","v":0},null,{"$f":"E29","v":0},null,{"$f":"G29","v":0},null,{"$f":"I29","v":0},null,{"$f":"K29","v":0},null,{"$f":"M29","v":0},null,{"$f":"O29","v":0}]

{"sheet":"FAVE","index":27,"n_rows":33,"n_cols":15,"rows_kept":33,"cut":false,"hidden":false,"merged":[[1,13,1,14],[1,1,1,2],[1,3,1,4],[1,5,1,6],[1,7,1,8],[1,9,1,10],[1,11,1,12]]}
[]
[null,"Lun 09/10/2017",null,"Mar 10/10/2017",null,"Mer 11/10/2017",null,"Jeu 12/10/2017",null,"Ven 13/10/2017",null,"Sam 14/10/2017",null,"Dim 15/10/2017"]
["Entrées","Sardines à l'huile",null,"Coleslaw",null,"Champignons Grecs",null,"Betteraves",null,"Crêpe champignons",null,"Taboulé",1]
[null,"Terrine de légumes",null,"Œuf mayonnaise",null,"Pizza pain",1,"Panier jambon fromage",1,"Crumble saumon",null,"Quiche lorraine",null,"Saumon fumé"]
[null,"Piémontaise",1,"Pdt au thon",null,"Salade surimi",null,"Rillettes poisson",null,"Cocktail de crevettes",null,"Salade paysanne"]
[null,"Charcuterie du jour",null,"Charcuterie du jour",1,"Charcuterie du jour",null,"Charcuterie du jour",null,"Charcuterie du jour",1,"Charcuterie du jour",null,"Salade tomates maïs"]
[null,"Potage du jour",null,"Potage du jour",null,"Potage du jour",null,"Potage du jour",null,"Potage du jour",null,"Potage du jour",null,"Potage du jour",1]
["Plats",null,null,"Meunière de colin",null,"Poisson a la bordelaise",null,"Colin à la Parisienne",null,"Brandade de morue",null,"Filet flétan meunière"]
[null,"Suprême de poulet",null,"Brochette de bœuf",null,"Blanquette de veau",null,"Poulet Basquaise",1,"Brochette de volaille",1,"Rôti de porc",null,"Saumon beurre-blanc"]
[null,"Jambon grillé",1,"Jambon blanc",1,"Jambon grillé",1,"Jambon blanc",null,"Jambon grillé",null,"Jambon blanc",1]
[null,"Steak à poêler (Cru)",null,"Steak à poêler (cru)",null,"Steak à poêler (Cru)",null,"Steak à poêler (Cru)",null,"Steak à poêler (Cru)",null,"Steak à poêler (Cru)",null,"Jambon persillé",1]
[null,"Poisson du jour/citron",null,"Poisson du jour/citron",null,"Poisson du jour/citron",null,"Poisson du jour/citron",null,"Poisson du jour/citron",null,"Poisson du jour/citron"]
["Garnitures","Pâtes au beurre",null,"Riz au beurre",null,"Pâtes au beurre",1,"Riz au beurre",1,"Pâtes au beurre",null,"Riz au beurre"]
[null,"Purée patates douces",null,"Purée pdt",1,"Purée de carottes",null,"Purée de céleri",null,"Purée de brocolis",null,"Purée haricots verts",null,"Riz pilaf"]
[null,"Choux romanesco",null,"Lentilles",null,"Carottes Parisiennes",null,"Salsifis",null,"Ratatouille",null,"Poêlée courgettes"]
[null,"Haricots beurre",null,"Potée de choux",null,"Poêlée forestière",null,"Printanière légumes",null,"Petits pois-carottes",null,"Légumes Léonard",null,"Gratin Dauphinois",1]
[null,"Pommes vapeur",1,"Pommes grenaille",null,"Pommes vapeur",null,"Pommes grenaille",null,"Pommes vapeur",1,"Pommes grenaille",1]
["Fromages","Roquefort",null,"Camembert",null,"Roquefort",null,"Camembert",null,"Roquefort",null,"Camembert",null,"Roquefort"]
[null,"Emmental",null,"Petit moulé",null,"Emmental",1,"Petit moulé",null,"Emmental",null,"Petit moulé",null,"Emmental"]
[null,"Yaourt nature",null,"Yaourt aux fruits",1,"Yaourt nature",null,"Yaourt aux fruits",1,"Yaourt nature",null,"Yaourt aux fruits",1,"Yaourt nature"]
[null,"Faisselle",null,"Chocolat liégeois",null,"Faisselle",null,"Café liégeois",null,"Faisselle",null,"Chocolat liégeois",null,"Faisselle"]
[null,"Riz au lait",1,"Semoule au lait",null,"Riz au lait",null,"Semoule au lait",null,"Riz au lait",1,"Semoule au lait",null,"Riz au lait",1]
["Desserts","Pomme",null,"Clémentine",null,"Pêche",1,"Poire",null,"Salade de fruits",null,"Banane"]
[null,"Tatin de pommes",null,"Flan caramel",1,"Mousse de fruits",null,"Panna Cota",null,"île flottante",null,"Far Breton",null,"Choux craquelés"]
[null,"Flan pâtissier",null,"Tropézienne",null,"Kouign Amann",null,"Tarte aux pommes",1,"Crème praliné",null,"Tarte caramel",1,"Paris-Brest",1]
[null,"Entremet fruit du jour",1,"Entremet fruit du jour",null,"Entremet fruit du jour",null,"Entremet fruit du jour",null,"Entremet fruit du jour",null,"Entremet fruit du jour"]
[null,"Compote aux fruits",null,"Compote de fruits",null,"Compote aux fruits",null,"Compote aux fruits",null,"Compote de fruits",1,"Compote aux fruits"]
["Pain","Pain",null,"Pain",null,"Pain",null,"Pain",null,"Pain",null,"Pain",null,"Pain"]
["Beurre","Beurre",null,"Beurre",null,"Beurre",null,"Beurre",null,"Beurre",null,"Beurre",null,"Beurre"]
[]
[]
["Total","plats",{"$f":"SUM(C3:C27)","v":5},null,{"$f":"SUM(E3:E27)","v":5},null,{"$f":"SUM(G3:G27)","v":5},null,{"$f":"SUM(I3:I27)","v":5},null,{"$f":"SUM(K3:K27)","v":5},null,{"$f":"SUM(M3:M27)","v":5},null,{"$f":"SUM(O3:O27)","v":5}]
[null,"Beurre",{"$f":"C29","v":0},null,{"$f":"E29","v":0},null,{"$f":"G29","v":0},null,{"$f":"I29","v":0},null,{"$f":"K29","v":0},null,{"$f":"M29","v":0},null,{"$f":"O29","v":0}]

{"sheet":"FOURNIER André","index":28,"n_rows":33,"n_cols":15,"rows_kept":33,"cut":false,"hidden":false,"merged":[[1,13,1,14],[1,1,1,2],[1,3,1,4],[1,5,1,6],[1,7,1,8],[1,9,1,10],[1,11,1,12]]}
[]
[null,"Lun 09/10/2017",null,"Mar 10/10/2017",null,"Mer 11/10/2017",null,"Jeu 12/10/2017",null,"Ven 13/10/2017",null,"Sam 14/10/2017",null,"Dim 15/10/2017"]
["Entrées","Sardines à l'huile",null,"Coleslaw",null,"Champignons Grecs",null,"Betteraves",null,"Crêpe champignons",null,"Taboulé"]
[null,"Terrine de légumes",null,"Œuf mayonnaise",null,"Pizza pain",null,"Panier jambon fromage",null,"Crumble saumon",null,"Quiche lorraine",null,"Saumon fumé"]
[null,"Piémontaise",null,"Pdt au thon",null,"Salade surimi",null,"Rillettes poisson",null,"Cocktail de crevettes",null,"Salade paysanne"]
[null,"Charcuterie du jour",null,"Charcuterie du jour",null,"Charcuterie du jour",null,"Charcuterie du jour",null,"Charcuterie du jour",null,"Charcuterie du jour",null,"Salade tomates maïs"]
[null,"Potage du jour",null,"Potage du jour",1,"Potage du jour",1,"Potage du jour",1,"Potage du jour",1,"Potage du jour",1,"Potage du jour"]
["Plats",null,null,"Meunière de colin",null,"Poisson a la bordelaise",null,"Colin à la Parisienne",1,"Brandade de morue",null,"Filet flétan meunière"]
[null,"Suprême de poulet",null,"Brochette de bœuf",null,"Blanquette de veau",1,"Poulet Basquaise",null,"Brochette de volaille",1,"Rôti de porc",null,"Saumon beurre-blanc"]
[null,"Jambon grillé",null,"Jambon blanc",1,"Jambon grillé",null,"Jambon blanc",null,"Jambon grillé",null,"Jambon blanc"]
[null,"Steak à poêler (Cru)",null,"Steak à poêler (cru)",null,"Steak à poêler (Cru)",null,"Steak à poêler (Cru)",null,"Steak à poêler (Cru)",null,"Steak à poêler (Cru)",null,"Jambon persillé"]
[null,"Poisson du jour/citron",null,"Poisson du jour/citron",null,"Poisson du jour/citron",null,"Poisson du jour/citron",null,"Poisson du jour/citron",null,"Poisson du jour/citron",1]
["Garnitures","Pâtes au beurre",null,"Riz au beurre",null,"Pâtes au beurre",null,"Riz au beurre",null,"Pâtes au beurre",null,"Riz au beurre"]
[null,"Purée patates douces",null,"Purée pdt",1,"Purée de carottes",null,"Purée de céleri",null,"Purée de brocolis",null,"Purée haricots verts",1,"Riz pilaf"]
[null,"Choux romanesco",null,"Lentilles",null,"Carottes Parisiennes",null,"Salsifis",null,"Ratatouille",null,"Poêlée courgettes"]
[null,"Haricots beurre",null,"Potée de choux",null,"Poêlée forestière",null,"Printanière légumes",1,"Petits pois-carottes",1,"Légumes Léonard",null,"Gratin Dauphinois"]
[null,"Pommes vapeur",null,"Pommes grenaille",null,"Pommes vapeur",1,"Pommes grenaille",null,"Pommes vapeur",null,"Pommes grenaille"]
["Fromages","Roquefort",null,"Camembert",null,"Roquefort",null,"Camembert",null,"Roquefort",null,"Camembert",null,"Roquefort"]
[null,"Emmental",null,"Petit moulé",null,"Emmental",1,"Petit moulé",null,"Emmental",null,"Petit moulé",null,"Emmental"]
[null,"Yaourt nature",null,"Yaourt aux fruits",null,"Yaourt nature",null,"Yaourt aux fruits",null,"Yaourt nature",null,"Yaourt aux fruits",null,"Yaourt nature"]
[null,"Faisselle",null,"Chocolat liégeois",null,"Faisselle",null,"Café liégeois",null,"Faisselle",null,"Chocolat liégeois",null,"Faisselle"]
[null,"Riz au lait",null,"Semoule au lait",null,"Riz au lait",null,"Semoule au lait",null,"Riz au lait",null,"Semoule au lait",null,"Riz au lait"]
["Desserts","Pomme",null,"Clémentine",null,"Pêche",null,"Poire",null,"Salade de fruits",null,"Banane"]
[null,"Tatin de pommes",null,"Flan caramel",null,"Mousse de fruits",null,"Panna Cota",null,"île flottante",1,"Far Breton",null,"Choux craquelés"]
[null,"Flan pâtissier",null,"Tropézienne",null,"Kouign Amann",null,"Tarte aux pommes",null,"Crème praliné",null,"Tarte caramel",null,"Paris-Brest"]
[null,"Entremet fruit du jour",null,"Entremet fruit du jour",null,"Entremet fruit du jour",null,"Entremet fruit du jour",1,"Entremet fruit du jour",null,"Entremet fruit du jour"]
[null,"Compote aux fruits",null,"Compote de fruits",1,"Compote aux fruits",null,"Compote aux fruits",null,"Compote de fruits",null,"Compote aux fruits",1]
["Pain","Pain",null,"Pain",null,"Pain",null,"Pain",null,"Pain",null,"Pain",null,"Pain"]
["Beurre","Beurre",null,"Beurre",null,"Beurre",null,"Beurre",null,"Beurre",null,"Beurre",null,"Beurre"]
[]
[]
["Total","plats",{"$f":"SUM(C3:C27)","v":0},null,{"$f":"SUM(E3:E27)","v":4},null,{"$f":"SUM(G3:G27)","v":4},null,{"$f":"SUM(I3:I27)","v":4},null,{"$f":"SUM(K3:K27)","v":4},null,{"$f":"SUM(M3:M27)","v":4},null,{"$f":"SUM(O3:O27)","v":0}]
[null,"Beurre",{"$f":"C29","v":0},null,{"$f":"E29","v":0},null,{"$f":"G29","v":0},null,{"$f":"I29","v":0},null,{"$f":"K29","v":0},null,{"$f":"M29","v":0},null,{"$f":"O29","v":0}]

{"sheet":"FOUYET","index":29,"n_rows":33,"n_cols":15,"rows_kept":33,"cut":false,"hidden":false,"merged":[[1,13,1,14],[1,1,1,2],[1,3,1,4],[1,5,1,6],[1,7,1,8],[1,9,1,10],[1,11,1,12]]}
[]
[null,"Lun 09/10/2017",null,"Mar 10/10/2017",null,"Mer 11/10/2017",null,"Jeu 12/10/2017",null,"Ven 13/10/2017",null,"Sam 14/10/2017",null,"Dim 15/10/2017"]
["Entrées","Sardines à l'huile",null,"Coleslaw",null,"Champignons Grecs",null,"Betteraves",null,"Crêpe champignons",null,"Taboulé"]
[null,"Terrine de légumes",1,"Œuf mayonnaise",null,"Pizza pain",null,"Panier jambon fromage",null,"Crumble saumon",null,"Quiche lorraine",null,"Saumon fumé"]
[null,"Piémontaise",null,"Pdt au thon",null,"Salade surimi",1,"Rillettes poisson",null,"Cocktail de crevettes",1,"Salade paysanne"]
[null,"Charcuterie du jour",null,"Charcuterie du jour",null,"Charcuterie du jour",null,"Charcuterie du jour",null,"Charcuterie du jour",null,"Charcuterie du jour",null,"Salade tomates maïs"]
[null,"Potage du jour",null,"Potage du jour",null,"Potage du jour",null,"Potage du jour",null,"Potage du jour",null,"Potage du jour",null,"Potage du jour"]
["Plats",null,null,"Meunière de colin",null,"Poisson a la bordelaise",null,"Colin à la Parisienne",null,"Brandade de morue",null,"Filet flétan meunière"]
[null,"Suprême de poulet",null,"Brochette de bœuf",null,"Blanquette de veau",1,"Poulet Basquaise",null,"Brochette de volaille",1,"Rôti de porc",null,"Saumon beurre-blanc"]
[null,"Jambon grillé",null,"Jambon blanc",null,"Jambon grillé",null,"Jambon blanc",null,"Jambon grillé",null,"Jambon blanc"]
[null,"Steak à poêler (Cru)",null,"Steak à poêler (cru)",null,"Steak à poêler (Cru)",null,"Steak à poêler (Cru)",null,"Steak à poêler (Cru)",null,"Steak à poêler (Cru)",null,"Jambon persillé"]
[null,"Poisson du jour/citron",1,"Poisson du jour/citron",null,"Poisson du jour/citron",null,"Poisson du jour/citron",null,"Poisson du jour/citron",null,"Poisson du jour/citron"]
["Garnitures","Pâtes au beurre",null,"Riz au beurre",null,"Pâtes au beurre",null,"Riz au beurre",null,"Pâtes au beurre",null,"Riz au beurre"]
[null,"Purée patates douces",null,"Purée pdt",null,"Purée de carottes",null,"Purée de céleri",null,"Purée de brocolis",null,"Purée haricots verts",null,"Riz pilaf"]
[null,"Choux romanesco",null,"Lentilles",null,"Carottes Parisiennes",null,"Salsifis",null,"Ratatouille",null,"Poêlée courgettes"]
[null,"Haricots beurre",1,"Potée de choux",null,"Poêlée forestière",null,"Printanière légumes",null,"Petits pois-carottes",null,"Légumes Léonard",null,"Gratin Dauphinois"]
[null,"Pommes vapeur",null,"Pommes grenaille",null,"Pommes vapeur",null,"Pommes grenaille",null,"Pommes vapeur",null,"Pommes grenaille"]
["Fromages","Roquefort",null,"Camembert",null,"Roquefort",null,"Camembert",null,"Roquefort",null,"Camembert",null,"Roquefort"]
[null,"Emmental",null,"Petit moulé",null,"Emmental",null,"Petit moulé",null,"Emmental",null,"Petit moulé",null,"Emmental"]
[null,"Yaourt nature",null,"Yaourt aux fruits",null,"Yaourt nature",null,"Yaourt aux fruits",null,"Yaourt nature",null,"Yaourt aux fruits",null,"Yaourt nature"]
[null,"Faisselle",null,"Chocolat liégeois",null,"Faisselle",null,"Café liégeois",null,"Faisselle",null,"Chocolat liégeois",null,"Faisselle"]
[null,"Riz au lait",null,"Semoule au lait",null,"Riz au lait",null,"Semoule au lait",null,"Riz au lait",null,"Semoule au lait",null,"Riz au lait"]
["Desserts","Pomme",null,"Clémentine",null,"Pêche",null,"Poire",null,"Salade de fruits",null,"Banane"]
[null,"Tatin de pommes",1,"Flan caramel",null,"Mousse de fruits",1,"Panna Cota",null,"île flottante",1,"Far Breton",null,"Choux craquelés"]
[null,"Flan pâtissier",null,"Tropézienne",null,"Kouign Amann",null,"Tarte aux pommes",null,"Crème praliné",null,"Tarte caramel",null,"Paris-Brest"]
[null,"Entremet fruit du jour",null,"Entremet fruit du jour",null,"Entremet fruit du jour",null,"Entremet fruit du jour",null,"Entremet fruit du jour",null,"Entremet fruit du jour"]
[null,"Compote aux fruits",null,"Compote de fruits",null,"Compote aux fruits",null,"Compote aux fruits",null,"Compote de fruits",null,"Compote aux fruits"]
["Pain","Pain",null,"Pain",null,"Pain",null,"Pain",null,"Pain",null,"Pain",null,"Pain"]
["Beurre","Beurre",null,"Beurre",null,"Beurre",null,"Beurre",null,"Beurre",null,"Beurre",null,"Beurre"]
[]
[]
["Total","plats",{"$f":"SUM(C3:C27)","v":4},null,{"$f":"SUM(E3:E27)","v":0},null,{"$f":"SUM(G3:G27)","v":3},null,{"$f":"SUM(I3:I27)","v":0},null,{"$f":"SUM(K3:K27)","v":3},null,{"$f":"SUM(M3:M27)","v":0},null,{"$f":"SUM(O3:O27)","v":0}]
[null,"Beurre",{"$f":"C29","v":0},null,{"$f":"E29","v":0},null,{"$f":"G29","v":0},null,{"$f":"I29","v":0},null,{"$f":"K29","v":0},null,{"$f":"M29","v":0},null,{"$f":"O29","v":0}]

{"sheet":"GOAS","index":30,"n_rows":33,"n_cols":15,"rows_kept":33,"cut":false,"hidden":false,"merged":[[1,13,1,14],[1,1,1,2],[1,3,1,4],[1,5,1,6],[1,7,1,8],[1,9,1,10],[1,11,1,12]]}
[]
[null,"Lun 09/10/2017",null,"Mar 10/10/2017",null,"Mer 11/10/2017",null,"Jeu 12/10/2017",null,"Ven 13/10/2017",null,"Sam 14/10/2017",null,"Dim 15/10/2017"]
["Entrées","Sardines à l'huile",null,"Coleslaw",null,"Champignons Grecs",null,"Betteraves",null,"Crêpe champignons",null,"Taboulé"]
[null,"Terrine de légumes",null,"Œuf mayonnaise",null,"Pizza pain",null,"Panier jambon fromage",null,"Crumble saumon",null,"Quiche lorraine",null,"Saumon fumé"]
[null,"Piémontaise",null,"Pdt au thon",null,"Salade surimi",null,"Rillettes poisson",null,"Cocktail de crevettes",null,"Salade paysanne"]
[null,"Charcuterie du jour",null,"Charcuterie du jour",null,"Charcuterie du jour",null,"Charcuterie du jour",null,"Charcuterie du jour",null,"Charcuterie du jour",null,"Salade tomates maïs"]
[null,"Potage du jour",null,"Potage du jour",null,"Potage du jour",null,"Potage du jour",null,"Potage du jour",null,"Potage du jour",null,"Potage du jour"]
["Plats",null,null,"Meunière de colin",null,"Poisson a la bordelaise",null,"Colin à la Parisienne",null,"Brandade de morue",null,"Filet flétan meunière"]
[null,"Suprême de poulet",null,"Brochette de bœuf",null,"Blanquette de veau",null,"Poulet Basquaise",null,"Brochette de volaille",null,"Rôti de porc",null,"Saumon beurre-blanc"]
[null,"Jambon grillé",null,"Jambon blanc",null,"Jambon grillé",null,"Jambon blanc",null,"Jambon grillé",null,"Jambon blanc"]
[null,"Steak à poêler (Cru)",null,"Steak à poêler (cru)",null,"Steak à poêler (Cru)",null,"Steak à poêler (Cru)",null,"Steak à poêler (Cru)",null,"Steak à poêler (Cru)",null,"Jambon persillé"]
[null,"Poisson du jour/citron",null,"Poisson du jour/citron",null,"Poisson du jour/citron",null,"Poisson du jour/citron",null,"Poisson du jour/citron",null,"Poisson du jour/citron"]
["Garnitures","Pâtes au beurre",null,"Riz au beurre",null,"Pâtes au beurre",null,"Riz au beurre",null,"Pâtes au beurre",null,"Riz au beurre"]
[null,"Purée patates douces",null,"Purée pdt",null,"Purée de carottes",null,"Purée de céleri",null,"Purée de brocolis",null,"Purée haricots verts",null,"Riz pilaf"]
[null,"Choux romanesco",null,"Lentilles",null,"Carottes Parisiennes",null,"Salsifis",null,"Ratatouille",null,"Poêlée courgettes"]
[null,"Haricots beurre",null,"Potée de choux",null,"Poêlée forestière",null,"Printanière légumes",null,"Petits pois-carottes",null,"Légumes Léonard",null,"Gratin Dauphinois"]
[null,"Pommes vapeur",null,"Pommes grenaille",null,"Pommes vapeur",null,"Pommes grenaille",null,"Pommes vapeur",null,"Pommes grenaille"]
["Fromages","Roquefort",null,"Camembert",null,"Roquefort",null,"Camembert",null,"Roquefort",null,"Camembert",null,"Roquefort"]
[null,"Emmental",null,"Petit moulé",null,"Emmental",null,"Petit moulé",null,"Emmental",null,"Petit moulé",null,"Emmental"]
[null,"Yaourt nature",null,"Yaourt aux fruits",null,"Yaourt nature",null,"Yaourt aux fruits",null,"Yaourt nature",null,"Yaourt aux fruits",null,"Yaourt nature"]
[null,"Faisselle",null,"Chocolat liégeois",null,"Faisselle",null,"Café liégeois",null,"Faisselle",null,"Chocolat liégeois",null,"Faisselle"]
[null,"Riz au lait",null,"Semoule au lait",null,"Riz au lait",null,"Semoule au lait",null,"Riz au lait",null,"Semoule au lait",null,"Riz au lait"]
["Desserts","Pomme",null,"Clémentine",null,"Pêche",null,"Poire",null,"Salade de fruits",null,"Banane"]
[null,"Tatin de pommes",null,"Flan caramel",null,"Mousse de fruits",null,"Panna Cota",null,"île flottante",null,"Far Breton",null,"Choux craquelés"]
[null,"Flan pâtissier",null,"Tropézienne",null,"Kouign Amann",null,"Tarte aux pommes",null,"Crème praliné",null,"Tarte caramel",null,"Paris-Brest"]
[null,"Entremet fruit du jour",null,"Entremet fruit du jour",null,"Entremet fruit du jour",null,"Entremet fruit du jour",null,"Entremet fruit du jour",null,"Entremet fruit du jour"]
[null,"Compote aux fruits",null,"Compote de fruits",null,"Compote aux fruits",null,"Compote aux fruits",null,"Compote de fruits",null,"Compote aux fruits"]
["Pain","Pain",null,"Pain",null,"Pain",null,"Pain",null,"Pain",null,"Pain",null,"Pain"]
["Beurre","Beurre",null,"Beurre",null,"Beurre",null,"Beurre",null,"Beurre",null,"Beurre",null,"Beurre"]
[]
[]
["Total","plats",{"$f":"SUM(C3:C27)","v":0},null,{"$f":"SUM(E3:E27)","v":0},null,{"$f":"SUM(G3:G27)","v":0},null,{"$f":"SUM(I3:I27)","v":0},null,{"$f":"SUM(K3:K27)","v":0},null,{"$f":"SUM(M3:M27)","v":0},null,{"$f":"SUM(O3:O27)","v":0}]
[null,"Beurre",{"$f":"C29","v":0},null,{"$f":"E29","v":0},null,{"$f":"G29","v":0},null,{"$f":"I29","v":0},null,{"$f":"K29","v":0},null,{"$f":"M29","v":0},null,{"$f":"O29","v":0}]

{"sheet":"AL_GOURVENNEC","index":31,"n_rows":33,"n_cols":15,"rows_kept":33,"cut":false,"hidden":false,"merged":[[1,13,1,14],[1,1,1,2],[1,3,1,4],[1,5,1,6],[1,7,1,8],[1,9,1,10],[1,11,1,12]]}
[]
[null,"Lun 09/10/2017",null,"Mar 10/10/2017",null,"Mer 11/10/2017",null,"Jeu 12/10/2017",null,"Ven 13/10/2017",null,"Sam 14/10/2017",null,"Dim 15/10/2017"]
["Entrées","Sardines à l'huile",1,"Coleslaw",null,"Champignons Grecs",1,"Betteraves",null,"Crêpe champignons",1,"Taboulé"]
[null,"Terrine de légumes",null,"Œuf mayonnaise",1,"Pizza pain",null,"Panier jambon fromage",null,"Crumble saumon",null,"Quiche lorraine",null,"Saumon fumé",1]
[null,"Piémontaise",null,"Pdt au thon",null,"Salade surimi",null,"Rillettes poisson",1,"Cocktail de crevettes",null,"Salade paysanne"]
[null,"Charcuterie du jour",null,"Charcuterie du jour",null,"Charcuterie du jour",null,"Charcuterie du jour",null,"Charcuterie du jour",null,"Charcuterie du jour",1,"Salade tomates maïs"]
[null,"Potage du jour",1,"Potage du jour",1,"Potage du jour",1,"Potage du jour",1,"Potage du jour",1,"Potage du jour",1,"Potage du jour",1]
["Plats",null,null,"Meunière de colin",null,"Poisson a la bordelaise",null,"Colin à la Parisienne",1,"Brandade de morue",1,"Filet flétan meunière"]
[null,"Suprême de poulet",null,"Brochette de bœuf",null,"Blanquette de veau",null,"Poulet Basquaise",null,"Brochette de volaille",null,"Rôti de porc",null,"Saumon beurre-blanc"]
[null,"Jambon grillé",null,"Jambon blanc",null,"Jambon grillé",null,"Jambon blanc",null,"Jambon grillé",null,"Jambon blanc"]
[null,"Steak à poêler (Cru)",null,"Steak à poêler (cru)",1,"Steak à poêler (Cru)",null,"Steak à poêler (Cru)",null,"Steak à poêler (Cru)",null,"Steak à poêler (Cru)",1,"Jambon persillé",1]
[null,"Poisson du jour/citron",1,"Poisson du jour/citron",null,"Poisson du jour/citron",1,"Poisson du jour/citron",null,"Poisson du jour/citron",null,"Poisson du jour/citron"]
["Garnitures","Pâtes au beurre",null,"Riz au beurre",null,"Pâtes au beurre",null,"Riz au beurre",1,"Pâtes au beurre",null,"Riz au beurre"]
[null,"Purée patates douces",null,"Purée pdt",null,"Purée de carottes",null,"Purée de céleri",null,"Purée de brocolis",null,"Purée haricots verts",null,"Riz pilaf"]
[null,"Choux romanesco",null,"Lentilles",null,"Carottes Parisiennes",null,"Salsifis",null,"Ratatouille",null,"Poêlée courgettes",1]
[null,"Haricots beurre",null,"Potée de choux",1,"Poêlée forestière",null,"Printanière légumes",null,"Petits pois-carottes",null,"Légumes Léonard",null,"Gratin Dauphinois",1]
[null,"Pommes vapeur",1,"Pommes grenaille",null,"Pommes vapeur",1,"Pommes grenaille",null,"Pommes vapeur",1,"Pommes grenaille"]
["Fromages","Roquefort",null,"Camembert",null,"Roquefort",null,"Camembert",null,"Roquefort",null,"Camembert",null,"Roquefort"]
[null,"Emmental",null,"Petit moulé",null,"Emmental",null,"Petit moulé",null,"Emmental",null,"Petit moulé",null,"Emmental"]
[null,"Yaourt nature",null,"Yaourt aux fruits",null,"Yaourt nature",null,"Yaourt aux fruits",null,"Yaourt nature",null,"Yaourt aux fruits",null,"Yaourt nature"]
[null,"Faisselle",null,"Chocolat liégeois",null,"Faisselle",null,"Café liégeois",null,"Faisselle",null,"Chocolat liégeois",null,"Faisselle"]
[null,"Riz au lait",null,"Semoule au lait",null,"Riz au lait",null,"Semoule au lait",null,"Riz au lait",null,"Semoule au lait",null,"Riz au lait"]
["Desserts","Pomme",null,"Clémentine",null,"Pêche",null,"Poire",null,"Salade de fruits",null,"Banane"]
[null,"Tatin de pommes",null,"Flan caramel",null,"Mousse de fruits",null,"Panna Cota",null,"île flottante",null,"Far Breton",null,"Choux craquelés"]
[null,"Flan pâtissier",null,"Tropézienne",null,"Kouign Amann",null,"Tarte aux pommes",null,"Crème praliné",null,"Tarte caramel",null,"Paris-Brest"]
[null,"Entremet fruit du jour",null,"Entremet fruit du jour",null,"Entremet fruit du jour",null,"Entremet fruit du jour",null,"Entremet fruit du jour",null,"Entremet fruit du jour"]
[null,"Compote aux fruits",null,"Compote de fruits",null,"Compote aux fruits",null,"Compote aux fruits",null,"Compote de fruits",null,"Compote aux fruits"]
["Pain","Pain",null,"Pain",null,"Pain",null,"Pain",null,"Pain",null,"Pain",null,"Pain"]
["Beurre","Beurre",null,"Beurre",null,"Beurre",null,"Beurre",null,"Beurre",null,"Beurre",null,"Beurre"]
[]
[]
["Total","plats",{"$f":"SUM(C3:C27)","v":4},null,{"$f":"SUM(E3:E27)","v":4},null,{"$f":"SUM(G3:G27)","v":4},null,{"$f":"SUM(I3:I27)","v":4},null,{"$f":"SUM(K3:K27)","v":4},null,{"$f":"SUM(M3:M27)","v":4},null,{"$f":"SUM(O3:O27)","v":4}]
[null,"Beurre",{"$f":"C29","v":0},null,{"$f":"E29","v":0},null,{"$f":"G29","v":0},null,{"$f":"I29","v":0},null,{"$f":"K29","v":0},null,{"$f":"M29","v":0},null,{"$f":"O29","v":0}]

{"sheet":"RESTIC_GOURVENNEC","index":32,"n_rows":33,"n_cols":15,"rows_kept":33,"cut":false,"hidden":false,"merged":[[1,13,1,14],[1,1,1,2],[1,3,1,4],[1,5,1,6],[1,7,1,8],[1,9,1,10],[1,11,1,12]]}
[]
[null,"Lun 09/10/2017",null,"Mar 10/10/2017",null,"Mer 11/10/2017",null,"Jeu 12/10/2017",null,"Ven 13/10/2017",null,"Sam 14/10/2017",null,"Dim 15/10/2017"]
["Entrées","Sardines à l'huile",null,"Coleslaw",null,"Champignons Grecs",null,"Betteraves",null,"Crêpe champignons",null,"Taboulé"]
[null,"Terrine de légumes",null,"Œuf mayonnaise",null,"Pizza pain",null,"Panier jambon fromage",null,"Crumble saumon",null,"Quiche lorraine",null,"Saumon fumé"]
[null,"Piémontaise",null,"Pdt au thon",null,"Salade surimi",null,"Rillettes poisson",null,"Cocktail de crevettes",null,"Salade paysanne"]
[null,"Charcuterie du jour",null,"Charcuterie du jour",null,"Charcuterie du jour",null,"Charcuterie du jour",null,"Charcuterie du jour",null,"Charcuterie du jour",null,"Salade tomates maïs"]
[null,"Potage du jour",null,"Potage du jour",null,"Potage du jour",null,"Potage du jour",null,"Potage du jour",null,"Potage du jour",null,"Potage du jour"]
["Plats",null,null,"Meunière de colin",null,"Poisson a la bordelaise",null,"Colin à la Parisienne",null,"Brandade de morue",null,"Filet flétan meunière"]
[null,"Suprême de poulet",null,"Brochette de bœuf",null,"Blanquette de veau",2,"Poulet Basquaise",null,"Brochette de volaille",null,"Rôti de porc",2,"Saumon beurre-blanc"]
[null,"Jambon grillé",null,"Jambon blanc",null,"Jambon grillé",null,"Jambon blanc",null,"Jambon grillé",null,"Jambon blanc"]
[null,"Steak à poêler (Cru)",null,"Steak à poêler (cru)",null,"Steak à poêler (Cru)",null,"Steak à poêler (Cru)",null,"Steak à poêler (Cru)",null,"Steak à poêler (Cru)",null,"Jambon persillé"]
[null,"Poisson du jour/citron",null,"Poisson du jour/citron",null,"Poisson du jour/citron",null,"Poisson du jour/citron",null,"Poisson du jour/citron",null,"Poisson du jour/citron"]
["Garnitures","Pâtes au beurre",null,"Riz au beurre",null,"Pâtes au beurre",1,"Riz au beurre",null,"Pâtes au beurre",null,"Riz au beurre"]
[null,"Purée patates douces",null,"Purée pdt",null,"Purée de carottes",null,"Purée de céleri",null,"Purée de brocolis",null,"Purée haricots verts",null,"Riz pilaf"]
[null,"Choux romanesco",null,"Lentilles",null,"Carottes Parisiennes",null,"Salsifis",null,"Ratatouille",null,"Poêlée courgettes",2]
[null,"Haricots beurre",null,"Potée de choux",null,"Poêlée forestière",1,"Printanière légumes",null,"Petits pois-carottes",null,"Légumes Léonard",null,"Gratin Dauphinois"]
[null,"Pommes vapeur",null,"Pommes grenaille",null,"Pommes vapeur",null,"Pommes grenaille",null,"Pommes vapeur",null,"Pommes grenaille"]
["Fromages","Roquefort",null,"Camembert",null,"Roquefort",null,"Camembert",null,"Roquefort",null,"Camembert",null,"Roquefort"]
[null,"Emmental",null,"Petit moulé",null,"Emmental",null,"Petit moulé",null,"Emmental",null,"Petit moulé",null,"Emmental"]
[null,"Yaourt nature",null,"Yaourt aux fruits",null,"Yaourt nature",null,"Yaourt aux fruits",null,"Yaourt nature",null,"Yaourt aux fruits",null,"Yaourt nature"]
[null,"Faisselle",null,"Chocolat liégeois",null,"Faisselle",null,"Café liégeois",null,"Faisselle",null,"Chocolat liégeois",null,"Faisselle"]
[null,"Riz au lait",null,"Semoule au lait",null,"Riz au lait",null,"Semoule au lait",null,"Riz au lait",null,"Semoule au lait",null,"Riz au lait"]
["Desserts","Pomme",null,"Clémentine",null,"Pêche",null,"Poire",null,"Salade de fruits",null,"Banane"]
[null,"Tatin de pommes",null,"Flan caramel",null,"Mousse de fruits",null,"Panna Cota",null,"île flottante",null,"Far Breton",null,"Choux craquelés"]
[null,"Flan pâtissier",null,"Tropézienne",null,"Kouign Amann",null,"Tarte aux pommes",null,"Crème praliné",null,"Tarte caramel",null,"Paris-Brest"]
[null,"Entremet fruit du jour",null,"Entremet fruit du jour",null,"Entremet fruit du jour",null,"Entremet fruit du jour",null,"Entremet fruit du jour",null,"Entremet fruit du jour"]
[null,"Compote aux fruits",null,"Compote de fruits",null,"Compote aux fruits",null,"Compote aux fruits",null,"Compote de fruits",null,"Compote aux fruits"]
["Pain","Pain",null,"Pain",null,"Pain",null,"Pain",null,"Pain",null,"Pain",null,"Pain"]
["Beurre","Beurre",null,"Beurre",null,"Beurre",null,"Beurre",null,"Beurre",null,"Beurre",null,"Beurre"]
[]
[]
["Total","plats",{"$f":"SUM(C3:C27)","v":0},null,{"$f":"SUM(E3:E27)","v":0},null,{"$f":"SUM(G3:G27)","v":4},null,{"$f":"SUM(I3:I27)","v":0},null,{"$f":"SUM(K3:K27)","v":0},null,{"$f":"SUM(M3:M27)","v":4},null,{"$f":"SUM(O3:O27)","v":0}]
[null,"Beurre",{"$f":"C29","v":0},null,{"$f":"E29","v":0},null,{"$f":"G29","v":0},null,{"$f":"I29","v":0},null,{"$f":"K29","v":0},null,{"$f":"M29","v":0},null,{"$f":"O29","v":0}]

{"sheet":"HELOU","index":33,"n_rows":33,"n_cols":15,"rows_kept":33,"cut":false,"hidden":false,"merged":[[1,13,1,14],[1,1,1,2],[1,3,1,4],[1,5,1,6],[1,7,1,8],[1,9,1,10],[1,11,1,12]]}
[]
[null,"Lun 09/10/2017",null,"Mar 10/10/2017",null,"Mer 11/10/2017",null,"Jeu 12/10/2017",null,"Ven 13/10/2017",null,"Sam 14/10/2017",null,"Dim 15/10/2017"]
["Entrées","Sardines à l'huile",null,"Coleslaw",null,"Champignons Grecs",null,"Betteraves",null,"Crêpe champignons",null,"Taboulé"]
[null,"Terrine de légumes",null,"Œuf mayonnaise",null,"Pizza pain",null,"Panier jambon fromage",null,"Crumble saumon",1,"Quiche lorraine",null,"Saumon fumé"]
[null,"Piémontaise",1,"Pdt au thon",null,"Salade surimi",1,"Rillettes poisson",null,"Cocktail de crevettes",null,"Salade paysanne"]
[null,"Charcuterie du jour",null,"Charcuterie du jour",null,"Charcuterie du jour",null,"Charcuterie du jour",null,"Charcuterie du jour",null,"Charcuterie du jour",null,"Salade tomates maïs"]
[null,"Potage du jour",1,"Potage du jour",null,"Potage du jour",1,"Potage du jour",null,"Potage du jour",1,"Potage du jour",null,"Potage du jour"]
["Plats",null,null,"Meunière de colin",null,"Poisson a la bordelaise",null,"Colin à la Parisienne",null,"Brandade de morue",null,"Filet flétan meunière"]
[null,"Suprême de poulet",1,"Brochette de bœuf",null,"Blanquette de veau",1,"Poulet Basquaise",null,"Brochette de volaille",1,"Rôti de porc",null,"Saumon beurre-blanc"]
[null,"Jambon grillé",null,"Jambon blanc",null,"Jambon grillé",null,"Jambon blanc",null,"Jambon grillé",null,"Jambon blanc"]
[null,"Steak à poêler (Cru)",null,"Steak à poêler (cru)",null,"Steak à poêler (Cru)",null,"Steak à poêler (Cru)",null,"Steak à poêler (Cru)",null,"Steak à poêler (Cru)",null,"Jambon persillé"]
[null,"Poisson du jour/citron",null,"Poisson du jour/citron",null,"Poisson du jour/citron",null,"Poisson du jour/citron",null,"Poisson du jour/citron",null,"Poisson du jour/citron"]
["Garnitures","Pâtes au beurre",1,"Riz au beurre",null,"Pâtes au beurre",null,"Riz au beurre",null,"Pâtes au beurre",null,"Riz au beurre"]
[null,"Purée patates douces",null,"Purée pdt",null,"Purée de carottes",1,"Purée de céleri",null,"Purée de brocolis",null,"Purée haricots verts",null,"Riz pilaf"]
[null,"Choux romanesco",null,"Lentilles",null,"Carottes Parisiennes",null,"Salsifis",null,"Ratatouille",null,"Poêlée courgettes"]
[null,"Haricots beurre",null,"Potée de choux",null,"Poêlée forestière",null,"Printanière légumes",null,"Petits pois-carottes",null,"Légumes Léonard",null,"Gratin Dauphinois"]
[null,"Pommes vapeur",null,"Pommes grenaille",null,"Pommes vapeur",null,"Pommes grenaille",null,"Pommes vapeur",1,"Pommes grenaille"]
["Fromages","Roquefort",null,"Camembert",null,"Roquefort",null,"Camembert",null,"Roquefort",null,"Camembert",null,"Roquefort"]
[null,"Emmental",null,"Petit moulé",null,"Emmental",null,"Petit moulé",null,"Emmental",null,"Petit moulé",null,"Emmental"]
[null,"Yaourt nature",null,"Yaourt aux fruits",null,"Yaourt nature",null,"Yaourt aux fruits",null,"Yaourt nature",null,"Yaourt aux fruits",null,"Yaourt nature"]
[null,"Faisselle",null,"Chocolat liégeois",null,"Faisselle",null,"Café liégeois",null,"Faisselle",null,"Chocolat liégeois",null,"Faisselle"]
[null,"Riz au lait",null,"Semoule au lait",null,"Riz au lait",null,"Semoule au lait",null,"Riz au lait",null,"Semoule au lait",null,"Riz au lait"]
["Desserts","Pomme",null,"Clémentine",null,"Pêche",null,"Poire",null,"Salade de fruits",null,"Banane"]
[null,"Tatin de pommes",1,"Flan caramel",null,"Mousse de fruits",null,"Panna Cota",null,"île flottante",null,"Far Breton",null,"Choux craquelés"]
[null,"Flan pâtissier",null,"Tropézienne",null,"Kouign Amann",null,"Tarte aux pommes",null,"Crème praliné",null,"Tarte caramel",null,"Paris-Brest"]
[null,"Entremet fruit du jour",null,"Entremet fruit du jour",null,"Entremet fruit du jour",null,"Entremet fruit du jour",null,"Entremet fruit du jour",null,"Entremet fruit du jour"]
[null,"Compote aux fruits",null,"Compote de fruits",null,"Compote aux fruits",null,"Compote aux fruits",null,"Compote de fruits",null,"Compote aux fruits"]
["Pain","Pain",null,"Pain",null,"Pain",null,"Pain",null,"Pain",null,"Pain",null,"Pain"]
["Beurre","Beurre",null,"Beurre",null,"Beurre",null,"Beurre",null,"Beurre",null,"Beurre",null,"Beurre"]
[]
[]
["Total","plats",{"$f":"SUM(C3:C27)","v":5},null,{"$f":"SUM(E3:E27)","v":0},null,{"$f":"SUM(G3:G27)","v":4},null,{"$f":"SUM(I3:I27)","v":0},null,{"$f":"SUM(K3:K27)","v":4},null,{"$f":"SUM(M3:M27)","v":0},null,{"$f":"SUM(O3:O27)","v":0}]
[null,"Beurre",{"$f":"C29","v":0},null,{"$f":"E29","v":0},null,{"$f":"G29","v":0},null,{"$f":"I29","v":0},null,{"$f":"K29","v":0},null,{"$f":"M29","v":0},null,{"$f":"O29","v":0}]

{"sheet":"HERRY_S T1","index":34,"n_rows":33,"n_cols":15,"rows_kept":33,"cut":false,"hidden":false,"merged":[[1,13,1,14],[1,1,1,2],[1,3,1,4],[1,5,1,6],[1,7,1,8],[1,9,1,10],[1,11,1,12]]}
[]
[null,"Lun 09/10/2017",null,"Mar 10/10/2017",null,"Mer 11/10/2017",null,"Jeu 12/10/2017",null,"Ven 13/10/2017",null,"Sam 14/10/2017",null,"Dim 15/10/2017"]
["Entrées","Sardines à l'huile",null,"Coleslaw",null,"Champignons Grecs",1,"Betteraves",null,"Crêpe champignons",null,"Taboulé"]
[null,"Terrine de légumes",null,"Œuf mayonnaise",1,"Pizza pain",null,"Panier jambon fromage",null,"Crumble saumon",null,"Quiche lorraine",null,"Saumon fumé"]
[null,"Piémontaise",null,"Pdt au thon",null,"Salade surimi",null,"Rillettes poisson",null,"Cocktail de crevettes",null,"Salade paysanne"]
[null,"Charcuterie du jour",null,"Charcuterie du jour",null,"Charcuterie du jour",null,"Charcuterie du jour",1,"Charcuterie du jour",1,"Charcuterie du jour",null,"Salade tomates maïs"]
[null,"Potage du jour",null,"Potage du jour",null,"Potage du jour",1,"Potage du jour",null,"Potage du jour",null,"Potage du jour",null,"Potage du jour"]
["Plats",null,null,"Meunière de colin",1,"Poisson a la bordelaise",null,"Colin à la Parisienne",null,"Brandade de morue",1,"Filet flétan meunière"]
[null,"Suprême de poulet",null,"Brochette de bœuf",null,"Blanquette de veau",null,"Poulet Basquaise",1,"Brochette de volaille",null,"Rôti de porc",null,"Saumon beurre-blanc"]
[null,"Jambon grillé",null,"Jambon blanc",null,"Jambon grillé",1,"Jambon blanc",null,"Jambon grillé",null,"Jambon blanc"]
[null,"Steak à poêler (Cru)",null,"Steak à poêler (cru)",null,"Steak à poêler (Cru)",null,"Steak à poêler (Cru)",null,"Steak à poêler (Cru)",null,"Steak à poêler (Cru)",null,"Jambon persillé"]
[null,"Poisson du jour/citron",null,"Poisson du jour/citron",null,"Poisson du jour/citron",null,"Poisson du jour/citron",null,"Poisson du jour/citron",null,"Poisson du jour/citron"]
["Garnitures","Pâtes au beurre",null,"Riz au beurre",null,"Pâtes au beurre",null,"Riz au beurre",null,"Pâtes au beurre",null,"Riz au beurre"]
[null,"Purée patates douces",null,"Purée pdt",null,"Purée de carottes",null,"Purée de céleri",null,"Purée de brocolis",null,"Purée haricots verts",null,"Riz pilaf"]
[null,"Choux romanesco",null,"Lentilles",null,"Carottes Parisiennes",null,"Salsifis",null,"Ratatouille",null,"Poêlée courgettes"]
[null,"Haricots beurre",null,"Potée de choux",1,"Poêlée forestière",null,"Printanière légumes",null,"Petits pois-carottes",null,"Légumes Léonard",null,"Gratin Dauphinois"]
[null,"Pommes vapeur",null,"Pommes grenaille",1,"Pommes vapeur",1,"Pommes grenaille",1,"Pommes vapeur",1,"Pommes grenaille"]
["Fromages","Roquefort",null,"Camembert",null,"Roquefort",null,"Camembert",null,"Roquefort",null,"Camembert",null,"Roquefort"]
[null,"Emmental",null,"Petit moulé",null,"Emmental",null,"Petit moulé",null,"Emmental",null,"Petit moulé",null,"Emmental"]
[null,"Yaourt nature",null,"Yaourt aux fruits",null,"Yaourt nature",null,"Yaourt aux fruits",null,"Yaourt nature",null,"Yaourt aux fruits",null,"Yaourt nature"]
[null,"Faisselle",null,"Chocolat liégeois",null,"Faisselle",null,"Café liégeois",1,"Faisselle",null,"Chocolat liégeois",null,"Faisselle"]
[null,"Riz au lait",null,"Semoule au lait",null,"Riz au lait",null,"Semoule au lait",null,"Riz au lait",null,"Semoule au lait",null,"Riz au lait"]
["Desserts","Pomme",null,"Clémentine",null,"Pêche",null,"Poire",null,"Salade de fruits",null,"Banane"]
[null,"Tatin de pommes",null,"Flan caramel",null,"Mousse de fruits",null,"Panna Cota",null,"île flottante",1,"Far Breton",null,"Choux craquelés"]
[null,"Flan pâtissier",null,"Tropézienne",1,"Kouign Amann",null,"Tarte aux pommes",null,"Crème praliné",null,"Tarte caramel",null,"Paris-Brest"]
[null,"Entremet fruit du jour",null,"Entremet fruit du jour",null,"Entremet fruit du jour",null,"Entremet fruit du jour",1,"Entremet fruit du jour",null,"Entremet fruit du jour"]
[null,"Compote aux fruits",null,"Compote de fruits",null,"Compote aux fruits",1,"Compote aux fruits",null,"Compote de fruits",null,"Compote aux fruits"]
["Pain","Pain",null,"Pain",null,"Pain",null,"Pain",null,"Pain",null,"Pain",null,"Pain"]
["Beurre","Beurre",null,"Beurre",null,"Beurre",null,"Beurre",null,"Beurre",null,"Beurre",null,"Beurre"]
[]
[]
["Total","plats",{"$f":"SUM(C3:C27)","v":0},null,{"$f":"SUM(E3:E27)","v":5},null,{"$f":"SUM(G3:G27)","v":5},null,{"$f":"SUM(I3:I27)","v":5},null,{"$f":"SUM(K3:K27)","v":4},null,{"$f":"SUM(M3:M27)","v":0},null,{"$f":"SUM(O3:O27)","v":0}]
[null,"Beurre",{"$f":"C29","v":0},null,{"$f":"E29","v":0},null,{"$f":"G29","v":0},null,{"$f":"I29","v":0},null,{"$f":"K29","v":0},null,{"$f":"M29","v":0},null,{"$f":"O29","v":0}]

{"sheet":"HERRY S T3","index":35,"n_rows":33,"n_cols":15,"rows_kept":33,"cut":false,"hidden":false,"merged":[[1,13,1,14],[1,1,1,2],[1,3,1,4],[1,5,1,6],[1,7,1,8],[1,9,1,10],[1,11,1,12]]}
[]
[null,"Lun 09/10/2017",null,"Mar 10/10/2017",null,"Mer 11/10/2017",null,"Jeu 12/10/2017",null,"Ven 13/10/2017",null,"Sam 14/10/2017",null,"Dim 15/10/2017"]
["Entrées","Sardines à l'huile",null,"Coleslaw",null,"Champignons Grecs",null,"Betteraves",null,"Crêpe champignons",null,"Taboulé"]
[null,"Terrine de légumes",null,"Œuf mayonnaise",1,"Pizza pain",null,"Panier jambon fromage",null,"Crumble saumon",null,"Quiche lorraine",null,"Saumon fumé"]
[null,"Piémontaise",null,"Pdt au thon",null,"Salade surimi",null,"Rillettes poisson",null,"Cocktail de crevettes",null,"Salade paysanne"]
[null,"Charcuterie du jour",null,"Charcuterie du jour",null,"Charcuterie du jour",null,"Charcuterie du jour",1,"Charcuterie du jour",null,"Charcuterie du jour",null,"Salade tomates maïs"]
[null,"Potage du jour",null,"Potage du jour",null,"Potage du jour",null,"Potage du jour",null,"Potage du jour",null,"Potage du jour",null,"Potage du jour"]
["Plats",null,null,"Meunière de colin",null,"Poisson a la bordelaise",null,"Colin à la Parisienne",null,"Brandade de morue",null,"Filet flétan meunière"]
[null,"Suprême de poulet",null,"Brochette de bœuf",null,"Blanquette de veau",null,"Poulet Basquaise",1,"Brochette de volaille",null,"Rôti de porc",null,"Saumon beurre-blanc"]
[null,"Jambon grillé",null,"Jambon blanc",1,"Jambon grillé",null,"Jambon blanc",null,"Jambon grillé",null,"Jambon blanc"]
[null,"Steak à poêler (Cru)",null,"Steak à poêler (cru)",null,"Steak à poêler (Cru)",null,"Steak à poêler (Cru)",null,"Steak à poêler (Cru)",null,"Steak à poêler (Cru)",null,"Jambon persillé"]
[null,"Poisson du jour/citron",null,"Poisson du jour/citron",null,"Poisson du jour/citron",null,"Poisson du jour/citron",null,"Poisson du jour/citron",null,"Poisson du jour/citron"]
["Garnitures","Pâtes au beurre",null,"Riz au beurre",null,"Pâtes au beurre",null,"Riz au beurre",1,"Pâtes au beurre",null,"Riz au beurre"]
[null,"Purée patates douces",null,"Purée pdt",null,"Purée de carottes",null,"Purée de céleri",null,"Purée de brocolis",null,"Purée haricots verts",null,"Riz pilaf"]
[null,"Choux romanesco",null,"Lentilles",null,"Carottes Parisiennes",null,"Salsifis",null,"Ratatouille",null,"Poêlée courgettes"]
[null,"Haricots beurre",null,"Potée de choux",null,"Poêlée forestière",null,"Printanière légumes",null,"Petits pois-carottes",null,"Légumes Léonard",null,"Gratin Dauphinois"]
[null,"Pommes vapeur",null,"Pommes grenaille",1,"Pommes vapeur",null,"Pommes grenaille",null,"Pommes vapeur",null,"Pommes grenaille"]
["Fromages","Roquefort",null,"Camembert",1,"Roquefort",null,"Camembert",null,"Roquefort",null,"Camembert",null,"Roquefort"]
[null,"Emmental",null,"Petit moulé",null,"Emmental",null,"Petit moulé",1,"Emmental",null,"Petit moulé",null,"Emmental"]
[null,"Yaourt nature",null,"Yaourt aux fruits",null,"Yaourt nature",null,"Yaourt aux fruits",null,"Yaourt nature",null,"Yaourt aux fruits",null,"Yaourt nature"]
[null,"Faisselle",null,"Chocolat liégeois",null,"Faisselle",null,"Café liégeois",null,"Faisselle",null,"Chocolat liégeois",null,"Faisselle"]
[null,"Riz au lait",null,"Semoule au lait",null,"Riz au lait",null,"Semoule au lait",null,"Riz au lait",null,"Semoule au lait",null,"Riz au lait"]
["Desserts","Pomme",null,"Clémentine",null,"Pêche",null,"Poire",null,"Salade de fruits",null,"Banane"]
[null,"Tatin de pommes",null,"Flan caramel",1,"Mousse de fruits",null,"Panna Cota",null,"île flottante",null,"Far Breton",null,"Choux craquelés"]
[null,"Flan pâtissier",null,"Tropézienne",null,"Kouign Amann",null,"Tarte aux pommes",null,"Crème praliné",null,"Tarte caramel",null,"Paris-Brest"]
[null,"Entremet fruit du jour",null,"Entremet fruit du jour",null,"Entremet fruit du jour",null,"Entremet fruit du jour",1,"Entremet fruit du jour",null,"Entremet fruit du jour"]
[null,"Compote aux fruits",null,"Compote de fruits",null,"Compote aux fruits",null,"Compote aux fruits",null,"Compote de fruits",null,"Compote aux fruits"]
["Pain","Pain",null,"Pain",null,"Pain",null,"Pain",null,"Pain",null,"Pain",null,"Pain"]
["Beurre","Beurre",null,"Beurre",null,"Beurre",null,"Beurre",null,"Beurre",null,"Beurre",null,"Beurre"]
[]
[]
["Total","plats",{"$f":"SUM(C3:C27)","v":0},null,{"$f":"SUM(E3:E27)","v":5},null,{"$f":"SUM(G3:G27)","v":0},null,{"$f":"SUM(I3:I27)","v":5},null,{"$f":"SUM(K3:K27)","v":0},null,{"$f":"SUM(M3:M27)","v":0},null,{"$f":"SUM(O3:O27)","v":0}]
[null,"Beurre",{"$f":"C29","v":0},null,{"$f":"E29","v":0},null,{"$f":"G29","v":0},null,{"$f":"I29","v":0},null,{"$f":"K29","v":0},null,{"$f":"M29","v":0},null,{"$f":"O29","v":0}]

{"sheet":"HIMILY","index":36,"n_rows":33,"n_cols":15,"rows_kept":33,"cut":false,"hidden":false,"merged":[[1,13,1,14],[1,1,1,2],[1,3,1,4],[1,5,1,6],[1,7,1,8],[1,9,1,10],[1,11,1,12]]}
[]
[null,"Lun 09/10/2017",null,"Mar 10/10/2017",null,"Mer 11/10/2017",null,"Jeu 12/10/2017",null,"Ven 13/10/2017",null,"Sam 14/10/2017",null,"Dim 15/10/2017"]
["Entrées","Sardines à l'huile",null,"Coleslaw",null,"Champignons Grecs",null,"Betteraves",null,"Crêpe champignons",null,"Taboulé"]
[null,"Terrine de légumes",null,"Œuf mayonnaise",null,"Pizza pain",null,"Panier jambon fromage",null,"Crumble saumon",null,"Quiche lorraine",null,"Saumon fumé"]
[null,"Piémontaise",null,"Pdt au thon",null,"Salade surimi",null,"Rillettes poisson",null,"Cocktail de crevettes",null,"Salade paysanne"]
[null,"Charcuterie du jour",null,"Charcuterie du jour",null,"Charcuterie du jour",null,"Charcuterie du jour",null,"Charcuterie du jour",null,"Charcuterie du jour",null,"Salade tomates maïs"]
[null,"Potage du jour",null,"Potage du jour",null,"Potage du jour",null,"Potage du jour",null,"Potage du jour",null,"Potage du jour",null,"Potage du jour"]
["Plats",null,null,"Meunière de colin",null,"Poisson a la bordelaise",null,"Colin à la Parisienne",null,"Brandade de morue",null,"Filet flétan meunière"]
[null,"Suprême de poulet",null,"Brochette de bœuf",null,"Blanquette de veau",null,"Poulet Basquaise",null,"Brochette de volaille",null,"Rôti de porc",null,"Saumon beurre-blanc"]
[null,"Jambon grillé",null,"Jambon blanc",null,"Jambon grillé",null,"Jambon blanc",null,"Jambon grillé",null,"Jambon blanc"]
[null,"Steak à poêler (Cru)",null,"Steak à poêler (cru)",null,"Steak à poêler (Cru)",null,"Steak à poêler (Cru)",null,"Steak à poêler (Cru)",null,"Steak à poêler (Cru)",null,"Jambon persillé"]
[null,"Poisson du jour/citron",null,"Poisson du jour/citron",null,"Poisson du jour/citron",null,"Poisson du jour/citron",null,"Poisson du jour/citron",null,"Poisson du jour/citron"]
["Garnitures","Pâtes au beurre",null,"Riz au beurre",null,"Pâtes au beurre",null,"Riz au beurre",null,"Pâtes au beurre",null,"Riz au beurre"]
[null,"Purée patates douces",null,"Purée pdt",null,"Purée de carottes",null,"Purée de céleri",null,"Purée de brocolis",null,"Purée haricots verts",null,"Riz pilaf"]
[null,"Choux romanesco",null,"Lentilles",null,"Carottes Parisiennes",null,"Salsifis",null,"Ratatouille",null,"Poêlée courgettes"]
[null,"Haricots beurre",null,"Potée de choux",null,"Poêlée forestière",null,"Printanière légumes",null,"Petits pois-carottes",null,"Légumes Léonard",null,"Gratin Dauphinois"]
[null,"Pommes vapeur",null,"Pommes grenaille",null,"Pommes vapeur",null,"Pommes grenaille",null,"Pommes vapeur",null,"Pommes grenaille"]
["Fromages","Roquefort",null,"Camembert",null,"Roquefort",null,"Camembert",null,"Roquefort",null,"Camembert",null,"Roquefort"]
[null,"Emmental",null,"Petit moulé",null,"Emmental",null,"Petit moulé",null,"Emmental",null,"Petit moulé",null,"Emmental"]
[null,"Yaourt nature",null,"Yaourt aux fruits",null,"Yaourt nature",null,"Yaourt aux fruits",null,"Yaourt nature",null,"Yaourt aux fruits",null,"Yaourt nature"]
[null,"Faisselle",null,"Chocolat liégeois",null,"Faisselle",null,"Café liégeois",null,"Faisselle",null,"Chocolat liégeois",null,"Faisselle"]
[null,"Riz au lait",null,"Semoule au lait",null,"Riz au lait",null,"Semoule au lait",null,"Riz au lait",null,"Semoule au lait",null,"Riz au lait"]
["Desserts","Pomme",null,"Clémentine",null,"Pêche",null,"Poire",null,"Salade de fruits",null,"Banane"]
[null,"Tatin de pommes",null,"Flan caramel",null,"Mousse de fruits",null,"Panna Cota",null,"île flottante",null,"Far Breton",null,"Choux craquelés"]
[null,"Flan pâtissier",null,"Tropézienne",null,"Kouign Amann",null,"Tarte aux pommes",null,"Crème praliné",null,"Tarte caramel",null,"Paris-Brest"]
[null,"Entremet fruit du jour",null,"Entremet fruit du jour",null,"Entremet fruit du jour",null,"Entremet fruit du jour",null,"Entremet fruit du jour",null,"Entremet fruit du jour"]
[null,"Compote aux fruits",null,"Compote de fruits",null,"Compote aux fruits",null,"Compote aux fruits",null,"Compote de fruits",null,"Compote aux fruits"]
["Pain","Pain",null,"Pain",null,"Pain",null,"Pain",null,"Pain",null,"Pain",null,"Pain"]
["Beurre","Beurre",null,"Beurre",null,"Beurre",null,"Beurre",null,"Beurre",null,"Beurre",null,"Beurre"]
[]
[]
["Total","plats",{"$f":"SUM(C3:C27)","v":0},null,{"$f":"SUM(E3:E27)","v":0},null,{"$f":"SUM(G3:G27)","v":0},null,{"$f":"SUM(I3:I27)","v":0},null,{"$f":"SUM(K3:K27)","v":0},null,{"$f":"SUM(M3:M27)","v":0},null,{"$f":"SUM(O3:O27)","v":0}]
[null,"Beurre",{"$f":"C29","v":0},null,{"$f":"E29","v":0},null,{"$f":"G29","v":0},null,{"$f":"I29","v":0},null,{"$f":"K29","v":0},null,{"$f":"M29","v":0},null,{"$f":"O29","v":0}]

{"sheet":"HILY","index":37,"n_rows":33,"n_cols":15,"rows_kept":33,"cut":false,"hidden":false,"merged":[[1,13,1,14],[1,1,1,2],[1,3,1,4],[1,5,1,6],[1,7,1,8],[1,9,1,10],[1,11,1,12]]}
[]
[null,"Lun 09/10/2017",null,"Mar 10/10/2017",null,"Mer 11/10/2017",null,"Jeu 12/10/2017",null,"Ven 13/10/2017",null,"Sam 14/10/2017",null,"Dim 15/10/2017"]
["Entrées","Sardines à l'huile",null,"Coleslaw",null,"Champignons Grecs",null,"Betteraves",null,"Crêpe champignons",null,"Taboulé"]
[null,"Terrine de légumes",null,"Œuf mayonnaise",null,"Pizza pain",null,"Panier jambon fromage",null,"Crumble saumon",null,"Quiche lorraine",null,"Saumon fumé"]
[null,"Piémontaise",null,"Pdt au thon",null,"Salade surimi",null,"Rillettes poisson",null,"Cocktail de crevettes",null,"Salade paysanne"]
[null,"Charcuterie du jour",null,"Charcuterie du jour",null,"Charcuterie du jour",null,"Charcuterie du jour",null,"Charcuterie du jour",null,"Charcuterie du jour",null,"Salade tomates maïs"]
[null,"Potage du jour",null,"Potage du jour",1,"Potage du jour",null,"Potage du jour",null,"Potage du jour",1,"Potage du jour",null,"Potage du jour"]
["Plats",null,null,"Meunière de colin",null,"Poisson a la bordelaise",null,"Colin à la Parisienne",null,"Brandade de morue",null,"Filet flétan meunière"]
[null,"Suprême de poulet",null,"Brochette de bœuf",null,"Blanquette de veau",null,"Poulet Basquaise",null,"Brochette de volaille",1,"Rôti de porc",null,"Saumon beurre-blanc"]
[null,"Jambon grillé",null,"Jambon blanc",null,"Jambon grillé",null,"Jambon blanc",null,"Jambon grillé",null,"Jambon blanc"]
[null,"Steak à poêler (Cru)",null,"Steak à poêler (cru)",null,"Steak à poêler (Cru)",null,"Steak à poêler (Cru)",null,"Steak à poêler (Cru)",null,"Steak à poêler (Cru)",null,"Jambon persillé"]
[null,"Poisson du jour/citron",null,"Poisson du jour/citron",1,"Poisson du jour/citron",null,"Poisson du jour/citron",null,"Poisson du jour/citron",null,"Poisson du jour/citron"]
["Garnitures","Pâtes au beurre",null,"Riz au beurre",null,"Pâtes au beurre",null,"Riz au beurre",null,"Pâtes au beurre",null,"Riz au beurre"]
[null,"Purée patates douces",null,"Purée pdt",null,"Purée de carottes",null,"Purée de céleri",null,"Purée de brocolis",null,"Purée haricots verts",null,"Riz pilaf"]
[null,"Choux romanesco",null,"Lentilles",null,"Carottes Parisiennes",null,"Salsifis",null,"Ratatouille",1,"Poêlée courgettes"]
[null,"Haricots beurre",null,"Potée de choux",null,"Poêlée forestière",null,"Printanière légumes",null,"Petits pois-carottes",null,"Légumes Léonard",null,"Gratin Dauphinois"]
[null,"Pommes vapeur",null,"Pommes grenaille",null,"Pommes vapeur",null,"Pommes grenaille",null,"Pommes vapeur",null,"Pommes grenaille"]
["Fromages","Roquefort",null,"Camembert",null,"Roquefort",null,"Camembert",null,"Roquefort",null,"Camembert",null,"Roquefort"]
[null,"Emmental",null,"Petit moulé",null,"Emmental",null,"Petit moulé",null,"Emmental",null,"Petit moulé",null,"Emmental"]
[null,"Yaourt nature",null,"Yaourt aux fruits",null,"Yaourt nature",null,"Yaourt aux fruits",null,"Yaourt nature",null,"Yaourt aux fruits",null,"Yaourt nature"]
[null,"Faisselle",null,"Chocolat liégeois",1,"Faisselle",null,"Café liégeois",null,"Faisselle",null,"Chocolat liégeois",null,"Faisselle"]
[null,"Riz au lait",null,"Semoule au lait",null,"Riz au lait",null,"Semoule au lait",null,"Riz au lait",null,"Semoule au lait",null,"Riz au lait"]
["Desserts","Pomme",null,"Clémentine",null,"Pêche",null,"Poire",null,"Salade de fruits",null,"Banane"]
[null,"Tatin de pommes",null,"Flan caramel",1,"Mousse de fruits",null,"Panna Cota",null,"île flottante",1,"Far Breton",null,"Choux craquelés"]
[null,"Flan pâtissier",null,"Tropézienne",null,"Kouign Amann",null,"Tarte aux pommes",null,"Crème praliné",null,"Tarte caramel",null,"Paris-Brest"]
[null,"Entremet fruit du jour",null,"Entremet fruit du jour",null,"Entremet fruit du jour",null,"Entremet fruit du jour",null,"Entremet fruit du jour",null,"Entremet fruit du jour"]
[null,"Compote aux fruits",null,"Compote de fruits",null,"Compote aux fruits",null,"Compote aux fruits",null,"Compote de fruits",null,"Compote aux fruits"]
["Pain","Pain",null,"Pain",null,"Pain",null,"Pain",null,"Pain",null,"Pain",null,"Pain"]
["Beurre","Beurre",null,"Beurre",null,"Beurre",null,"Beurre",null,"Beurre",null,"Beurre",null,"Beurre"]
[]
[]
["Total","plats",{"$f":"SUM(C3:C27)","v":0},null,{"$f":"SUM(E3:E27)","v":4},null,{"$f":"SUM(G3:G27)","v":0},null,{"$f":"SUM(I3:I27)","v":0},null,{"$f":"SUM(K3:K27)","v":4},null,{"$f":"SUM(M3:M27)","v":0},null,{"$f":"SUM(O3:O27)","v":0}]
[null,"Beurre",{"$f":"C29","v":0},null,{"$f":"E29","v":0},null,{"$f":"G29","v":0},null,{"$f":"I29","v":0},null,{"$f":"K29","v":0},null,{"$f":"M29","v":0},null,{"$f":"O29","v":0}]

{"sheet":"GUEGUEN","index":38,"n_rows":33,"n_cols":15,"rows_kept":33,"cut":false,"hidden":false,"merged":[[1,13,1,14],[1,1,1,2],[1,3,1,4],[1,5,1,6],[1,7,1,8],[1,9,1,10],[1,11,1,12]]}
[]
[null,"Lun 09/10/2017",null,"Mar 10/10/2017",null,"Mer 11/10/2017",null,"Jeu 12/10/2017",null,"Ven 13/10/2017",null,"Sam 14/10/2017",null,"Dim 15/10/2017"]
["Entrées","Sardines à l'huile",null,"Coleslaw",null,"Champignons Grecs",null,"Betteraves",1,"Crêpe champignons",null,"Taboulé"]
[null,"Terrine de légumes",null,"Œuf mayonnaise",1,"Pizza pain",null,"Panier jambon fromage",null,"Crumble saumon",1,"Quiche lorraine",null,"Saumon fumé"]
[null,"Piémontaise",1,"Pdt au thon",null,"Salade surimi",1,"Rillettes poisson",null,"Cocktail de crevettes",null,"Salade paysanne",1]
[null,"Charcuterie du jour",null,"Charcuterie du jour",null,"Charcuterie du jour",null,"Charcuterie du jour",null,"Charcuterie du jour",null,"Charcuterie du jour",null,"Salade tomates maïs",1]
[null,"Potage du jour",1,"Potage du jour",1,"Potage du jour",1,"Potage du jour",1,"Potage du jour",1,"Potage du jour",1,"Potage du jour",1]
["Plats",null,null,"Meunière de colin",1,"Poisson a la bordelaise",null,"Colin à la Parisienne",1,"Brandade de morue",null,"Filet flétan meunière",1]
[null,"Suprême de poulet",1,"Brochette de bœuf",null,"Blanquette de veau",null,"Poulet Basquaise",null,"Brochette de volaille",1,"Rôti de porc",null,"Saumon beurre-blanc"]
[null,"Jambon grillé",null,"Jambon blanc",null,"Jambon grillé",null,"Jambon blanc",null,"Jambon grillé",null,"Jambon blanc"]
[null,"Steak à poêler (Cru)",null,"Steak à poêler (cru)",null,"Steak à poêler (Cru)",null,"Steak à poêler (Cru)",null,"Steak à poêler (Cru)",null,"Steak à poêler (Cru)",null,"Jambon persillé",1]
[null,"Poisson du jour/citron",null,"Poisson du jour/citron",null,"Poisson du jour/citron",1,"Poisson du jour/citron",null,"Poisson du jour/citron",null,"Poisson du jour/citron"]
["Garnitures","Pâtes au beurre",null,"Riz au beurre",null,"Pâtes au beurre",null,"Riz au beurre",1,"Pâtes au beurre",null,"Riz au beurre",1]
[null,"Purée patates douces",1,"Purée pdt",1,"Purée de carottes",null,"Purée de céleri",null,"Purée de brocolis",null,"Purée haricots verts",null,"Riz pilaf"]
[null,"Choux romanesco",null,"Lentilles",null,"Carottes Parisiennes",null,"Salsifis",null,"Ratatouille",null,"Poêlée courgettes"]
[null,"Haricots beurre",null,"Potée de choux",null,"Poêlée forestière",1,"Printanière légumes",null,"Petits pois-carottes",1,"Légumes Léonard",null,"Gratin Dauphinois",1]
[null,"Pommes vapeur",null,"Pommes grenaille",null,"Pommes vapeur",null,"Pommes grenaille",null,"Pommes vapeur",null,"Pommes grenaille"]
["Fromages","Roquefort",null,"Camembert",null,"Roquefort",null,"Camembert",null,"Roquefort",null,"Camembert",null,"Roquefort"]
[null,"Emmental",null,"Petit moulé",null,"Emmental",null,"Petit moulé",null,"Emmental",null,"Petit moulé",null,"Emmental"]
[null,"Yaourt nature",null,"Yaourt aux fruits",null,"Yaourt nature",null,"Yaourt aux fruits",null,"Yaourt nature",null,"Yaourt aux fruits",null,"Yaourt nature"]
[null,"Faisselle",null,"Chocolat liégeois",null,"Faisselle",null,"Café liégeois",null,"Faisselle",null,"Chocolat liégeois",null,"Faisselle"]
[null,"Riz au lait",null,"Semoule au lait",null,"Riz au lait",null,"Semoule au lait",null,"Riz au lait",null,"Semoule au lait",null,"Riz au lait"]
["Desserts","Pomme",null,"Clémentine",null,"Pêche",null,"Poire",null,"Salade de fruits",null,"Banane"]
[null,"Tatin de pommes",null,"Flan caramel",null,"Mousse de fruits",null,"Panna Cota",null,"île flottante",1,"Far Breton",1,"Choux craquelés"]
[null,"Flan pâtissier",1,"Tropézienne",null,"Kouign Amann",1,"Tarte aux pommes",1,"Crème praliné",null,"Tarte caramel",null,"Paris-Brest",1]
[null,"Entremet fruit du jour",null,"Entremet fruit du jour",1,"Entremet fruit du jour",null,"Entremet fruit du jour",null,"Entremet fruit du jour",null,"Entremet fruit du jour"]
[null,"Compote aux fruits",null,"Compote de fruits",null,"Compote aux fruits",null,"Compote aux fruits",null,"Compote de fruits",null,"Compote aux fruits"]
["Pain","Pain",null,"Pain",null,"Pain",null,"Pain",null,"Pain",null,"Pain",null,"Pain"]
["Beurre","Beurre",null,"Beurre",null,"Beurre",null,"Beurre",null,"Beurre",null,"Beurre",null,"Beurre"]
[]
[]
["Total","plats",{"$f":"SUM(C3:C27)","v":5},null,{"$f":"SUM(E3:E27)","v":5},null,{"$f":"SUM(G3:G27)","v":5},null,{"$f":"SUM(I3:I27)","v":5},null,{"$f":"SUM(K3:K27)","v":5},null,{"$f":"SUM(M3:M27)","v":5},null,{"$f":"SUM(O3:O27)","v":5}]
[null,"Beurre",{"$f":"C29","v":0},null,{"$f":"E29","v":0},null,{"$f":"G29","v":0},null,{"$f":"I29","v":0},null,{"$f":"K29","v":0},null,{"$f":"M29","v":0},null,{"$f":"O29","v":0}]

{"sheet":"JAFFREDOU","index":39,"n_rows":33,"n_cols":15,"rows_kept":33,"cut":false,"hidden":false,"merged":[[1,13,1,14],[1,1,1,2],[1,3,1,4],[1,5,1,6],[1,7,1,8],[1,9,1,10],[1,11,1,12]]}
[]
[null,"Lun 09/10/2017",null,"Mar 10/10/2017",null,"Mer 11/10/2017",null,"Jeu 12/10/2017",null,"Ven 13/10/2017",null,"Sam 14/10/2017",null,"Dim 15/10/2017"]
["Entrées","Sardines à l'huile",null,"Coleslaw",null,"Champignons Grecs",null,"Betteraves",null,"Crêpe champignons",null,"Taboulé"]
[null,"Terrine de légumes",null,"Œuf mayonnaise",null,"Pizza pain",null,"Panier jambon fromage",null,"Crumble saumon",null,"Quiche lorraine",null,"Saumon fumé"]
[null,"Piémontaise",null,"Pdt au thon",null,"Salade surimi",null,"Rillettes poisson",null,"Cocktail de crevettes",null,"Salade paysanne"]
[null,"Charcuterie du jour",null,"Charcuterie du jour",null,"Charcuterie du jour",null,"Charcuterie du jour",null,"Charcuterie du jour",null,"Charcuterie du jour",null,"Salade tomates maïs"]
[null,"Potage du jour",null,"Potage du jour",null,"Potage du jour",null,"Potage du jour",null,"Potage du jour",null,"Potage du jour",null,"Potage du jour"]
["Plats",null,null,"Meunière de colin",null,"Poisson a la bordelaise",null,"Colin à la Parisienne",null,"Brandade de morue",null,"Filet flétan meunière",1]
[null,"Suprême de poulet",1,"Brochette de bœuf",1,"Blanquette de veau",1,"Poulet Basquaise",1,"Brochette de volaille",null,"Rôti de porc",null,"Saumon beurre-blanc",1]
[null,"Jambon grillé",null,"Jambon blanc",null,"Jambon grillé",null,"Jambon blanc",null,"Jambon grillé",1,"Jambon blanc"]
[null,"Steak à poêler (Cru)",null,"Steak à poêler (cru)",null,"Steak à poêler (Cru)",null,"Steak à poêler (Cru)",null,"Steak à poêler (Cru)",null,"Steak à poêler (Cru)",null,"Jambon persillé"]
[null,"Poisson du jour/citron",null,"Poisson du jour/citron",null,"Poisson du jour/citron",null,"Poisson du jour/citron",null,"Poisson du jour/citron",null,"Poisson du jour/citron"]
["Garnitures","Pâtes au beurre",null,"Riz au beurre",null,"Pâtes au beurre",1,"Riz au beurre",1,"Pâtes au beurre",null,"Riz au beurre"]
[null,"Purée patates douces",null,"Purée pdt",1,"Purée de carottes",null,"Purée de céleri",null,"Purée de brocolis",1,"Purée haricots verts",1,"Riz pilaf"]
[null,"Choux romanesco",null,"Lentilles",null,"Carottes Parisiennes",null,"Salsifis",null,"Ratatouille",null,"Poêlée courgettes"]
[null,"Haricots beurre",1,"Potée de choux",null,"Poêlée forestière",null,"Printanière légumes",null,"Petits pois-carottes",null,"Légumes Léonard",null,"Gratin Dauphinois",1]
[null,"Pommes vapeur",null,"Pommes grenaille",null,"Pommes vapeur",null,"Pommes grenaille",null,"Pommes vapeur",null,"Pommes grenaille"]
["Fromages","Roquefort",null,"Camembert",1,"Roquefort",1,"Camembert",1,"Roquefort",1,"Camembert",null,"Roquefort",1]
[null,"Emmental",1,"Petit moulé",null,"Emmental",null,"Petit moulé",null,"Emmental",null,"Petit moulé",1,"Emmental"]
[null,"Yaourt nature",null,"Yaourt aux fruits",null,"Yaourt nature",null,"Yaourt aux fruits",null,"Yaourt nature",null,"Yaourt aux fruits",null,"Yaourt nature"]
[null,"Faisselle",null,"Chocolat liégeois",null,"Faisselle",null,"Café liégeois",null,"Faisselle",null,"Chocolat liégeois",null,"Faisselle"]
[null,"Riz au lait",null,"Semoule au lait",null,"Riz au lait",null,"Semoule au lait",null,"Riz au lait",null,"Semoule au lait",null,"Riz au lait"]
["Desserts","Pomme",null,"Clémentine",null,"Pêche",null,"Poire",null,"Salade de fruits",null,"Banane"]
[null,"Tatin de pommes",1,"Flan caramel",1,"Mousse de fruits",null,"Panna Cota",null,"île flottante",1,"Far Breton",1,"Choux craquelés"]
[null,"Flan pâtissier",null,"Tropézienne",null,"Kouign Amann",1,"Tarte aux pommes",1,"Crème praliné",null,"Tarte caramel",null,"Paris-Brest",1]
[null,"Entremet fruit du jour",null,"Entremet fruit du jour",null,"Entremet fruit du jour",null,"Entremet fruit du jour",null,"Entremet fruit du jour",null,"Entremet fruit du jour"]
[null,"Compote aux fruits",null,"Compote de fruits",null,"Compote aux fruits",null,"Compote aux fruits",null,"Compote de fruits",null,"Compote aux fruits"]
["Pain","Pain",null,"Pain",null,"Pain",null,"Pain",null,"Pain",null,"Pain",null,"Pain"]
["Beurre","Beurre",null,"Beurre",null,"Beurre",null,"Beurre",null,"Beurre",null,"Beurre",null,"Beurre"]
[]
[]
["Total","plats",{"$f":"SUM(C3:C27)","v":4},null,{"$f":"SUM(E3:E27)","v":4},null,{"$f":"SUM(G3:G27)","v":4},null,{"$f":"SUM(I3:I27)","v":4},null,{"$f":"SUM(K3:K27)","v":4},null,{"$f":"SUM(M3:M27)","v":4},null,{"$f":"SUM(O3:O27)","v":4}]
[null,"Beurre",{"$f":"C29","v":0},null,{"$f":"E29","v":0},null,{"$f":"G29","v":0},null,{"$f":"I29","v":0},null,{"$f":"K29","v":0},null,{"$f":"M29","v":0},null,{"$f":"O29","v":0}]

{"sheet":"JEZEGOU","index":40,"n_rows":33,"n_cols":15,"rows_kept":33,"cut":false,"hidden":false,"merged":[[1,13,1,14],[1,1,1,2],[1,3,1,4],[1,5,1,6],[1,7,1,8],[1,9,1,10],[1,11,1,12]]}
[]
[null,"Lun 09/10/2017",null,"Mar 10/10/2017",null,"Mer 11/10/2017",null,"Jeu 12/10/2017",null,"Ven 13/10/2017",null,"Sam 14/10/2017",null,"Dim 15/10/2017"]
["Entrées","Sardines à l'huile",null,"Coleslaw",null,"Champignons Grecs",null,"Betteraves",null,"Crêpe champignons",null,"Taboulé"]
[null,"Terrine de légumes",null,"Œuf mayonnaise",null,"Pizza pain",null,"Panier jambon fromage",null,"Crumble saumon",null,"Quiche lorraine",null,"Saumon fumé",1]
[null,"Piémontaise",null,"Pdt au thon",null,"Salade surimi",null,"Rillettes poisson",null,"Cocktail de crevettes",null,"Salade paysanne"]
[null,"Charcuterie du jour",null,"Charcuterie du jour",null,"Charcuterie du jour",null,"Charcuterie du jour",null,"Charcuterie du jour",null,"Charcuterie du jour",null,"Salade tomates maïs"]
[null,"Potage du jour",1,"Potage du jour",1,"Potage du jour",1,"Potage du jour",1,"Potage du jour",1,"Potage du jour",1,"Potage du jour"]
["Plats",null,null,"Meunière de colin",null,"Poisson a la bordelaise",null,"Colin à la Parisienne",null,"Brandade de morue",null,"Filet flétan meunière"]
[null,"Suprême de poulet",1,"Brochette de bœuf",1,"Blanquette de veau",1,"Poulet Basquaise",1,"Brochette de volaille",1,"Rôti de porc",1,"Saumon beurre-blanc"]
[null,"Jambon grillé",null,"Jambon blanc",null,"Jambon grillé",null,"Jambon blanc",null,"Jambon grillé",null,"Jambon blanc"]
[null,"Steak à poêler (Cru)",null,"Steak à poêler (cru)",null,"Steak à poêler (Cru)",null,"Steak à poêler (Cru)",null,"Steak à poêler (Cru)",null,"Steak à poêler (Cru)",null,"Jambon persillé",1]
[null,"Poisson du jour/citron",null,"Poisson du jour/citron",null,"Poisson du jour/citron",null,"Poisson du jour/citron",null,"Poisson du jour/citron",null,"Poisson du jour/citron"]
["Garnitures","Pâtes au beurre",1,"Riz au beurre",null,"Pâtes au beurre",null,"Riz au beurre",null,"Pâtes au beurre",null,"Riz au beurre"]
[null,"Purée patates douces",null,"Purée pdt",1,"Purée de carottes",1,"Purée de céleri",null,"Purée de brocolis",1,"Purée haricots verts",1,"Riz pilaf"]
[null,"Choux romanesco",null,"Lentilles",null,"Carottes Parisiennes",null,"Salsifis",null,"Ratatouille",null,"Poêlée courgettes"]
[null,"Haricots beurre",null,"Potée de choux",null,"Poêlée forestière",null,"Printanière légumes",1,"Petits pois-carottes",null,"Légumes Léonard",null,"Gratin Dauphinois",1]
[null,"Pommes vapeur",null,"Pommes grenaille",null,"Pommes vapeur",null,"Pommes grenaille",null,"Pommes vapeur",null,"Pommes grenaille"]
["Fromages","Roquefort",null,"Camembert",null,"Roquefort",null,"Camembert",null,"Roquefort",null,"Camembert",null,"Roquefort"]
[null,"Emmental",null,"Petit moulé",null,"Emmental",null,"Petit moulé",null,"Emmental",null,"Petit moulé",null,"Emmental"]
[null,"Yaourt nature",null,"Yaourt aux fruits",null,"Yaourt nature",null,"Yaourt aux fruits",null,"Yaourt nature",null,"Yaourt aux fruits",null,"Yaourt nature"]
[null,"Faisselle",null,"Chocolat liégeois",null,"Faisselle",null,"Café liégeois",null,"Faisselle",null,"Chocolat liégeois",null,"Faisselle"]
[null,"Riz au lait",null,"Semoule au lait",null,"Riz au lait",null,"Semoule au lait",null,"Riz au lait",null,"Semoule au lait",null,"Riz au lait"]
["Desserts","Pomme",null,"Clémentine",null,"Pêche",null,"Poire",null,"Salade de fruits",null,"Banane"]
[null,"Tatin de pommes",null,"Flan caramel",1,"Mousse de fruits",1,"Panna Cota",1,"île flottante",1,"Far Breton",null,"Choux craquelés"]
[null,"Flan pâtissier",1,"Tropézienne",null,"Kouign Amann",null,"Tarte aux pommes",null,"Crème praliné",null,"Tarte caramel",1,"Paris-Brest",1]
[null,"Entremet fruit du jour",null,"Entremet fruit du jour",null,"Entremet fruit du jour",null,"Entremet fruit du jour",null,"Entremet fruit du jour",null,"Entremet fruit du jour"]
[null,"Compote aux fruits",null,"Compote de fruits",null,"Compote aux fruits",null,"Compote aux fruits",null,"Compote de fruits",null,"Compote aux fruits"]
["Pain","Pain",1,"Pain",1,"Pain",1,"Pain",1,"Pain",1,"Pain",1,"Pain",1]
["Beurre","Beurre",2,"Beurre",2,"Beurre",2,"Beurre",2,"Beurre",2,"Beurre",2,"Beurre",2]
[]
[]
["Total","plats",{"$f":"SUM(C3:C27)","v":4},null,{"$f":"SUM(E3:E27)","v":4},null,{"$f":"SUM(G3:G27)","v":4},null,{"$f":"SUM(I3:I27)","v":4},null,{"$f":"SUM(K3:K27)","v":4},null,{"$f":"SUM(M3:M27)","v":4},null,{"$f":"SUM(O3:O27)","v":4}]
[null,"Beurre",{"$f":"C29","v":2},null,{"$f":"E29","v":2},null,{"$f":"G29","v":2},null,{"$f":"I29","v":2},null,{"$f":"K29","v":2},null,{"$f":"M29","v":2},null,{"$f":"O29","v":2}]

{"sheet":"LANNON","index":41,"n_rows":33,"n_cols":15,"rows_kept":33,"cut":false,"hidden":false,"merged":[[1,13,1,14],[1,1,1,2],[1,3,1,4],[1,5,1,6],[1,7,1,8],[1,9,1,10],[1,11,1,12]]}
[]
[null,"Lun 09/10/2017",null,"Mar 10/10/2017",null,"Mer 11/10/2017",null,"Jeu 12/10/2017",null,"Ven 13/10/2017",null,"Sam 14/10/2017",null,"Dim 15/10/2017"]
["Entrées","Sardines à l'huile",null,"Coleslaw",null,"Champignons Grecs",null,"Betteraves",null,"Crêpe champignons",null,"Taboulé"]
[null,"Terrine de légumes",null,"Œuf mayonnaise",null,"Pizza pain",null,"Panier jambon fromage",null,"Crumble saumon",null,"Quiche lorraine",null,"Saumon fumé"]
[null,"Piémontaise",null,"Pdt au thon",null,"Salade surimi",null,"Rillettes poisson",null,"Cocktail de crevettes",null,"Salade paysanne"]
[null,"Charcuterie du jour",null,"Charcuterie du jour",null,"Charcuterie du jour",null,"Charcuterie du jour",null,"Charcuterie du jour",null,"Charcuterie du jour",null,"Salade tomates maïs"]
[null,"Potage du jour",null,"Potage du jour",null,"Potage du jour",null,"Potage du jour",null,"Potage du jour",null,"Potage du jour",null,"Potage du jour"]
["Plats",null,null,"Meunière de colin",null,"Poisson a la bordelaise",null,"Colin à la Parisienne",null,"Brandade de morue",null,"Filet flétan meunière"]
[null,"Suprême de poulet",null,"Brochette de bœuf",null,"Blanquette de veau",null,"Poulet Basquaise",null,"Brochette de volaille",null,"Rôti de porc",null,"Saumon beurre-blanc"]
[null,"Jambon grillé",null,"Jambon blanc",null,"Jambon grillé",null,"Jambon blanc",null,"Jambon grillé",null,"Jambon blanc"]
[null,"Steak à poêler (Cru)",null,"Steak à poêler (cru)",null,"Steak à poêler (Cru)",null,"Steak à poêler (Cru)",null,"Steak à poêler (Cru)",null,"Steak à poêler (Cru)",null,"Jambon persillé"]
[null,"Poisson du jour/citron",null,"Poisson du jour/citron",null,"Poisson du jour/citron",null,"Poisson du jour/citron",null,"Poisson du jour/citron",null,"Poisson du jour/citron"]
["Garnitures","Pâtes au beurre",null,"Riz au beurre",null,"Pâtes au beurre",null,"Riz au beurre",null,"Pâtes au beurre",null,"Riz au beurre"]
[null,"Purée patates douces",null,"Purée pdt",null,"Purée de carottes",null,"Purée de céleri",null,"Purée de brocolis",null,"Purée haricots verts",null,"Riz pilaf"]
[null,"Choux romanesco",null,"Lentilles",null,"Carottes Parisiennes",null,"Salsifis",null,"Ratatouille",null,"Poêlée courgettes"]
[null,"Haricots beurre",null,"Potée de choux",null,"Poêlée forestière",null,"Printanière légumes",null,"Petits pois-carottes",null,"Légumes Léonard",null,"Gratin Dauphinois"]
[null,"Pommes vapeur",null,"Pommes grenaille",null,"Pommes vapeur",null,"Pommes grenaille",null,"Pommes vapeur",null,"Pommes grenaille"]
["Fromages","Roquefort",null,"Camembert",null,"Roquefort",null,"Camembert",null,"Roquefort",null,"Camembert",null,"Roquefort"]
[null,"Emmental",null,"Petit moulé",null,"Emmental",null,"Petit moulé",null,"Emmental",null,"Petit moulé",null,"Emmental"]
[null,"Yaourt nature",null,"Yaourt aux fruits",null,"Yaourt nature",null,"Yaourt aux fruits",null,"Yaourt nature",null,"Yaourt aux fruits",null,"Yaourt nature"]
[null,"Faisselle",null,"Chocolat liégeois",null,"Faisselle",null,"Café liégeois",null,"Faisselle",null,"Chocolat liégeois",null,"Faisselle"]
[null,"Riz au lait",null,"Semoule au lait",null,"Riz au lait",null,"Semoule au lait",null,"Riz au lait",null,"Semoule au lait",null,"Riz au lait"]
["Desserts","Pomme",null,"Clémentine",null,"Pêche",null,"Poire",null,"Salade de fruits",null,"Banane"]
[null,"Tatin de pommes",null,"Flan caramel",null,"Mousse de fruits",null,"Panna Cota",null,"île flottante",null,"Far Breton",null,"Choux craquelés"]
[null,"Flan pâtissier",null,"Tropézienne",null,"Kouign Amann",null,"Tarte aux pommes",null,"Crème praliné",null,"Tarte caramel",null,"Paris-Brest"]
[null,"Entremet fruit du jour",null,"Entremet fruit du jour",null,"Entremet fruit du jour",null,"Entremet fruit du jour",null,"Entremet fruit du jour",null,"Entremet fruit du jour"]
[null,"Compote aux fruits",null,"Compote de fruits",null,"Compote aux fruits",null,"Compote aux fruits",null,"Compote de fruits",null,"Compote aux fruits"]
["Pain","Pain",null,"Pain",null,"Pain",null,"Pain",null,"Pain",null,"Pain",null,"Pain"]
["Beurre","Beurre",null,"Beurre",null,"Beurre",null,"Beurre",null,"Beurre",null,"Beurre",null,"Beurre"]
[]
[]
["Total","plats",{"$f":"SUM(C3:C27)","v":0},null,{"$f":"SUM(E3:E27)","v":0},null,{"$f":"SUM(G3:G27)","v":0},null,{"$f":"SUM(I3:I27)","v":0},null,{"$f":"SUM(K3:K27)","v":0},null,{"$f":"SUM(M3:M27)","v":0},null,{"$f":"SUM(O3:O27)","v":0}]
[null,"Beurre",{"$f":"C29","v":0},null,{"$f":"E29","v":0},null,{"$f":"G29","v":0},null,{"$f":"I29","v":0},null,{"$f":"K29","v":0},null,{"$f":"M29","v":0},null,{"$f":"O29","v":0}]

{"sheet":"MR_MME_LAOT","index":42,"n_rows":33,"n_cols":15,"rows_kept":33,"cut":false,"hidden":false,"merged":[[1,13,1,14],[1,1,1,2],[1,3,1,4],[1,5,1,6],[1,7,1,8],[1,9,1,10],[1,11,1,12]]}
[]
[null,"Lun 09/10/2017",null,"Mar 10/10/2017",null,"Mer 11/10/2017",null,"Jeu 12/10/2017",null,"Ven 13/10/2017",null,"Sam 14/10/2017",null,"Dim 15/10/2017"]
["Entrées","Sardines à l'huile",null,"Coleslaw",null,"Champignons Grecs",null,"Betteraves",null,"Crêpe champignons",null,"Taboulé",1]
[null,"Terrine de légumes",null,"Œuf mayonnaise",null,"Pizza pain",null,"Panier jambon fromage",1,"Crumble saumon",null,"Quiche lorraine",null,"Saumon fumé"]
[null,"Piémontaise",null,"Pdt au thon",2,"Salade surimi",null,"Rillettes poisson",null,"Cocktail de crevettes",null,"Salade paysanne"]
[null,"Charcuterie du jour",null,"Charcuterie du jour",null,"Charcuterie du jour",null,"Charcuterie du jour",1,"Charcuterie du jour",null,"Charcuterie du jour",null,"Salade tomates maïs"]
[null,"Potage du jour",null,"Potage du jour",null,"Potage du jour",null,"Potage du jour",null,"Potage du jour",null,"Potage du jour",null,"Potage du jour"]
["Plats",null,null,"Meunière de colin",null,"Poisson a la bordelaise",null,"Colin à la Parisienne",null,"Brandade de morue",null,"Filet flétan meunière"]
[null,"Suprême de poulet",null,"Brochette de bœuf",2,"Blanquette de veau",null,"Poulet Basquaise",1,"Brochette de volaille",null,"Rôti de porc",1,"Saumon beurre-blanc"]
[null,"Jambon grillé",null,"Jambon blanc",null,"Jambon grillé",null,"Jambon blanc",null,"Jambon grillé",null,"Jambon blanc"]
[null,"Steak à poêler (Cru)",null,"Steak à poêler (cru)",null,"Steak à poêler (Cru)",null,"Steak à poêler (Cru)",1,"Steak à poêler (Cru)",null,"Steak à poêler (Cru)",null,"Jambon persillé",1]
[null,"Poisson du jour/citron",null,"Poisson du jour/citron",null,"Poisson du jour/citron",null,"Poisson du jour/citron",null,"Poisson du jour/citron",null,"Poisson du jour/citron"]
["Garnitures","Pâtes au beurre",null,"Riz au beurre",null,"Pâtes au beurre",null,"Riz au beurre",null,"Pâtes au beurre",null,"Riz au beurre"]
[null,"Purée patates douces",null,"Purée pdt",null,"Purée de carottes",null,"Purée de céleri",null,"Purée de brocolis",null,"Purée haricots verts",null,"Riz pilaf"]
[null,"Choux romanesco",null,"Lentilles",null,"Carottes Parisiennes",null,"Salsifis",null,"Ratatouille",null,"Poêlée courgettes"]
[null,"Haricots beurre",null,"Potée de choux",null,"Poêlée forestière",null,"Printanière légumes",null,"Petits pois-carottes",null,"Légumes Léonard",null,"Gratin Dauphinois",1]
[null,"Pommes vapeur",null,"Pommes grenaille",null,"Pommes vapeur",null,"Pommes grenaille",1,"Pommes vapeur",null,"Pommes grenaille"]
["Fromages","Roquefort",null,"Camembert",null,"Roquefort",null,"Camembert",null,"Roquefort",null,"Camembert",null,"Roquefort"]
[null,"Emmental",null,"Petit moulé",null,"Emmental",null,"Petit moulé",null,"Emmental",null,"Petit moulé",null,"Emmental"]
[null,"Yaourt nature",null,"Yaourt aux fruits",null,"Yaourt nature",null,"Yaourt aux fruits",null,"Yaourt nature",null,"Yaourt aux fruits",null,"Yaourt nature"]
[null,"Faisselle",null,"Chocolat liégeois",1,"Faisselle",null,"Café liégeois",null,"Faisselle",null,"Chocolat liégeois",null,"Faisselle"]
[null,"Riz au lait",null,"Semoule au lait",null,"Riz au lait",null,"Semoule au lait",null,"Riz au lait",null,"Semoule au lait",null,"Riz au lait"]
["Desserts","Pomme",null,"Clémentine",null,"Pêche",null,"Poire",null,"Salade de fruits",null,"Banane"]
[null,"Tatin de pommes",null,"Flan caramel",1,"Mousse de fruits",null,"Panna Cota",1,"île flottante",null,"Far Breton",1,"Choux craquelés"]
[null,"Flan pâtissier",null,"Tropézienne",null,"Kouign Amann",null,"Tarte aux pommes",null,"Crème praliné",null,"Tarte caramel",null,"Paris-Brest",1]
[null,"Entremet fruit du jour",null,"Entremet fruit du jour",null,"Entremet fruit du jour",null,"Entremet fruit du jour",null,"Entremet fruit du jour",null,"Entremet fruit du jour"]
[null,"Compote aux fruits",null,"Compote de fruits",null,"Compote aux fruits",null,"Compote aux fruits",null,"Compote de fruits",null,"Compote aux fruits"]
["Pain","Pain",null,"Pain",null,"Pain",null,"Pain",null,"Pain",null,"Pain",null,"Pain"]
["Beurre","Beurre",null,"Beurre",null,"Beurre",null,"Beurre",null,"Beurre",null,"Beurre",null,"Beurre"]
[]
[]
["Total","plats",{"$f":"SUM(C3:C27)","v":0},null,{"$f":"SUM(E3:E27)","v":6},null,{"$f":"SUM(G3:G27)","v":0},null,{"$f":"SUM(I3:I27)","v":6},null,{"$f":"SUM(K3:K27)","v":0},null,{"$f":"SUM(M3:M27)","v":3},null,{"$f":"SUM(O3:O27)","v":3}]
[null,"Beurre",{"$f":"C29","v":0},null,{"$f":"E29","v":0},null,{"$f":"G29","v":0},null,{"$f":"I29","v":0},null,{"$f":"K29","v":0},null,{"$f":"M29","v":0},null,{"$f":"O29","v":0}]

{"sheet":"LAOT_J","index":43,"n_rows":33,"n_cols":15,"rows_kept":33,"cut":false,"hidden":false,"merged":[[1,13,1,14],[1,1,1,2],[1,3,1,4],[1,5,1,6],[1,7,1,8],[1,9,1,10],[1,11,1,12]]}
[]
[null,"Lun 09/10/2017",null,"Mar 10/10/2017",null,"Mer 11/10/2017",null,"Jeu 12/10/2017",null,"Ven 13/10/2017",null,"Sam 14/10/2017",null,"Dim 15/10/2017"]
["Entrées","Sardines à l'huile",null,"Coleslaw",null,"Champignons Grecs",null,"Betteraves",null,"Crêpe champignons",null,"Taboulé"]
[null,"Terrine de légumes",null,"Œuf mayonnaise",1,"Pizza pain",null,"Panier jambon fromage",null,"Crumble saumon",null,"Quiche lorraine",null,"Saumon fumé"]
[null,"Piémontaise",null,"Pdt au thon",null,"Salade surimi",null,"Rillettes poisson",null,"Cocktail de crevettes",1,"Salade paysanne",1]
[null,"Charcuterie du jour",null,"Charcuterie du jour",null,"Charcuterie du jour",null,"Charcuterie du jour",null,"Charcuterie du jour",null,"Charcuterie du jour",null,"Salade tomates maïs",1]
[null,"Potage du jour",null,"Potage du jour",null,"Potage du jour",null,"Potage du jour",null,"Potage du jour",null,"Potage du jour",null,"Potage du jour"]
["Plats",null,null,"Meunière de colin",1,"Poisson a la bordelaise",null,"Colin à la Parisienne",null,"Brandade de morue",null,"Filet flétan meunière",1]
[null,"Suprême de poulet",null,"Brochette de bœuf",null,"Blanquette de veau",null,"Poulet Basquaise",null,"Brochette de volaille",1,"Rôti de porc",null,"Saumon beurre-blanc",1]
[null,"Jambon grillé",null,"Jambon blanc",null,"Jambon grillé",null,"Jambon blanc",null,"Jambon grillé",null,"Jambon blanc"]
[null,"Steak à poêler (Cru)",null,"Steak à poêler (cru)",null,"Steak à poêler (Cru)",null,"Steak à poêler (Cru)",null,"Steak à poêler (Cru)",null,"Steak à poêler (Cru)",null,"Jambon persillé"]
[null,"Poisson du jour/citron",null,"Poisson du jour/citron",null,"Poisson du jour/citron",null,"Poisson du jour/citron",null,"Poisson du jour/citron",null,"Poisson du jour/citron"]
["Garnitures","Pâtes au beurre",null,"Riz au beurre",null,"Pâtes au beurre",null,"Riz au beurre",null,"Pâtes au beurre",1,"Riz au beurre",1]
[null,"Purée patates douces",null,"Purée pdt",1,"Purée de carottes",null,"Purée de céleri",null,"Purée de brocolis",null,"Purée haricots verts",null,"Riz pilaf",1]
[null,"Choux romanesco",null,"Lentilles",null,"Carottes Parisiennes",null,"Salsifis",null,"Ratatouille",null,"Poêlée courgettes"]
[null,"Haricots beurre",null,"Potée de choux",null,"Poêlée forestière",null,"Printanière légumes",null,"Petits pois-carottes",null,"Légumes Léonard",null,"Gratin Dauphinois"]
[null,"Pommes vapeur",null,"Pommes grenaille",null,"Pommes vapeur",null,"Pommes grenaille",null,"Pommes vapeur",null,"Pommes grenaille"]
["Fromages","Roquefort",null,"Camembert",null,"Roquefort",null,"Camembert",null,"Roquefort",null,"Camembert",null,"Roquefort"]
[null,"Emmental",null,"Petit moulé",null,"Emmental",null,"Petit moulé",null,"Emmental",null,"Petit moulé",null,"Emmental"]
[null,"Yaourt nature",null,"Yaourt aux fruits",1,"Yaourt nature",null,"Yaourt aux fruits",null,"Yaourt nature",null,"Yaourt aux fruits",1,"Yaourt nature"]
[null,"Faisselle",null,"Chocolat liégeois",null,"Faisselle",null,"Café liégeois",null,"Faisselle",null,"Chocolat liégeois",null,"Faisselle"]
[null,"Riz au lait",null,"Semoule au lait",null,"Riz au lait",null,"Semoule au lait",null,"Riz au lait",1,"Semoule au lait",null,"Riz au lait",1]
["Desserts","Pomme",null,"Clémentine",null,"Pêche",null,"Poire",null,"Salade de fruits",null,"Banane"]
[null,"Tatin de pommes",null,"Flan caramel",1,"Mousse de fruits",null,"Panna Cota",null,"île flottante",1,"Far Breton",1,"Choux craquelés",1]
[null,"Flan pâtissier",null,"Tropézienne",null,"Kouign Amann",null,"Tarte aux pommes",null,"Crème praliné",null,"Tarte caramel",null,"Paris-Brest"]
[null,"Entremet fruit du jour",null,"Entremet fruit du jour",null,"Entremet fruit du jour",null,"Entremet fruit du jour",null,"Entremet fruit du jour",null,"Entremet fruit du jour"]
[null,"Compote aux fruits",null,"Compote de fruits",null,"Compote aux fruits",null,"Compote aux fruits",null,"Compote de fruits",null,"Compote aux fruits"]
["Pain","Pain",null,"Pain",null,"Pain",null,"Pain",null,"Pain",null,"Pain",null,"Pain"]
["Beurre","Beurre",null,"Beurre",null,"Beurre",null,"Beurre",null,"Beurre",null,"Beurre",null,"Beurre"]
[]
[]
["Total","plats",{"$f":"SUM(C3:C27)","v":0},null,{"$f":"SUM(E3:E27)","v":5},null,{"$f":"SUM(G3:G27)","v":0},null,{"$f":"SUM(I3:I27)","v":0},null,{"$f":"SUM(K3:K27)","v":5},null,{"$f":"SUM(M3:M27)","v":5},null,{"$f":"SUM(O3:O27)","v":5}]
[null,"Beurre",{"$f":"C29","v":0},null,{"$f":"E29","v":0},null,{"$f":"G29","v":0},null,{"$f":"I29","v":0},null,{"$f":"K29","v":0},null,{"$f":"M29","v":0},null,{"$f":"O29","v":0}]

{"sheet":"LE_BRAS_L","index":44,"n_rows":33,"n_cols":15,"rows_kept":33,"cut":false,"hidden":false,"merged":[[1,13,1,14],[1,1,1,2],[1,3,1,4],[1,5,1,6],[1,7,1,8],[1,9,1,10],[1,11,1,12]]}
[]
[null,"Lun 09/10/2017",null,"Mar 10/10/2017",null,"Mer 11/10/2017",null,"Jeu 12/10/2017",null,"Ven 13/10/2017",null,"Sam 14/10/2017",null,"Dim 15/10/2017"]
["Entrées","Sardines à l'huile",null,"Coleslaw",null,"Champignons Grecs",null,"Betteraves",null,"Crêpe champignons",null,"Taboulé"]
[null,"Terrine de légumes",null,"Œuf mayonnaise",null,"Pizza pain",null,"Panier jambon fromage",null,"Crumble saumon",null,"Quiche lorraine",null,"Saumon fumé"]
[null,"Piémontaise",null,"Pdt au thon",null,"Salade surimi",null,"Rillettes poisson",null,"Cocktail de crevettes",null,"Salade paysanne"]
[null,"Charcuterie du jour",null,"Charcuterie du jour",null,"Charcuterie du jour",null,"Charcuterie du jour",null,"Charcuterie du jour",null,"Charcuterie du jour",null,"Salade tomates maïs"]
[null,"Potage du jour",null,"Potage du jour",null,"Potage du jour",null,"Potage du jour",null,"Potage du jour",null,"Potage du jour",null,"Potage du jour"]
["Plats",null,null,"Meunière de colin",null,"Poisson a la bordelaise",null,"Colin à la Parisienne",null,"Brandade de morue",null,"Filet flétan meunière"]
[null,"Suprême de poulet",null,"Brochette de bœuf",null,"Blanquette de veau",null,"Poulet Basquaise",null,"Brochette de volaille",null,"Rôti de porc",null,"Saumon beurre-blanc"]
[null,"Jambon grillé",null,"Jambon blanc",null,"Jambon grillé",null,"Jambon blanc",null,"Jambon grillé",null,"Jambon blanc"]
[null,"Steak à poêler (Cru)",null,"Steak à poêler (cru)",null,"Steak à poêler (Cru)",null,"Steak à poêler (Cru)",null,"Steak à poêler (Cru)",null,"Steak à poêler (Cru)",null,"Jambon persillé"]
[null,"Poisson du jour/citron",null,"Poisson du jour/citron",null,"Poisson du jour/citron",null,"Poisson du jour/citron",null,"Poisson du jour/citron",null,"Poisson du jour/citron"]
["Garnitures","Pâtes au beurre",null,"Riz au beurre",null,"Pâtes au beurre",null,"Riz au beurre",null,"Pâtes au beurre",null,"Riz au beurre"]
[null,"Purée patates douces",null,"Purée pdt",null,"Purée de carottes",null,"Purée de céleri",null,"Purée de brocolis",null,"Purée haricots verts",null,"Riz pilaf"]
[null,"Choux romanesco",null,"Lentilles",null,"Carottes Parisiennes",null,"Salsifis",null,"Ratatouille",null,"Poêlée courgettes"]
[null,"Haricots beurre",null,"Potée de choux",null,"Poêlée forestière",null,"Printanière légumes",null,"Petits pois-carottes",null,"Légumes Léonard",null,"Gratin Dauphinois"]
[null,"Pommes vapeur",null,"Pommes grenaille",null,"Pommes vapeur",null,"Pommes grenaille",null,"Pommes vapeur",null,"Pommes grenaille"]
["Fromages","Roquefort",null,"Camembert",null,"Roquefort",null,"Camembert",null,"Roquefort",null,"Camembert",null,"Roquefort"]
[null,"Emmental",null,"Petit moulé",null,"Emmental",null,"Petit moulé",null,"Emmental",null,"Petit moulé",null,"Emmental"]
[null,"Yaourt nature",null,"Yaourt aux fruits",null,"Yaourt nature",null,"Yaourt aux fruits",null,"Yaourt nature",null,"Yaourt aux fruits",null,"Yaourt nature"]
[null,"Faisselle",null,"Chocolat liégeois",null,"Faisselle",null,"Café liégeois",null,"Faisselle",null,"Chocolat liégeois",null,"Faisselle"]
[null,"Riz au lait",null,"Semoule au lait",null,"Riz au lait",null,"Semoule au lait",null,"Riz au lait",null,"Semoule au lait",null,"Riz au lait"]
["Desserts","Pomme",null,"Clémentine",null,"Pêche",null,"Poire",null,"Salade de fruits",null,"Banane"]
[null,"Tatin de pommes",null,"Flan caramel",null,"Mousse de fruits",null,"Panna Cota",null,"île flottante",null,"Far Breton",null,"Choux craquelés"]
[null,"Flan pâtissier",null,"Tropézienne",null,"Kouign Amann",null,"Tarte aux pommes",null,"Crème praliné",null,"Tarte caramel",null,"Paris-Brest"]
[null,"Entremet fruit du jour",null,"Entremet fruit du jour",null,"Entremet fruit du jour",null,"Entremet fruit du jour",null,"Entremet fruit du jour",null,"Entremet fruit du jour"]
[null,"Compote aux fruits",null,"Compote de fruits",null,"Compote aux fruits",null,"Compote aux fruits",null,"Compote de fruits",null,"Compote aux fruits"]
["Pain","Pain",null,"Pain",null,"Pain",null,"Pain",null,"Pain",null,"Pain",null,"Pain"]
["Beurre","Beurre",null,"Beurre",null,"Beurre",null,"Beurre",null,"Beurre",null,"Beurre",null,"Beurre"]
[]
[]
["Total","plats",{"$f":"SUM(C3:C27)","v":0},null,{"$f":"SUM(E3:E27)","v":0},null,{"$f":"SUM(G3:G27)","v":0},null,{"$f":"SUM(I3:I27)","v":0},null,{"$f":"SUM(K3:K27)","v":0},null,{"$f":"SUM(M3:M27)","v":0},null,{"$f":"SUM(O3:O27)","v":0}]
[null,"Beurre",{"$f":"C29","v":0},null,{"$f":"E29","v":0},null,{"$f":"G29","v":0},null,{"$f":"I29","v":0},null,{"$f":"K29","v":0},null,{"$f":"M29","v":0},null,{"$f":"O29","v":0}]

{"sheet":"LE_BRIS_A","index":45,"n_rows":33,"n_cols":15,"rows_kept":33,"cut":false,"hidden":false,"merged":[[1,13,1,14],[1,1,1,2],[1,3,1,4],[1,5,1,6],[1,7,1,8],[1,9,1,10],[1,11,1,12]]}
[]
[null,"Lun 09/10/2017",null,"Mar 10/10/2017",null,"Mer 11/10/2017",null,"Jeu 12/10/2017",null,"Ven 13/10/2017",null,"Sam 14/10/2017",null,"Dim 15/10/2017"]
["Entrées","Sardines à l'huile",null,"Coleslaw",null,"Champignons Grecs",null,"Betteraves",null,"Crêpe champignons",null,"Taboulé"]
[null,"Terrine de légumes",null,"Œuf mayonnaise",null,"Pizza pain",null,"Panier jambon fromage",null,"Crumble saumon",null,"Quiche lorraine",null,"Saumon fumé"]
[null,"Piémontaise",null,"Pdt au thon",null,"Salade surimi",null,"Rillettes poisson",null,"Cocktail de crevettes",null,"Salade paysanne"]
[null,"Charcuterie du jour",null,"Charcuterie du jour",null,"Charcuterie du jour",null,"Charcuterie du jour",null,"Charcuterie du jour",null,"Charcuterie du jour",null,"Salade tomates maïs"]
[null,"Potage du jour",null,"Potage du jour",null,"Potage du jour",null,"Potage du jour",null,"Potage du jour",null,"Potage du jour",null,"Potage du jour"]
["Plats",null,null,"Meunière de colin",2,"Poisson a la bordelaise",null,"Colin à la Parisienne",1,"Brandade de morue",null,"Filet flétan meunière",2]
[null,"Suprême de poulet",1,"Brochette de bœuf",null,"Blanquette de veau",2,"Poulet Basquaise",1,"Brochette de volaille",null,"Rôti de porc",null,"Saumon beurre-blanc"]
[null,"Jambon grillé",1,"Jambon blanc",null,"Jambon grillé",null,"Jambon blanc",null,"Jambon grillé",2,"Jambon blanc"]
[null,"Steak à poêler (Cru)",null,"Steak à poêler (cru)",null,"Steak à poêler (Cru)",null,"Steak à poêler (Cru)",null,"Steak à poêler (Cru)",null,"Steak à poêler (Cru)",null,"Jambon persillé",2]
[null,"Poisson du jour/citron",null,"Poisson du jour/citron",null,"Poisson du jour/citron",null,"Poisson du jour/citron",null,"Poisson du jour/citron",null,"Poisson du jour/citron"]
["Garnitures","Pâtes au beurre",null,"Riz au beurre",null,"Pâtes au beurre",2,"Riz au beurre",null,"Pâtes au beurre",null,"Riz au beurre"]
[null,"Purée patates douces",null,"Purée pdt",null,"Purée de carottes",null,"Purée de céleri",null,"Purée de brocolis",null,"Purée haricots verts",null,"Riz pilaf",2]
[null,"Choux romanesco",null,"Lentilles",2,"Carottes Parisiennes",null,"Salsifis",null,"Ratatouille",1,"Poêlée courgettes"]
[null,"Haricots beurre",1,"Potée de choux",null,"Poêlée forestière",null,"Printanière légumes",2,"Petits pois-carottes",null,"Légumes Léonard",null,"Gratin Dauphinois"]
[null,"Pommes vapeur",1,"Pommes grenaille",null,"Pommes vapeur",null,"Pommes grenaille",null,"Pommes vapeur",1,"Pommes grenaille",2]
["Fromages","Roquefort",null,"Camembert",null,"Roquefort",null,"Camembert",null,"Roquefort",null,"Camembert",null,"Roquefort"]
[null,"Emmental",null,"Petit moulé",null,"Emmental",null,"Petit moulé",null,"Emmental",null,"Petit moulé",null,"Emmental"]
[null,"Yaourt nature",null,"Yaourt aux fruits",null,"Yaourt nature",null,"Yaourt aux fruits",null,"Yaourt nature",null,"Yaourt aux fruits",null,"Yaourt nature"]
[null,"Faisselle",null,"Chocolat liégeois",null,"Faisselle",null,"Café liégeois",null,"Faisselle",null,"Chocolat liégeois",null,"Faisselle"]
[null,"Riz au lait",null,"Semoule au lait",null,"Riz au lait",null,"Semoule au lait",null,"Riz au lait",null,"Semoule au lait",null,"Riz au lait"]
["Desserts","Pomme",null,"Clémentine",null,"Pêche",null,"Poire",null,"Salade de fruits",null,"Banane"]
[null,"Tatin de pommes",null,"Flan caramel",null,"Mousse de fruits",null,"Panna Cota",2,"île flottante",null,"Far Breton",null,"Choux craquelés",1]
[null,"Flan pâtissier",2,"Tropézienne",2,"Kouign Amann",2,"Tarte aux pommes",null,"Crème praliné",2,"Tarte caramel",2,"Paris-Brest",1]
[null,"Entremet fruit du jour",null,"Entremet fruit du jour",null,"Entremet fruit du jour",null,"Entremet fruit du jour",null,"Entremet fruit du jour",null,"Entremet fruit du jour"]
[null,"Compote aux fruits",null,"Compote de fruits",null,"Compote aux fruits",null,"Compote aux fruits",null,"Compote de fruits",null,"Compote aux fruits"]
["Pain","Pain",null,"Pain",null,"Pain",null,"Pain",null,"Pain",null,"Pain",null,"Pain"]
["Beurre","Beurre",null,"Beurre",null,"Beurre",null,"Beurre",null,"Beurre",null,"Beurre",null,"Beurre"]
[]
[]
["Total","plats",{"$f":"SUM(C3:C27)","v":6},null,{"$f":"SUM(E3:E27)","v":6},null,{"$f":"SUM(G3:G27)","v":6},null,{"$f":"SUM(I3:I27)","v":6},null,{"$f":"SUM(K3:K27)","v":6},null,{"$f":"SUM(M3:M27)","v":6},null,{"$f":"SUM(O3:O27)","v":6}]
[null,"Beurre",{"$f":"C29","v":0},null,{"$f":"E29","v":0},null,{"$f":"G29","v":0},null,{"$f":"I29","v":0},null,{"$f":"K29","v":0},null,{"$f":"M29","v":0},null,{"$f":"O29","v":0}]

{"sheet":"LE_GOFF","index":46,"n_rows":33,"n_cols":15,"rows_kept":33,"cut":false,"hidden":false,"merged":[[1,13,1,14],[1,1,1,2],[1,3,1,4],[1,5,1,6],[1,7,1,8],[1,9,1,10],[1,11,1,12]]}
[]
[null,"Lun 09/10/2017",null,"Mar 10/10/2017",null,"Mer 11/10/2017",null,"Jeu 12/10/2017",null,"Ven 13/10/2017",null,"Sam 14/10/2017",null,"Dim 15/10/2017"]
["Entrées","Sardines à l'huile",null,"Coleslaw",null,"Champignons Grecs",null,"Betteraves",null,"Crêpe champignons",null,"Taboulé"]
[null,"Terrine de légumes",null,"Œuf mayonnaise",null,"Pizza pain",null,"Panier jambon fromage",null,"Crumble saumon",null,"Quiche lorraine",null,"Saumon fumé"]
[null,"Piémontaise",null,"Pdt au thon",null,"Salade surimi",null,"Rillettes poisson",null,"Cocktail de crevettes",null,"Salade paysanne"]
[null,"Charcuterie du jour",null,"Charcuterie du jour",null,"Charcuterie du jour",null,"Charcuterie du jour",null,"Charcuterie du jour",null,"Charcuterie du jour",null,"Salade tomates maïs"]
[null,"Potage du jour",null,"Potage du jour",null,"Potage du jour",null,"Potage du jour",null,"Potage du jour",null,"Potage du jour",null,"Potage du jour"]
["Plats",null,null,"Meunière de colin",null,"Poisson a la bordelaise",null,"Colin à la Parisienne",null,"Brandade de morue",null,"Filet flétan meunière"]
[null,"Suprême de poulet",null,"Brochette de bœuf",null,"Blanquette de veau",null,"Poulet Basquaise",null,"Brochette de volaille",null,"Rôti de porc",null,"Saumon beurre-blanc"]
[null,"Jambon grillé",null,"Jambon blanc",null,"Jambon grillé",null,"Jambon blanc",null,"Jambon grillé",null,"Jambon blanc"]
[null,"Steak à poêler (Cru)",null,"Steak à poêler (cru)",null,"Steak à poêler (Cru)",null,"Steak à poêler (Cru)",null,"Steak à poêler (Cru)",null,"Steak à poêler (Cru)",null,"Jambon persillé"]
[null,"Poisson du jour/citron",null,"Poisson du jour/citron",null,"Poisson du jour/citron",null,"Poisson du jour/citron",null,"Poisson du jour/citron",null,"Poisson du jour/citron"]
["Garnitures","Pâtes au beurre",null,"Riz au beurre",null,"Pâtes au beurre",null,"Riz au beurre",null,"Pâtes au beurre",null,"Riz au beurre"]
[null,"Purée patates douces",null,"Purée pdt",null,"Purée de carottes",null,"Purée de céleri",null,"Purée de brocolis",null,"Purée haricots verts",null,"Riz pilaf"]
[null,"Choux romanesco",null,"Lentilles",null,"Carottes Parisiennes",null,"Salsifis",null,"Ratatouille",null,"Poêlée courgettes"]
[null,"Haricots beurre",null,"Potée de choux",null,"Poêlée forestière",null,"Printanière légumes",null,"Petits pois-carottes",null,"Légumes Léonard",null,"Gratin Dauphinois"]
[null,"Pommes vapeur",null,"Pommes grenaille",null,"Pommes vapeur",null,"Pommes grenaille",null,"Pommes vapeur",null,"Pommes grenaille"]
["Fromages","Roquefort",null,"Camembert",null,"Roquefort",null,"Camembert",null,"Roquefort",null,"Camembert",null,"Roquefort"]
[null,"Emmental",null,"Petit moulé",null,"Emmental",null,"Petit moulé",null,"Emmental",null,"Petit moulé",null,"Emmental"]
[null,"Yaourt nature",null,"Yaourt aux fruits",null,"Yaourt nature",null,"Yaourt aux fruits",null,"Yaourt nature",null,"Yaourt aux fruits",null,"Yaourt nature"]
[null,"Faisselle",null,"Chocolat liégeois",null,"Faisselle",null,"Café liégeois",null,"Faisselle",null,"Chocolat liégeois",null,"Faisselle"]
[null,"Riz au lait",null,"Semoule au lait",null,"Riz au lait",null,"Semoule au lait",null,"Riz au lait",null,"Semoule au lait",null,"Riz au lait"]
["Desserts","Pomme",null,"Clémentine",null,"Pêche",null,"Poire",null,"Salade de fruits",null,"Banane"]
[null,"Tatin de pommes",null,"Flan caramel",null,"Mousse de fruits",null,"Panna Cota",null,"île flottante",null,"Far Breton",null,"Choux craquelés"]
[null,"Flan pâtissier",null,"Tropézienne",null,"Kouign Amann",null,"Tarte aux pommes",null,"Crème praliné",null,"Tarte caramel",null,"Paris-Brest"]
[null,"Entremet fruit du jour",null,"Entremet fruit du jour",null,"Entremet fruit du jour",null,"Entremet fruit du jour",null,"Entremet fruit du jour",null,"Entremet fruit du jour"]
[null,"Compote aux fruits",null,"Compote de fruits",null,"Compote aux fruits",null,"Compote aux fruits",null,"Compote de fruits",null,"Compote aux fruits"]
["Pain","Pain",null,"Pain",null,"Pain",null,"Pain",null,"Pain",null,"Pain",null,"Pain"]
["Beurre","Beurre",null,"Beurre",null,"Beurre",null,"Beurre",null,"Beurre",null,"Beurre",null,"Beurre"]
[]
[]
["Total","plats",{"$f":"SUM(C3:C27)","v":0},null,{"$f":"SUM(E3:E27)","v":0},null,{"$f":"SUM(G3:G27)","v":0},null,{"$f":"SUM(I3:I27)","v":0},null,{"$f":"SUM(K3:K27)","v":0},null,{"$f":"SUM(M3:M27)","v":0},null,{"$f":"SUM(O3:O27)","v":0}]
[null,"Beurre",{"$f":"C29","v":0},null,{"$f":"E29","v":0},null,{"$f":"G29","v":0},null,{"$f":"I29","v":0},null,{"$f":"K29","v":0},null,{"$f":"M29","v":0},null,{"$f":"O29","v":0}]

{"sheet":"LE_MAT","index":47,"n_rows":33,"n_cols":15,"rows_kept":33,"cut":false,"hidden":false,"merged":[[1,13,1,14],[1,1,1,2],[1,3,1,4],[1,5,1,6],[1,7,1,8],[1,9,1,10],[1,11,1,12]]}
[]
[null,"Lun 09/10/2017",null,"Mar 10/10/2017",null,"Mer 11/10/2017",null,"Jeu 12/10/2017",null,"Ven 13/10/2017",null,"Sam 14/10/2017",null,"Dim 15/10/2017"]
["Entrées","Sardines à l'huile",null,"Coleslaw",null,"Champignons Grecs",1,"Betteraves",1,"Crêpe champignons",null,"Taboulé"]
[null,"Terrine de légumes",1,"Œuf mayonnaise",1,"Pizza pain",null,"Panier jambon fromage",null,"Crumble saumon",null,"Quiche lorraine",null,"Saumon fumé",1]
[null,"Piémontaise",null,"Pdt au thon",null,"Salade surimi",null,"Rillettes poisson",null,"Cocktail de crevettes",1,"Salade paysanne"]
[null,"Charcuterie du jour",null,"Charcuterie du jour",null,"Charcuterie du jour",null,"Charcuterie du jour",null,"Charcuterie du jour",null,"Charcuterie du jour",1,"Salade tomates maïs"]
[null,"Potage du jour",null,"Potage du jour",null,"Potage du jour",null,"Potage du jour",null,"Potage du jour",null,"Potage du jour",null,"Potage du jour"]
["Plats",null,null,"Meunière de colin",null,"Poisson a la bordelaise",null,"Colin à la Parisienne",null,"Brandade de morue",null,"Filet flétan meunière"]
[null,"Suprême de poulet",1,"Brochette de bœuf",1,"Blanquette de veau",1,"Poulet Basquaise",1,"Brochette de volaille",1,"Rôti de porc",1,"Saumon beurre-blanc",1]
[null,"Jambon grillé",null,"Jambon blanc",null,"Jambon grillé",null,"Jambon blanc",null,"Jambon grillé",null,"Jambon blanc"]
[null,"Steak à poêler (Cru)",null,"Steak à poêler (cru)",null,"Steak à poêler (Cru)",null,"Steak à poêler (Cru)",null,"Steak à poêler (Cru)",null,"Steak à poêler (Cru)",null,"Jambon persillé",1]
[null,"Poisson du jour/citron",null,"Poisson du jour/citron",null,"Poisson du jour/citron",null,"Poisson du jour/citron",null,"Poisson du jour/citron",null,"Poisson du jour/citron"]
["Garnitures","Pâtes au beurre",null,"Riz au beurre",null,"Pâtes au beurre",null,"Riz au beurre",null,"Pâtes au beurre",1,"Riz au beurre"]
[null,"Purée patates douces",null,"Purée pdt",null,"Purée de carottes",null,"Purée de céleri",null,"Purée de brocolis",null,"Purée haricots verts",null,"Riz pilaf"]
[null,"Choux romanesco",null,"Lentilles",null,"Carottes Parisiennes",null,"Salsifis",null,"Ratatouille",null,"Poêlée courgettes",1]
[null,"Haricots beurre",1,"Potée de choux",null,"Poêlée forestière",null,"Printanière légumes",null,"Petits pois-carottes",null,"Légumes Léonard",null,"Gratin Dauphinois"]
[null,"Pommes vapeur",null,"Pommes grenaille",1,"Pommes vapeur",1,"Pommes grenaille",1,"Pommes vapeur",null,"Pommes grenaille"]
["Fromages","Roquefort",null,"Camembert",null,"Roquefort",null,"Camembert",null,"Roquefort",null,"Camembert",null,"Roquefort"]
[null,"Emmental",null,"Petit moulé",null,"Emmental",null,"Petit moulé",null,"Emmental",null,"Petit moulé",null,"Emmental"]
[null,"Yaourt nature",null,"Yaourt aux fruits",null,"Yaourt nature",null,"Yaourt aux fruits",null,"Yaourt nature",null,"Yaourt aux fruits",null,"Yaourt nature"]
[null,"Faisselle",null,"Chocolat liégeois",null,"Faisselle",null,"Café liégeois",1,"Faisselle",null,"Chocolat liégeois",1,"Faisselle"]
[null,"Riz au lait",null,"Semoule au lait",1,"Riz au lait",null,"Semoule au lait",null,"Riz au lait",1,"Semoule au lait",null,"Riz au lait"]
["Desserts","Pomme",null,"Clémentine",null,"Pêche",null,"Poire",null,"Salade de fruits",null,"Banane"]
[null,"Tatin de pommes",null,"Flan caramel",null,"Mousse de fruits",null,"Panna Cota",null,"île flottante",null,"Far Breton",null,"Choux craquelés"]
[null,"Flan pâtissier",null,"Tropézienne",null,"Kouign Amann",null,"Tarte aux pommes",null,"Crème praliné",null,"Tarte caramel",null,"Paris-Brest",1]
[null,"Entremet fruit du jour",1,"Entremet fruit du jour",null,"Entremet fruit du jour",1,"Entremet fruit du jour",null,"Entremet fruit du jour",null,"Entremet fruit du jour"]
[null,"Compote aux fruits",null,"Compote de fruits",null,"Compote aux fruits",null,"Compote aux fruits",null,"Compote de fruits",null,"Compote aux fruits"]
["Pain","Pain",null,"Pain",null,"Pain",null,"Pain",null,"Pain",null,"Pain",null,"Pain"]
["Beurre","Beurre",null,"Beurre",null,"Beurre",null,"Beurre",null,"Beurre",null,"Beurre",null,"Beurre"]
[]
[]
["Total","plats",{"$f":"SUM(C3:C27)","v":4},null,{"$f":"SUM(E3:E27)","v":4},null,{"$f":"SUM(G3:G27)","v":4},null,{"$f":"SUM(I3:I27)","v":4},null,{"$f":"SUM(K3:K27)","v":4},null,{"$f":"SUM(M3:M27)","v":4},null,{"$f":"SUM(O3:O27)","v":4}]
[null,"Beurre",{"$f":"C29","v":0},null,{"$f":"E29","v":0},null,{"$f":"G29","v":0},null,{"$f":"I29","v":0},null,{"$f":"K29","v":0},null,{"$f":"M29","v":0},null,{"$f":"O29","v":0}]

{"sheet":"LE_ROUX","index":48,"n_rows":33,"n_cols":15,"rows_kept":33,"cut":false,"hidden":false,"merged":[[1,13,1,14],[1,1,1,2],[1,3,1,4],[1,5,1,6],[1,7,1,8],[1,9,1,10],[1,11,1,12]]}
[]
[null,"Lun 09/10/2017",null,"Mar 10/10/2017",null,"Mer 11/10/2017",null,"Jeu 12/10/2017",null,"Ven 13/10/2017",null,"Sam 14/10/2017",null,"Dim 15/10/2017"]
["Entrées","Sardines à l'huile",null,"Coleslaw",null,"Champignons Grecs",null,"Betteraves",null,"Crêpe champignons",null,"Taboulé"]
[null,"Terrine de légumes",null,"Œuf mayonnaise",null,"Pizza pain",null,"Panier jambon fromage",null,"Crumble saumon",null,"Quiche lorraine",null,"Saumon fumé"]
[null,"Piémontaise",null,"Pdt au thon",null,"Salade surimi",null,"Rillettes poisson",null,"Cocktail de crevettes",null,"Salade paysanne"]
[null,"Charcuterie du jour",null,"Charcuterie du jour",null,"Charcuterie du jour",null,"Charcuterie du jour",null,"Charcuterie du jour",null,"Charcuterie du jour",null,"Salade tomates maïs"]
[null,"Potage du jour",null,"Potage du jour",null,"Potage du jour",null,"Potage du jour",null,"Potage du jour",null,"Potage du jour",null,"Potage du jour"]
["Plats",null,null,"Meunière de colin",null,"Poisson a la bordelaise",null,"Colin à la Parisienne",null,"Brandade de morue",null,"Filet flétan meunière"]
[null,"Suprême de poulet",null,"Brochette de bœuf",null,"Blanquette de veau",null,"Poulet Basquaise",null,"Brochette de volaille",null,"Rôti de porc",null,"Saumon beurre-blanc"]
[null,"Jambon grillé",null,"Jambon blanc",null,"Jambon grillé",null,"Jambon blanc",null,"Jambon grillé",null,"Jambon blanc"]
[null,"Steak à poêler (Cru)",null,"Steak à poêler (cru)",null,"Steak à poêler (Cru)",null,"Steak à poêler (Cru)",null,"Steak à poêler (Cru)",null,"Steak à poêler (Cru)",null,"Jambon persillé"]
[null,"Poisson du jour/citron",null,"Poisson du jour/citron",null,"Poisson du jour/citron",null,"Poisson du jour/citron",null,"Poisson du jour/citron",null,"Poisson du jour/citron"]
["Garnitures","Pâtes au beurre",null,"Riz au beurre",null,"Pâtes au beurre",null,"Riz au beurre",null,"Pâtes au beurre",null,"Riz au beurre"]
[null,"Purée patates douces",null,"Purée pdt",null,"Purée de carottes",null,"Purée de céleri",null,"Purée de brocolis",null,"Purée haricots verts",null,"Riz pilaf"]
[null,"Choux romanesco",null,"Lentilles",null,"Carottes Parisiennes",null,"Salsifis",null,"Ratatouille",null,"Poêlée courgettes"]
[null,"Haricots beurre",null,"Potée de choux",null,"Poêlée forestière",null,"Printanière légumes",null,"Petits pois-carottes",null,"Légumes Léonard",null,"Gratin Dauphinois"]
[null,"Pommes vapeur",null,"Pommes grenaille",null,"Pommes vapeur",null,"Pommes grenaille",null,"Pommes vapeur",null,"Pommes grenaille"]
["Fromages","Roquefort",null,"Camembert",null,"Roquefort",null,"Camembert",null,"Roquefort",null,"Camembert",null,"Roquefort"]
[null,"Emmental",null,"Petit moulé",null,"Emmental",null,"Petit moulé",null,"Emmental",null,"Petit moulé",null,"Emmental"]
[null,"Yaourt nature",null,"Yaourt aux fruits",null,"Yaourt nature",null,"Yaourt aux fruits",null,"Yaourt nature",null,"Yaourt aux fruits",null,"Yaourt nature"]
[null,"Faisselle",null,"Chocolat liégeois",null,"Faisselle",null,"Café liégeois",null,"Faisselle",null,"Chocolat liégeois",null,"Faisselle"]
[null,"Riz au lait",null,"Semoule au lait",null,"Riz au lait",null,"Semoule au lait",null,"Riz au lait",null,"Semoule au lait",null,"Riz au lait"]
["Desserts","Pomme",null,"Clémentine",null,"Pêche",null,"Poire",null,"Salade de fruits",null,"Banane"]
[null,"Tatin de pommes",null,"Flan caramel",null,"Mousse de fruits",null,"Panna Cota",null,"île flottante",null,"Far Breton",null,"Choux craquelés"]
[null,"Flan pâtissier",null,"Tropézienne",null,"Kouign Amann",null,"Tarte aux pommes",null,"Crème praliné",null,"Tarte caramel",null,"Paris-Brest"]
[null,"Entremet fruit du jour",null,"Entremet fruit du jour",null,"Entremet fruit du jour",null,"Entremet fruit du jour",null,"Entremet fruit du jour",null,"Entremet fruit du jour"]
[null,"Compote aux fruits",null,"Compote de fruits",null,"Compote aux fruits",null,"Compote aux fruits",null,"Compote de fruits",null,"Compote aux fruits"]
["Pain","Pain",null,"Pain",null,"Pain",null,"Pain",null,"Pain",null,"Pain",null,"Pain"]
["Beurre","Beurre",null,"Beurre",null,"Beurre",null,"Beurre",null,"Beurre",null,"Beurre",null,"Beurre"]
[]
[]
["Total","plats",{"$f":"SUM(C3:C27)","v":0},null,{"$f":"SUM(E3:E27)","v":0},null,{"$f":"SUM(G3:G27)","v":0},null,{"$f":"SUM(I3:I27)","v":0},null,{"$f":"SUM(K3:K27)","v":0},null,{"$f":"SUM(M3:M27)","v":0},null,{"$f":"SUM(O3:O27)","v":0}]
[null,"Beurre",{"$f":"C29","v":0},null,{"$f":"E29","v":0},null,{"$f":"G29","v":0},null,{"$f":"I29","v":0},null,{"$f":"K29","v":0},null,{"$f":"M29","v":0},null,{"$f":"O29","v":0}]

{"sheet":"L'HERMITE","index":49,"n_rows":33,"n_cols":15,"rows_kept":33,"cut":false,"hidden":false,"merged":[[1,13,1,14],[1,1,1,2],[1,3,1,4],[1,5,1,6],[1,7,1,8],[1,9,1,10],[1,11,1,12]]}
[]
[null,"Lun 09/10/2017",null,"Mar 10/10/2017",null,"Mer 11/10/2017",null,"Jeu 12/10/2017",null,"Ven 13/10/2017",null,"Sam 14/10/2017",null,"Dim 15/10/2017"]
["Entrées","Sardines à l'huile",null,"Coleslaw",null,"Champignons Grecs",null,"Betteraves",1,"Crêpe champignons",1,"Taboulé"]
[null,"Terrine de légumes",null,"Œuf mayonnaise",null,"Pizza pain",null,"Panier jambon fromage",null,"Crumble saumon",null,"Quiche lorraine",1,"Saumon fumé"]
[null,"Piémontaise",1,"Pdt au thon",1,"Salade surimi",null,"Rillettes poisson",null,"Cocktail de crevettes",null,"Salade paysanne"]
[null,"Charcuterie du jour",null,"Charcuterie du jour",null,"Charcuterie du jour",null,"Charcuterie du jour",null,"Charcuterie du jour",null,"Charcuterie du jour",null,"Salade tomates maïs",1]
[null,"Potage du jour",null,"Potage du jour",null,"Potage du jour",null,"Potage du jour",null,"Potage du jour",null,"Potage du jour",null,"Potage du jour"]
["Plats",null,null,"Meunière de colin",null,"Poisson a la bordelaise",null,"Colin à la Parisienne",null,"Brandade de morue",1,"Filet flétan meunière"]
[null,"Suprême de poulet",1,"Brochette de bœuf",null,"Blanquette de veau",null,"Poulet Basquaise",1,"Brochette de volaille",null,"Rôti de porc",1,"Saumon beurre-blanc",1]
[null,"Jambon grillé",null,"Jambon blanc",null,"Jambon grillé",null,"Jambon blanc",null,"Jambon grillé",null,"Jambon blanc"]
[null,"Steak à poêler (Cru)",null,"Steak à poêler (cru)",null,"Steak à poêler (Cru)",null,"Steak à poêler (Cru)",null,"Steak à poêler (Cru)",null,"Steak à poêler (Cru)",null,"Jambon persillé"]
[null,"Poisson du jour/citron",null,"Poisson du jour/citron",null,"Poisson du jour/citron",null,"Poisson du jour/citron",null,"Poisson du jour/citron",null,"Poisson du jour/citron"]
["Garnitures","Pâtes au beurre",null,"Riz au beurre",null,"Pâtes au beurre",null,"Riz au beurre",null,"Pâtes au beurre",null,"Riz au beurre"]
[null,"Purée patates douces",null,"Purée pdt",1,"Purée de carottes",null,"Purée de céleri",null,"Purée de brocolis",1,"Purée haricots verts",null,"Riz pilaf"]
[null,"Choux romanesco",1,"Lentilles",null,"Carottes Parisiennes",null,"Salsifis",1,"Ratatouille",null,"Poêlée courgettes"]
[null,"Haricots beurre",null,"Potée de choux",null,"Poêlée forestière",null,"Printanière légumes",null,"Petits pois-carottes",null,"Légumes Léonard",1,"Gratin Dauphinois",1]
[null,"Pommes vapeur",null,"Pommes grenaille",null,"Pommes vapeur",null,"Pommes grenaille",null,"Pommes vapeur",null,"Pommes grenaille"]
["Fromages","Roquefort",null,"Camembert",1,"Roquefort",null,"Camembert",null,"Roquefort",null,"Camembert",null,"Roquefort"]
[null,"Emmental",1,"Petit moulé",null,"Emmental",null,"Petit moulé",null,"Emmental",1,"Petit moulé",null,"Emmental",1]
[null,"Yaourt nature",null,"Yaourt aux fruits",null,"Yaourt nature",null,"Yaourt aux fruits",1,"Yaourt nature",null,"Yaourt aux fruits",1,"Yaourt nature"]
[null,"Faisselle",null,"Chocolat liégeois",null,"Faisselle",null,"Café liégeois",null,"Faisselle",null,"Chocolat liégeois",null,"Faisselle"]
[null,"Riz au lait",null,"Semoule au lait",null,"Riz au lait",null,"Semoule au lait",null,"Riz au lait",null,"Semoule au lait",null,"Riz au lait"]
["Desserts","Pomme",null,"Clémentine",null,"Pêche",null,"Poire",null,"Salade de fruits",null,"Banane",1]
[null,"Tatin de pommes",null,"Flan caramel",null,"Mousse de fruits",null,"Panna Cota",1,"île flottante",1,"Far Breton",null,"Choux craquelés"]
[null,"Flan pâtissier",1,"Tropézienne",1,"Kouign Amann",null,"Tarte aux pommes",null,"Crème praliné",null,"Tarte caramel",null,"Paris-Brest"]
[null,"Entremet fruit du jour",null,"Entremet fruit du jour",null,"Entremet fruit du jour",null,"Entremet fruit du jour",null,"Entremet fruit du jour",null,"Entremet fruit du jour"]
[null,"Compote aux fruits",null,"Compote de fruits",null,"Compote aux fruits",null,"Compote aux fruits",null,"Compote de fruits",null,"Compote aux fruits"]
["Pain","Pain",null,"Pain",null,"Pain",null,"Pain",null,"Pain",null,"Pain",null,"Pain"]
["Beurre","Beurre",null,"Beurre",null,"Beurre",null,"Beurre",null,"Beurre",null,"Beurre",null,"Beurre"]
[]
[]
["Total","plats",{"$f":"SUM(C3:C27)","v":5},null,{"$f":"SUM(E3:E27)","v":4},null,{"$f":"SUM(G3:G27)","v":0},null,{"$f":"SUM(I3:I27)","v":5},null,{"$f":"SUM(K3:K27)","v":5},null,{"$f":"SUM(M3:M27)","v":5},null,{"$f":"SUM(O3:O27)","v":4}]
[null,"Beurre",{"$f":"C29","v":0},null,{"$f":"E29","v":0},null,{"$f":"G29","v":0},null,{"$f":"I29","v":0},null,{"$f":"K29","v":0},null,{"$f":"M29","v":0},null,{"$f":"O29","v":0}]

{"sheet":"LE_SAOUT Mr Mme","index":50,"n_rows":33,"n_cols":15,"rows_kept":33,"cut":false,"hidden":false,"merged":[[1,13,1,14],[1,1,1,2],[1,3,1,4],[1,5,1,6],[1,7,1,8],[1,9,1,10],[1,11,1,12]]}
[]
[null,"Lun 09/10/2017",null,"Mar 10/10/2017",null,"Mer 11/10/2017",null,"Jeu 12/10/2017",null,"Ven 13/10/2017",null,"Sam 14/10/2017",null,"Dim 15/10/2017"]
["Entrées","Sardines à l'huile",null,"Coleslaw",1,"Champignons Grecs",null,"Betteraves",1,"Crêpe champignons",null,"Taboulé"]
[null,"Terrine de légumes",null,"Œuf mayonnaise",null,"Pizza pain",null,"Panier jambon fromage",null,"Crumble saumon",1,"Quiche lorraine",null,"Saumon fumé"]
[null,"Piémontaise",1,"Pdt au thon",1,"Salade surimi",2,"Rillettes poisson",null,"Cocktail de crevettes",null,"Salade paysanne"]
[null,"Charcuterie du jour",null,"Charcuterie du jour",null,"Charcuterie du jour",null,"Charcuterie du jour",null,"Charcuterie du jour",1,"Charcuterie du jour",null,"Salade tomates maïs"]
[null,"Potage du jour",1,"Potage du jour",null,"Potage du jour",null,"Potage du jour",1,"Potage du jour",null,"Potage du jour",null,"Potage du jour"]
["Plats",null,null,"Meunière de colin",1,"Poisson a la bordelaise",null,"Colin à la Parisienne",null,"Brandade de morue",null,"Filet flétan meunière"]
[null,"Suprême de poulet",2,"Brochette de bœuf",null,"Blanquette de veau",2,"Poulet Basquaise",2,"Brochette de volaille",1,"Rôti de porc",null,"Saumon beurre-blanc"]
[null,"Jambon grillé",null,"Jambon blanc",1,"Jambon grillé",null,"Jambon blanc",null,"Jambon grillé",null,"Jambon blanc"]
[null,"Steak à poêler (Cru)",null,"Steak à poêler (cru)",null,"Steak à poêler (Cru)",null,"Steak à poêler (Cru)",null,"Steak à poêler (Cru)",null,"Steak à poêler (Cru)",null,"Jambon persillé"]
[null,"Poisson du jour/citron",null,"Poisson du jour/citron",null,"Poisson du jour/citron",null,"Poisson du jour/citron",null,"Poisson du jour/citron",1,"Poisson du jour/citron"]
["Garnitures","Pâtes au beurre",null,"Riz au beurre",1,"Pâtes au beurre",1,"Riz au beurre",1,"Pâtes au beurre",null,"Riz au beurre"]
[null,"Purée patates douces",2,"Purée pdt",1,"Purée de carottes",1,"Purée de céleri",null,"Purée de brocolis",2,"Purée haricots verts",null,"Riz pilaf"]
[null,"Choux romanesco",null,"Lentilles",null,"Carottes Parisiennes",null,"Salsifis",1,"Ratatouille",null,"Poêlée courgettes"]
[null,"Haricots beurre",null,"Potée de choux",null,"Poêlée forestière",null,"Printanière légumes",null,"Petits pois-carottes",null,"Légumes Léonard",null,"Gratin Dauphinois"]
[null,"Pommes vapeur",null,"Pommes grenaille",null,"Pommes vapeur",null,"Pommes grenaille",null,"Pommes vapeur",null,"Pommes grenaille"]
["Fromages","Roquefort",null,"Camembert",null,"Roquefort",null,"Camembert",null,"Roquefort",null,"Camembert",null,"Roquefort"]
[null,"Emmental",null,"Petit moulé",null,"Emmental",null,"Petit moulé",null,"Emmental",null,"Petit moulé",null,"Emmental"]
[null,"Yaourt nature",null,"Yaourt aux fruits",null,"Yaourt nature",null,"Yaourt aux fruits",null,"Yaourt nature",null,"Yaourt aux fruits",null,"Yaourt nature"]
[null,"Faisselle",null,"Chocolat liégeois",null,"Faisselle",null,"Café liégeois",null,"Faisselle",null,"Chocolat liégeois",null,"Faisselle"]
[null,"Riz au lait",null,"Semoule au lait",null,"Riz au lait",null,"Semoule au lait",null,"Riz au lait",null,"Semoule au lait",null,"Riz au lait"]
["Desserts","Pomme",null,"Clémentine",null,"Pêche",1,"Poire",null,"Salade de fruits",null,"Banane"]
[null,"Tatin de pommes",1,"Flan caramel",null,"Mousse de fruits",null,"Panna Cota",1,"île flottante",null,"Far Breton",null,"Choux craquelés"]
[null,"Flan pâtissier",1,"Tropézienne",2,"Kouign Amann",1,"Tarte aux pommes",1,"Crème praliné",2,"Tarte caramel",null,"Paris-Brest"]
[null,"Entremet fruit du jour",null,"Entremet fruit du jour",null,"Entremet fruit du jour",null,"Entremet fruit du jour",null,"Entremet fruit du jour",null,"Entremet fruit du jour"]
[null,"Compote aux fruits",null,"Compote de fruits",null,"Compote aux fruits",null,"Compote aux fruits",null,"Compote de fruits",null,"Compote aux fruits"]
["Pain","Pain",null,"Pain",null,"Pain",null,"Pain",null,"Pain",null,"Pain",null,"Pain"]
["Beurre","Beurre",null,"Beurre",null,"Beurre",null,"Beurre",null,"Beurre",null,"Beurre",null,"Beurre"]
[]
[]
["Total","plats",{"$f":"SUM(C3:C27)","v":8},null,{"$f":"SUM(E3:E27)","v":8},null,{"$f":"SUM(G3:G27)","v":8},null,{"$f":"SUM(I3:I27)","v":8},null,{"$f":"SUM(K3:K27)","v":8},null,{"$f":"SUM(M3:M27)","v":0},null,{"$f":"SUM(O3:O27)","v":0}]
[null,"Beurre",{"$f":"C29","v":0},null,{"$f":"E29","v":0},null,{"$f":"G29","v":0},null,{"$f":"I29","v":0},null,{"$f":"K29","v":0},null,{"$f":"M29","v":0},null,{"$f":"O29","v":0}]

{"sheet":"MARHIC Robert","index":51,"n_rows":33,"n_cols":15,"rows_kept":33,"cut":false,"hidden":false,"merged":[[1,13,1,14],[1,1,1,2],[1,3,1,4],[1,5,1,6],[1,7,1,8],[1,9,1,10],[1,11,1,12]]}
[]
[null,"Lun 09/10/2017",null,"Mar 10/10/2017",null,"Mer 11/10/2017",null,"Jeu 12/10/2017",null,"Ven 13/10/2017",null,"Sam 14/10/2017",null,"Dim 15/10/2017"]
["Entrées","Sardines à l'huile",null,"Coleslaw",null,"Champignons Grecs",null,"Betteraves",1,"Crêpe champignons",1,"Taboulé",1]
[null,"Terrine de légumes",null,"Œuf mayonnaise",null,"Pizza pain",null,"Panier jambon fromage",null,"Crumble saumon",null,"Quiche lorraine",null,"Saumon fumé"]
[null,"Piémontaise",1,"Pdt au thon",1,"Salade surimi",1,"Rillettes poisson",null,"Cocktail de crevettes",null,"Salade paysanne"]
[null,"Charcuterie du jour",null,"Charcuterie du jour",null,"Charcuterie du jour",null,"Charcuterie du jour",null,"Charcuterie du jour",null,"Charcuterie du jour",null,"Salade tomates maïs",1]
[null,"Potage du jour",null,"Potage du jour",null,"Potage du jour",null,"Potage du jour",null,"Potage du jour",null,"Potage du jour",null,"Potage du jour"]
["Plats",null,null,"Meunière de colin",null,"Poisson a la bordelaise",null,"Colin à la Parisienne",null,"Brandade de morue",null,"Filet flétan meunière"]
[null,"Suprême de poulet",1,"Brochette de bœuf",1,"Blanquette de veau",1,"Poulet Basquaise",1,"Brochette de volaille",1,"Rôti de porc",1,"Saumon beurre-blanc"]
[null,"Jambon grillé",null,"Jambon blanc",null,"Jambon grillé",null,"Jambon blanc",null,"Jambon grillé",null,"Jambon blanc"]
[null,"Steak à poêler (Cru)",null,"Steak à poêler (cru)",null,"Steak à poêler (Cru)",null,"Steak à poêler (Cru)",null,"Steak à poêler (Cru)",null,"Steak à poêler (Cru)",null,"Jambon persillé",1]
[null,"Poisson du jour/citron",null,"Poisson du jour/citron",null,"Poisson du jour/citron",null,"Poisson du jour/citron",null,"Poisson du jour/citron",null,"Poisson du jour/citron"]
["Garnitures","Pâtes au beurre",null,"Riz au beurre",null,"Pâtes au beurre",1,"Riz au beurre",1,"Pâtes au beurre",null,"Riz au beurre"]
[null,"Purée patates douces",null,"Purée pdt",1,"Purée de carottes",null,"Purée de céleri",null,"Purée de brocolis",null,"Purée haricots verts",1,"Riz pilaf"]
[null,"Choux romanesco",null,"Lentilles",null,"Carottes Parisiennes",null,"Salsifis",null,"Ratatouille",1,"Poêlée courgettes"]
[null,"Haricots beurre",1,"Potée de choux",null,"Poêlée forestière",null,"Printanière légumes",null,"Petits pois-carottes",null,"Légumes Léonard",null,"Gratin Dauphinois",1]
[null,"Pommes vapeur",null,"Pommes grenaille",null,"Pommes vapeur",null,"Pommes grenaille",null,"Pommes vapeur",null,"Pommes grenaille"]
["Fromages","Roquefort",null,"Camembert",null,"Roquefort",null,"Camembert",null,"Roquefort",null,"Camembert",null,"Roquefort"]
[null,"Emmental",null,"Petit moulé",null,"Emmental",null,"Petit moulé",null,"Emmental",null,"Petit moulé",null,"Emmental"]
[null,"Yaourt nature",1,"Yaourt aux fruits",1,"Yaourt nature",1,"Yaourt aux fruits",null,"Yaourt nature",1,"Yaourt aux fruits",null,"Yaourt nature",1]
[null,"Faisselle",null,"Chocolat liégeois",null,"Faisselle",null,"Café liégeois",1,"Faisselle",null,"Chocolat liégeois",1,"Faisselle"]
[null,"Riz au lait",null,"Semoule au lait",null,"Riz au lait",null,"Semoule au lait",null,"Riz au lait",null,"Semoule au lait",null,"Riz au lait"]
["Desserts","Pomme",1,"Clémentine",1,"Pêche",1,"Poire",1,"Salade de fruits",1,"Banane",1]
[null,"Tatin de pommes",null,"Flan caramel",null,"Mousse de fruits",null,"Panna Cota",null,"île flottante",null,"Far Breton",null,"Choux craquelés"]
[null,"Flan pâtissier",null,"Tropézienne",null,"Kouign Amann",null,"Tarte aux pommes",null,"Crème praliné",null,"Tarte caramel",null,"Paris-Brest",1]
[null,"Entremet fruit du jour",null,"Entremet fruit du jour",null,"Entremet fruit du jour",null,"Entremet fruit du jour",null,"Entremet fruit du jour",null,"Entremet fruit du jour"]
[null,"Compote aux fruits",null,"Compote de fruits",null,"Compote aux fruits",null,"Compote aux fruits",null,"Compote de fruits",null,"Compote aux fruits"]
["Pain","Pain",null,"Pain",null,"Pain",null,"Pain",null,"Pain",null,"Pain",null,"Pain"]
["Beurre","Beurre",null,"Beurre",null,"Beurre",null,"Beurre",null,"Beurre",null,"Beurre",null,"Beurre"]
[]
[]
["Total","plats",{"$f":"SUM(C3:C27)","v":5},null,{"$f":"SUM(E3:E27)","v":5},null,{"$f":"SUM(G3:G27)","v":5},null,{"$f":"SUM(I3:I27)","v":5},null,{"$f":"SUM(K3:K27)","v":5},null,{"$f":"SUM(M3:M27)","v":5},null,{"$f":"SUM(O3:O27)","v":5}]
[null,"Beurre",{"$f":"C29","v":0},null,{"$f":"E29","v":0},null,{"$f":"G29","v":0},null,{"$f":"I29","v":0},null,{"$f":"K29","v":0},null,{"$f":"M29","v":0},null,{"$f":"O29","v":0}]

{"sheet":"MARSALET","index":52,"n_rows":33,"n_cols":15,"rows_kept":33,"cut":false,"hidden":false,"merged":[[1,13,1,14],[1,1,1,2],[1,3,1,4],[1,5,1,6],[1,7,1,8],[1,9,1,10],[1,11,1,12]]}
[]
[null,"Lun 09/10/2017",null,"Mar 10/10/2017",null,"Mer 11/10/2017",null,"Jeu 12/10/2017",null,"Ven 13/10/2017",null,"Sam 14/10/2017",null,"Dim 15/10/2017"]
["Entrées","Sardines à l'huile",null,"Coleslaw",null,"Champignons Grecs",null,"Betteraves",null,"Crêpe champignons",null,"Taboulé"]
[null,"Terrine de légumes",null,"Œuf mayonnaise",null,"Pizza pain",null,"Panier jambon fromage",null,"Crumble saumon",null,"Quiche lorraine",null,"Saumon fumé"]
[null,"Piémontaise",null,"Pdt au thon",null,"Salade surimi",null,"Rillettes poisson",null,"Cocktail de crevettes",null,"Salade paysanne"]
[null,"Charcuterie du jour",null,"Charcuterie du jour",null,"Charcuterie du jour",null,"Charcuterie du jour",null,"Charcuterie du jour",null,"Charcuterie du jour",null,"Salade tomates maïs"]
[null,"Potage du jour",null,"Potage du jour",null,"Potage du jour",null,"Potage du jour",null,"Potage du jour",null,"Potage du jour",null,"Potage du jour"]
["Plats",null,null,"Meunière de colin",null,"Poisson a la bordelaise",null,"Colin à la Parisienne",null,"Brandade de morue",null,"Filet flétan meunière"]
[null,"Suprême de poulet",null,"Brochette de bœuf",null,"Blanquette de veau",null,"Poulet Basquaise",null,"Brochette de volaille",null,"Rôti de porc",null,"Saumon beurre-blanc"]
[null,"Jambon grillé",null,"Jambon blanc",null,"Jambon grillé",null,"Jambon blanc",null,"Jambon grillé",null,"Jambon blanc"]
[null,"Steak à poêler (Cru)",null,"Steak à poêler (cru)",null,"Steak à poêler (Cru)",null,"Steak à poêler (Cru)",null,"Steak à poêler (Cru)",null,"Steak à poêler (Cru)",null,"Jambon persillé"]
[null,"Poisson du jour/citron",null,"Poisson du jour/citron",null,"Poisson du jour/citron",null,"Poisson du jour/citron",null,"Poisson du jour/citron",null,"Poisson du jour/citron"]
["Garnitures","Pâtes au beurre",null,"Riz au beurre",null,"Pâtes au beurre",null,"Riz au beurre",null,"Pâtes au beurre",null,"Riz au beurre"]
[null,"Purée patates douces",null,"Purée pdt",null,"Purée de carottes",null,"Purée de céleri",null,"Purée de brocolis",null,"Purée haricots verts",null,"Riz pilaf"]
[null,"Choux romanesco",null,"Lentilles",null,"Carottes Parisiennes",null,"Salsifis",null,"Ratatouille",null,"Poêlée courgettes"]
[null,"Haricots beurre",null,"Potée de choux",null,"Poêlée forestière",null,"Printanière légumes",null,"Petits pois-carottes",null,"Légumes Léonard",null,"Gratin Dauphinois"]
[null,"Pommes vapeur",null,"Pommes grenaille",null,"Pommes vapeur",null,"Pommes grenaille",null,"Pommes vapeur",null,"Pommes grenaille"]
["Fromages","Roquefort",null,"Camembert",null,"Roquefort",null,"Camembert",null,"Roquefort",null,"Camembert",null,"Roquefort"]
[null,"Emmental",null,"Petit moulé",null,"Emmental",null,"Petit moulé",null,"Emmental",null,"Petit moulé",null,"Emmental"]
[null,"Yaourt nature",null,"Yaourt aux fruits",null,"Yaourt nature",null,"Yaourt aux fruits",null,"Yaourt nature",null,"Yaourt aux fruits",null,"Yaourt nature"]
[null,"Faisselle",null,"Chocolat liégeois",null,"Faisselle",null,"Café liégeois",null,"Faisselle",null,"Chocolat liégeois",null,"Faisselle"]
[null,"Riz au lait",null,"Semoule au lait",null,"Riz au lait",null,"Semoule au lait",null,"Riz au lait",null,"Semoule au lait",null,"Riz au lait"]
["Desserts","Pomme",null,"Clémentine",null,"Pêche",null,"Poire",null,"Salade de fruits",null,"Banane"]
[null,"Tatin de pommes",null,"Flan caramel",null,"Mousse de fruits",null,"Panna Cota",null,"île flottante",null,"Far Breton",null,"Choux craquelés"]
[null,"Flan pâtissier",null,"Tropézienne",null,"Kouign Amann",null,"Tarte aux pommes",null,"Crème praliné",null,"Tarte caramel",null,"Paris-Brest"]
[null,"Entremet fruit du jour",null,"Entremet fruit du jour",null,"Entremet fruit du jour",null,"Entremet fruit du jour",null,"Entremet fruit du jour",null,"Entremet fruit du jour"]
[null,"Compote aux fruits",null,"Compote de fruits",null,"Compote aux fruits",null,"Compote aux fruits",null,"Compote de fruits",null,"Compote aux fruits"]
["Pain","Pain",null,"Pain",null,"Pain",null,"Pain",null,"Pain",null,"Pain",null,"Pain"]
["Beurre","Beurre",null,"Beurre",null,"Beurre",null,"Beurre",null,"Beurre",null,"Beurre",null,"Beurre"]
[]
[]
["Total","plats",{"$f":"SUM(C3:C27)","v":0},null,{"$f":"SUM(E3:E27)","v":0},null,{"$f":"SUM(G3:G27)","v":0},null,{"$f":"SUM(I3:I27)","v":0},null,{"$f":"SUM(K3:K27)","v":0},null,{"$f":"SUM(M3:M27)","v":0},null,{"$f":"SUM(O3:O27)","v":0}]
[null,"Beurre",{"$f":"C29","v":0},null,{"$f":"E29","v":0},null,{"$f":"G29","v":0},null,{"$f":"I29","v":0},null,{"$f":"K29","v":0},null,{"$f":"M29","v":0},null,{"$f":"O29","v":0}]

{"sheet":"MEMIN","index":53,"n_rows":33,"n_cols":15,"rows_kept":33,"cut":false,"hidden":false,"merged":[[1,13,1,14],[1,1,1,2],[1,3,1,4],[1,5,1,6],[1,7,1,8],[1,9,1,10],[1,11,1,12]]}
[]
[null,"Lun 09/10/2017",null,"Mar 10/10/2017",null,"Mer 11/10/2017",null,"Jeu 12/10/2017",null,"Ven 13/10/2017",null,"Sam 14/10/2017",null,"Dim 15/10/2017"]
["Entrées","Sardines à l'huile",null,"Coleslaw",null,"Champignons Grecs",null,"Betteraves",null,"Crêpe champignons",null,"Taboulé"]
[null,"Terrine de légumes",null,"Œuf mayonnaise",null,"Pizza pain",null,"Panier jambon fromage",null,"Crumble saumon",null,"Quiche lorraine",null,"Saumon fumé"]
[null,"Piémontaise",null,"Pdt au thon",null,"Salade surimi",null,"Rillettes poisson",null,"Cocktail de crevettes",null,"Salade paysanne"]
[null,"Charcuterie du jour",null,"Charcuterie du jour",null,"Charcuterie du jour",null,"Charcuterie du jour",null,"Charcuterie du jour",null,"Charcuterie du jour",null,"Salade tomates maïs"]
[null,"Potage du jour",null,"Potage du jour",null,"Potage du jour",null,"Potage du jour",null,"Potage du jour",null,"Potage du jour",null,"Potage du jour"]
["Plats",null,null,"Meunière de colin",null,"Poisson a la bordelaise",null,"Colin à la Parisienne",null,"Brandade de morue",null,"Filet flétan meunière"]
[null,"Suprême de poulet",null,"Brochette de bœuf",null,"Blanquette de veau",null,"Poulet Basquaise",null,"Brochette de volaille",null,"Rôti de porc",null,"Saumon beurre-blanc"]
[null,"Jambon grillé",null,"Jambon blanc",null,"Jambon grillé",null,"Jambon blanc",null,"Jambon grillé",null,"Jambon blanc"]
[null,"Steak à poêler (Cru)",null,"Steak à poêler (cru)",null,"Steak à poêler (Cru)",null,"Steak à poêler (Cru)",null,"Steak à poêler (Cru)",null,"Steak à poêler (Cru)",null,"Jambon persillé"]
[null,"Poisson du jour/citron",null,"Poisson du jour/citron",null,"Poisson du jour/citron",null,"Poisson du jour/citron",null,"Poisson du jour/citron",null,"Poisson du jour/citron"]
["Garnitures","Pâtes au beurre",null,"Riz au beurre",null,"Pâtes au beurre",null,"Riz au beurre",null,"Pâtes au beurre",null,"Riz au beurre"]
[null,"Purée patates douces",null,"Purée pdt",null,"Purée de carottes",null,"Purée de céleri",null,"Purée de brocolis",null,"Purée haricots verts",null,"Riz pilaf"]
[null,"Choux romanesco",null,"Lentilles",null,"Carottes Parisiennes",null,"Salsifis",null,"Ratatouille",null,"Poêlée courgettes"]
[null,"Haricots beurre",null,"Potée de choux",null,"Poêlée forestière",null,"Printanière légumes",null,"Petits pois-carottes",null,"Légumes Léonard",null,"Gratin Dauphinois"]
[null,"Pommes vapeur",null,"Pommes grenaille",null,"Pommes vapeur",null,"Pommes grenaille",null,"Pommes vapeur",null,"Pommes grenaille"]
["Fromages","Roquefort",null,"Camembert",null,"Roquefort",null,"Camembert",null,"Roquefort",null,"Camembert",null,"Roquefort"]
[null,"Emmental",null,"Petit moulé",null,"Emmental",null,"Petit moulé",null,"Emmental",null,"Petit moulé",null,"Emmental"]
[null,"Yaourt nature",null,"Yaourt aux fruits",null,"Yaourt nature",null,"Yaourt aux fruits",null,"Yaourt nature",null,"Yaourt aux fruits",null,"Yaourt nature"]
[null,"Faisselle",null,"Chocolat liégeois",null,"Faisselle",null,"Café liégeois",null,"Faisselle",null,"Chocolat liégeois",null,"Faisselle"]
[null,"Riz au lait",null,"Semoule au lait",null,"Riz au lait",null,"Semoule au lait",null,"Riz au lait",null,"Semoule au lait",null,"Riz au lait"]
["Desserts","Pomme",null,"Clémentine",null,"Pêche",null,"Poire",null,"Salade de fruits",null,"Banane"]
[null,"Tatin de pommes",null,"Flan caramel",null,"Mousse de fruits",null,"Panna Cota",null,"île flottante",null,"Far Breton",null,"Choux craquelés"]
[null,"Flan pâtissier",null,"Tropézienne",null,"Kouign Amann",null,"Tarte aux pommes",null,"Crème praliné",null,"Tarte caramel",null,"Paris-Brest"]
[null,"Entremet fruit du jour",null,"Entremet fruit du jour",null,"Entremet fruit du jour",null,"Entremet fruit du jour",null,"Entremet fruit du jour",null,"Entremet fruit du jour"]
[null,"Compote aux fruits",null,"Compote de fruits",null,"Compote aux fruits",null,"Compote aux fruits",null,"Compote de fruits",null,"Compote aux fruits"]
["Pain","Pain",null,"Pain",null,"Pain",null,"Pain",null,"Pain",null,"Pain",null,"Pain"]
["Beurre","Beurre",null,"Beurre",null,"Beurre",null,"Beurre",null,"Beurre",null,"Beurre",null,"Beurre"]
[]
[]
["Total","plats",{"$f":"SUM(C3:C27)","v":0},null,{"$f":"SUM(E3:E27)","v":0},null,{"$f":"SUM(G3:G27)","v":0},null,{"$f":"SUM(I3:I27)","v":0},null,{"$f":"SUM(K3:K27)","v":0},null,{"$f":"SUM(M3:M27)","v":0},null,{"$f":"SUM(O3:O27)","v":0}]
[null,"Beurre",{"$f":"C29","v":0},null,{"$f":"E29","v":0},null,{"$f":"G29","v":0},null,{"$f":"I29","v":0},null,{"$f":"K29","v":0},null,{"$f":"M29","v":0},null,{"$f":"O29","v":0}]

{"sheet":"MIOSSEC","index":54,"n_rows":33,"n_cols":15,"rows_kept":33,"cut":false,"hidden":false,"merged":[[1,13,1,14],[1,1,1,2],[1,3,1,4],[1,5,1,6],[1,7,1,8],[1,9,1,10],[1,11,1,12]]}
[]
[null,"Lun 09/10/2017",null,"Mar 10/10/2017",null,"Mer 11/10/2017",null,"Jeu 12/10/2017",null,"Ven 13/10/2017",null,"Sam 14/10/2017",null,"Dim 15/10/2017"]
["Entrées","Sardines à l'huile",null,"Coleslaw",null,"Champignons Grecs",null,"Betteraves",null,"Crêpe champignons",null,"Taboulé"]
[null,"Terrine de légumes",null,"Œuf mayonnaise",null,"Pizza pain",null,"Panier jambon fromage",1,"Crumble saumon",null,"Quiche lorraine",1,"Saumon fumé",1]
[null,"Piémontaise",1,"Pdt au thon",1,"Salade surimi",1,"Rillettes poisson",null,"Cocktail de crevettes",1,"Salade paysanne"]
[null,"Charcuterie du jour",null,"Charcuterie du jour",null,"Charcuterie du jour",null,"Charcuterie du jour",null,"Charcuterie du jour",null,"Charcuterie du jour",null,"Salade tomates maïs"]
[null,"Potage du jour",1,"Potage du jour",1,"Potage du jour",1,"Potage du jour",1,"Potage du jour",1,"Potage du jour",1,"Potage du jour",1]
["Plats",null,null,"Meunière de colin",null,"Poisson a la bordelaise",null,"Colin à la Parisienne",null,"Brandade de morue",null,"Filet flétan meunière"]
[null,"Suprême de poulet",1,"Brochette de bœuf",1,"Blanquette de veau",1,"Poulet Basquaise",1,"Brochette de volaille",1,"Rôti de porc",1,"Saumon beurre-blanc"]
[null,"Jambon grillé",null,"Jambon blanc",null,"Jambon grillé",null,"Jambon blanc",null,"Jambon grillé",null,"Jambon blanc"]
[null,"Steak à poêler (Cru)",null,"Steak à poêler (cru)",null,"Steak à poêler (Cru)",null,"Steak à poêler (Cru)",null,"Steak à poêler (Cru)",null,"Steak à poêler (Cru)",null,"Jambon persillé",1]
[null,"Poisson du jour/citron",null,"Poisson du jour/citron",null,"Poisson du jour/citron",null,"Poisson du jour/citron",null,"Poisson du jour/citron",null,"Poisson du jour/citron"]
["Garnitures","Pâtes au beurre",null,"Riz au beurre",null,"Pâtes au beurre",null,"Riz au beurre",1,"Pâtes au beurre",null,"Riz au beurre"]
[null,"Purée patates douces",null,"Purée pdt",null,"Purée de carottes",null,"Purée de céleri",null,"Purée de brocolis",null,"Purée haricots verts",null,"Riz pilaf",1]
[null,"Choux romanesco",null,"Lentilles",null,"Carottes Parisiennes",null,"Salsifis",null,"Ratatouille",null,"Poêlée courgettes",1]
[null,"Haricots beurre",null,"Potée de choux",1,"Poêlée forestière",null,"Printanière légumes",null,"Petits pois-carottes",null,"Légumes Léonard",null,"Gratin Dauphinois"]
[null,"Pommes vapeur",1,"Pommes grenaille",null,"Pommes vapeur",1,"Pommes grenaille",null,"Pommes vapeur",1,"Pommes grenaille"]
["Fromages","Roquefort",null,"Camembert",null,"Roquefort",null,"Camembert",null,"Roquefort",null,"Camembert",null,"Roquefort"]
[null,"Emmental",null,"Petit moulé",null,"Emmental",null,"Petit moulé",null,"Emmental",null,"Petit moulé",null,"Emmental"]
[null,"Yaourt nature",null,"Yaourt aux fruits",null,"Yaourt nature",null,"Yaourt aux fruits",null,"Yaourt nature",null,"Yaourt aux fruits",null,"Yaourt nature"]
[null,"Faisselle",null,"Chocolat liégeois",null,"Faisselle",null,"Café liégeois",null,"Faisselle",null,"Chocolat liégeois",null,"Faisselle"]
[null,"Riz au lait",null,"Semoule au lait",null,"Riz au lait",null,"Semoule au lait",null,"Riz au lait",null,"Semoule au lait",null,"Riz au lait"]
["Desserts","Pomme",null,"Clémentine",null,"Pêche",null,"Poire",null,"Salade de fruits",null,"Banane"]
[null,"Tatin de pommes",null,"Flan caramel",null,"Mousse de fruits",null,"Panna Cota",null,"île flottante",1,"Far Breton",1,"Choux craquelés"]
[null,"Flan pâtissier",1,"Tropézienne",1,"Kouign Amann",1,"Tarte aux pommes",1,"Crème praliné",null,"Tarte caramel",null,"Paris-Brest",1]
[null,"Entremet fruit du jour",null,"Entremet fruit du jour",null,"Entremet fruit du jour",null,"Entremet fruit du jour",null,"Entremet fruit du jour",null,"Entremet fruit du jour"]
[null,"Compote aux fruits",null,"Compote de fruits",null,"Compote aux fruits",null,"Compote aux fruits",null,"Compote de fruits",null,"Compote aux fruits"]
["Pain","Pain",null,"Pain",null,"Pain",null,"Pain",null,"Pain",null,"Pain",null,"Pain"]
["Beurre","Beurre",null,"Beurre",null,"Beurre",null,"Beurre",null,"Beurre",null,"Beurre",null,"Beurre"]
[]
[]
["Total","plats",{"$f":"SUM(C3:C27)","v":5},null,{"$f":"SUM(E3:E27)","v":5},null,{"$f":"SUM(G3:G27)","v":5},null,{"$f":"SUM(I3:I27)","v":5},null,{"$f":"SUM(K3:K27)","v":5},null,{"$f":"SUM(M3:M27)","v":5},null,{"$f":"SUM(O3:O27)","v":5}]
[null,"Beurre",{"$f":"C29","v":0},null,{"$f":"E29","v":0},null,{"$f":"G29","v":0},null,{"$f":"I29","v":0},null,{"$f":"K29","v":0},null,{"$f":"M29","v":0},null,{"$f":"O29","v":0}]

{"sheet":"MOBIAN","index":55,"n_rows":33,"n_cols":15,"rows_kept":33,"cut":false,"hidden":false,"merged":[[1,13,1,14],[1,1,1,2],[1,3,1,4],[1,5,1,6],[1,7,1,8],[1,9,1,10],[1,11,1,12]]}
[]
[null,"Lun 09/10/2017",null,"Mar 10/10/2017",null,"Mer 11/10/2017",null,"Jeu 12/10/2017",null,"Ven 13/10/2017",null,"Sam 14/10/2017",null,"Dim 15/10/2017"]
["Entrées","Sardines à l'huile",null,"Coleslaw",1,"Champignons Grecs",null,"Betteraves",2,"Crêpe champignons",null,"Taboulé"]
[null,"Terrine de légumes",null,"Œuf mayonnaise",null,"Pizza pain",null,"Panier jambon fromage",null,"Crumble saumon",null,"Quiche lorraine",null,"Saumon fumé"]
[null,"Piémontaise",null,"Pdt au thon",null,"Salade surimi",1,"Rillettes poisson",null,"Cocktail de crevettes",null,"Salade paysanne"]
[null,"Charcuterie du jour",null,"Charcuterie du jour",null,"Charcuterie du jour",null,"Charcuterie du jour",null,"Charcuterie du jour",null,"Charcuterie du jour",null,"Salade tomates maïs"]
[null,"Potage du jour",null,"Potage du jour",1,"Potage du jour",1,"Potage du jour",null,"Potage du jour",null,"Potage du jour",null,"Potage du jour"]
["Plats",null,null,"Meunière de colin",2,"Poisson a la bordelaise",1,"Colin à la Parisienne",null,"Brandade de morue",null,"Filet flétan meunière"]
[null,"Suprême de poulet",null,"Brochette de bœuf",null,"Blanquette de veau",1,"Poulet Basquaise",2,"Brochette de volaille",null,"Rôti de porc",null,"Saumon beurre-blanc"]
[null,"Jambon grillé",null,"Jambon blanc",null,"Jambon grillé",null,"Jambon blanc",null,"Jambon grillé",null,"Jambon blanc"]
[null,"Steak à poêler (Cru)",null,"Steak à poêler (cru)",null,"Steak à poêler (Cru)",null,"Steak à poêler (Cru)",null,"Steak à poêler (Cru)",null,"Steak à poêler (Cru)",null,"Jambon persillé"]
[null,"Poisson du jour/citron",null,"Poisson du jour/citron",null,"Poisson du jour/citron",null,"Poisson du jour/citron",null,"Poisson du jour/citron",null,"Poisson du jour/citron"]
["Garnitures","Pâtes au beurre",null,"Riz au beurre",null,"Pâtes au beurre",null,"Riz au beurre",null,"Pâtes au beurre",null,"Riz au beurre"]
[null,"Purée patates douces",null,"Purée pdt",2,"Purée de carottes",null,"Purée de céleri",1,"Purée de brocolis",null,"Purée haricots verts",null,"Riz pilaf"]
[null,"Choux romanesco",null,"Lentilles",null,"Carottes Parisiennes",null,"Salsifis",null,"Ratatouille",null,"Poêlée courgettes"]
[null,"Haricots beurre",null,"Potée de choux",null,"Poêlée forestière",null,"Printanière légumes",1,"Petits pois-carottes",null,"Légumes Léonard",null,"Gratin Dauphinois"]
[null,"Pommes vapeur",null,"Pommes grenaille",null,"Pommes vapeur",2,"Pommes grenaille",null,"Pommes vapeur",null,"Pommes grenaille"]
["Fromages","Roquefort",null,"Camembert",null,"Roquefort",null,"Camembert",null,"Roquefort",null,"Camembert",null,"Roquefort"]
[null,"Emmental",null,"Petit moulé",null,"Emmental",null,"Petit moulé",null,"Emmental",null,"Petit moulé",null,"Emmental"]
[null,"Yaourt nature",null,"Yaourt aux fruits",null,"Yaourt nature",null,"Yaourt aux fruits",null,"Yaourt nature",null,"Yaourt aux fruits",null,"Yaourt nature"]
[null,"Faisselle",null,"Chocolat liégeois",2,"Faisselle",null,"Café liégeois",1,"Faisselle",null,"Chocolat liégeois",null,"Faisselle"]
[null,"Riz au lait",null,"Semoule au lait",null,"Riz au lait",2,"Semoule au lait",1,"Riz au lait",null,"Semoule au lait",null,"Riz au lait"]
["Desserts","Pomme",null,"Clémentine",null,"Pêche",null,"Poire",null,"Salade de fruits",null,"Banane"]
[null,"Tatin de pommes",null,"Flan caramel",null,"Mousse de fruits",null,"Panna Cota",null,"île flottante",null,"Far Breton",null,"Choux craquelés"]
[null,"Flan pâtissier",null,"Tropézienne",2,"Kouign Amann",1,"Tarte aux pommes",null,"Crème praliné",null,"Tarte caramel",null,"Paris-Brest"]
[null,"Entremet fruit du jour",null,"Entremet fruit du jour",null,"Entremet fruit du jour",1,"Entremet fruit du jour",1,"Entremet fruit du jour",null,"Entremet fruit du jour"]
[null,"Compote aux fruits",null,"Compote de fruits",null,"Compote aux fruits",null,"Compote aux fruits",1,"Compote de fruits",null,"Compote aux fruits"]
["Pain","Pain",null,"Pain",null,"Pain",null,"Pain",null,"Pain",null,"Pain",null,"Pain"]
["Beurre","Beurre",null,"Beurre",null,"Beurre",null,"Beurre",null,"Beurre",null,"Beurre",null,"Beurre"]
[]
[]
["Total","plats",{"$f":"SUM(C3:C27)","v":0},null,{"$f":"SUM(E3:E27)","v":10},null,{"$f":"SUM(G3:G27)","v":10},null,{"$f":"SUM(I3:I27)","v":10},null,{"$f":"SUM(K3:K27)","v":0},null,{"$f":"SUM(M3:M27)","v":0},null,{"$f":"SUM(O3:O27)","v":0}]
[null,"Beurre",{"$f":"C29","v":0},null,{"$f":"E29","v":0},null,{"$f":"G29","v":0},null,{"$f":"I29","v":0},null,{"$f":"K29","v":0},null,{"$f":"M29","v":0},null,{"$f":"O29","v":0}]

{"sheet":"MORGANT","index":56,"n_rows":33,"n_cols":15,"rows_kept":33,"cut":false,"hidden":false,"merged":[[1,13,1,14],[1,1,1,2],[1,3,1,4],[1,5,1,6],[1,7,1,8],[1,9,1,10],[1,11,1,12]]}
[]
[null,"Lun 09/10/2017",null,"Mar 10/10/2017",null,"Mer 11/10/2017",null,"Jeu 12/10/2017",null,"Ven 13/10/2017",null,"Sam 14/10/2017",null,"Dim 15/10/2017"]
["Entrées","Sardines à l'huile",null,"Coleslaw",null,"Champignons Grecs",null,"Betteraves",null,"Crêpe champignons",null,"Taboulé"]
[null,"Terrine de légumes",null,"Œuf mayonnaise",null,"Pizza pain",null,"Panier jambon fromage",null,"Crumble saumon",null,"Quiche lorraine",null,"Saumon fumé"]
[null,"Piémontaise",null,"Pdt au thon",null,"Salade surimi",null,"Rillettes poisson",null,"Cocktail de crevettes",null,"Salade paysanne"]
[null,"Charcuterie du jour",null,"Charcuterie du jour",null,"Charcuterie du jour",null,"Charcuterie du jour",null,"Charcuterie du jour",null,"Charcuterie du jour",null,"Salade tomates maïs"]
[null,"Potage du jour",null,"Potage du jour",null,"Potage du jour",null,"Potage du jour",null,"Potage du jour",null,"Potage du jour",null,"Potage du jour"]
["Plats",null,null,"Meunière de colin",null,"Poisson a la bordelaise",null,"Colin à la Parisienne",null,"Brandade de morue",null,"Filet flétan meunière"]
[null,"Suprême de poulet",null,"Brochette de bœuf",null,"Blanquette de veau",null,"Poulet Basquaise",null,"Brochette de volaille",null,"Rôti de porc",null,"Saumon beurre-blanc"]
[null,"Jambon grillé",null,"Jambon blanc",null,"Jambon grillé",null,"Jambon blanc",null,"Jambon grillé",null,"Jambon blanc"]
[null,"Steak à poêler (Cru)",null,"Steak à poêler (cru)",null,"Steak à poêler (Cru)",null,"Steak à poêler (Cru)",null,"Steak à poêler (Cru)",null,"Steak à poêler (Cru)",null,"Jambon persillé"]
[null,"Poisson du jour/citron",null,"Poisson du jour/citron",null,"Poisson du jour/citron",null,"Poisson du jour/citron",null,"Poisson du jour/citron",null,"Poisson du jour/citron"]
["Garnitures","Pâtes au beurre",null,"Riz au beurre",null,"Pâtes au beurre",null,"Riz au beurre",null,"Pâtes au beurre",null,"Riz au beurre"]
[null,"Purée patates douces",null,"Purée pdt",null,"Purée de carottes",null,"Purée de céleri",null,"Purée de brocolis",null,"Purée haricots verts",null,"Riz pilaf"]
[null,"Choux romanesco",null,"Lentilles",null,"Carottes Parisiennes",null,"Salsifis",null,"Ratatouille",null,"Poêlée courgettes"]
[null,"Haricots beurre",null,"Potée de choux",null,"Poêlée forestière",null,"Printanière légumes",null,"Petits pois-carottes",null,"Légumes Léonard",null,"Gratin Dauphinois"]
[null,"Pommes vapeur",null,"Pommes grenaille",null,"Pommes vapeur",null,"Pommes grenaille",null,"Pommes vapeur",null,"Pommes grenaille"]
["Fromages","Roquefort",null,"Camembert",null,"Roquefort",null,"Camembert",null,"Roquefort",null,"Camembert",null,"Roquefort"]
[null,"Emmental",null,"Petit moulé",null,"Emmental",null,"Petit moulé",null,"Emmental",null,"Petit moulé",null,"Emmental"]
[null,"Yaourt nature",null,"Yaourt aux fruits",null,"Yaourt nature",null,"Yaourt aux fruits",null,"Yaourt nature",null,"Yaourt aux fruits",null,"Yaourt nature"]
[null,"Faisselle",null,"Chocolat liégeois",null,"Faisselle",null,"Café liégeois",null,"Faisselle",null,"Chocolat liégeois",null,"Faisselle"]
[null,"Riz au lait",null,"Semoule au lait",null,"Riz au lait",null,"Semoule au lait",null,"Riz au lait",null,"Semoule au lait",null,"Riz au lait"]
["Desserts","Pomme",null,"Clémentine",null,"Pêche",null,"Poire",null,"Salade de fruits",null,"Banane"]
[null,"Tatin de pommes",null,"Flan caramel",null,"Mousse de fruits",null,"Panna Cota",null,"île flottante",null,"Far Breton",null,"Choux craquelés"]
[null,"Flan pâtissier",null,"Tropézienne",null,"Kouign Amann",null,"Tarte aux pommes",null,"Crème praliné",null,"Tarte caramel",null,"Paris-Brest"]
[null,"Entremet fruit du jour",null,"Entremet fruit du jour",null,"Entremet fruit du jour",null,"Entremet fruit du jour",null,"Entremet fruit du jour",null,"Entremet fruit du jour"]
[null,"Compote aux fruits",null,"Compote de fruits",null,"Compote aux fruits",null,"Compote aux fruits",null,"Compote de fruits",null,"Compote aux fruits"]
["Pain","Pain",null,"Pain",null,"Pain",null,"Pain",null,"Pain",null,"Pain",null,"Pain"]
["Beurre","Beurre",null,"Beurre",null,"Beurre",null,"Beurre",null,"Beurre",null,"Beurre",null,"Beurre"]
[]
[]
["Total","plats",{"$f":"SUM(C3:C27)","v":0},null,{"$f":"SUM(E3:E27)","v":0},null,{"$f":"SUM(G3:G27)","v":0},null,{"$f":"SUM(I3:I27)","v":0},null,{"$f":"SUM(K3:K27)","v":0},null,{"$f":"SUM(M3:M27)","v":0},null,{"$f":"SUM(O3:O27)","v":0}]
[null,"Beurre",{"$f":"C29","v":0},null,{"$f":"E29","v":0},null,{"$f":"G29","v":0},null,{"$f":"I29","v":0},null,{"$f":"K29","v":0},null,{"$f":"M29","v":0},null,{"$f":"O29","v":0}]

{"sheet":"MORVAN_AM","index":57,"n_rows":33,"n_cols":15,"rows_kept":33,"cut":false,"hidden":false,"merged":[[1,13,1,14],[1,1,1,2],[1,3,1,4],[1,5,1,6],[1,7,1,8],[1,9,1,10],[1,11,1,12]]}
[]
[null,"Lun 09/10/2017",null,"Mar 10/10/2017",null,"Mer 11/10/2017",null,"Jeu 12/10/2017",null,"Ven 13/10/2017",null,"Sam 14/10/2017",null,"Dim 15/10/2017"]
["Entrées","Sardines à l'huile",null,"Coleslaw",null,"Champignons Grecs",null,"Betteraves",1,"Crêpe champignons",null,"Taboulé"]
[null,"Terrine de légumes",null,"Œuf mayonnaise",null,"Pizza pain",null,"Panier jambon fromage",null,"Crumble saumon",null,"Quiche lorraine",null,"Saumon fumé",1]
[null,"Piémontaise",1,"Pdt au thon",1,"Salade surimi",1,"Rillettes poisson",null,"Cocktail de crevettes",1,"Salade paysanne",1]
[null,"Charcuterie du jour",null,"Charcuterie du jour",null,"Charcuterie du jour",null,"Charcuterie du jour",null,"Charcuterie du jour",null,"Charcuterie du jour",null,"Salade tomates maïs"]
[null,"Potage du jour",null,"Potage du jour",null,"Potage du jour",null,"Potage du jour",null,"Potage du jour",null,"Potage du jour",null,"Potage du jour"]
["Plats",null,null,"Meunière de colin",null,"Poisson a la bordelaise",null,"Colin à la Parisienne",null,"Brandade de morue",null,"Filet flétan meunière",1]
[null,"Suprême de poulet",1,"Brochette de bœuf",null,"Blanquette de veau",1,"Poulet Basquaise",1,"Brochette de volaille",1,"Rôti de porc",null,"Saumon beurre-blanc",1]
[null,"Jambon grillé",null,"Jambon blanc",null,"Jambon grillé",null,"Jambon blanc",null,"Jambon grillé",null,"Jambon blanc"]
[null,"Steak à poêler (Cru)",null,"Steak à poêler (cru)",1,"Steak à poêler (Cru)",null,"Steak à poêler (Cru)",null,"Steak à poêler (Cru)",null,"Steak à poêler (Cru)",null,"Jambon persillé"]
[null,"Poisson du jour/citron",null,"Poisson du jour/citron",null,"Poisson du jour/citron",null,"Poisson du jour/citron",null,"Poisson du jour/citron",null,"Poisson du jour/citron"]
["Garnitures","Pâtes au beurre",null,"Riz au beurre",null,"Pâtes au beurre",null,"Riz au beurre",1,"Pâtes au beurre",null,"Riz au beurre",1]
[null,"Purée patates douces",null,"Purée pdt",null,"Purée de carottes",null,"Purée de céleri",null,"Purée de brocolis",null,"Purée haricots verts",null,"Riz pilaf"]
[null,"Choux romanesco",null,"Lentilles",null,"Carottes Parisiennes",null,"Salsifis",null,"Ratatouille",null,"Poêlée courgettes"]
[null,"Haricots beurre",null,"Potée de choux",null,"Poêlée forestière",1,"Printanière légumes",null,"Petits pois-carottes",null,"Légumes Léonard",null,"Gratin Dauphinois",1]
[null,"Pommes vapeur",1,"Pommes grenaille",1,"Pommes vapeur",null,"Pommes grenaille",null,"Pommes vapeur",1,"Pommes grenaille"]
["Fromages","Roquefort",null,"Camembert",null,"Roquefort",null,"Camembert",null,"Roquefort",null,"Camembert",1,"Roquefort"]
[null,"Emmental",null,"Petit moulé",1,"Emmental",1,"Petit moulé",null,"Emmental",null,"Petit moulé",null,"Emmental"]
[null,"Yaourt nature",null,"Yaourt aux fruits",null,"Yaourt nature",null,"Yaourt aux fruits",null,"Yaourt nature",null,"Yaourt aux fruits",null,"Yaourt nature"]
[null,"Faisselle",null,"Chocolat liégeois",null,"Faisselle",null,"Café liégeois",null,"Faisselle",null,"Chocolat liégeois",null,"Faisselle"]
[null,"Riz au lait",1,"Semoule au lait",null,"Riz au lait",null,"Semoule au lait",1,"Riz au lait",null,"Semoule au lait",null,"Riz au lait"]
["Desserts","Pomme",null,"Clémentine",null,"Pêche",null,"Poire",null,"Salade de fruits",1,"Banane"]
[null,"Tatin de pommes",null,"Flan caramel",null,"Mousse de fruits",null,"Panna Cota",null,"île flottante",null,"Far Breton",null,"Choux craquelés",1]
[null,"Flan pâtissier",null,"Tropézienne",null,"Kouign Amann",null,"Tarte aux pommes",null,"Crème praliné",null,"Tarte caramel",null,"Paris-Brest"]
[null,"Entremet fruit du jour",null,"Entremet fruit du jour",null,"Entremet fruit du jour",null,"Entremet fruit du jour",null,"Entremet fruit du jour",null,"Entremet fruit du jour"]
[null,"Compote aux fruits",null,"Compote de fruits",null,"Compote aux fruits",null,"Compote aux fruits",null,"Compote de fruits",null,"Compote aux fruits"]
["Pain","Pain",null,"Pain",null,"Pain",null,"Pain",null,"Pain",null,"Pain",null,"Pain"]
["Beurre","Beurre",null,"Beurre",null,"Beurre",null,"Beurre",null,"Beurre",null,"Beurre",null,"Beurre"]
[]
[]
["Total","plats",{"$f":"SUM(C3:C27)","v":4},null,{"$f":"SUM(E3:E27)","v":4},null,{"$f":"SUM(G3:G27)","v":4},null,{"$f":"SUM(I3:I27)","v":4},null,{"$f":"SUM(K3:K27)","v":4},null,{"$f":"SUM(M3:M27)","v":4},null,{"$f":"SUM(O3:O27)","v":4}]
[null,"Beurre",{"$f":"C29","v":0},null,{"$f":"E29","v":0},null,{"$f":"G29","v":0},null,{"$f":"I29","v":0},null,{"$f":"K29","v":0},null,{"$f":"M29","v":0},null,{"$f":"O29","v":0}]

{"sheet":"PENNOT","index":58,"n_rows":33,"n_cols":15,"rows_kept":33,"cut":false,"hidden":false,"merged":[[1,13,1,14],[1,1,1,2],[1,3,1,4],[1,5,1,6],[1,7,1,8],[1,9,1,10],[1,11,1,12]]}
[]
[null,"Lun 09/10/2017",null,"Mar 10/10/2017",null,"Mer 11/10/2017",null,"Jeu 12/10/2017",null,"Ven 13/10/2017",null,"Sam 14/10/2017",null,"Dim 15/10/2017"]
["Entrées","Sardines à l'huile",null,"Coleslaw",null,"Champignons Grecs",null,"Betteraves",null,"Crêpe champignons",null,"Taboulé"]
[null,"Terrine de légumes",null,"Œuf mayonnaise",null,"Pizza pain",null,"Panier jambon fromage",null,"Crumble saumon",null,"Quiche lorraine",null,"Saumon fumé"]
[null,"Piémontaise",null,"Pdt au thon",null,"Salade surimi",null,"Rillettes poisson",null,"Cocktail de crevettes",null,"Salade paysanne"]
[null,"Charcuterie du jour",null,"Charcuterie du jour",null,"Charcuterie du jour",null,"Charcuterie du jour",null,"Charcuterie du jour",null,"Charcuterie du jour",null,"Salade tomates maïs"]
[null,"Potage du jour",null,"Potage du jour",null,"Potage du jour",null,"Potage du jour",null,"Potage du jour",null,"Potage du jour",null,"Potage du jour"]
["Plats",null,null,"Meunière de colin",null,"Poisson a la bordelaise",null,"Colin à la Parisienne",null,"Brandade de morue",null,"Filet flétan meunière"]
[null,"Suprême de poulet",null,"Brochette de bœuf",null,"Blanquette de veau",null,"Poulet Basquaise",null,"Brochette de volaille",null,"Rôti de porc",null,"Saumon beurre-blanc"]
[null,"Jambon grillé",null,"Jambon blanc",null,"Jambon grillé",null,"Jambon blanc",null,"Jambon grillé",null,"Jambon blanc"]
[null,"Steak à poêler (Cru)",null,"Steak à poêler (cru)",null,"Steak à poêler (Cru)",null,"Steak à poêler (Cru)",null,"Steak à poêler (Cru)",null,"Steak à poêler (Cru)",null,"Jambon persillé"]
[null,"Poisson du jour/citron",null,"Poisson du jour/citron",null,"Poisson du jour/citron",null,"Poisson du jour/citron",null,"Poisson du jour/citron",null,"Poisson du jour/citron"]
["Garnitures","Pâtes au beurre",null,"Riz au beurre",null,"Pâtes au beurre",null,"Riz au beurre",null,"Pâtes au beurre",null,"Riz au beurre"]
[null,"Purée patates douces",null,"Purée pdt",null,"Purée de carottes",null,"Purée de céleri",null,"Purée de brocolis",null,"Purée haricots verts",null,"Riz pilaf"]
[null,"Choux romanesco",null,"Lentilles",null,"Carottes Parisiennes",null,"Salsifis",null,"Ratatouille",null,"Poêlée courgettes"]
[null,"Haricots beurre",null,"Potée de choux",null,"Poêlée forestière",null,"Printanière légumes",null,"Petits pois-carottes",null,"Légumes Léonard",null,"Gratin Dauphinois"]
[null,"Pommes vapeur",null,"Pommes grenaille",null,"Pommes vapeur",null,"Pommes grenaille",null,"Pommes vapeur",null,"Pommes grenaille"]
["Fromages","Roquefort",null,"Camembert",null,"Roquefort",null,"Camembert",null,"Roquefort",null,"Camembert",null,"Roquefort"]
[null,"Emmental",null,"Petit moulé",null,"Emmental",null,"Petit moulé",null,"Emmental",null,"Petit moulé",null,"Emmental"]
[null,"Yaourt nature",null,"Yaourt aux fruits",null,"Yaourt nature",null,"Yaourt aux fruits",null,"Yaourt nature",null,"Yaourt aux fruits",null,"Yaourt nature"]
[null,"Faisselle",null,"Chocolat liégeois",null,"Faisselle",null,"Café liégeois",null,"Faisselle",null,"Chocolat liégeois",null,"Faisselle"]
[null,"Riz au lait",null,"Semoule au lait",null,"Riz au lait",null,"Semoule au lait",null,"Riz au lait",null,"Semoule au lait",null,"Riz au lait"]
["Desserts","Pomme",null,"Clémentine",null,"Pêche",null,"Poire",null,"Salade de fruits",null,"Banane"]
[null,"Tatin de pommes",null,"Flan caramel",null,"Mousse de fruits",null,"Panna Cota",null,"île flottante",null,"Far Breton",null,"Choux craquelés"]
[null,"Flan pâtissier",null,"Tropézienne",null,"Kouign Amann",null,"Tarte aux pommes",null,"Crème praliné",null,"Tarte caramel",null,"Paris-Brest"]
[null,"Entremet fruit du jour",null,"Entremet fruit du jour",null,"Entremet fruit du jour",null,"Entremet fruit du jour",null,"Entremet fruit du jour",null,"Entremet fruit du jour"]
[null,"Compote aux fruits",null,"Compote de fruits",null,"Compote aux fruits",null,"Compote aux fruits",null,"Compote de fruits",null,"Compote aux fruits"]
["Pain","Pain",null,"Pain",null,"Pain",null,"Pain",null,"Pain",null,"Pain",null,"Pain"]
["Beurre","Beurre",null,"Beurre",null,"Beurre",null,"Beurre",null,"Beurre",null,"Beurre",null,"Beurre"]
[]
[]
["Total","plats",{"$f":"SUM(C3:C27)","v":0},null,{"$f":"SUM(E3:E27)","v":0},null,{"$f":"SUM(G3:G27)","v":0},null,{"$f":"SUM(I3:I27)","v":0},null,{"$f":"SUM(K3:K27)","v":0},null,{"$f":"SUM(M3:M27)","v":0},null,{"$f":"SUM(O3:O27)","v":0}]
[null,"Beurre",{"$f":"C29","v":0},null,{"$f":"E29","v":0},null,{"$f":"G29","v":0},null,{"$f":"I29","v":0},null,{"$f":"K29","v":0},null,{"$f":"M29","v":0},null,{"$f":"O29","v":0}]

{"sheet":"PERROT","index":59,"n_rows":33,"n_cols":15,"rows_kept":33,"cut":false,"hidden":false,"merged":[[1,13,1,14],[1,1,1,2],[1,3,1,4],[1,5,1,6],[1,7,1,8],[1,9,1,10],[1,11,1,12]]}
[]
[null,"Lun 09/10/2017",null,"Mar 10/10/2017",null,"Mer 11/10/2017",null,"Jeu 12/10/2017",null,"Ven 13/10/2017",null,"Sam 14/10/2017",null,"Dim 15/10/2017"]
["Entrées","Sardines à l'huile",1,"Coleslaw",null,"Champignons Grecs",null,"Betteraves",null,"Crêpe champignons",null,"Taboulé"]
[null,"Terrine de légumes",null,"Œuf mayonnaise",null,"Pizza pain",null,"Panier jambon fromage",null,"Crumble saumon",null,"Quiche lorraine",null,"Saumon fumé",1]
[null,"Piémontaise",null,"Pdt au thon",null,"Salade surimi",1,"Rillettes poisson",1,"Cocktail de crevettes",1,"Salade paysanne"]
[null,"Charcuterie du jour",null,"Charcuterie du jour",1,"Charcuterie du jour",null,"Charcuterie du jour",null,"Charcuterie du jour",null,"Charcuterie du jour",1,"Salade tomates maïs"]
[null,"Potage du jour",null,"Potage du jour",null,"Potage du jour",null,"Potage du jour",null,"Potage du jour",null,"Potage du jour",null,"Potage du jour"]
["Plats",null,null,"Meunière de colin",1,"Poisson a la bordelaise",null,"Colin à la Parisienne",1,"Brandade de morue",1,"Filet flétan meunière"]
[null,"Suprême de poulet",1,"Brochette de bœuf",null,"Blanquette de veau",1,"Poulet Basquaise",null,"Brochette de volaille",null,"Rôti de porc",null,"Saumon beurre-blanc",1]
[null,"Jambon grillé",null,"Jambon blanc",null,"Jambon grillé",null,"Jambon blanc",null,"Jambon grillé",null,"Jambon blanc"]
[null,"Steak à poêler (Cru)",null,"Steak à poêler (cru)",null,"Steak à poêler (Cru)",null,"Steak à poêler (Cru)",null,"Steak à poêler (Cru)",null,"Steak à poêler (Cru)",null,"Jambon persillé"]
[null,"Poisson du jour/citron",null,"Poisson du jour/citron",null,"Poisson du jour/citron",null,"Poisson du jour/citron",null,"Poisson du jour/citron",null,"Poisson du jour/citron"]
["Garnitures","Pâtes au beurre",1,"Riz au beurre",null,"Pâtes au beurre",null,"Riz au beurre",null,"Pâtes au beurre",null,"Riz au beurre",1]
[null,"Purée patates douces",null,"Purée pdt",null,"Purée de carottes",1,"Purée de céleri",1,"Purée de brocolis",1,"Purée haricots verts",null,"Riz pilaf",1]
[null,"Choux romanesco",null,"Lentilles",1,"Carottes Parisiennes",null,"Salsifis",null,"Ratatouille",null,"Poêlée courgettes"]
[null,"Haricots beurre",null,"Potée de choux",null,"Poêlée forestière",null,"Printanière légumes",null,"Petits pois-carottes",null,"Légumes Léonard",null,"Gratin Dauphinois"]
[null,"Pommes vapeur",null,"Pommes grenaille",null,"Pommes vapeur",null,"Pommes grenaille",null,"Pommes vapeur",null,"Pommes grenaille"]
["Fromages","Roquefort",null,"Camembert",null,"Roquefort",null,"Camembert",null,"Roquefort",null,"Camembert",null,"Roquefort"]
[null,"Emmental",null,"Petit moulé",null,"Emmental",null,"Petit moulé",null,"Emmental",null,"Petit moulé",null,"Emmental"]
[null,"Yaourt nature",null,"Yaourt aux fruits",null,"Yaourt nature",null,"Yaourt aux fruits",null,"Yaourt nature",null,"Yaourt aux fruits",null,"Yaourt nature"]
[null,"Faisselle",1,"Chocolat liégeois",1,"Faisselle",1,"Café liégeois",1,"Faisselle",1,"Chocolat liégeois",null,"Faisselle"]
[null,"Riz au lait",null,"Semoule au lait",null,"Riz au lait",null,"Semoule au lait",null,"Riz au lait",null,"Semoule au lait",1,"Riz au lait",1]
["Desserts","Pomme",null,"Clémentine",null,"Pêche",null,"Poire",null,"Salade de fruits",null,"Banane"]
[null,"Tatin de pommes",null,"Flan caramel",1,"Mousse de fruits",1,"Panna Cota",1,"île flottante",1,"Far Breton",1,"Choux craquelés"]
[null,"Flan pâtissier",1,"Tropézienne",null,"Kouign Amann",null,"Tarte aux pommes",null,"Crème praliné",null,"Tarte caramel",null,"Paris-Brest",1]
[null,"Entremet fruit du jour",null,"Entremet fruit du jour",null,"Entremet fruit du jour",null,"Entremet fruit du jour",null,"Entremet fruit du jour",null,"Entremet fruit du jour"]
[null,"Compote aux fruits",null,"Compote de fruits",null,"Compote aux fruits",null,"Compote aux fruits",null,"Compote de fruits",null,"Compote aux fruits"]
["Pain","Pain",1,"Pain",1,"Pain",1,"Pain",1,"Pain",1,"Pain",1,"Pain",1]
["Beurre","Beurre",null,"Beurre",null,"Beurre",null,"Beurre",null,"Beurre",null,"Beurre",null,"Beurre"]
[]
[]
["Total","plats",{"$f":"SUM(C3:C27)","v":5},null,{"$f":"SUM(E3:E27)","v":5},null,{"$f":"SUM(G3:G27)","v":5},null,{"$f":"SUM(I3:I27)","v":5},null,{"$f":"SUM(K3:K27)","v":5},null,{"$f":"SUM(M3:M27)","v":4},null,{"$f":"SUM(O3:O27)","v":5}]
[null,"Beurre",{"$f":"C29","v":0},null,{"$f":"E29","v":0},null,{"$f":"G29","v":0},null,{"$f":"I29","v":0},null,{"$f":"K29","v":0},null,{"$f":"M29","v":0},null,{"$f":"O29","v":0}]

{"sheet":"PRIGENT Yvonne","index":60,"n_rows":33,"n_cols":15,"rows_kept":33,"cut":false,"hidden":false,"merged":[[1,13,1,14],[1,1,1,2],[1,3,1,4],[1,5,1,6],[1,7,1,8],[1,9,1,10],[1,11,1,12]]}
[]
[null,"Lun 09/10/2017",null,"Mar 10/10/2017",null,"Mer 11/10/2017",null,"Jeu 12/10/2017",null,"Ven 13/10/2017",null,"Sam 14/10/2017",null,"Dim 15/10/2017"]
["Entrées","Sardines à l'huile",null,"Coleslaw",null,"Champignons Grecs",1,"Betteraves",null,"Crêpe champignons",1,"Taboulé"]
[null,"Terrine de légumes",null,"Œuf mayonnaise",1,"Pizza pain",1,"Panier jambon fromage",1,"Crumble saumon",null,"Quiche lorraine",1,"Saumon fumé",1]
[null,"Piémontaise",1,"Pdt au thon",1,"Salade surimi",null,"Rillettes poisson",null,"Cocktail de crevettes",null,"Salade paysanne",1]
[null,"Charcuterie du jour",null,"Charcuterie du jour",null,"Charcuterie du jour",null,"Charcuterie du jour",null,"Charcuterie du jour",null,"Charcuterie du jour",null,"Salade tomates maïs",1]
[null,"Potage du jour",1,"Potage du jour",null,"Potage du jour",null,"Potage du jour",1,"Potage du jour",1,"Potage du jour",null,"Potage du jour"]
["Plats",null,null,"Meunière de colin",null,"Poisson a la bordelaise",null,"Colin à la Parisienne",null,"Brandade de morue",null,"Filet flétan meunière"]
[null,"Suprême de poulet",1,"Brochette de bœuf",1,"Blanquette de veau",1,"Poulet Basquaise",1,"Brochette de volaille",1,"Rôti de porc",1,"Saumon beurre-blanc"]
[null,"Jambon grillé",null,"Jambon blanc",1,"Jambon grillé",null,"Jambon blanc",2,"Jambon grillé",null,"Jambon blanc",1]
[null,"Steak à poêler (Cru)",null,"Steak à poêler (cru)",null,"Steak à poêler (Cru)",null,"Steak à poêler (Cru)",null,"Steak à poêler (Cru)",null,"Steak à poêler (Cru)",null,"Jambon persillé",1]
[null,"Poisson du jour/citron",null,"Poisson du jour/citron",null,"Poisson du jour/citron",null,"Poisson du jour/citron",null,"Poisson du jour/citron",null,"Poisson du jour/citron"]
["Garnitures","Pâtes au beurre",null,"Riz au beurre",null,"Pâtes au beurre",null,"Riz au beurre",null,"Pâtes au beurre",null,"Riz au beurre"]
[null,"Purée patates douces",null,"Purée pdt",2,"Purée de carottes",null,"Purée de céleri",null,"Purée de brocolis",null,"Purée haricots verts",null,"Riz pilaf"]
[null,"Choux romanesco",null,"Lentilles",null,"Carottes Parisiennes",null,"Salsifis",null,"Ratatouille",2,"Poêlée courgettes",2]
[null,"Haricots beurre",2,"Potée de choux",null,"Poêlée forestière",2,"Printanière légumes",null,"Petits pois-carottes",null,"Légumes Léonard",null,"Gratin Dauphinois",1]
[null,"Pommes vapeur",null,"Pommes grenaille",null,"Pommes vapeur",null,"Pommes grenaille",1,"Pommes vapeur",null,"Pommes grenaille"]
["Fromages","Roquefort",null,"Camembert",null,"Roquefort",null,"Camembert",null,"Roquefort",null,"Camembert",null,"Roquefort"]
[null,"Emmental",1,"Petit moulé",null,"Emmental",1,"Petit moulé",null,"Emmental",1,"Petit moulé",null,"Emmental",1]
[null,"Yaourt nature",null,"Yaourt aux fruits",1,"Yaourt nature",null,"Yaourt aux fruits",1,"Yaourt nature",null,"Yaourt aux fruits",1,"Yaourt nature"]
[null,"Faisselle",null,"Chocolat liégeois",null,"Faisselle",null,"Café liégeois",null,"Faisselle",null,"Chocolat liégeois",null,"Faisselle"]
[null,"Riz au lait",null,"Semoule au lait",null,"Riz au lait",null,"Semoule au lait",null,"Riz au lait",null,"Semoule au lait",null,"Riz au lait"]
["Desserts","Pomme",null,"Clémentine",null,"Pêche",null,"Poire",null,"Salade de fruits",null,"Banane"]
[null,"Tatin de pommes",null,"Flan caramel",null,"Mousse de fruits",1,"Panna Cota",1,"île flottante",null,"Far Breton",null,"Choux craquelés"]
[null,"Flan pâtissier",null,"Tropézienne",null,"Kouign Amann",null,"Tarte aux pommes",null,"Crème praliné",null,"Tarte caramel",null,"Paris-Brest",1]
[null,"Entremet fruit du jour",null,"Entremet fruit du jour",1,"Entremet fruit du jour",null,"Entremet fruit du jour",null,"Entremet fruit du jour",1,"Entremet fruit du jour"]
[null,"Compote aux fruits",1,"Compote de fruits",null,"Compote aux fruits",null,"Compote aux fruits",null,"Compote de fruits",null,"Compote aux fruits",1]
["Pain","Pain",null,"Pain",null,"Pain",null,"Pain",null,"Pain",null,"Pain",null,"Pain"]
["Beurre","Beurre",null,"Beurre",null,"Beurre",null,"Beurre",null,"Beurre",null,"Beurre",null,"Beurre"]
[]
[]
["Total","plats",{"$f":"SUM(C3:C27)","v":7},null,{"$f":"SUM(E3:E27)","v":8},null,{"$f":"SUM(G3:G27)","v":7},null,{"$f":"SUM(I3:I27)","v":8},null,{"$f":"SUM(K3:K27)","v":7},null,{"$f":"SUM(M3:M27)","v":8},null,{"$f":"SUM(O3:O27)","v":6}]
[null,"Beurre",{"$f":"C29","v":0},null,{"$f":"E29","v":0},null,{"$f":"G29","v":0},null,{"$f":"I29","v":0},null,{"$f":"K29","v":0},null,{"$f":"M29","v":0},null,{"$f":"O29","v":0}]

{"sheet":"PEUZIAT","index":61,"n_rows":33,"n_cols":15,"rows_kept":33,"cut":false,"hidden":false,"merged":[[1,13,1,14],[1,1,1,2],[1,3,1,4],[1,5,1,6],[1,7,1,8],[1,9,1,10],[1,11,1,12]]}
[]
[null,"Lun 09/10/2017",null,"Mar 10/10/2017",null,"Mer 11/10/2017",null,"Jeu 12/10/2017",null,"Ven 13/10/2017",null,"Sam 14/10/2017",null,"Dim 15/10/2017"]
["Entrées","Sardines à l'huile",1,"Coleslaw",null,"Champignons Grecs",null,"Betteraves",1,"Crêpe champignons",1,"Taboulé"]
[null,"Terrine de légumes",null,"Œuf mayonnaise",1,"Pizza pain",null,"Panier jambon fromage",1,"Crumble saumon",null,"Quiche lorraine",null,"Saumon fumé"]
[null,"Piémontaise",1,"Pdt au thon",1,"Salade surimi",1,"Rillettes poisson",null,"Cocktail de crevettes",1,"Salade paysanne"]
[null,"Charcuterie du jour",null,"Charcuterie du jour",null,"Charcuterie du jour",1,"Charcuterie du jour",null,"Charcuterie du jour",null,"Charcuterie du jour",null,"Salade tomates maïs"]
[null,"Potage du jour",null,"Potage du jour",null,"Potage du jour",null,"Potage du jour",null,"Potage du jour",null,"Potage du jour",null,"Potage du jour"]
["Plats",null,null,"Meunière de colin",null,"Poisson a la bordelaise",null,"Colin à la Parisienne",null,"Brandade de morue",null,"Filet flétan meunière"]
[null,"Suprême de poulet",1,"Brochette de bœuf",null,"Blanquette de veau",1,"Poulet Basquaise",null,"Brochette de volaille",1,"Rôti de porc",null,"Saumon beurre-blanc"]
[null,"Jambon grillé",null,"Jambon blanc",1,"Jambon grillé",null,"Jambon blanc",1,"Jambon grillé",null,"Jambon blanc"]
[null,"Steak à poêler (Cru)",null,"Steak à poêler (cru)",null,"Steak à poêler (Cru)",null,"Steak à poêler (Cru)",null,"Steak à poêler (Cru)",null,"Steak à poêler (Cru)",null,"Jambon persillé"]
[null,"Poisson du jour/citron",null,"Poisson du jour/citron",null,"Poisson du jour/citron",null,"Poisson du jour/citron",null,"Poisson du jour/citron",null,"Poisson du jour/citron"]
["Garnitures","Pâtes au beurre",null,"Riz au beurre",null,"Pâtes au beurre",null,"Riz au beurre",null,"Pâtes au beurre",null,"Riz au beurre"]
[null,"Purée patates douces",null,"Purée pdt",null,"Purée de carottes",null,"Purée de céleri",null,"Purée de brocolis",null,"Purée haricots verts",null,"Riz pilaf"]
[null,"Choux romanesco",null,"Lentilles",null,"Carottes Parisiennes",null,"Salsifis",null,"Ratatouille",null,"Poêlée courgettes"]
[null,"Haricots beurre",null,"Potée de choux",null,"Poêlée forestière",null,"Printanière légumes",null,"Petits pois-carottes",null,"Légumes Léonard",null,"Gratin Dauphinois"]
[null,"Pommes vapeur",null,"Pommes grenaille",null,"Pommes vapeur",null,"Pommes grenaille",null,"Pommes vapeur",null,"Pommes grenaille"]
["Fromages","Roquefort",null,"Camembert",null,"Roquefort",null,"Camembert",null,"Roquefort",null,"Camembert",null,"Roquefort"]
[null,"Emmental",null,"Petit moulé",null,"Emmental",null,"Petit moulé",null,"Emmental",null,"Petit moulé",null,"Emmental"]
[null,"Yaourt nature",null,"Yaourt aux fruits",null,"Yaourt nature",null,"Yaourt aux fruits",null,"Yaourt nature",null,"Yaourt aux fruits",null,"Yaourt nature"]
[null,"Faisselle",null,"Chocolat liégeois",null,"Faisselle",null,"Café liégeois",null,"Faisselle",null,"Chocolat liégeois",null,"Faisselle"]
[null,"Riz au lait",null,"Semoule au lait",null,"Riz au lait",null,"Semoule au lait",null,"Riz au lait",null,"Semoule au lait",null,"Riz au lait"]
["Desserts","Pomme",null,"Clémentine",null,"Pêche",null,"Poire",null,"Salade de fruits",null,"Banane"]
[null,"Tatin de pommes",null,"Flan caramel",null,"Mousse de fruits",null,"Panna Cota",null,"île flottante",null,"Far Breton",null,"Choux craquelés"]
[null,"Flan pâtissier",null,"Tropézienne",null,"Kouign Amann",null,"Tarte aux pommes",null,"Crème praliné",null,"Tarte caramel",null,"Paris-Brest"]
[null,"Entremet fruit du jour",null,"Entremet fruit du jour",null,"Entremet fruit du jour",null,"Entremet fruit du jour",null,"Entremet fruit du jour",null,"Entremet fruit du jour"]
[null,"Compote aux fruits",null,"Compote de fruits",null,"Compote aux fruits",null,"Compote aux fruits",null,"Compote de fruits",null,"Compote aux fruits"]
["Pain","Pain",null,"Pain",null,"Pain",null,"Pain",null,"Pain",null,"Pain",null,"Pain"]
["Beurre","Beurre",null,"Beurre",null,"Beurre",null,"Beurre",null,"Beurre",null,"Beurre",null,"Beurre"]
[]
[]
["Total","plats",{"$f":"SUM(C3:C27)","v":3},null,{"$f":"SUM(E3:E27)","v":3},null,{"$f":"SUM(G3:G27)","v":3},null,{"$f":"SUM(I3:I27)","v":3},null,{"$f":"SUM(K3:K27)","v":3},null,{"$f":"SUM(M3:M27)","v":0},null,{"$f":"SUM(O3:O27)","v":0}]
[null,"Beurre",{"$f":"C29","v":0},null,{"$f":"E29","v":0},null,{"$f":"G29","v":0},null,{"$f":"I29","v":0},null,{"$f":"K29","v":0},null,{"$f":"M29","v":0},null,{"$f":"O29","v":0}]

{"sheet":"PERAN","index":62,"n_rows":33,"n_cols":15,"rows_kept":33,"cut":false,"hidden":false,"merged":[[1,13,1,14],[1,1,1,2],[1,3,1,4],[1,5,1,6],[1,7,1,8],[1,9,1,10],[1,11,1,12]]}
[]
[null,"Lun 09/10/2017",null,"Mar 10/10/2017",null,"Mer 11/10/2017",null,"Jeu 12/10/2017",null,"Ven 13/10/2017",null,"Sam 14/10/2017",null,"Dim 15/10/2017"]
["Entrées","Sardines à l'huile",null,"Coleslaw",null,"Champignons Grecs",null,"Betteraves",1,"Crêpe champignons",null,"Taboulé"]
[null,"Terrine de légumes",1,"Œuf mayonnaise",null,"Pizza pain",null,"Panier jambon fromage",null,"Crumble saumon",null,"Quiche lorraine",null,"Saumon fumé",1]
[null,"Piémontaise",null,"Pdt au thon",1,"Salade surimi",1,"Rillettes poisson",null,"Cocktail de crevettes",1,"Salade paysanne"]
[null,"Charcuterie du jour",null,"Charcuterie du jour",null,"Charcuterie du jour",null,"Charcuterie du jour",null,"Charcuterie du jour",null,"Charcuterie du jour",1,"Salade tomates maïs"]
[null,"Potage du jour",null,"Potage du jour",null,"Potage du jour",null,"Potage du jour",null,"Potage du jour",null,"Potage du jour",null,"Potage du jour"]
["Plats",null,null,"Meunière de colin",1,"Poisson a la bordelaise",null,"Colin à la Parisienne",1,"Brandade de morue",1,"Filet flétan meunière",1]
[null,"Suprême de poulet",null,"Brochette de bœuf",null,"Blanquette de veau",1,"Poulet Basquaise",null,"Brochette de volaille",null,"Rôti de porc",null,"Saumon beurre-blanc",1]
[null,"Jambon grillé",1,"Jambon blanc",null,"Jambon grillé",null,"Jambon blanc",null,"Jambon grillé",null,"Jambon blanc"]
[null,"Steak à poêler (Cru)",null,"Steak à poêler (cru)",null,"Steak à poêler (Cru)",null,"Steak à poêler (Cru)",null,"Steak à poêler (Cru)",null,"Steak à poêler (Cru)",null,"Jambon persillé"]
[null,"Poisson du jour/citron",null,"Poisson du jour/citron",null,"Poisson du jour/citron",null,"Poisson du jour/citron",null,"Poisson du jour/citron",null,"Poisson du jour/citron"]
["Garnitures","Pâtes au beurre",null,"Riz au beurre",null,"Pâtes au beurre",null,"Riz au beurre",null,"Pâtes au beurre",null,"Riz au beurre"]
[null,"Purée patates douces",1,"Purée pdt",null,"Purée de carottes",1,"Purée de céleri",null,"Purée de brocolis",null,"Purée haricots verts",null,"Riz pilaf"]
[null,"Choux romanesco",null,"Lentilles",1,"Carottes Parisiennes",null,"Salsifis",null,"Ratatouille",1,"Poêlée courgettes"]
[null,"Haricots beurre",null,"Potée de choux",null,"Poêlée forestière",null,"Printanière légumes",null,"Petits pois-carottes",null,"Légumes Léonard",null,"Gratin Dauphinois",1]
[null,"Pommes vapeur",null,"Pommes grenaille",null,"Pommes vapeur",null,"Pommes grenaille",1,"Pommes vapeur",null,"Pommes grenaille",1]
["Fromages","Roquefort",null,"Camembert",null,"Roquefort",null,"Camembert",null,"Roquefort",null,"Camembert",null,"Roquefort"]
[null,"Emmental",null,"Petit moulé",null,"Emmental",null,"Petit moulé",null,"Emmental",null,"Petit moulé",null,"Emmental"]
[null,"Yaourt nature",null,"Yaourt aux fruits",null,"Yaourt nature",null,"Yaourt aux fruits",null,"Yaourt nature",null,"Yaourt aux fruits",null,"Yaourt nature"]
[null,"Faisselle",1,"Chocolat liégeois",null,"Faisselle",null,"Café liégeois",1,"Faisselle",null,"Chocolat liégeois",null,"Faisselle"]
[null,"Riz au lait",null,"Semoule au lait",null,"Riz au lait",null,"Semoule au lait",null,"Riz au lait",null,"Semoule au lait",null,"Riz au lait",1]
["Desserts","Pomme",null,"Clémentine",null,"Pêche",null,"Poire",null,"Salade de fruits",null,"Banane"]
[null,"Tatin de pommes",1,"Flan caramel",null,"Mousse de fruits",1,"Panna Cota",null,"île flottante",1,"Far Breton",null,"Choux craquelés"]
[null,"Flan pâtissier",null,"Tropézienne",1,"Kouign Amann",null,"Tarte aux pommes",1,"Crème praliné",1,"Tarte caramel",1,"Paris-Brest",1]
[null,"Entremet fruit du jour",null,"Entremet fruit du jour",1,"Entremet fruit du jour",1,"Entremet fruit du jour",null,"Entremet fruit du jour",null,"Entremet fruit du jour",1]
[null,"Compote aux fruits",null,"Compote de fruits",null,"Compote aux fruits",null,"Compote aux fruits",null,"Compote de fruits",null,"Compote aux fruits"]
["Pain","Pain",null,"Pain",1,"Pain",null,"Pain",1,"Pain",null,"Pain",null,"Pain"]
["Beurre","Beurre",null,"Beurre",null,"Beurre",null,"Beurre",null,"Beurre",null,"Beurre",null,"Beurre"]
[]
[]
["Total","plats",{"$f":"SUM(C3:C27)","v":5},null,{"$f":"SUM(E3:E27)","v":5},null,{"$f":"SUM(G3:G27)","v":5},null,{"$f":"SUM(I3:I27)","v":5},null,{"$f":"SUM(K3:K27)","v":5},null,{"$f":"SUM(M3:M27)","v":5},null,{"$f":"SUM(O3:O27)","v":5}]
[null,"Beurre",{"$f":"C29","v":0},null,{"$f":"E29","v":0},null,{"$f":"G29","v":0},null,{"$f":"I29","v":0},null,{"$f":"K29","v":0},null,{"$f":"M29","v":0},null,{"$f":"O29","v":0}]

{"sheet":"QUERE_ML","index":63,"n_rows":33,"n_cols":15,"rows_kept":33,"cut":false,"hidden":false,"merged":[[1,13,1,14],[1,1,1,2],[1,3,1,4],[1,5,1,6],[1,7,1,8],[1,9,1,10],[1,11,1,12]]}
[]
[null,"Lun 09/10/2017",null,"Mar 10/10/2017",null,"Mer 11/10/2017",null,"Jeu 12/10/2017",null,"Ven 13/10/2017",null,"Sam 14/10/2017",null,"Dim 15/10/2017"]
["Entrées","Sardines à l'huile",null,"Coleslaw",null,"Champignons Grecs",null,"Betteraves",null,"Crêpe champignons",null,"Taboulé"]
[null,"Terrine de légumes",null,"Œuf mayonnaise",null,"Pizza pain",null,"Panier jambon fromage",null,"Crumble saumon",null,"Quiche lorraine",null,"Saumon fumé"]
[null,"Piémontaise",1,"Pdt au thon",null,"Salade surimi",1,"Rillettes poisson",1,"Cocktail de crevettes",1,"Salade paysanne"]
[null,"Charcuterie du jour",null,"Charcuterie du jour",1,"Charcuterie du jour",null,"Charcuterie du jour",null,"Charcuterie du jour",null,"Charcuterie du jour",null,"Salade tomates maïs"]
[null,"Potage du jour",1,"Potage du jour",null,"Potage du jour",1,"Potage du jour",null,"Potage du jour",1,"Potage du jour",null,"Potage du jour"]
["Plats",null,null,"Meunière de colin",1,"Poisson a la bordelaise",null,"Colin à la Parisienne",null,"Brandade de morue",1,"Filet flétan meunière"]
[null,"Suprême de poulet",1,"Brochette de bœuf",null,"Blanquette de veau",null,"Poulet Basquaise",1,"Brochette de volaille",null,"Rôti de porc",null,"Saumon beurre-blanc"]
[null,"Jambon grillé",null,"Jambon blanc",null,"Jambon grillé",null,"Jambon blanc",null,"Jambon grillé",null,"Jambon blanc"]
[null,"Steak à poêler (Cru)",null,"Steak à poêler (cru)",null,"Steak à poêler (Cru)",1,"Steak à poêler (Cru)",null,"Steak à poêler (Cru)",null,"Steak à poêler (Cru)",null,"Jambon persillé"]
[null,"Poisson du jour/citron",null,"Poisson du jour/citron",null,"Poisson du jour/citron",null,"Poisson du jour/citron",null,"Poisson du jour/citron",null,"Poisson du jour/citron"]
["Garnitures","Pâtes au beurre",null,"Riz au beurre",null,"Pâtes au beurre",null,"Riz au beurre",null,"Pâtes au beurre",null,"Riz au beurre"]
[null,"Purée patates douces",null,"Purée pdt",1,"Purée de carottes",null,"Purée de céleri",1,"Purée de brocolis",null,"Purée haricots verts",null,"Riz pilaf"]
[null,"Choux romanesco",null,"Lentilles",null,"Carottes Parisiennes",1,"Salsifis",null,"Ratatouille",null,"Poêlée courgettes"]
[null,"Haricots beurre",1,"Potée de choux",null,"Poêlée forestière",null,"Printanière légumes",null,"Petits pois-carottes",1,"Légumes Léonard",null,"Gratin Dauphinois"]
[null,"Pommes vapeur",null,"Pommes grenaille",null,"Pommes vapeur",null,"Pommes grenaille",null,"Pommes vapeur",null,"Pommes grenaille"]
["Fromages","Roquefort",null,"Camembert",null,"Roquefort",null,"Camembert",null,"Roquefort",null,"Camembert",null,"Roquefort"]
[null,"Emmental",null,"Petit moulé",null,"Emmental",null,"Petit moulé",null,"Emmental",null,"Petit moulé",null,"Emmental"]
[null,"Yaourt nature",null,"Yaourt aux fruits",null,"Yaourt nature",null,"Yaourt aux fruits",null,"Yaourt nature",null,"Yaourt aux fruits",null,"Yaourt nature"]
[null,"Faisselle",null,"Chocolat liégeois",null,"Faisselle",null,"Café liégeois",null,"Faisselle",null,"Chocolat liégeois",null,"Faisselle"]
[null,"Riz au lait",null,"Semoule au lait",1,"Riz au lait",null,"Semoule au lait",null,"Riz au lait",null,"Semoule au lait",null,"Riz au lait"]
["Desserts","Pomme",null,"Clémentine",null,"Pêche",null,"Poire",null,"Salade de fruits",null,"Banane"]
[null,"Tatin de pommes",null,"Flan caramel",null,"Mousse de fruits",null,"Panna Cota",null,"île flottante",null,"Far Breton",null,"Choux craquelés"]
[null,"Flan pâtissier",null,"Tropézienne",null,"Kouign Amann",null,"Tarte aux pommes",null,"Crème praliné",null,"Tarte caramel",null,"Paris-Brest"]
[null,"Entremet fruit du jour",null,"Entremet fruit du jour",null,"Entremet fruit du jour",null,"Entremet fruit du jour",null,"Entremet fruit du jour",null,"Entremet fruit du jour"]
[null,"Compote aux fruits",null,"Compote de fruits",null,"Compote aux fruits",null,"Compote aux fruits",1,"Compote de fruits",null,"Compote aux fruits"]
["Pain","Pain",null,"Pain",null,"Pain",null,"Pain",null,"Pain",null,"Pain",null,"Pain"]
["Beurre","Beurre",null,"Beurre",null,"Beurre",null,"Beurre",null,"Beurre",null,"Beurre",null,"Beurre"]
[]
[]
["Total","plats",{"$f":"SUM(C3:C27)","v":4},null,{"$f":"SUM(E3:E27)","v":4},null,{"$f":"SUM(G3:G27)","v":4},null,{"$f":"SUM(I3:I27)","v":4},null,{"$f":"SUM(K3:K27)","v":4},null,{"$f":"SUM(M3:M27)","v":0},null,{"$f":"SUM(O3:O27)","v":0}]
[null,"Beurre",{"$f":"C29","v":0},null,{"$f":"E29","v":0},null,{"$f":"G29","v":0},null,{"$f":"I29","v":0},null,{"$f":"K29","v":0},null,{"$f":"M29","v":0},null,{"$f":"O29","v":0}]

{"sheet":"QUINTIN","index":64,"n_rows":33,"n_cols":15,"rows_kept":33,"cut":false,"hidden":false,"merged":[[1,13,1,14],[1,1,1,2],[1,3,1,4],[1,5,1,6],[1,7,1,8],[1,9,1,10],[1,11,1,12]]}
[]
[null,"Lun 09/10/2017",null,"Mar 10/10/2017",null,"Mer 11/10/2017",null,"Jeu 12/10/2017",null,"Ven 13/10/2017",null,"Sam 14/10/2017",null,"Dim 15/10/2017"]
["Entrées","Sardines à l'huile",null,"Coleslaw",null,"Champignons Grecs",null,"Betteraves",null,"Crêpe champignons",null,"Taboulé"]
[null,"Terrine de légumes",null,"Œuf mayonnaise",null,"Pizza pain",null,"Panier jambon fromage",null,"Crumble saumon",null,"Quiche lorraine",null,"Saumon fumé"]
[null,"Piémontaise",null,"Pdt au thon",null,"Salade surimi",null,"Rillettes poisson",null,"Cocktail de crevettes",null,"Salade paysanne"]
[null,"Charcuterie du jour",null,"Charcuterie du jour",null,"Charcuterie du jour",null,"Charcuterie du jour",null,"Charcuterie du jour",null,"Charcuterie du jour",null,"Salade tomates maïs"]
[null,"Potage du jour",null,"Potage du jour",null,"Potage du jour",null,"Potage du jour",null,"Potage du jour",null,"Potage du jour",null,"Potage du jour"]
["Plats",null,null,"Meunière de colin",null,"Poisson a la bordelaise",null,"Colin à la Parisienne",null,"Brandade de morue",null,"Filet flétan meunière"]
[null,"Suprême de poulet",null,"Brochette de bœuf",null,"Blanquette de veau",null,"Poulet Basquaise",null,"Brochette de volaille",null,"Rôti de porc",null,"Saumon beurre-blanc"]
[null,"Jambon grillé",null,"Jambon blanc",null,"Jambon grillé",null,"Jambon blanc",null,"Jambon grillé",null,"Jambon blanc"]
[null,"Steak à poêler (Cru)",null,"Steak à poêler (cru)",null,"Steak à poêler (Cru)",null,"Steak à poêler (Cru)",null,"Steak à poêler (Cru)",null,"Steak à poêler (Cru)",null,"Jambon persillé"]
[null,"Poisson du jour/citron",null,"Poisson du jour/citron",null,"Poisson du jour/citron",null,"Poisson du jour/citron",null,"Poisson du jour/citron",null,"Poisson du jour/citron"]
["Garnitures","Pâtes au beurre",null,"Riz au beurre",null,"Pâtes au beurre",null,"Riz au beurre",null,"Pâtes au beurre",null,"Riz au beurre"]
[null,"Purée patates douces",null,"Purée pdt",null,"Purée de carottes",null,"Purée de céleri",null,"Purée de brocolis",null,"Purée haricots verts",null,"Riz pilaf"]
[null,"Choux romanesco",null,"Lentilles",null,"Carottes Parisiennes",null,"Salsifis",null,"Ratatouille",null,"Poêlée courgettes"]
[null,"Haricots beurre",null,"Potée de choux",null,"Poêlée forestière",null,"Printanière légumes",null,"Petits pois-carottes",null,"Légumes Léonard",null,"Gratin Dauphinois"]
[null,"Pommes vapeur",null,"Pommes grenaille",null,"Pommes vapeur",null,"Pommes grenaille",null,"Pommes vapeur",null,"Pommes grenaille"]
["Fromages","Roquefort",null,"Camembert",null,"Roquefort",null,"Camembert",null,"Roquefort",null,"Camembert",null,"Roquefort"]
[null,"Emmental",null,"Petit moulé",null,"Emmental",null,"Petit moulé",null,"Emmental",null,"Petit moulé",null,"Emmental"]
[null,"Yaourt nature",null,"Yaourt aux fruits",null,"Yaourt nature",null,"Yaourt aux fruits",null,"Yaourt nature",null,"Yaourt aux fruits",null,"Yaourt nature"]
[null,"Faisselle",null,"Chocolat liégeois",null,"Faisselle",null,"Café liégeois",null,"Faisselle",null,"Chocolat liégeois",null,"Faisselle"]
[null,"Riz au lait",null,"Semoule au lait",null,"Riz au lait",null,"Semoule au lait",null,"Riz au lait",null,"Semoule au lait",null,"Riz au lait"]
["Desserts","Pomme",null,"Clémentine",null,"Pêche",null,"Poire",null,"Salade de fruits",null,"Banane"]
[null,"Tatin de pommes",null,"Flan caramel",null,"Mousse de fruits",null,"Panna Cota",null,"île flottante",null,"Far Breton",null,"Choux craquelés"]
[null,"Flan pâtissier",null,"Tropézienne",null,"Kouign Amann",null,"Tarte aux pommes",null,"Crème praliné",null,"Tarte caramel",null,"Paris-Brest"]
[null,"Entremet fruit du jour",null,"Entremet fruit du jour",null,"Entremet fruit du jour",null,"Entremet fruit du jour",null,"Entremet fruit du jour",null,"Entremet fruit du jour"]
[null,"Compote aux fruits",null,"Compote de fruits",null,"Compote aux fruits",null,"Compote aux fruits",null,"Compote de fruits",null,"Compote aux fruits"]
["Pain","Pain",null,"Pain",null,"Pain",null,"Pain",null,"Pain",null,"Pain",null,"Pain"]
["Beurre","Beurre",null,"Beurre",null,"Beurre",null,"Beurre",null,"Beurre",null,"Beurre",null,"Beurre"]
[]
[]
["Total","plats",{"$f":"SUM(C3:C27)","v":0},null,{"$f":"SUM(E3:E27)","v":0},null,{"$f":"SUM(G3:G27)","v":0},null,{"$f":"SUM(I3:I27)","v":0},null,{"$f":"SUM(K3:K27)","v":0},null,{"$f":"SUM(M3:M27)","v":0},null,{"$f":"SUM(O3:O27)","v":0}]
[null,"Beurre",{"$f":"C29","v":0},null,{"$f":"E29","v":0},null,{"$f":"G29","v":0},null,{"$f":"I29","v":0},null,{"$f":"K29","v":0},null,{"$f":"M29","v":0},null,{"$f":"O29","v":0}]

{"sheet":"ROLLAND Marie Thérèse","index":65,"n_rows":33,"n_cols":15,"rows_kept":33,"cut":false,"hidden":false,"merged":[[1,13,1,14],[1,1,1,2],[1,3,1,4],[1,5,1,6],[1,7,1,8],[1,9,1,10],[1,11,1,12]]}
[]
[null,"Lun 09/10/2017",null,"Mar 10/10/2017",null,"Mer 11/10/2017",null,"Jeu 12/10/2017",null,"Ven 13/10/2017",null,"Sam 14/10/2017",null,"Dim 15/10/2017"]
["Entrées","Sardines à l'huile",1,"Coleslaw",null,"Champignons Grecs",null,"Betteraves",null,"Crêpe champignons",null,"Taboulé"]
[null,"Terrine de légumes",null,"Œuf mayonnaise",null,"Pizza pain",null,"Panier jambon fromage",null,"Crumble saumon",null,"Quiche lorraine",1,"Saumon fumé"]
[null,"Piémontaise",null,"Pdt au thon",null,"Salade surimi",null,"Rillettes poisson",null,"Cocktail de crevettes",null,"Salade paysanne"]
[null,"Charcuterie du jour",null,"Charcuterie du jour",null,"Charcuterie du jour",null,"Charcuterie du jour",null,"Charcuterie du jour",null,"Charcuterie du jour",null,"Salade tomates maïs"]
[null,"Potage du jour",null,"Potage du jour",1,"Potage du jour",null,"Potage du jour",1,"Potage du jour",null,"Potage du jour",null,"Potage du jour"]
["Plats",null,null,"Meunière de colin",1,"Poisson a la bordelaise",null,"Colin à la Parisienne",null,"Brandade de morue",null,"Filet flétan meunière",1]
[null,"Suprême de poulet",null,"Brochette de bœuf",null,"Blanquette de veau",null,"Poulet Basquaise",1,"Brochette de volaille",null,"Rôti de porc",null,"Saumon beurre-blanc"]
[null,"Jambon grillé",1,"Jambon blanc",null,"Jambon grillé",null,"Jambon blanc",null,"Jambon grillé",null,"Jambon blanc"]
[null,"Steak à poêler (Cru)",null,"Steak à poêler (cru)",null,"Steak à poêler (Cru)",null,"Steak à poêler (Cru)",null,"Steak à poêler (Cru)",null,"Steak à poêler (Cru)",null,"Jambon persillé"]
[null,"Poisson du jour/citron",null,"Poisson du jour/citron",null,"Poisson du jour/citron",null,"Poisson du jour/citron",null,"Poisson du jour/citron",null,"Poisson du jour/citron"]
["Garnitures","Pâtes au beurre",1,"Riz au beurre",null,"Pâtes au beurre",null,"Riz au beurre",null,"Pâtes au beurre",null,"Riz au beurre",1]
[null,"Purée patates douces",null,"Purée pdt",1,"Purée de carottes",null,"Purée de céleri",null,"Purée de brocolis",null,"Purée haricots verts",null,"Riz pilaf"]
[null,"Choux romanesco",null,"Lentilles",null,"Carottes Parisiennes",null,"Salsifis",null,"Ratatouille",null,"Poêlée courgettes"]
[null,"Haricots beurre",null,"Potée de choux",null,"Poêlée forestière",null,"Printanière légumes",1,"Petits pois-carottes",null,"Légumes Léonard",null,"Gratin Dauphinois"]
[null,"Pommes vapeur",null,"Pommes grenaille",null,"Pommes vapeur",null,"Pommes grenaille",null,"Pommes vapeur",null,"Pommes grenaille"]
["Fromages","Roquefort",null,"Camembert",null,"Roquefort",null,"Camembert",null,"Roquefort",null,"Camembert",1,"Roquefort"]
[null,"Emmental",null,"Petit moulé",null,"Emmental",null,"Petit moulé",null,"Emmental",null,"Petit moulé",null,"Emmental"]
[null,"Yaourt nature",1,"Yaourt aux fruits",1,"Yaourt nature",null,"Yaourt aux fruits",null,"Yaourt nature",null,"Yaourt aux fruits",null,"Yaourt nature"]
[null,"Faisselle",null,"Chocolat liégeois",null,"Faisselle",null,"Café liégeois",null,"Faisselle",null,"Chocolat liégeois",null,"Faisselle"]
[null,"Riz au lait",null,"Semoule au lait",null,"Riz au lait",null,"Semoule au lait",1,"Riz au lait",null,"Semoule au lait",null,"Riz au lait"]
["Desserts","Pomme",null,"Clémentine",null,"Pêche",null,"Poire",null,"Salade de fruits",null,"Banane"]
[null,"Tatin de pommes",1,"Flan caramel",1,"Mousse de fruits",null,"Panna Cota",null,"île flottante",null,"Far Breton",null,"Choux craquelés"]
[null,"Flan pâtissier",null,"Tropézienne",null,"Kouign Amann",null,"Tarte aux pommes",null,"Crème praliné",null,"Tarte caramel",1,"Paris-Brest"]
[null,"Entremet fruit du jour",null,"Entremet fruit du jour",null,"Entremet fruit du jour",null,"Entremet fruit du jour",1,"Entremet fruit du jour",null,"Entremet fruit du jour"]
[null,"Compote aux fruits",null,"Compote de fruits",null,"Compote aux fruits",null,"Compote aux fruits",null,"Compote de fruits",null,"Compote aux fruits"]
["Pain","Pain",null,"Pain",null,"Pain",null,"Pain",null,"Pain",null,"Pain",null,"Pain"]
["Beurre","Beurre",null,"Beurre",null,"Beurre",null,"Beurre",null,"Beurre",null,"Beurre",null,"Beurre"]
[]
[]
["Total","plats",{"$f":"SUM(C3:C27)","v":5},null,{"$f":"SUM(E3:E27)","v":5},null,{"$f":"SUM(G3:G27)","v":0},null,{"$f":"SUM(I3:I27)","v":5},null,{"$f":"SUM(K3:K27)","v":0},null,{"$f":"SUM(M3:M27)","v":5},null,{"$f":"SUM(O3:O27)","v":0}]
[null,"Beurre",{"$f":"C29","v":0},null,{"$f":"E29","v":0},null,{"$f":"G29","v":0},null,{"$f":"I29","v":0},null,{"$f":"K29","v":0},null,{"$f":"M29","v":0},null,{"$f":"O29","v":0}]

{"sheet":"ROZEC_A","index":66,"n_rows":33,"n_cols":15,"rows_kept":33,"cut":false,"hidden":false,"merged":[[1,13,1,14],[1,1,1,2],[1,3,1,4],[1,5,1,6],[1,7,1,8],[1,9,1,10],[1,11,1,12]]}
[]
[null,"Lun 09/10/2017",null,"Mar 10/10/2017",null,"Mer 11/10/2017",null,"Jeu 12/10/2017",null,"Ven 13/10/2017",null,"Sam 14/10/2017",null,"Dim 15/10/2017"]
["Entrées","Sardines à l'huile",null,"Coleslaw",null,"Champignons Grecs",null,"Betteraves",null,"Crêpe champignons",null,"Taboulé"]
[null,"Terrine de légumes",null,"Œuf mayonnaise",null,"Pizza pain",null,"Panier jambon fromage",null,"Crumble saumon",null,"Quiche lorraine",null,"Saumon fumé"]
[null,"Piémontaise",null,"Pdt au thon",null,"Salade surimi",null,"Rillettes poisson",null,"Cocktail de crevettes",null,"Salade paysanne"]
[null,"Charcuterie du jour",null,"Charcuterie du jour",null,"Charcuterie du jour",null,"Charcuterie du jour",null,"Charcuterie du jour",null,"Charcuterie du jour",null,"Salade tomates maïs"]
[null,"Potage du jour",null,"Potage du jour",null,"Potage du jour",null,"Potage du jour",null,"Potage du jour",null,"Potage du jour",null,"Potage du jour"]
["Plats",null,null,"Meunière de colin",null,"Poisson a la bordelaise",1,"Colin à la Parisienne",null,"Brandade de morue",1,"Filet flétan meunière"]
[null,"Suprême de poulet",null,"Brochette de bœuf",null,"Blanquette de veau",null,"Poulet Basquaise",null,"Brochette de volaille",null,"Rôti de porc",null,"Saumon beurre-blanc"]
[null,"Jambon grillé",null,"Jambon blanc",null,"Jambon grillé",null,"Jambon blanc",null,"Jambon grillé",null,"Jambon blanc"]
[null,"Steak à poêler (Cru)",null,"Steak à poêler (cru)",1,"Steak à poêler (Cru)",null,"Steak à poêler (Cru)",null,"Steak à poêler (Cru)",null,"Steak à poêler (Cru)",1,"Jambon persillé"]
[null,"Poisson du jour/citron",null,"Poisson du jour/citron",null,"Poisson du jour/citron",null,"Poisson du jour/citron",null,"Poisson du jour/citron",null,"Poisson du jour/citron"]
["Garnitures","Pâtes au beurre",null,"Riz au beurre",null,"Pâtes au beurre",null,"Riz au beurre",null,"Pâtes au beurre",1,"Riz au beurre"]
[null,"Purée patates douces",null,"Purée pdt",null,"Purée de carottes",null,"Purée de céleri",null,"Purée de brocolis",null,"Purée haricots verts",null,"Riz pilaf"]
[null,"Choux romanesco",null,"Lentilles",null,"Carottes Parisiennes",null,"Salsifis",null,"Ratatouille",null,"Poêlée courgettes"]
[null,"Haricots beurre",null,"Potée de choux",null,"Poêlée forestière",null,"Printanière légumes",null,"Petits pois-carottes",null,"Légumes Léonard",null,"Gratin Dauphinois"]
[null,"Pommes vapeur",null,"Pommes grenaille",1,"Pommes vapeur",1,"Pommes grenaille",null,"Pommes vapeur",null,"Pommes grenaille",1]
["Fromages","Roquefort",null,"Camembert",null,"Roquefort",null,"Camembert",null,"Roquefort",1,"Camembert",null,"Roquefort"]
[null,"Emmental",null,"Petit moulé",null,"Emmental",null,"Petit moulé",null,"Emmental",null,"Petit moulé",null,"Emmental"]
[null,"Yaourt nature",null,"Yaourt aux fruits",null,"Yaourt nature",null,"Yaourt aux fruits",null,"Yaourt nature",null,"Yaourt aux fruits",null,"Yaourt nature"]
[null,"Faisselle",null,"Chocolat liégeois",1,"Faisselle",null,"Café liégeois",null,"Faisselle",null,"Chocolat liégeois",1,"Faisselle"]
[null,"Riz au lait",null,"Semoule au lait",null,"Riz au lait",1,"Semoule au lait",null,"Riz au lait",null,"Semoule au lait",null,"Riz au lait"]
["Desserts","Pomme",null,"Clémentine",null,"Pêche",null,"Poire",null,"Salade de fruits",null,"Banane"]
[null,"Tatin de pommes",null,"Flan caramel",1,"Mousse de fruits",null,"Panna Cota",null,"île flottante",1,"Far Breton",null,"Choux craquelés"]
[null,"Flan pâtissier",null,"Tropézienne",null,"Kouign Amann",1,"Tarte aux pommes",null,"Crème praliné",null,"Tarte caramel",1,"Paris-Brest"]
[null,"Entremet fruit du jour",null,"Entremet fruit du jour",null,"Entremet fruit du jour",null,"Entremet fruit du jour",null,"Entremet fruit du jour",null,"Entremet fruit du jour"]
[null,"Compote aux fruits",null,"Compote de fruits",null,"Compote aux fruits",null,"Compote aux fruits",null,"Compote de fruits",null,"Compote aux fruits"]
["Pain","Pain",null,"Pain",null,"Pain",null,"Pain",null,"Pain",null,"Pain",null,"Pain"]
["Beurre","Beurre",null,"Beurre",null,"Beurre",null,"Beurre",null,"Beurre",null,"Beurre",null,"Beurre"]
[]
[]
["Total","plats",{"$f":"SUM(C3:C27)","v":0},null,{"$f":"SUM(E3:E27)","v":4},null,{"$f":"SUM(G3:G27)","v":4},null,{"$f":"SUM(I3:I27)","v":0},null,{"$f":"SUM(K3:K27)","v":4},null,{"$f":"SUM(M3:M27)","v":4},null,{"$f":"SUM(O3:O27)","v":0}]
[null,"Beurre",{"$f":"C29","v":0},null,{"$f":"E29","v":0},null,{"$f":"G29","v":0},null,{"$f":"I29","v":0},null,{"$f":"K29","v":0},null,{"$f":"M29","v":0},null,{"$f":"O29","v":0}]

{"sheet":"ROZEC_MF","index":67,"n_rows":33,"n_cols":15,"rows_kept":33,"cut":false,"hidden":false,"merged":[[1,13,1,14],[1,1,1,2],[1,3,1,4],[1,5,1,6],[1,7,1,8],[1,9,1,10],[1,11,1,12]]}
[]
[null,"Lun 09/10/2017",null,"Mar 10/10/2017",null,"Mer 11/10/2017",null,"Jeu 12/10/2017",null,"Ven 13/10/2017",null,"Sam 14/10/2017",null,"Dim 15/10/2017"]
["Entrées","Sardines à l'huile",null,"Coleslaw",null,"Champignons Grecs",null,"Betteraves",null,"Crêpe champignons",null,"Taboulé"]
[null,"Terrine de légumes",1,"Œuf mayonnaise",1,"Pizza pain",null,"Panier jambon fromage",null,"Crumble saumon",1,"Quiche lorraine",null,"Saumon fumé",1]
[null,"Piémontaise",null,"Pdt au thon",null,"Salade surimi",null,"Rillettes poisson",null,"Cocktail de crevettes",1,"Salade paysanne"]
[null,"Charcuterie du jour",1,"Charcuterie du jour",1,"Charcuterie du jour",1,"Charcuterie du jour",1,"Charcuterie du jour",null,"Charcuterie du jour",1,"Salade tomates maïs"]
[null,"Potage du jour",1,"Potage du jour",1,"Potage du jour",1,"Potage du jour",1,"Potage du jour",1,"Potage du jour",1,"Potage du jour",1]
["Plats",null,null,"Meunière de colin",1,"Poisson a la bordelaise",1,"Colin à la Parisienne",1,"Brandade de morue",1,"Filet flétan meunière",1]
[null,"Suprême de poulet",1,"Brochette de bœuf",null,"Blanquette de veau",null,"Poulet Basquaise",null,"Brochette de volaille",null,"Rôti de porc",null,"Saumon beurre-blanc",1]
[null,"Jambon grillé",null,"Jambon blanc",null,"Jambon grillé",null,"Jambon blanc",null,"Jambon grillé",null,"Jambon blanc"]
[null,"Steak à poêler (Cru)",null,"Steak à poêler (cru)",null,"Steak à poêler (Cru)",null,"Steak à poêler (Cru)",null,"Steak à poêler (Cru)",null,"Steak à poêler (Cru)",null,"Jambon persillé"]
[null,"Poisson du jour/citron",null,"Poisson du jour/citron",null,"Poisson du jour/citron",null,"Poisson du jour/citron",null,"Poisson du jour/citron",null,"Poisson du jour/citron"]
["Garnitures","Pâtes au beurre",null,"Riz au beurre",null,"Pâtes au beurre",null,"Riz au beurre",null,"Pâtes au beurre",null,"Riz au beurre"]
[null,"Purée patates douces",1,"Purée pdt",1,"Purée de carottes",1,"Purée de céleri",1,"Purée de brocolis",null,"Purée haricots verts",1,"Riz pilaf"]
[null,"Choux romanesco",null,"Lentilles",null,"Carottes Parisiennes",null,"Salsifis",null,"Ratatouille",null,"Poêlée courgettes"]
[null,"Haricots beurre",null,"Potée de choux",null,"Poêlée forestière",null,"Printanière légumes",null,"Petits pois-carottes",null,"Légumes Léonard",null,"Gratin Dauphinois",1]
[null,"Pommes vapeur",null,"Pommes grenaille",null,"Pommes vapeur",null,"Pommes grenaille",null,"Pommes vapeur",null,"Pommes grenaille"]
["Fromages","Roquefort",null,"Camembert",null,"Roquefort",null,"Camembert",null,"Roquefort",null,"Camembert",null,"Roquefort"]
[null,"Emmental",null,"Petit moulé",null,"Emmental",null,"Petit moulé",null,"Emmental",null,"Petit moulé",null,"Emmental"]
[null,"Yaourt nature",1,"Yaourt aux fruits",null,"Yaourt nature",2,"Yaourt aux fruits",2,"Yaourt nature",1,"Yaourt aux fruits",2,"Yaourt nature",1]
[null,"Faisselle",null,"Chocolat liégeois",null,"Faisselle",null,"Café liégeois",1,"Faisselle",null,"Chocolat liégeois",1,"Faisselle"]
[null,"Riz au lait",1,"Semoule au lait",null,"Riz au lait",null,"Semoule au lait",null,"Riz au lait",1,"Semoule au lait",null,"Riz au lait",1]
["Desserts","Pomme",null,"Clémentine",null,"Pêche",null,"Poire",null,"Salade de fruits",null,"Banane"]
[null,"Tatin de pommes",null,"Flan caramel",2,"Mousse de fruits",1,"Panna Cota",null,"île flottante",null,"Far Breton",null,"Choux craquelés"]
[null,"Flan pâtissier",null,"Tropézienne",null,"Kouign Amann",null,"Tarte aux pommes",null,"Crème praliné",1,"Tarte caramel",null,"Paris-Brest",1]
[null,"Entremet fruit du jour",null,"Entremet fruit du jour",null,"Entremet fruit du jour",null,"Entremet fruit du jour",null,"Entremet fruit du jour",null,"Entremet fruit du jour"]
[null,"Compote aux fruits",null,"Compote de fruits",null,"Compote aux fruits",null,"Compote aux fruits",null,"Compote de fruits",null,"Compote aux fruits"]
["Pain","Pain",null,"Pain",null,"Pain",null,"Pain",null,"Pain",null,"Pain",null,"Pain"]
["Beurre","Beurre",null,"Beurre",null,"Beurre",null,"Beurre",null,"Beurre",null,"Beurre",null,"Beurre"]
[]
[]
["Total","plats",{"$f":"SUM(C3:C27)","v":7},null,{"$f":"SUM(E3:E27)","v":7},null,{"$f":"SUM(G3:G27)","v":7},null,{"$f":"SUM(I3:I27)","v":7},null,{"$f":"SUM(K3:K27)","v":7},null,{"$f":"SUM(M3:M27)","v":7},null,{"$f":"SUM(O3:O27)","v":7}]
[null,"Beurre",{"$f":"C29","v":0},null,{"$f":"E29","v":0},null,{"$f":"G29","v":0},null,{"$f":"I29","v":0},null,{"$f":"K29","v":0},null,{"$f":"M29","v":0},null,{"$f":"O29","v":0}]

{"sheet":"SCIOU","index":68,"n_rows":33,"n_cols":15,"rows_kept":33,"cut":false,"hidden":false,"merged":[[1,13,1,14],[1,1,1,2],[1,3,1,4],[1,5,1,6],[1,7,1,8],[1,9,1,10],[1,11,1,12]]}
[]
[null,"Lun 09/10/2017",null,"Mar 10/10/2017",null,"Mer 11/10/2017",null,"Jeu 12/10/2017",null,"Ven 13/10/2017",null,"Sam 14/10/2017",null,"Dim 15/10/2017"]
["Entrées","Sardines à l'huile",null,"Coleslaw",null,"Champignons Grecs",null,"Betteraves",1,"Crêpe champignons",null,"Taboulé"]
[null,"Terrine de légumes",null,"Œuf mayonnaise",1,"Pizza pain",null,"Panier jambon fromage",null,"Crumble saumon",null,"Quiche lorraine",null,"Saumon fumé"]
[null,"Piémontaise",null,"Pdt au thon",null,"Salade surimi",null,"Rillettes poisson",null,"Cocktail de crevettes",null,"Salade paysanne"]
[null,"Charcuterie du jour",null,"Charcuterie du jour",null,"Charcuterie du jour",null,"Charcuterie du jour",null,"Charcuterie du jour",null,"Charcuterie du jour",null,"Salade tomates maïs"]
[null,"Potage du jour",1,"Potage du jour",null,"Potage du jour",null,"Potage du jour",null,"Potage du jour",1,"Potage du jour",null,"Potage du jour"]
["Plats",null,null,"Meunière de colin",1,"Poisson a la bordelaise",null,"Colin à la Parisienne",1,"Brandade de morue",1,"Filet flétan meunière"]
[null,"Suprême de poulet",null,"Brochette de bœuf",null,"Blanquette de veau",1,"Poulet Basquaise",null,"Brochette de volaille",null,"Rôti de porc",1,"Saumon beurre-blanc",1]
[null,"Jambon grillé",null,"Jambon blanc",null,"Jambon grillé",null,"Jambon blanc",null,"Jambon grillé",null,"Jambon blanc"]
[null,"Steak à poêler (Cru)",null,"Steak à poêler (cru)",null,"Steak à poêler (Cru)",null,"Steak à poêler (Cru)",null,"Steak à poêler (Cru)",null,"Steak à poêler (Cru)",null,"Jambon persillé"]
[null,"Poisson du jour/citron",1,"Poisson du jour/citron",null,"Poisson du jour/citron",null,"Poisson du jour/citron",null,"Poisson du jour/citron",null,"Poisson du jour/citron"]
["Garnitures","Pâtes au beurre",null,"Riz au beurre",null,"Pâtes au beurre",null,"Riz au beurre",null,"Pâtes au beurre",null,"Riz au beurre"]
[null,"Purée patates douces",1,"Purée pdt",null,"Purée de carottes",1,"Purée de céleri",null,"Purée de brocolis",null,"Purée haricots verts",1,"Riz pilaf"]
[null,"Choux romanesco",null,"Lentilles",1,"Carottes Parisiennes",null,"Salsifis",1,"Ratatouille",1,"Poêlée courgettes"]
[null,"Haricots beurre",null,"Potée de choux",null,"Poêlée forestière",null,"Printanière légumes",null,"Petits pois-carottes",null,"Légumes Léonard",null,"Gratin Dauphinois",1]
[null,"Pommes vapeur",null,"Pommes grenaille",null,"Pommes vapeur",null,"Pommes grenaille",null,"Pommes vapeur",null,"Pommes grenaille"]
["Fromages","Roquefort",null,"Camembert",null,"Roquefort",null,"Camembert",null,"Roquefort",null,"Camembert",null,"Roquefort"]
[null,"Emmental",null,"Petit moulé",null,"Emmental",null,"Petit moulé",null,"Emmental",null,"Petit moulé",null,"Emmental"]
[null,"Yaourt nature",null,"Yaourt aux fruits",null,"Yaourt nature",null,"Yaourt aux fruits",null,"Yaourt nature",null,"Yaourt aux fruits",null,"Yaourt nature"]
[null,"Faisselle",null,"Chocolat liégeois",null,"Faisselle",1,"Café liégeois",null,"Faisselle",null,"Chocolat liégeois",1,"Faisselle"]
[null,"Riz au lait",null,"Semoule au lait",null,"Riz au lait",null,"Semoule au lait",null,"Riz au lait",null,"Semoule au lait",null,"Riz au lait"]
["Desserts","Pomme",null,"Clémentine",null,"Pêche",null,"Poire",null,"Salade de fruits",null,"Banane"]
[null,"Tatin de pommes",null,"Flan caramel",null,"Mousse de fruits",null,"Panna Cota",null,"île flottante",null,"Far Breton",null,"Choux craquelés"]
[null,"Flan pâtissier",null,"Tropézienne",null,"Kouign Amann",null,"Tarte aux pommes",null,"Crème praliné",null,"Tarte caramel",null,"Paris-Brest",1]
[null,"Entremet fruit du jour",null,"Entremet fruit du jour",null,"Entremet fruit du jour",null,"Entremet fruit du jour",null,"Entremet fruit du jour",null,"Entremet fruit du jour"]
[null,"Compote aux fruits",null,"Compote de fruits",null,"Compote aux fruits",null,"Compote aux fruits",null,"Compote de fruits",null,"Compote aux fruits"]
["Pain","Pain",null,"Pain",null,"Pain",null,"Pain",null,"Pain",null,"Pain",null,"Pain"]
["Beurre","Beurre",null,"Beurre",null,"Beurre",null,"Beurre",null,"Beurre",null,"Beurre",null,"Beurre"]
[]
[]
["Total","plats",{"$f":"SUM(C3:C27)","v":3},null,{"$f":"SUM(E3:E27)","v":3},null,{"$f":"SUM(G3:G27)","v":3},null,{"$f":"SUM(I3:I27)","v":3},null,{"$f":"SUM(K3:K27)","v":3},null,{"$f":"SUM(M3:M27)","v":3},null,{"$f":"SUM(O3:O27)","v":3}]
[null,"Beurre",{"$f":"C29","v":0},null,{"$f":"E29","v":0},null,{"$f":"G29","v":0},null,{"$f":"I29","v":0},null,{"$f":"K29","v":0},null,{"$f":"M29","v":0},null,{"$f":"O29","v":0}]

{"sheet":"SERBA","index":69,"n_rows":33,"n_cols":15,"rows_kept":33,"cut":false,"hidden":false,"merged":[[1,13,1,14],[1,1,1,2],[1,3,1,4],[1,5,1,6],[1,7,1,8],[1,9,1,10],[1,11,1,12]]}
[]
[null,"Lun 09/10/2017",null,"Mar 10/10/2017",null,"Mer 11/10/2017",null,"Jeu 12/10/2017",null,"Ven 13/10/2017",null,"Sam 14/10/2017",null,"Dim 15/10/2017"]
["Entrées","Sardines à l'huile",1,"Coleslaw",null,"Champignons Grecs",null,"Betteraves",null,"Crêpe champignons",1,"Taboulé"]
[null,"Terrine de légumes",null,"Œuf mayonnaise",null,"Pizza pain",null,"Panier jambon fromage",null,"Crumble saumon",null,"Quiche lorraine",1,"Saumon fumé"]
[null,"Piémontaise",null,"Pdt au thon",1,"Salade surimi",1,"Rillettes poisson",1,"Cocktail de crevettes",null,"Salade paysanne"]
[null,"Charcuterie du jour",null,"Charcuterie du jour",null,"Charcuterie du jour",null,"Charcuterie du jour",null,"Charcuterie du jour",null,"Charcuterie du jour",null,"Salade tomates maïs",1]
[null,"Potage du jour",null,"Potage du jour",null,"Potage du jour",null,"Potage du jour",null,"Potage du jour",null,"Potage du jour",null,"Potage du jour"]
["Plats",null,null,"Meunière de colin",null,"Poisson a la bordelaise",null,"Colin à la Parisienne",null,"Brandade de morue",1,"Filet flétan meunière"]
[null,"Suprême de poulet",1,"Brochette de bœuf",1,"Blanquette de veau",null,"Poulet Basquaise",1,"Brochette de volaille",null,"Rôti de porc",1,"Saumon beurre-blanc"]
[null,"Jambon grillé",null,"Jambon blanc",null,"Jambon grillé",1,"Jambon blanc",null,"Jambon grillé",null,"Jambon blanc"]
[null,"Steak à poêler (Cru)",null,"Steak à poêler (cru)",null,"Steak à poêler (Cru)",null,"Steak à poêler (Cru)",null,"Steak à poêler (Cru)",null,"Steak à poêler (Cru)",null,"Jambon persillé",1]
[null,"Poisson du jour/citron",null,"Poisson du jour/citron",null,"Poisson du jour/citron",null,"Poisson du jour/citron",null,"Poisson du jour/citron",null,"Poisson du jour/citron"]
["Garnitures","Pâtes au beurre",null,"Riz au beurre",1,"Pâtes au beurre",null,"Riz au beurre",null,"Pâtes au beurre",null,"Riz au beurre"]
[null,"Purée patates douces",null,"Purée pdt",null,"Purée de carottes",null,"Purée de céleri",null,"Purée de brocolis",null,"Purée haricots verts",null,"Riz pilaf"]
[null,"Choux romanesco",null,"Lentilles",null,"Carottes Parisiennes",1,"Salsifis",null,"Ratatouille",null,"Poêlée courgettes"]
[null,"Haricots beurre",1,"Potée de choux",null,"Poêlée forestière",null,"Printanière légumes",null,"Petits pois-carottes",1,"Légumes Léonard",1,"Gratin Dauphinois"]
[null,"Pommes vapeur",null,"Pommes grenaille",null,"Pommes vapeur",null,"Pommes grenaille",1,"Pommes vapeur",null,"Pommes grenaille"]
["Fromages","Roquefort",null,"Camembert",1,"Roquefort",1,"Camembert",null,"Roquefort",null,"Camembert",null,"Roquefort"]
[null,"Emmental",null,"Petit moulé",null,"Emmental",null,"Petit moulé",null,"Emmental",null,"Petit moulé",null,"Emmental",1]
[null,"Yaourt nature",null,"Yaourt aux fruits",null,"Yaourt nature",null,"Yaourt aux fruits",1,"Yaourt nature",1,"Yaourt aux fruits",null,"Yaourt nature"]
[null,"Faisselle",null,"Chocolat liégeois",null,"Faisselle",null,"Café liégeois",null,"Faisselle",null,"Chocolat liégeois",1,"Faisselle"]
[null,"Riz au lait",1,"Semoule au lait",null,"Riz au lait",null,"Semoule au lait",null,"Riz au lait",null,"Semoule au lait",null,"Riz au lait"]
["Desserts","Pomme",null,"Clémentine",null,"Pêche",null,"Poire",null,"Salade de fruits",1,"Banane"]
[null,"Tatin de pommes",null,"Flan caramel",null,"Mousse de fruits",null,"Panna Cota",null,"île flottante",null,"Far Breton",null,"Choux craquelés",1]
[null,"Flan pâtissier",1,"Tropézienne",1,"Kouign Amann",1,"Tarte aux pommes",null,"Crème praliné",null,"Tarte caramel",1,"Paris-Brest"]
[null,"Entremet fruit du jour",null,"Entremet fruit du jour",null,"Entremet fruit du jour",null,"Entremet fruit du jour",1,"Entremet fruit du jour",null,"Entremet fruit du jour"]
[null,"Compote aux fruits",null,"Compote de fruits",null,"Compote aux fruits",null,"Compote aux fruits",null,"Compote de fruits",null,"Compote aux fruits"]
["Pain","Pain",null,"Pain",null,"Pain",null,"Pain",null,"Pain",null,"Pain",null,"Pain"]
["Beurre","Beurre",null,"Beurre",null,"Beurre",null,"Beurre",null,"Beurre",null,"Beurre",null,"Beurre"]
[]
[]
["Total","plats",{"$f":"SUM(C3:C27)","v":5},null,{"$f":"SUM(E3:E27)","v":5},null,{"$f":"SUM(G3:G27)","v":5},null,{"$f":"SUM(I3:I27)","v":5},null,{"$f":"SUM(K3:K27)","v":5},null,{"$f":"SUM(M3:M27)","v":5},null,{"$f":"SUM(O3:O27)","v":4}]
[null,"Beurre",{"$f":"C29","v":0},null,{"$f":"E29","v":0},null,{"$f":"G29","v":0},null,{"$f":"I29","v":0},null,{"$f":"K29","v":0},null,{"$f":"M29","v":0},null,{"$f":"O29","v":0}]

{"sheet":"TANDEAU","index":70,"n_rows":33,"n_cols":15,"rows_kept":33,"cut":false,"hidden":false,"merged":[[1,13,1,14],[1,1,1,2],[1,3,1,4],[1,5,1,6],[1,7,1,8],[1,9,1,10],[1,11,1,12]]}
[]
[null,"Lun 09/10/2017",null,"Mar 10/10/2017",null,"Mer 11/10/2017",null,"Jeu 12/10/2017",null,"Ven 13/10/2017",null,"Sam 14/10/2017",null,"Dim 15/10/2017"]
["Entrées","Sardines à l'huile",null,"Coleslaw",null,"Champignons Grecs",null,"Betteraves",null,"Crêpe champignons",null,"Taboulé"]
[null,"Terrine de légumes",null,"Œuf mayonnaise",null,"Pizza pain",null,"Panier jambon fromage",null,"Crumble saumon",null,"Quiche lorraine",null,"Saumon fumé"]
[null,"Piémontaise",null,"Pdt au thon",null,"Salade surimi",null,"Rillettes poisson",null,"Cocktail de crevettes",null,"Salade paysanne"]
[null,"Charcuterie du jour",null,"Charcuterie du jour",null,"Charcuterie du jour",null,"Charcuterie du jour",null,"Charcuterie du jour",null,"Charcuterie du jour",null,"Salade tomates maïs"]
[null,"Potage du jour",null,"Potage du jour",null,"Potage du jour",null,"Potage du jour",null,"Potage du jour",null,"Potage du jour",null,"Potage du jour"]
["Plats",null,null,"Meunière de colin",null,"Poisson a la bordelaise",null,"Colin à la Parisienne",null,"Brandade de morue",null,"Filet flétan meunière"]
[null,"Suprême de poulet",null,"Brochette de bœuf",null,"Blanquette de veau",null,"Poulet Basquaise",null,"Brochette de volaille",null,"Rôti de porc",null,"Saumon beurre-blanc"]
[null,"Jambon grillé",null,"Jambon blanc",null,"Jambon grillé",null,"Jambon blanc",null,"Jambon grillé",null,"Jambon blanc"]
[null,"Steak à poêler (Cru)",null,"Steak à poêler (cru)",null,"Steak à poêler (Cru)",null,"Steak à poêler (Cru)",null,"Steak à poêler (Cru)",null,"Steak à poêler (Cru)",null,"Jambon persillé"]
[null,"Poisson du jour/citron",null,"Poisson du jour/citron",null,"Poisson du jour/citron",null,"Poisson du jour/citron",null,"Poisson du jour/citron",null,"Poisson du jour/citron"]
["Garnitures","Pâtes au beurre",null,"Riz au beurre",null,"Pâtes au beurre",null,"Riz au beurre",null,"Pâtes au beurre",null,"Riz au beurre"]
[null,"Purée patates douces",null,"Purée pdt",null,"Purée de carottes",null,"Purée de céleri",null,"Purée de brocolis",null,"Purée haricots verts",null,"Riz pilaf"]
[null,"Choux romanesco",null,"Lentilles",null,"Carottes Parisiennes",null,"Salsifis",null,"Ratatouille",null,"Poêlée courgettes"]
[null,"Haricots beurre",null,"Potée de choux",null,"Poêlée forestière",null,"Printanière légumes",null,"Petits pois-carottes",null,"Légumes Léonard",null,"Gratin Dauphinois"]
[null,"Pommes vapeur",null,"Pommes grenaille",null,"Pommes vapeur",null,"Pommes grenaille",null,"Pommes vapeur",null,"Pommes grenaille"]
["Fromages","Roquefort",null,"Camembert",null,"Roquefort",null,"Camembert",null,"Roquefort",null,"Camembert",null,"Roquefort"]
[null,"Emmental",null,"Petit moulé",null,"Emmental",null,"Petit moulé",null,"Emmental",null,"Petit moulé",null,"Emmental"]
[null,"Yaourt nature",null,"Yaourt aux fruits",null,"Yaourt nature",null,"Yaourt aux fruits",null,"Yaourt nature",null,"Yaourt aux fruits",null,"Yaourt nature"]
[null,"Faisselle",null,"Chocolat liégeois",null,"Faisselle",null,"Café liégeois",null,"Faisselle",null,"Chocolat liégeois",null,"Faisselle"]
[null,"Riz au lait",null,"Semoule au lait",null,"Riz au lait",null,"Semoule au lait",null,"Riz au lait",null,"Semoule au lait",null,"Riz au lait"]
["Desserts","Pomme",null,"Clémentine",null,"Pêche",null,"Poire",null,"Salade de fruits",null,"Banane"]
[null,"Tatin de pommes",null,"Flan caramel",null,"Mousse de fruits",null,"Panna Cota",null,"île flottante",null,"Far Breton",null,"Choux craquelés"]
[null,"Flan pâtissier",null,"Tropézienne",null,"Kouign Amann",null,"Tarte aux pommes",null,"Crème praliné",null,"Tarte caramel",null,"Paris-Brest"]
[null,"Entremet fruit du jour",null,"Entremet fruit du jour",null,"Entremet fruit du jour",null,"Entremet fruit du jour",null,"Entremet fruit du jour",null,"Entremet fruit du jour"]
[null,"Compote aux fruits",null,"Compote de fruits",null,"Compote aux fruits",null,"Compote aux fruits",null,"Compote de fruits",null,"Compote aux fruits"]
["Pain","Pain",null,"Pain",null,"Pain",null,"Pain",null,"Pain",null,"Pain",null,"Pain"]
["Beurre","Beurre",null,"Beurre",null,"Beurre",null,"Beurre",null,"Beurre",null,"Beurre",null,"Beurre"]
[]
[]
["Total","plats",{"$f":"SUM(C3:C27)","v":0},null,{"$f":"SUM(E3:E27)","v":0},null,{"$f":"SUM(G3:G27)","v":0},null,{"$f":"SUM(I3:I27)","v":0},null,{"$f":"SUM(K3:K27)","v":0},null,{"$f":"SUM(M3:M27)","v":0},null,{"$f":"SUM(O3:O27)","v":0}]
[null,"Beurre",{"$f":"C29","v":0},null,{"$f":"E29","v":0},null,{"$f":"G29","v":0},null,{"$f":"I29","v":0},null,{"$f":"K29","v":0},null,{"$f":"M29","v":0},null,{"$f":"O29","v":0}]

{"sheet":"THOMAS_J","index":71,"n_rows":33,"n_cols":15,"rows_kept":33,"cut":false,"hidden":false,"merged":[[1,13,1,14],[1,1,1,2],[1,3,1,4],[1,5,1,6],[1,7,1,8],[1,9,1,10],[1,11,1,12]]}
[]
[null,"Lun 09/10/2017",null,"Mar 10/10/2017",null,"Mer 11/10/2017",null,"Jeu 12/10/2017",null,"Ven 13/10/2017",null,"Sam 14/10/2017",null,"Dim 15/10/2017"]
["Entrées","Sardines à l'huile",null,"Coleslaw",null,"Champignons Grecs",null,"Betteraves",null,"Crêpe champignons",null,"Taboulé"]
[null,"Terrine de légumes",null,"Œuf mayonnaise",null,"Pizza pain",1,"Panier jambon fromage",1,"Crumble saumon",null,"Quiche lorraine",1,"Saumon fumé",1]
[null,"Piémontaise",null,"Pdt au thon",1,"Salade surimi",null,"Rillettes poisson",null,"Cocktail de crevettes",1,"Salade paysanne"]
[null,"Charcuterie du jour",1,"Charcuterie du jour",null,"Charcuterie du jour",null,"Charcuterie du jour",null,"Charcuterie du jour",null,"Charcuterie du jour",null,"Salade tomates maïs"]
[null,"Potage du jour",null,"Potage du jour",null,"Potage du jour",null,"Potage du jour",null,"Potage du jour",null,"Potage du jour",null,"Potage du jour"]
["Plats",null,null,"Meunière de colin",null,"Poisson a la bordelaise",null,"Colin à la Parisienne",1,"Brandade de morue",null,"Filet flétan meunière"]
[null,"Suprême de poulet",1,"Brochette de bœuf",null,"Blanquette de veau",1,"Poulet Basquaise",null,"Brochette de volaille",1,"Rôti de porc",1,"Saumon beurre-blanc",1]
[null,"Jambon grillé",null,"Jambon blanc",1,"Jambon grillé",null,"Jambon blanc",null,"Jambon grillé",null,"Jambon blanc"]
[null,"Steak à poêler (Cru)",null,"Steak à poêler (cru)",null,"Steak à poêler (Cru)",null,"Steak à poêler (Cru)",null,"Steak à poêler (Cru)",null,"Steak à poêler (Cru)",null,"Jambon persillé"]
[null,"Poisson du jour/citron",null,"Poisson du jour/citron",null,"Poisson du jour/citron",null,"Poisson du jour/citron",null,"Poisson du jour/citron",null,"Poisson du jour/citron"]
["Garnitures","Pâtes au beurre",null,"Riz au beurre",null,"Pâtes au beurre",null,"Riz au beurre",1,"Pâtes au beurre",null,"Riz au beurre"]
[null,"Purée patates douces",null,"Purée pdt",1,"Purée de carottes",null,"Purée de céleri",null,"Purée de brocolis",null,"Purée haricots verts",null,"Riz pilaf"]
[null,"Choux romanesco",null,"Lentilles",null,"Carottes Parisiennes",null,"Salsifis",null,"Ratatouille",null,"Poêlée courgettes"]
[null,"Haricots beurre",1,"Potée de choux",null,"Poêlée forestière",1,"Printanière légumes",null,"Petits pois-carottes",null,"Légumes Léonard",1,"Gratin Dauphinois",1]
[null,"Pommes vapeur",null,"Pommes grenaille",null,"Pommes vapeur",null,"Pommes grenaille",null,"Pommes vapeur",1,"Pommes grenaille"]
["Fromages","Roquefort",null,"Camembert",null,"Roquefort",null,"Camembert",null,"Roquefort",null,"Camembert",null,"Roquefort"]
[null,"Emmental",null,"Petit moulé",null,"Emmental",1,"Petit moulé",null,"Emmental",null,"Petit moulé",null,"Emmental"]
[null,"Yaourt nature",null,"Yaourt aux fruits",1,"Yaourt nature",null,"Yaourt aux fruits",null,"Yaourt nature",1,"Yaourt aux fruits",1,"Yaourt nature",1]
[null,"Faisselle",null,"Chocolat liégeois",null,"Faisselle",null,"Café liégeois",1,"Faisselle",null,"Chocolat liégeois",null,"Faisselle"]
[null,"Riz au lait",1,"Semoule au lait",null,"Riz au lait",null,"Semoule au lait",null,"Riz au lait",null,"Semoule au lait",null,"Riz au lait"]
["Desserts","Pomme",null,"Clémentine",null,"Pêche",null,"Poire",null,"Salade de fruits",1,"Banane"]
[null,"Tatin de pommes",null,"Flan caramel",null,"Mousse de fruits",null,"Panna Cota",null,"île flottante",null,"Far Breton",1,"Choux craquelés"]
[null,"Flan pâtissier",1,"Tropézienne",null,"Kouign Amann",1,"Tarte aux pommes",1,"Crème praliné",null,"Tarte caramel",null,"Paris-Brest",1]
[null,"Entremet fruit du jour",null,"Entremet fruit du jour",1,"Entremet fruit du jour",null,"Entremet fruit du jour",null,"Entremet fruit du jour",null,"Entremet fruit du jour"]
[null,"Compote aux fruits",null,"Compote de fruits",null,"Compote aux fruits",null,"Compote aux fruits",null,"Compote de fruits",null,"Compote aux fruits"]
["Pain","Pain",1,"Pain",1,"Pain",1,"Pain",1,"Pain",1,"Pain",1,"Pain",1]
["Beurre","Beurre",null,"Beurre",null,"Beurre",null,"Beurre",null,"Beurre",null,"Beurre",null,"Beurre"]
[]
[]
["Total","plats",{"$f":"SUM(C3:C27)","v":5},null,{"$f":"SUM(E3:E27)","v":5},null,{"$f":"SUM(G3:G27)","v":5},null,{"$f":"SUM(I3:I27)","v":5},null,{"$f":"SUM(K3:K27)","v":5},null,{"$f":"SUM(M3:M27)","v":5},null,{"$f":"SUM(O3:O27)","v":5}]
[null,"Beurre",{"$f":"C29","v":0},null,{"$f":"E29","v":0},null,{"$f":"G29","v":0},null,{"$f":"I29","v":0},null,{"$f":"K29","v":0},null,{"$f":"M29","v":0},null,{"$f":"O29","v":0}]

{"sheet":"TREBAOL","index":72,"n_rows":33,"n_cols":15,"rows_kept":33,"cut":false,"hidden":false,"merged":[[1,13,1,14],[1,1,1,2],[1,3,1,4],[1,5,1,6],[1,7,1,8],[1,9,1,10],[1,11,1,12]]}
[]
[null,"Lun 09/10/2017",null,"Mar 10/10/2017",null,"Mer 11/10/2017",null,"Jeu 12/10/2017",null,"Ven 13/10/2017",null,"Sam 14/10/2017",null,"Dim 15/10/2017"]
["Entrées","Sardines à l'huile",1,"Coleslaw",null,"Champignons Grecs",null,"Betteraves",1,"Crêpe champignons",null,"Taboulé"]
[null,"Terrine de légumes",null,"Œuf mayonnaise",1,"Pizza pain",null,"Panier jambon fromage",null,"Crumble saumon",1,"Quiche lorraine",1,"Saumon fumé",1]
[null,"Piémontaise",null,"Pdt au thon",1,"Salade surimi",1,"Rillettes poisson",1,"Cocktail de crevettes",1,"Salade paysanne"]
[null,"Charcuterie du jour",1,"Charcuterie du jour",null,"Charcuterie du jour",1,"Charcuterie du jour",null,"Charcuterie du jour",null,"Charcuterie du jour",1,"Salade tomates maïs"]
[null,"Potage du jour",null,"Potage du jour",null,"Potage du jour",null,"Potage du jour",null,"Potage du jour",null,"Potage du jour",null,"Potage du jour"]
["Plats",null,null,"Meunière de colin",1,"Poisson a la bordelaise",null,"Colin à la Parisienne",1,"Brandade de morue",null,"Filet flétan meunière",1]
[null,"Suprême de poulet",1,"Brochette de bœuf",1,"Blanquette de veau",1,"Poulet Basquaise",1,"Brochette de volaille",1,"Rôti de porc",1,"Saumon beurre-blanc",1]
[null,"Jambon grillé",null,"Jambon blanc",null,"Jambon grillé",1,"Jambon blanc",null,"Jambon grillé",null,"Jambon blanc"]
[null,"Steak à poêler (Cru)",1,"Steak à poêler (cru)",null,"Steak à poêler (Cru)",null,"Steak à poêler (Cru)",null,"Steak à poêler (Cru)",1,"Steak à poêler (Cru)",null,"Jambon persillé"]
[null,"Poisson du jour/citron",null,"Poisson du jour/citron",null,"Poisson du jour/citron",null,"Poisson du jour/citron",null,"Poisson du jour/citron",null,"Poisson du jour/citron"]
["Garnitures","Pâtes au beurre",1,"Riz au beurre",null,"Pâtes au beurre",1,"Riz au beurre",null,"Pâtes au beurre",1,"Riz au beurre"]
[null,"Purée patates douces",null,"Purée pdt",1,"Purée de carottes",null,"Purée de céleri",null,"Purée de brocolis",null,"Purée haricots verts",null,"Riz pilaf"]
[null,"Choux romanesco",null,"Lentilles",null,"Carottes Parisiennes",1,"Salsifis",null,"Ratatouille",null,"Poêlée courgettes"]
[null,"Haricots beurre",null,"Potée de choux",null,"Poêlée forestière",null,"Printanière légumes",1,"Petits pois-carottes",1,"Légumes Léonard",1,"Gratin Dauphinois",1]
[null,"Pommes vapeur",1,"Pommes grenaille",1,"Pommes vapeur",null,"Pommes grenaille",1,"Pommes vapeur",null,"Pommes grenaille",1]
["Fromages","Roquefort",null,"Camembert",null,"Roquefort",null,"Camembert",null,"Roquefort",null,"Camembert",null,"Roquefort"]
[null,"Emmental",null,"Petit moulé",null,"Emmental",null,"Petit moulé",null,"Emmental",null,"Petit moulé",null,"Emmental"]
[null,"Yaourt nature",null,"Yaourt aux fruits",null,"Yaourt nature",null,"Yaourt aux fruits",null,"Yaourt nature",null,"Yaourt aux fruits",null,"Yaourt nature"]
[null,"Faisselle",null,"Chocolat liégeois",null,"Faisselle",null,"Café liégeois",null,"Faisselle",null,"Chocolat liégeois",null,"Faisselle"]
[null,"Riz au lait",null,"Semoule au lait",null,"Riz au lait",null,"Semoule au lait",null,"Riz au lait",null,"Semoule au lait",null,"Riz au lait"]
["Desserts","Pomme",null,"Clémentine",null,"Pêche",null,"Poire",null,"Salade de fruits",null,"Banane"]
[null,"Tatin de pommes",1,"Flan caramel",1,"Mousse de fruits",1,"Panna Cota",1,"île flottante",1,"Far Breton",1,"Choux craquelés"]
[null,"Flan pâtissier",1,"Tropézienne",1,"Kouign Amann",1,"Tarte aux pommes",1,"Crème praliné",1,"Tarte caramel",1,"Paris-Brest",1]
[null,"Entremet fruit du jour",null,"Entremet fruit du jour",null,"Entremet fruit du jour",null,"Entremet fruit du jour",null,"Entremet fruit du jour",null,"Entremet fruit du jour"]
[null,"Compote aux fruits",null,"Compote de fruits",null,"Compote aux fruits",null,"Compote aux fruits",null,"Compote de fruits",null,"Compote aux fruits"]
["Pain","Pain",null,"Pain",null,"Pain",null,"Pain",null,"Pain",null,"Pain",null,"Pain"]
["Beurre","Beurre",null,"Beurre",null,"Beurre",null,"Beurre",null,"Beurre",null,"Beurre",null,"Beurre"]
[]
[]
["Total","plats",{"$f":"SUM(C3:C27)","v":8},null,{"$f":"SUM(E3:E27)","v":8},null,{"$f":"SUM(G3:G27)","v":8},null,{"$f":"SUM(I3:I27)","v":8},null,{"$f":"SUM(K3:K27)","v":8},null,{"$f":"SUM(M3:M27)","v":8},null,{"$f":"SUM(O3:O27)","v":4}]
[null,"Beurre",{"$f":"C29","v":0},null,{"$f":"E29","v":0},null,{"$f":"G29","v":0},null,{"$f":"I29","v":0},null,{"$f":"K29","v":0},null,{"$f":"M29","v":0},null,{"$f":"O29","v":0}]

{"sheet":"TREHAN","index":73,"n_rows":33,"n_cols":15,"rows_kept":33,"cut":false,"hidden":false,"merged":[[1,13,1,14],[1,1,1,2],[1,3,1,4],[1,5,1,6],[1,7,1,8],[1,9,1,10],[1,11,1,12]]}
[]
[null,"Lun 09/10/2017",null,"Mar 10/10/2017",null,"Mer 11/10/2017",null,"Jeu 12/10/2017",null,"Ven 13/10/2017",null,"Sam 14/10/2017",null,"Dim 15/10/2017"]
["Entrées","Sardines à l'huile",null,"Coleslaw",null,"Champignons Grecs",1,"Betteraves",1,"Crêpe champignons",null,"Taboulé",1]
[null,"Terrine de légumes",null,"Œuf mayonnaise",1,"Pizza pain",null,"Panier jambon fromage",null,"Crumble saumon",null,"Quiche lorraine",null,"Saumon fumé",1]
[null,"Piémontaise",null,"Pdt au thon",null,"Salade surimi",null,"Rillettes poisson",null,"Cocktail de crevettes",1,"Salade paysanne"]
[null,"Charcuterie du jour",1,"Charcuterie du jour",null,"Charcuterie du jour",null,"Charcuterie du jour",null,"Charcuterie du jour",null,"Charcuterie du jour",null,"Salade tomates maïs"]
[null,"Potage du jour",null,"Potage du jour",null,"Potage du jour",null,"Potage du jour",null,"Potage du jour",null,"Potage du jour",null,"Potage du jour"]
["Plats",null,null,"Meunière de colin",null,"Poisson a la bordelaise",null,"Colin à la Parisienne",null,"Brandade de morue",null,"Filet flétan meunière"]
[null,"Suprême de poulet",null,"Brochette de bœuf",1,"Blanquette de veau",1,"Poulet Basquaise",1,"Brochette de volaille",1,"Rôti de porc",1,"Saumon beurre-blanc"]
[null,"Jambon grillé",1,"Jambon blanc",null,"Jambon grillé",null,"Jambon blanc",null,"Jambon grillé",null,"Jambon blanc"]
[null,"Steak à poêler (Cru)",null,"Steak à poêler (cru)",null,"Steak à poêler (Cru)",null,"Steak à poêler (Cru)",null,"Steak à poêler (Cru)",null,"Steak à poêler (Cru)",null,"Jambon persillé",1]
[null,"Poisson du jour/citron",null,"Poisson du jour/citron",null,"Poisson du jour/citron",null,"Poisson du jour/citron",null,"Poisson du jour/citron",null,"Poisson du jour/citron"]
["Garnitures","Pâtes au beurre",null,"Riz au beurre",null,"Pâtes au beurre",null,"Riz au beurre",null,"Pâtes au beurre",null,"Riz au beurre"]
[null,"Purée patates douces",null,"Purée pdt",null,"Purée de carottes",null,"Purée de céleri",null,"Purée de brocolis",null,"Purée haricots verts",null,"Riz pilaf"]
[null,"Choux romanesco",null,"Lentilles",null,"Carottes Parisiennes",null,"Salsifis",null,"Ratatouille",null,"Poêlée courgettes"]
[null,"Haricots beurre",null,"Potée de choux",null,"Poêlée forestière",null,"Printanière légumes",null,"Petits pois-carottes",null,"Légumes Léonard",null,"Gratin Dauphinois",1]
[null,"Pommes vapeur",1,"Pommes grenaille",1,"Pommes vapeur",1,"Pommes grenaille",1,"Pommes vapeur",1,"Pommes grenaille",1]
["Fromages","Roquefort",1,"Camembert",1,"Roquefort",1,"Camembert",1,"Roquefort",1,"Camembert",1,"Roquefort",1]
[null,"Emmental",null,"Petit moulé",null,"Emmental",null,"Petit moulé",null,"Emmental",null,"Petit moulé",null,"Emmental"]
[null,"Yaourt nature",null,"Yaourt aux fruits",null,"Yaourt nature",null,"Yaourt aux fruits",null,"Yaourt nature",null,"Yaourt aux fruits",null,"Yaourt nature"]
[null,"Faisselle",null,"Chocolat liégeois",null,"Faisselle",null,"Café liégeois",null,"Faisselle",null,"Chocolat liégeois",null,"Faisselle"]
[null,"Riz au lait",null,"Semoule au lait",null,"Riz au lait",null,"Semoule au lait",null,"Riz au lait",null,"Semoule au lait",null,"Riz au lait"]
["Desserts","Pomme",null,"Clémentine",null,"Pêche",null,"Poire",null,"Salade de fruits",null,"Banane"]
[null,"Tatin de pommes",1,"Flan caramel",1,"Mousse de fruits",null,"Panna Cota",null,"île flottante",1,"Far Breton",1,"Choux craquelés"]
[null,"Flan pâtissier",null,"Tropézienne",null,"Kouign Amann",1,"Tarte aux pommes",1,"Crème praliné",null,"Tarte caramel",null,"Paris-Brest",1]
[null,"Entremet fruit du jour",null,"Entremet fruit du jour",null,"Entremet fruit du jour",null,"Entremet fruit du jour",null,"Entremet fruit du jour",null,"Entremet fruit du jour"]
[null,"Compote aux fruits",null,"Compote de fruits",null,"Compote aux fruits",null,"Compote aux fruits",null,"Compote de fruits",null,"Compote aux fruits"]
["Pain","Pain",1,"Pain",1,"Pain",1,"Pain",1,"Pain",1,"Pain",1,"Pain",1]
["Beurre","Beurre",null,"Beurre",null,"Beurre",null,"Beurre",null,"Beurre",null,"Beurre",null,"Beurre"]
[]
[]
["Total","plats",{"$f":"SUM(C3:C27)","v":5},null,{"$f":"SUM(E3:E27)","v":5},null,{"$f":"SUM(G3:G27)","v":5},null,{"$f":"SUM(I3:I27)","v":5},null,{"$f":"SUM(K3:K27)","v":5},null,{"$f":"SUM(M3:M27)","v":5},null,{"$f":"SUM(O3:O27)","v":5}]
[null,"Beurre",{"$f":"C29","v":0},null,{"$f":"E29","v":0},null,{"$f":"G29","v":0},null,{"$f":"I29","v":0},null,{"$f":"K29","v":0},null,{"$f":"M29","v":0},null,{"$f":"O29","v":0}]

{"sheet":"TREGUIER","index":74,"n_rows":33,"n_cols":15,"rows_kept":33,"cut":false,"hidden":false,"merged":[[1,13,1,14],[1,1,1,2],[1,3,1,4],[1,5,1,6],[1,7,1,8],[1,9,1,10],[1,11,1,12]]}
[]
[null,"Lun 09/10/2017",null,"Mar 10/10/2017",null,"Mer 11/10/2017",null,"Jeu 12/10/2017",null,"Ven 13/10/2017",null,"Sam 14/10/2017",null,"Dim 15/10/2017"]
["Entrées","Sardines à l'huile",null,"Coleslaw",null,"Champignons Grecs",null,"Betteraves",null,"Crêpe champignons",null,"Taboulé"]
[null,"Terrine de légumes",null,"Œuf mayonnaise",null,"Pizza pain",null,"Panier jambon fromage",null,"Crumble saumon",null,"Quiche lorraine",null,"Saumon fumé"]
[null,"Piémontaise",null,"Pdt au thon",null,"Salade surimi",null,"Rillettes poisson",null,"Cocktail de crevettes",null,"Salade paysanne"]
[null,"Charcuterie du jour",null,"Charcuterie du jour",null,"Charcuterie du jour",null,"Charcuterie du jour",null,"Charcuterie du jour",null,"Charcuterie du jour",null,"Salade tomates maïs"]
[null,"Potage du jour",null,"Potage du jour",null,"Potage du jour",null,"Potage du jour",null,"Potage du jour",null,"Potage du jour",null,"Potage du jour"]
["Plats",null,null,"Meunière de colin",null,"Poisson a la bordelaise",null,"Colin à la Parisienne",null,"Brandade de morue",null,"Filet flétan meunière"]
[null,"Suprême de poulet",null,"Brochette de bœuf",null,"Blanquette de veau",null,"Poulet Basquaise",null,"Brochette de volaille",null,"Rôti de porc",null,"Saumon beurre-blanc"]
[null,"Jambon grillé",null,"Jambon blanc",null,"Jambon grillé",null,"Jambon blanc",null,"Jambon grillé",null,"Jambon blanc"]
[null,"Steak à poêler (Cru)",null,"Steak à poêler (cru)",null,"Steak à poêler (Cru)",null,"Steak à poêler (Cru)",null,"Steak à poêler (Cru)",null,"Steak à poêler (Cru)",null,"Jambon persillé"]
[null,"Poisson du jour/citron",null,"Poisson du jour/citron",null,"Poisson du jour/citron",null,"Poisson du jour/citron",null,"Poisson du jour/citron",null,"Poisson du jour/citron"]
["Garnitures","Pâtes au beurre",null,"Riz au beurre",null,"Pâtes au beurre",null,"Riz au beurre",null,"Pâtes au beurre",null,"Riz au beurre"]
[null,"Purée patates douces",null,"Purée pdt",null,"Purée de carottes",null,"Purée de céleri",null,"Purée de brocolis",null,"Purée haricots verts",null,"Riz pilaf"]
[null,"Choux romanesco",null,"Lentilles",null,"Carottes Parisiennes",null,"Salsifis",null,"Ratatouille",null,"Poêlée courgettes"]
[null,"Haricots beurre",null,"Potée de choux",null,"Poêlée forestière",null,"Printanière légumes",null,"Petits pois-carottes",null,"Légumes Léonard",null,"Gratin Dauphinois"]
[null,"Pommes vapeur",null,"Pommes grenaille",null,"Pommes vapeur",null,"Pommes grenaille",null,"Pommes vapeur",null,"Pommes grenaille"]
["Fromages","Roquefort",null,"Camembert",null,"Roquefort",null,"Camembert",null,"Roquefort",null,"Camembert",null,"Roquefort"]
[null,"Emmental",null,"Petit moulé",null,"Emmental",null,"Petit moulé",null,"Emmental",null,"Petit moulé",null,"Emmental"]
[null,"Yaourt nature",null,"Yaourt aux fruits",null,"Yaourt nature",null,"Yaourt aux fruits",null,"Yaourt nature",null,"Yaourt aux fruits",null,"Yaourt nature"]
[null,"Faisselle",null,"Chocolat liégeois",null,"Faisselle",null,"Café liégeois",null,"Faisselle",null,"Chocolat liégeois",null,"Faisselle"]
[null,"Riz au lait",null,"Semoule au lait",null,"Riz au lait",null,"Semoule au lait",null,"Riz au lait",null,"Semoule au lait",null,"Riz au lait"]
["Desserts","Pomme",null,"Clémentine",null,"Pêche",null,"Poire",null,"Salade de fruits",null,"Banane"]
[null,"Tatin de pommes",null,"Flan caramel",null,"Mousse de fruits",null,"Panna Cota",null,"île flottante",null,"Far Breton",null,"Choux craquelés"]
[null,"Flan pâtissier",null,"Tropézienne",null,"Kouign Amann",null,"Tarte aux pommes",null,"Crème praliné",null,"Tarte caramel",null,"Paris-Brest"]
[null,"Entremet fruit du jour",null,"Entremet fruit du jour",null,"Entremet fruit du jour",null,"Entremet fruit du jour",null,"Entremet fruit du jour",null,"Entremet fruit du jour"]
[null,"Compote aux fruits",null,"Compote de fruits",null,"Compote aux fruits",null,"Compote aux fruits",null,"Compote de fruits",null,"Compote aux fruits"]
["Pain","Pain",null,"Pain",null,"Pain",null,"Pain",null,"Pain",null,"Pain",null,"Pain"]
["Beurre","Beurre",null,"Beurre",null,"Beurre",null,"Beurre",null,"Beurre",null,"Beurre",null,"Beurre"]
[]
[]
["Total","plats",{"$f":"SUM(C3:C27)","v":0},null,{"$f":"SUM(E3:E27)","v":0},null,{"$f":"SUM(G3:G27)","v":0},null,{"$f":"SUM(I3:I27)","v":0},null,{"$f":"SUM(K3:K27)","v":0},null,{"$f":"SUM(M3:M27)","v":0},null,{"$f":"SUM(O3:O27)","v":0}]
[null,"Beurre",{"$f":"C29","v":0},null,{"$f":"E29","v":0},null,{"$f":"G29","v":0},null,{"$f":"I29","v":0},null,{"$f":"K29","v":0},null,{"$f":"M29","v":0},null,{"$f":"O29","v":0}]

{"sheet":"VIGOUROUX","index":75,"n_rows":33,"n_cols":15,"rows_kept":33,"cut":false,"hidden":false,"merged":[[1,13,1,14],[1,1,1,2],[1,3,1,4],[1,5,1,6],[1,7,1,8],[1,9,1,10],[1,11,1,12]]}
[]
[null,"Lun 09/10/2017",null,"Mar 10/10/2017",null,"Mer 11/10/2017",null,"Jeu 12/10/2017",null,"Ven 13/10/2017",null,"Sam 14/10/2017",null,"Dim 15/10/2017"]
["Entrées","Sardines à l'huile",1,"Coleslaw",null,"Champignons Grecs",null,"Betteraves",1,"Crêpe champignons",null,"Taboulé"]
[null,"Terrine de légumes",null,"Œuf mayonnaise",1,"Pizza pain",null,"Panier jambon fromage",null,"Crumble saumon",null,"Quiche lorraine",null,"Saumon fumé",1]
[null,"Piémontaise",null,"Pdt au thon",null,"Salade surimi",null,"Rillettes poisson",null,"Cocktail de crevettes",1,"Salade paysanne",1]
[null,"Charcuterie du jour",null,"Charcuterie du jour",null,"Charcuterie du jour",1,"Charcuterie du jour",null,"Charcuterie du jour",null,"Charcuterie du jour",null,"Salade tomates maïs"]
[null,"Potage du jour",null,"Potage du jour",null,"Potage du jour",null,"Potage du jour",null,"Potage du jour",null,"Potage du jour",null,"Potage du jour"]
["Plats",null,null,"Meunière de colin",null,"Poisson a la bordelaise",null,"Colin à la Parisienne",null,"Brandade de morue",1,"Filet flétan meunière"]
[null,"Suprême de poulet",1,"Brochette de bœuf",null,"Blanquette de veau",1,"Poulet Basquaise",1,"Brochette de volaille",null,"Rôti de porc",1,"Saumon beurre-blanc",1]
[null,"Jambon grillé",null,"Jambon blanc",null,"Jambon grillé",null,"Jambon blanc",null,"Jambon grillé",null,"Jambon blanc"]
[null,"Steak à poêler (Cru)",null,"Steak à poêler (cru)",null,"Steak à poêler (Cru)",null,"Steak à poêler (Cru)",null,"Steak à poêler (Cru)",null,"Steak à poêler (Cru)",null,"Jambon persillé"]
[null,"Poisson du jour/citron",null,"Poisson du jour/citron",1,"Poisson du jour/citron",null,"Poisson du jour/citron",null,"Poisson du jour/citron",null,"Poisson du jour/citron"]
["Garnitures","Pâtes au beurre",null,"Riz au beurre",null,"Pâtes au beurre",1,"Riz au beurre",null,"Pâtes au beurre",null,"Riz au beurre"]
[null,"Purée patates douces",null,"Purée pdt",null,"Purée de carottes",null,"Purée de céleri",null,"Purée de brocolis",null,"Purée haricots verts",1,"Riz pilaf",1]
[null,"Choux romanesco",null,"Lentilles",null,"Carottes Parisiennes",null,"Salsifis",null,"Ratatouille",null,"Poêlée courgettes"]
[null,"Haricots beurre",1,"Potée de choux",null,"Poêlée forestière",null,"Printanière légumes",null,"Petits pois-carottes",null,"Légumes Léonard",null,"Gratin Dauphinois"]
[null,"Pommes vapeur",null,"Pommes grenaille",1,"Pommes vapeur",null,"Pommes grenaille",1,"Pommes vapeur",1,"Pommes grenaille"]
["Fromages","Roquefort",null,"Camembert",null,"Roquefort",null,"Camembert",1,"Roquefort",null,"Camembert",null,"Roquefort",1]
[null,"Emmental",null,"Petit moulé",null,"Emmental",null,"Petit moulé",null,"Emmental",null,"Petit moulé",null,"Emmental"]
[null,"Yaourt nature",null,"Yaourt aux fruits",null,"Yaourt nature",null,"Yaourt aux fruits",null,"Yaourt nature",null,"Yaourt aux fruits",null,"Yaourt nature"]
[null,"Faisselle",1,"Chocolat liégeois",null,"Faisselle",1,"Café liégeois",null,"Faisselle",1,"Chocolat liégeois",null,"Faisselle"]
[null,"Riz au lait",null,"Semoule au lait",1,"Riz au lait",null,"Semoule au lait",null,"Riz au lait",null,"Semoule au lait",1,"Riz au lait"]
["Desserts","Pomme",null,"Clémentine",1,"Pêche",null,"Poire",null,"Salade de fruits",1,"Banane"]
[null,"Tatin de pommes",1,"Flan caramel",null,"Mousse de fruits",null,"Panna Cota",1,"île flottante",null,"Far Breton",null,"Choux craquelés",1]
[null,"Flan pâtissier",null,"Tropézienne",null,"Kouign Amann",1,"Tarte aux pommes",null,"Crème praliné",null,"Tarte caramel",null,"Paris-Brest"]
[null,"Entremet fruit du jour",null,"Entremet fruit du jour",null,"Entremet fruit du jour",null,"Entremet fruit du jour",null,"Entremet fruit du jour",null,"Entremet fruit du jour"]
[null,"Compote aux fruits",null,"Compote de fruits",null,"Compote aux fruits",null,"Compote aux fruits",null,"Compote de fruits",null,"Compote aux fruits",1]
["Pain","Pain",null,"Pain",null,"Pain",null,"Pain",null,"Pain",null,"Pain",null,"Pain"]
["Beurre","Beurre",null,"Beurre",null,"Beurre",null,"Beurre",null,"Beurre",null,"Beurre",null,"Beurre"]
[]
[]
["Total","plats",{"$f":"SUM(C3:C27)","v":5},null,{"$f":"SUM(E3:E27)","v":5},null,{"$f":"SUM(G3:G27)","v":5},null,{"$f":"SUM(I3:I27)","v":5},null,{"$f":"SUM(K3:K27)","v":5},null,{"$f":"SUM(M3:M27)","v":5},null,{"$f":"SUM(O3:O27)","v":5}]
[null,"Beurre",{"$f":"C29","v":0},null,{"$f":"E29","v":0},null,{"$f":"G29","v":0},null,{"$f":"I29","v":0},null,{"$f":"K29","v":0},null,{"$f":"M29","v":0},null,{"$f":"O29","v":0}]

{"sheet":"VAILLANT_T","index":76,"n_rows":33,"n_cols":15,"rows_kept":33,"cut":false,"hidden":false,"merged":[[1,13,1,14],[1,1,1,2],[1,3,1,4],[1,5,1,6],[1,7,1,8],[1,9,1,10],[1,11,1,12]]}
[]
[null,"Lun 09/10/2017",null,"Mar 10/10/2017",null,"Mer 11/10/2017",null,"Jeu 12/10/2017",null,"Ven 13/10/2017",null,"Sam 14/10/2017",null,"Dim 15/10/2017"]
["Entrées","Sardines à l'huile",1,"Coleslaw",null,"Champignons Grecs",null,"Betteraves",null,"Crêpe champignons",null,"Taboulé"]
[null,"Terrine de légumes",null,"Œuf mayonnaise",1,"Pizza pain",null,"Panier jambon fromage",null,"Crumble saumon",null,"Quiche lorraine",null,"Saumon fumé"]
[null,"Piémontaise",null,"Pdt au thon",null,"Salade surimi",null,"Rillettes poisson",1,"Cocktail de crevettes",null,"Salade paysanne"]
[null,"Charcuterie du jour",null,"Charcuterie du jour",null,"Charcuterie du jour",null,"Charcuterie du jour",null,"Charcuterie du jour",null,"Charcuterie du jour",null,"Salade tomates maïs"]
[null,"Potage du jour",null,"Potage du jour",null,"Potage du jour",null,"Potage du jour",null,"Potage du jour",null,"Potage du jour",null,"Potage du jour"]
["Plats",null,null,"Meunière de colin",1,"Poisson a la bordelaise",null,"Colin à la Parisienne",null,"Brandade de morue",null,"Filet flétan meunière"]
[null,"Suprême de poulet",null,"Brochette de bœuf",null,"Blanquette de veau",null,"Poulet Basquaise",1,"Brochette de volaille",null,"Rôti de porc",null,"Saumon beurre-blanc"]
[null,"Jambon grillé",1,"Jambon blanc",null,"Jambon grillé",null,"Jambon blanc",null,"Jambon grillé",null,"Jambon blanc"]
[null,"Steak à poêler (Cru)",null,"Steak à poêler (cru)",null,"Steak à poêler (Cru)",null,"Steak à poêler (Cru)",null,"Steak à poêler (Cru)",null,"Steak à poêler (Cru)",null,"Jambon persillé"]
[null,"Poisson du jour/citron",null,"Poisson du jour/citron",null,"Poisson du jour/citron",null,"Poisson du jour/citron",null,"Poisson du jour/citron",null,"Poisson du jour/citron"]
["Garnitures","Pâtes au beurre",null,"Riz au beurre",1,"Pâtes au beurre",null,"Riz au beurre",null,"Pâtes au beurre",null,"Riz au beurre"]
[null,"Purée patates douces",null,"Purée pdt",null,"Purée de carottes",null,"Purée de céleri",null,"Purée de brocolis",null,"Purée haricots verts",null,"Riz pilaf"]
[null,"Choux romanesco",null,"Lentilles",null,"Carottes Parisiennes",null,"Salsifis",null,"Ratatouille",null,"Poêlée courgettes"]
[null,"Haricots beurre",1,"Potée de choux",null,"Poêlée forestière",null,"Printanière légumes",null,"Petits pois-carottes",null,"Légumes Léonard",null,"Gratin Dauphinois"]
[null,"Pommes vapeur",null,"Pommes grenaille",null,"Pommes vapeur",null,"Pommes grenaille",1,"Pommes vapeur",null,"Pommes grenaille"]
["Fromages","Roquefort",null,"Camembert",null,"Roquefort",null,"Camembert",null,"Roquefort",null,"Camembert",null,"Roquefort"]
[null,"Emmental",null,"Petit moulé",null,"Emmental",null,"Petit moulé",null,"Emmental",null,"Petit moulé",null,"Emmental"]
[null,"Yaourt nature",null,"Yaourt aux fruits",null,"Yaourt nature",null,"Yaourt aux fruits",null,"Yaourt nature",null,"Yaourt aux fruits",null,"Yaourt nature"]
[null,"Faisselle",null,"Chocolat liégeois",null,"Faisselle",null,"Café liégeois",null,"Faisselle",null,"Chocolat liégeois",null,"Faisselle"]
[null,"Riz au lait",null,"Semoule au lait",null,"Riz au lait",null,"Semoule au lait",null,"Riz au lait",null,"Semoule au lait",null,"Riz au lait"]
["Desserts","Pomme",null,"Clémentine",null,"Pêche",null,"Poire",null,"Salade de fruits",null,"Banane"]
[null,"Tatin de pommes",null,"Flan caramel",null,"Mousse de fruits",null,"Panna Cota",null,"île flottante",null,"Far Breton",null,"Choux craquelés"]
[null,"Flan pâtissier",null,"Tropézienne",null,"Kouign Amann",null,"Tarte aux pommes",null,"Crème praliné",null,"Tarte caramel",null,"Paris-Brest"]
[null,"Entremet fruit du jour",null,"Entremet fruit du jour",null,"Entremet fruit du jour",null,"Entremet fruit du jour",null,"Entremet fruit du jour",null,"Entremet fruit du jour"]
[null,"Compote aux fruits",null,"Compote de fruits",null,"Compote aux fruits",null,"Compote aux fruits",null,"Compote de fruits",null,"Compote aux fruits"]
["Pain","Pain",null,"Pain",null,"Pain",null,"Pain",null,"Pain",null,"Pain",null,"Pain"]
["Beurre","Beurre",null,"Beurre",null,"Beurre",null,"Beurre",null,"Beurre",null,"Beurre",null,"Beurre"]
[]
[]
["Total","plats",{"$f":"SUM(C3:C27)","v":3},null,{"$f":"SUM(E3:E27)","v":3},null,{"$f":"SUM(G3:G27)","v":0},null,{"$f":"SUM(I3:I27)","v":3},null,{"$f":"SUM(K3:K27)","v":0},null,{"$f":"SUM(M3:M27)","v":0},null,{"$f":"SUM(O3:O27)","v":0}]
[null,"Beurre",{"$f":"C29","v":0},null,{"$f":"E29","v":0},null,{"$f":"G29","v":0},null,{"$f":"I29","v":0},null,{"$f":"K29","v":0},null,{"$f":"M29","v":0},null,{"$f":"O29","v":0}]

{"sheet":"Feuil2","index":77,"n_rows":33,"n_cols":15,"rows_kept":33,"cut":false,"hidden":false,"merged":[[1,13,1,14],[1,1,1,2],[1,3,1,4],[1,5,1,6],[1,7,1,8],[1,9,1,10],[1,11,1,12]]}
[]
[null,"Lun 09/10/2017",null,"Mar 10/10/2017",null,"Mer 11/10/2017",null,"Jeu 12/10/2017",null,"Ven 13/10/2017",null,"Sam 14/10/2017",null,"Dim 15/10/2017"]
["Entrées","Sardines à l'huile",null,"Coleslaw",null,"Champignons Grecs",null,"Betteraves",null,"Crêpe champignons",null,"Taboulé"]
[null,"Terrine de légumes",null,"Œuf mayonnaise",null,"Pizza pain",null,"Panier jambon fromage",null,"Crumble saumon",null,"Quiche lorraine",null,"Saumon fumé"]
[null,"Piémontaise",null,"Pdt au thon",null,"Salade surimi",null,"Rillettes poisson",null,"Cocktail de crevettes",null,"Salade paysanne"]
[null,"Charcuterie du jour",null,"Charcuterie du jour",null,"Charcuterie du jour",null,"Charcuterie du jour",null,"Charcuterie du jour",null,"Charcuterie du jour",null,"Salade tomates maïs"]
[null,"Potage du jour",null,"Potage du jour",null,"Potage du jour",null,"Potage du jour",null,"Potage du jour",null,"Potage du jour",null,"Potage du jour"]
["Plats",null,null,"Meunière de colin",null,"Poisson a la bordelaise",null,"Colin à la Parisienne",null,"Brandade de morue",null,"Filet flétan meunière"]
[null,"Suprême de poulet",null,"Brochette de bœuf",null,"Blanquette de veau",null,"Poulet Basquaise",null,"Brochette de volaille",null,"Rôti de porc",null,"Saumon beurre-blanc"]
[null,"Jambon grillé",null,"Jambon blanc",null,"Jambon grillé",null,"Jambon blanc",null,"Jambon grillé",null,"Jambon blanc"]
[null,"Steak à poêler (Cru)",null,"Steak à poêler (cru)",null,"Steak à poêler (Cru)",null,"Steak à poêler (Cru)",null,"Steak à poêler (Cru)",null,"Steak à poêler (Cru)",null,"Jambon persillé"]
[null,"Poisson du jour/citron",null,"Poisson du jour/citron",null,"Poisson du jour/citron",null,"Poisson du jour/citron",null,"Poisson du jour/citron",null,"Poisson du jour/citron"]
["Garnitures","Pâtes au beurre",null,"Riz au beurre",null,"Pâtes au beurre",null,"Riz au beurre",null,"Pâtes au beurre",null,"Riz au beurre"]
[null,"Purée patates douces",null,"Purée pdt",null,"Purée de carottes",null,"Purée de céleri",null,"Purée de brocolis",null,"Purée haricots verts",null,"Riz pilaf"]
[null,"Choux romanesco",null,"Lentilles",null,"Carottes Parisiennes",null,"Salsifis",null,"Ratatouille",null,"Poêlée courgettes"]
[null,"Haricots beurre",null,"Potée de choux",null,"Poêlée forestière",null,"Printanière légumes",null,"Petits pois-carottes",null,"Légumes Léonard",null,"Gratin Dauphinois"]
[null,"Pommes vapeur",null,"Pommes grenaille",null,"Pommes vapeur",null,"Pommes grenaille",null,"Pommes vapeur",null,"Pommes grenaille"]
["Fromages","Roquefort",null,"Camembert",null,"Roquefort",null,"Camembert",null,"Roquefort",null,"Camembert",null,"Roquefort"]
[null,"Emmental",null,"Petit moulé",null,"Emmental",null,"Petit moulé",null,"Emmental",null,"Petit moulé",null,"Emmental"]
[null,"Yaourt nature",null,"Yaourt aux fruits",null,"Yaourt nature",null,"Yaourt aux fruits",null,"Yaourt nature",null,"Yaourt aux fruits",null,"Yaourt nature"]
[null,"Faisselle",null,"Chocolat liégeois",null,"Faisselle",null,"Café liégeois",null,"Faisselle",null,"Chocolat liégeois",null,"Faisselle"]
[null,"Riz au lait",null,"Semoule au lait",null,"Riz au lait",null,"Semoule au lait",null,"Riz au lait",null,"Semoule au lait",null,"Riz au lait"]
["Desserts","Pomme",null,"Clémentine",null,"Pêche",null,"Poire",null,"Salade de fruits",null,"Banane"]
[null,"Tatin de pommes",null,"Flan caramel",null,"Mousse de fruits",null,"Panna Cota",null,"île flottante",null,"Far Breton",null,"Choux craquelés"]
[null,"Flan pâtissier",null,"Tropézienne",null,"Kouign Amann",null,"Tarte aux pommes",null,"Crème praliné",null,"Tarte caramel",null,"Paris-Brest"]
[null,"Entremet fruit du jour",null,"Entremet fruit du jour",null,"Entremet fruit du jour",null,"Entremet fruit du jour",null,"Entremet fruit du jour",null,"Entremet fruit du jour"]
[null,"Compote aux fruits",null,"Compote de fruits",null,"Compote aux fruits",null,"Compote aux fruits",null,"Compote de fruits",null,"Compote aux fruits"]
["Pain","Pain",null,"Pain",null,"Pain",null,"Pain",null,"Pain",null,"Pain",null,"Pain"]
["Beurre","Beurre",null,"Beurre",null,"Beurre",null,"Beurre",null,"Beurre",null,"Beurre",null,"Beurre"]
[]
[]
["Total","plats",{"$f":"SUM(C3:C27)","v":0},null,{"$f":"SUM(E3:E27)","v":0},null,{"$f":"SUM(G3:G27)","v":0},null,{"$f":"SUM(I3:I27)","v":0},null,{"$f":"SUM(K3:K27)","v":0},null,{"$f":"SUM(M3:M27)","v":0},null,{"$f":"SUM(O3:O27)","v":0}]
[null,"Beurre",{"$f":"C29","v":0},null,{"$f":"E29","v":0},null,{"$f":"G29","v":0},null,{"$f":"I29","v":0},null,{"$f":"K29","v":0},null,{"$f":"M29","v":0},null,{"$f":"O29","v":0}]

{"sheet":"Cumul","index":78,"n_rows":29,"n_cols":15,"rows_kept":29,"cut":false,"hidden":false,"merged":[]}
[null,null,null,null,null,null,null,null,null,null,null,null,null," "]
[null,"Lun 02/10/2017",null,"Mar 03/10/2017",null,"Mer 04/10/2017",null,"Jeu 05/10/2017",null,"Ven 06/10/2017",null,"Sam 07/10/2017",null,"Dim 08/10/2017"]
["Entrées","Sardines à l'huile",{"$f":"SUM(Feuil1:Feuil2!C3)","v":10},"Coleslaw",{"$f":"SUM(Feuil1:Feuil2!E3)","v":4},"Champignons Grecs",{"$f":"SUM(Feuil1:Feuil2!G3)","v":7},"Betteraves",{"$f":"SUM(Feuil1:Feuil2!I3)","v":21},"Crêpe champignons",{"$f":"SUM(Feuil1:Feuil2!K3)","v":12},"Taboulé",{"$f":"SUM(Feuil1:Feuil2!M3)","v":5},null,{"$f":"SUM(Feuil1:Feuil2!O3)","v":0}]
[null,"Terrine de légumes",{"$f":"SUM(Feuil1:Feuil2!C4)","v":5},"Œuf mayonnaise",{"$f":"SUM(Feuil1:Feuil2!E4)","v":26},"Pizza pain",{"$f":"SUM(Feuil1:Feuil2!G4)","v":4},"Panier jambon fromage",{"$f":"SUM(Feuil1:Feuil2!I4)","v":7},"Crumble saumon",{"$f":"SUM(Feuil1:Feuil2!K4)","v":7},"Quiche lorraine",{"$f":"SUM(Feuil1:Feuil2!M4)","v":11},"Saumon fumé",{"$f":"SUM(Feuil1:Feuil2!O4)","v":20}]
[null,"Piémontaise",{"$f":"SUM(Feuil1:Feuil2!C5)","v":16},"Pdt au thon",{"$f":"SUM(Feuil1:Feuil2!E5)","v":13},"Salade surimi",{"$f":"SUM(Feuil1:Feuil2!G5)","v":21},"Rillettes poisson",{"$f":"SUM(Feuil1:Feuil2!I5)","v":8},"Cocktail de crevettes",{"$f":"SUM(Feuil1:Feuil2!K5)","v":19},"Salade paysanne",{"$f":"SUM(Feuil1:Feuil2!M5)","v":8},null,{"$f":"SUM(Feuil1:Feuil2!O5)","v":0}]
[null,"Charcuterie du jour",{"$f":"SUM(Feuil1:Feuil2!C6)","v":7},"Charcuterie du jour",{"$f":"SUM(Feuil1:Feuil2!E6)","v":5},"Charcuterie du jour",{"$f":"SUM(Feuil1:Feuil2!G6)","v":7},"Charcuterie du jour",{"$f":"SUM(Feuil1:Feuil2!I6)","v":6},"Charcuterie du jour",{"$f":"SUM(Feuil1:Feuil2!K6)","v":4},"Charcuterie du jour",{"$f":"SUM(Feuil1:Feuil2!M6)","v":9},"Salade tomates maïs",{"$f":"SUM(Feuil1:Feuil2!O6)","v":8}]
[null,"Potage du jour",{"$f":"SUM(Feuil1:Feuil2!C7)","v":17},"Potage du jour",{"$f":"SUM(Feuil1:Feuil2!E7)","v":14},"Potage du jour",{"$f":"SUM(Feuil1:Feuil2!G7)","v":17},"Potage du jour",{"$f":"SUM(Feuil1:Feuil2!I7)","v":13},"Potage du jour",{"$f":"SUM(Feuil1:Feuil2!K7)","v":15},"Potage du jour",{"$f":"SUM(Feuil1:Feuil2!M7)","v":9},"Potage du jour",{"$f":"SUM(Feuil1:Feuil2!O7)","v":10}]
["Plats",null,{"$f":"SUM(Feuil1:Feuil2!C8)","v":0},"Meunière de colin",{"$f":"SUM(Feuil1:Feuil2!E8)","v":19},"Poisson a la bordelaise",{"$f":"SUM(Feuil1:Feuil2!G8)","v":5},"Colin à la Parisienne",{"$f":"SUM(Feuil1:Feuil2!I8)","v":13},"Brandade de morue",{"$f":"SUM(Feuil1:Feuil2!K8)","v":15},"Filet flétan meunière",{"$f":"SUM(Feuil1:Feuil2!M8)","v":13},null,{"$f":"SUM(Feuil1:Feuil2!O8)","v":0}]
[null,"Suprême de poulet",{"$f":"SUM(Feuil1:Feuil2!C9)","v":28},"Brochette de bœuf",{"$f":"SUM(Feuil1:Feuil2!E9)","v":19},"Blanquette de veau",{"$f":"SUM(Feuil1:Feuil2!G9)","v":38},"Poulet Basquaise",{"$f":"SUM(Feuil1:Feuil2!I9)","v":38},"Brochette de volaille",{"$f":"SUM(Feuil1:Feuil2!K9)","v":24},"Rôti de porc",{"$f":"SUM(Feuil1:Feuil2!M9)","v":22},"Saumon beurre-blanc",{"$f":"SUM(Feuil1:Feuil2!O9)","v":19}]
[null,"Jambon grillé",{"$f":"SUM(Feuil1:Feuil2!C10)","v":8},"Jambon blanc",{"$f":"SUM(Feuil1:Feuil2!E10)","v":12},"Jambon grillé",{"$f":"SUM(Feuil1:Feuil2!G10)","v":4},"Jambon blanc",{"$f":"SUM(Feuil1:Feuil2!I10)","v":3},"Jambon grillé",{"$f":"SUM(Feuil1:Feuil2!K10)","v":6},"Jambon blanc",{"$f":"SUM(Feuil1:Feuil2!M10)","v":5},null,{"$f":"SUM(Feuil1:Feuil2!O10)","v":0}]
[null,"Steak à poêler (Cru)",{"$f":"SUM(Feuil1:Feuil2!C11)","v":1},"Steak à poêler (cru)",{"$f":"SUM(Feuil1:Feuil2!E11)","v":3},"Steak à poêler (Cru)",{"$f":"SUM(Feuil1:Feuil2!G11)","v":3},"Steak à poêler (Cru)",{"$f":"SUM(Feuil1:Feuil2!I11)","v":1},"Steak à poêler (Cru)",{"$f":"SUM(Feuil1:Feuil2!K11)","v":3},"Steak à poêler (Cru)",{"$f":"SUM(Feuil1:Feuil2!M11)","v":2},"Jambon persillé",{"$f":"SUM(Feuil1:Feuil2!O11)","v":20}]
[null,"Poisson du jour/citron",{"$f":"SUM(Feuil1:Feuil2!C12)","v":7},"Poisson du jour/citron",{"$f":"SUM(Feuil1:Feuil2!E12)","v":4},"Poisson du jour/citron",{"$f":"SUM(Feuil1:Feuil2!G12)","v":2},"Poisson du jour/citron",{"$f":"SUM(Feuil1:Feuil2!I12)","v":0},"Poisson du jour/citron",{"$f":"SUM(Feuil1:Feuil2!K12)","v":4},"Poisson du jour/citron",{"$f":"SUM(Feuil1:Feuil2!M12)","v":1},null,{"$f":"SUM(Feuil1:Feuil2!O12)","v":0}]
["Garnitures","Pâtes au beurre",{"$f":"SUM(Feuil1:Feuil2!C13)","v":8},"Riz au beurre",{"$f":"SUM(Feuil1:Feuil2!E13)","v":5},"Pâtes au beurre",{"$f":"SUM(Feuil1:Feuil2!G13)","v":15},"Riz au beurre",{"$f":"SUM(Feuil1:Feuil2!I13)","v":12},"Pâtes au beurre",{"$f":"SUM(Feuil1:Feuil2!K13)","v":8},"Riz au beurre",{"$f":"SUM(Feuil1:Feuil2!M13)","v":6},null,{"$f":"SUM(Feuil1:Feuil2!O13)","v":0}]
[null,"Purée patates douces",{"$f":"SUM(Feuil1:Feuil2!C14)","v":8},"Purée pdt",{"$f":"SUM(Feuil1:Feuil2!E14)","v":28},"Purée de carottes",{"$f":"SUM(Feuil1:Feuil2!G14)","v":9},"Purée de céleri",{"$f":"SUM(Feuil1:Feuil2!I14)","v":5},"Purée de brocolis",{"$f":"SUM(Feuil1:Feuil2!K14)","v":7},"Purée haricots verts",{"$f":"SUM(Feuil1:Feuil2!M14)","v":10},"Riz pilaf",{"$f":"SUM(Feuil1:Feuil2!O14)","v":8}]
[null,"Choux romanesco",{"$f":"SUM(Feuil1:Feuil2!C15)","v":3},"Lentilles",{"$f":"SUM(Feuil1:Feuil2!E15)","v":8},"Carottes Parisiennes",{"$f":"SUM(Feuil1:Feuil2!G15)","v":5},"Salsifis",{"$f":"SUM(Feuil1:Feuil2!I15)","v":8},"Ratatouille",{"$f":"SUM(Feuil1:Feuil2!K15)","v":14},"Poêlée courgettes",{"$f":"SUM(Feuil1:Feuil2!M15)","v":12},null,{"$f":"SUM(Feuil1:Feuil2!O15)","v":0}]
[null,"Haricots beurre",{"$f":"SUM(Feuil1:Feuil2!C16)","v":17},"Potée de choux",{"$f":"SUM(Feuil1:Feuil2!E16)","v":4},"Poêlée forestière",{"$f":"SUM(Feuil1:Feuil2!G16)","v":9},"Printanière légumes",{"$f":"SUM(Feuil1:Feuil2!I16)","v":9},"Petits pois-carottes",{"$f":"SUM(Feuil1:Feuil2!K16)","v":6},"Légumes Léonard",{"$f":"SUM(Feuil1:Feuil2!M16)","v":6},"Gratin Dauphinois",{"$f":"SUM(Feuil1:Feuil2!O16)","v":26}]
[null,"Pommes vapeur",{"$f":"SUM(Feuil1:Feuil2!C17)","v":8},"Pommes grenaille",{"$f":"SUM(Feuil1:Feuil2!E17)","v":8},"Pommes vapeur",{"$f":"SUM(Feuil1:Feuil2!G17)","v":10},"Pommes grenaille",{"$f":"SUM(Feuil1:Feuil2!I17)","v":14},"Pommes vapeur",{"$f":"SUM(Feuil1:Feuil2!K17)","v":12},"Pommes grenaille",{"$f":"SUM(Feuil1:Feuil2!M17)","v":7},null,{"$f":"SUM(Feuil1:Feuil2!O17)","v":0}]
["Fromages","Roquefort",{"$f":"SUM(Feuil1:Feuil2!C18)","v":1},"Camembert",{"$f":"SUM(Feuil1:Feuil2!E18)","v":6},"Roquefort",{"$f":"SUM(Feuil1:Feuil2!G18)","v":4},"Camembert",{"$f":"SUM(Feuil1:Feuil2!I18)","v":5},"Roquefort",{"$f":"SUM(Feuil1:Feuil2!K18)","v":3},"Camembert",{"$f":"SUM(Feuil1:Feuil2!M18)","v":6},"Roquefort",{"$f":"SUM(Feuil1:Feuil2!O18)","v":3}]
["Laitage","Emmental",{"$f":"SUM(Feuil1:Feuil2!C19)","v":4},"Petit moulé",{"$f":"SUM(Feuil1:Feuil2!E19)","v":2},"Emmental",{"$f":"SUM(Feuil1:Feuil2!G19)","v":7},"Petit moulé",{"$f":"SUM(Feuil1:Feuil2!I19)","v":2},"Emmental",{"$f":"SUM(Feuil1:Feuil2!K19)","v":4},"Petit moulé",{"$f":"SUM(Feuil1:Feuil2!M19)","v":2},"Emmental",{"$f":"SUM(Feuil1:Feuil2!O19)","v":5}]
[null,"Yaourt nature",{"$f":"SUM(Feuil1:Feuil2!C20)","v":4},"Yaourt aux fruits",{"$f":"SUM(Feuil1:Feuil2!E20)","v":8},"Yaourt nature",{"$f":"SUM(Feuil1:Feuil2!G20)","v":4},"Yaourt aux fruits",{"$f":"SUM(Feuil1:Feuil2!I20)","v":7},"Yaourt nature",{"$f":"SUM(Feuil1:Feuil2!K20)","v":5},"Yaourt aux fruits",{"$f":"SUM(Feuil1:Feuil2!M20)","v":7},"Yaourt nature",{"$f":"SUM(Feuil1:Feuil2!O20)","v":3}]
[null,"Faisselle",{"$f":"SUM(Feuil1:Feuil2!C21)","v":3},"Chocolat liégeois",{"$f":"SUM(Feuil1:Feuil2!E21)","v":8},"Faisselle",{"$f":"SUM(Feuil1:Feuil2!G21)","v":3},"Café liégeois",{"$f":"SUM(Feuil1:Feuil2!I21)","v":10},"Faisselle",{"$f":"SUM(Feuil1:Feuil2!K21)","v":2},"Chocolat liégeois",{"$f":"SUM(Feuil1:Feuil2!M21)","v":6},"Faisselle",{"$f":"SUM(Feuil1:Feuil2!O21)","v":0}]
[null,"Riz au lait",{"$f":"SUM(Feuil1:Feuil2!C22)","v":8},"Semoule au lait",{"$f":"SUM(Feuil1:Feuil2!E22)","v":4},"Riz au lait",{"$f":"SUM(Feuil1:Feuil2!G22)","v":4},"Semoule au lait",{"$f":"SUM(Feuil1:Feuil2!I22)","v":3},"Riz au lait",{"$f":"SUM(Feuil1:Feuil2!K22)","v":6},"Semoule au lait",{"$f":"SUM(Feuil1:Feuil2!M22)","v":2},"Riz au lait",{"$f":"SUM(Feuil1:Feuil2!O22)","v":7}]
["Desserts","Pomme",{"$f":"SUM(Feuil1:Feuil2!C23)","v":1},"Clémentine",{"$f":"SUM(Feuil1:Feuil2!E23)","v":4},"Pêche",{"$f":"SUM(Feuil1:Feuil2!G23)","v":4},"Poire",{"$f":"SUM(Feuil1:Feuil2!I23)","v":2},"Salade de fruits",{"$f":"SUM(Feuil1:Feuil2!K23)","v":10},"Banane",{"$f":"SUM(Feuil1:Feuil2!M23)","v":3},null,{"$f":"SUM(Feuil1:Feuil2!O23)","v":0}]
[null,"Tatin de pommes",{"$f":"SUM(Feuil1:Feuil2!C24)","v":17},"Flan caramel",{"$f":"SUM(Feuil1:Feuil2!E24)","v":20},"Mousse de fruits",{"$f":"SUM(Feuil1:Feuil2!G24)","v":12},"Panna Cota",{"$f":"SUM(Feuil1:Feuil2!I24)","v":13},"île flottante",{"$f":"SUM(Feuil1:Feuil2!K24)","v":21},"Far Breton",{"$f":"SUM(Feuil1:Feuil2!M24)","v":14},"Choux craquelés",{"$f":"SUM(Feuil1:Feuil2!O24)","v":13}]
[null,"Flan pâtissier",{"$f":"SUM(Feuil1:Feuil2!C25)","v":11},"Tropézienne",{"$f":"SUM(Feuil1:Feuil2!E25)","v":14},"Kouign Amann",{"$f":"SUM(Feuil1:Feuil2!G25)","v":21},"Tarte aux pommes",{"$f":"SUM(Feuil1:Feuil2!I25)","v":16},"Crème praliné",{"$f":"SUM(Feuil1:Feuil2!K25)","v":11},"Tarte caramel",{"$f":"SUM(Feuil1:Feuil2!M25)","v":11},"Paris-Brest",{"$f":"SUM(Feuil1:Feuil2!O25)","v":23}]
[null,"Entremet fruit du jour",{"$f":"SUM(Feuil1:Feuil2!C26)","v":2},"Entremet fruit du jour",{"$f":"SUM(Feuil1:Feuil2!E26)","v":5},"Entremet fruit du jour",{"$f":"SUM(Feuil1:Feuil2!G26)","v":3},"Entremet fruit du jour",{"$f":"SUM(Feuil1:Feuil2!I26)","v":7},"Entremet fruit du jour",{"$f":"SUM(Feuil1:Feuil2!K26)","v":1},"Entremet fruit du jour",{"$f":"SUM(Feuil1:Feuil2!M26)","v":3},null,{"$f":"SUM(Feuil1:Feuil2!O26)","v":0}]
[null,"Compote aux fruits",{"$f":"SUM(Feuil1:Feuil2!C27)","v":2},"Compote de fruits",{"$f":"SUM(Feuil1:Feuil2!E27)","v":1},"Compote aux fruits",{"$f":"SUM(Feuil1:Feuil2!G27)","v":2},"Compote aux fruits",{"$f":"SUM(Feuil1:Feuil2!I27)","v":4},"Compote de fruits",{"$f":"SUM(Feuil1:Feuil2!K27)","v":1},"Compote aux fruits",{"$f":"SUM(Feuil1:Feuil2!M27)","v":3},null,{"$f":"SUM(Feuil1:Feuil2!O27)","v":0}]
["Pain","Pain",{"$f":"SUM(Feuil1:Feuil2!C28)","v":7},"Pain",{"$f":"SUM(Feuil1:Feuil2!E28)","v":9},"Pain",{"$f":"SUM(Feuil1:Feuil2!G28)","v":9},"Pain",{"$f":"SUM(Feuil1:Feuil2!I28)","v":9},"Pain",{"$f":"SUM(Feuil1:Feuil2!K28)","v":9},"Pain",{"$f":"SUM(Feuil1:Feuil2!M28)","v":6},"Pain",{"$f":"SUM(Feuil1:Feuil2!O28)","v":7}]
["Beurre","Beurre",{"$f":"SUM(Feuil1:Feuil2!C29)","v":3},"Beurre",{"$f":"SUM(Feuil1:Feuil2!E29)","v":3},"Beurre",{"$f":"SUM(Feuil1:Feuil2!G29)","v":3},"Beurre",{"$f":"SUM(Feuil1:Feuil2!I29)","v":3},"Beurre",{"$f":"SUM(Feuil1:Feuil2!K29)","v":3},"Beurre",{"$f":"SUM(Feuil1:Feuil2!M29)","v":3},"Beurre",{"$f":"SUM(Feuil1:Feuil2!O29)","v":3}]